Workbook

Sheet Navigation Pane
C2: Livingstone Shire Council
C3: Refer to the accompanying User Manual for detailed instructions on how to use the Spreadsheet
B6: Version No | D6: Draft 2 | F6: Date | G6: 2017-10-06 | J6: Author | K6: P McKone
B8: Comments
D10: Inputs | I10: Calculation | N10: Outputs
C12: General Input Sheet | H12: Calculation Function | M12: Summary Cost Schedule
C13: l Financial Inputs l Other "generic" inputs | H13: l Catchment based summary of demand, infrastructure (existing and new) and cost allocation l Infrastructure Cost calculation for each catchment ("Average Cost" approach) l Optional Discounted Cashflow | M13: l Summary of demand and cost allocation by catchment l Final costs by catchment
M15: Summary Cash flow Projections
C16: l Unit Cost of Passive Assets l Unit Cost of Land | M16: l Summary of forecast Cap X and anticipated IC revenues
C19: l Estimates of current and future demand (per cost catchment)
C21: Asset Inputs
C28: Appendix C - Schedule of works model V24June2015 - modified by LSC

Sheet General Input Sheet
B2: ='Navigation Pane'!C2 -> Livingstone Shire Council
A3: Return to Navigation Pane
B4: General Input Sheet
B6: General Inputs | E6: Reference | G6: Value | I6: Comments
C8: Base Year | E8: YEAR | G8: 2011
G9: =YEAR -> 2011
C10: Term (between 15 and 30 years) | E10: TERM | G10: 25
B12: Application of Discounted Cash flow
C14: Calculate charges using Discounted Cash flow? (Y/N) | E14: DCFTRIGGER | G14: Yes
B16: General Financial Inputs
B18: Discount Rate (WACC):
C19: Average 10 Year Bond Rate | E19: TenYr | G19: 0.026 | I19: Reflects the current ten year bond rate as at Sept 17. | L19: 2
B21: Option 1 | C21: Basic Margin on 10 Yr. Bond Rate | E21: Margin | G21: 0.035 | I21: 3.5% is the baseline figure quoted in LG Bulletin 06/01 | L21: 1
C23: WACC: | E23: WACC1 | G23: =G19+G21 -> 0.061
B25: Option 2 | C25: Capital Structure (% Debt) | E25: Capstr
C26: Market Risk Premium | E26: Risk | G26: 0.06
C27: Asset Beta | E27: AssetBeta
C28: Cost of Debt | E28: Debt
C30: WACC: | E30: WACC2 | G30: =(G25*G28)+(G19+(G27*G26)*(1-G25)) -> 0.026
C32: WACC Option to be applied in the calculation? | E32: WACC1 | G32: =IF(G14="No",0,IF(E32="WACC1",WACC1,IF(E32="WACC2",WACC2,"Error"))) -> 0.061
B34: Escalation Rates
C35: Capital Escalation - Future Cap X | E35: PPI | G35: 0.02 | I35: ten (10) yr. average Roads and Bridges Index (ABS 6427, Table 15, Index 3101) | J35: 4% too high
C37: Capital Indexation Rates - Historical (June Qtr.)
E38: =YEAR -> 2011 | G38: 100.3 | I38: Roads and Bridges Index (ABS 6427, Table 15, Index 3101) | J38: QLD | M38: 2016 | N38: 104.7
E39: =E38-1 -> 2010 | G39: 96.6 | M39: 2015 | N39: 106.3
E40: =E39-1 -> 2009 | G40: 95.2 | M40: 2014 | N40: 107
E41: 2008 | G41: 97.2 | M41: 2013 | N41: 104.5
E42: 2007 | G42: 83.2 | M42: 2012 | N42: 102.5
E43: 2006 | G43: 80.1
E44: 2005 | G44: 73.3
C46: Land Escalation | E46: LandInd | G46: 0.02
C48: Charges Escalation Rate | E48: Chargeind | G48: 0.02
G49: =Chargeind -> 0.02
G51: =Chargeind -> 0.02

Sheet Unit Rates (hidden)
B2: ='Navigation Pane'!C2 -> Livingstone Shire Council
B4: Unit Rates
B6: Land Cost | D6: Transport - Open Network
B8: Water Supply - Closed Network | D8: Sewerage - Closed Network
B10: Stormwater - Closed Network | D10: Parks & Community Facilities - Open Network

Sheet Catchment Demand
B2: ='Navigation Pane'!C2 -> Livingstone Shire Council
B4: Demand Forecast
B6: Anticpated Growth Residential | D6: Anticpated Growth - NON Residential
B8: Water Supply - Closed Network | D8: Transport - Open Network
B10: Sewerage - Closed Network | D10: Parks & Community Facilities - Open Network
B12: Stormwater - Closed Network

Sheet Existing Trunk Assets (hidden)
B2: ='Navigation Pane'!C2 -> Livingstone Shire Council
B4: Existing Trunk Assets
B6: Water Supply - Closed Network | D6: Transport - Open Network
B8: Sewerage - Closed Network | D8: Parks & Community Facilities - Open Network
B10: Stormwater - Closed Network
B16: Closed Network - means that the benefit of the infrastructure services are provided to a particular areas or catchments. Costs are shared only on a benefitted catchment basis.
B18: Open Network - means that the benefit of the infrastructure services are open to all residents. Costs are shared across the whole Shire.

Sheet Existing Trunk Assets - Water (hidden)
B2: ='Navigation Pane'!C2 -> Livingstone Shire Council | T2: Asset Class Definitions
B3: Water Supply - Closed Network | T3: TRES MD | U3: Trunk Reservoir, Max Day Design Capacity | AA3: TDam AD | AC3: Trunk Dam, Average Day Design Capacity
A4: Return to "Existing Trunk Assets" | T4: TWPS MH | U4: Trunk Water Pump Station, Max Hour Design Capacity | AA4: TWPS MD | AC4: Trunk Water Pump Station, Max Day Design Capacity
B5: EXISTING TRUNK ASSETS - CLOSED NETWORKS | T5: TM MD | U5: Trunk Main, Max Day Design Capacity | AA5: TWPS AD | AC5: Trunk Water Pump Station, Average Day Design Capacity
T7: TM MH | U7: Trunk Main, Max Hour Design Capacity | AA7: TGW AD | AC7: Trunk Groundwater Bore, Average Day Design Capacity
B8: Land Valuation Type | E8: Location | T8: TM AD | U8: Trunk Main, Average Day Design Capacity
I10: Asset Data | W10: Catchment Asset Allocation | BP10: Asset Usage | CV10: Cost Allocation
B11: Basic Asset Data | H11: Asset Attributes | K11: Baseline Asset Valuation | P11: Land Attributes | T11: Refined Asset Value | W11: ='Catchment Demand - Water Supply'!$C8 -> Yeppoon | X11: ='Catchment Demand - Water Supply'!$C9 -> Cooee Bay | Y11: ='Catchment Demand - Water Supply'!$C10 -> Taranganba | Z11: ='Catchment Demand - Water Supply'!$C11 -> Lammermoor | AA11: ='Catchment Demand - Water Supply'!$C12 -> Rosslyn | AB11: ='Catchment Demand - Water Supply'!$C13 -> Meikleville Hill | AC11: ='Catchment Demand - Water Supply'!$C14 -> Barlows Hill | AD11: ='Catchment Demand - Water Supply'!$C15 -> Pacific Heights | AE11: ='Catchment Demand - Water Supply'!$C16 -> Mulambin | AF11: ='Catchment Demand - Water Supply'!$C17 -> Causeway Lake | AG11: ='Catchment Demand - Water Supply'!$C18 -> Hidden Valley | AH11: ='Catchment Demand - Water Supply'!$C19 -> Taroomball | AI11: ='Catchment Demand - Water Supply'!$C20 -> Farnborough | AJ11: ='Catchment Demand - Water Supply'!$C21 -> Emu Park | AK11: ='Catchment Demand - Water Supply'!$C22 -> Zilzie | AL11: ='Catchment Demand - Water Supply'!$C23 -> Kinka Beach | AM11: ='Catchment Demand - Water Supply'!$C24 -> Tanby | AN11: ='Catchment Demand - Water Supply'!$C25 -> Barmaryee | AO11: ='Catchment Demand - Water Supply'!$C26 -> Inverness | AP11: ='Catchment Demand - Water Supply'!$C27 -> Adelaiade Park | AQ11: ='Catchment Demand - Water Supply'!$C28 -> Bangalee | AR11: ='Catchment Demand - Water Supply'!$C29 -> Keppel Sands | AS11: ='Catchment Demand - Water Supply'!$C30 -> Glenlee-Rockyview | AT11: ='Catchment Demand - Water Supply'!$C31 -> NE Shire & Shoalwater | AU11: ='Catchment Demand - Water Supply'!$C32 -> Sth Shire | AV11: ='Catchment Demand - Water Supply'!$C33 -> SE Shire | AW11: ='Catchment Demand - Water Supply'!$C34 -> Rural Localities with water | AX11: ='Catchment Demand - Water Supply'!$C35 -> N & W Shire - Rural | AY11: ='Catchment Demand - Water Supply'!$C36 -> The Keppels | AZ11: ='Catchment Demand - Water Supply'!$C37 -> Coral Sea | BB11: ='Catchment Demand - Water Supply'!$C8 -> Yeppoon | BC11: ='Catchment Demand - Water Supply'!$C9 -> Cooee Bay | BD11: ='Catchment Demand - Water Supply'!$C10 -> Taranganba | BE11: ='Catchment Demand - Water Supply'!$C11 -> Lammermoor | BF11: ='Catchment Demand - Water Supply'!$C12 -> Rosslyn | BG11: ='Catchment Demand - Water Supply'!$C13 -> Meikleville Hill | BH11: ='Catchment Demand - Water Supply'!$C14 -> Barlows Hill | BI11: ='Catchment Demand - Water Supply'!$C15 -> Pacific Heights | BJ11: ='Catchment Demand - Water Supply'!$C16 -> Mulambin | BK11: ='Catchment Demand - Water Supply'!$C17 -> Causeway Lake | BL11: ='Catchment Demand - Water Supply'!$C18 -> Hidden Valley | BM11: ='Catchment Demand - Water Supply'!$C19 -> Taroomball | BN11: ='Catchment Demand - Water Supply'!$C20 -> Farnborough | BO11: ='Catchment Demand - Water Supply'!$C21 -> Emu Park | BP11: ='Catchment Demand - Water Supply'!$C22 -> Zilzie | BQ11: ='Catchment Demand - Water Supply'!$C23 -> Kinka Beach | BR11: ='Catchment Demand - Water Supply'!$C24 -> Tanby | BS11: ='Catchment Demand - Water Supply'!$C25 -> Barmaryee | BT11: ='Catchment Demand - Water Supply'!$C26 -> Inverness | BU11: ='Catchment Demand - Water Supply'!$C27 -> Adelaiade Park | BV11: ='Catchment Demand - Water Supply'!$C28 -> Bangalee | BW11: ='Catchment Demand - Water Supply'!$C29 -> Keppel Sands | BX11: ='Catchment Demand - Water Supply'!$C30 -> Glenlee-Rockyview | BY11: ='Catchment Demand - Water Supply'!$C31 -> NE Shire & Shoalwater | BZ11: ='Catchment Demand - Water Supply'!$C32 -> Sth Shire | CA11: ='Catchment Demand - Water Supply'!$C33 -> SE Shire | CB11: ='Catchment Demand - Water Supply'!$C34 -> Rural Localities with water | CC11: ='Catchment Demand - Water Supply'!$C35 -> N & W Shire - Rural | CD11: ='Catchment Demand - Water Supply'!$C36 -> The Keppels | CE11: ='Catchment Demand - Water Supply'!$C37 -> Coral Sea | CF11: TOTALS | CH11: ='Catchment Demand - Water Supply'!$C8 -> Yeppoon | CI11: ='Catchment Demand - Water Supply'!$C9 -> Cooee Bay | CJ11: ='Catchment Demand - Water Supply'!$C10 -> Taranganba | CK11: ='Catchment Demand - Water Supply'!$C11 -> Lammermoor | CL11: ='Catchment Demand - Water Supply'!$C12 -> Rosslyn | CM11: ='Catchment Demand - Water Supply'!$C13 -> Meikleville Hill | CN11: ='Catchment Demand - Water Supply'!$C14 -> Barlows Hill | CO11: ='Catchment Demand - Water Supply'!$C15 -> Pacific Heights | CP11: ='Catchment Demand - Water Supply'!$C16 -> Mulambin | CQ11: ='Catchment Demand - Water Supply'!$C17 -> Causeway Lake | CR11: ='Catchment Demand - Water Supply'!$C18 -> Hidden Valley | CS11: ='Catchment Demand - Water Supply'!$C19 -> Taroomball | CT11: ='Catchment Demand - Water Supply'!$C20 -> Farnborough | CU11: ='Catchment Demand - Water Supply'!$C21 -> Emu Park | CV11: ='Catchment Demand - Water Supply'!$C22 -> Zilzie | CW11: ='Catchment Demand - Water Supply'!$C23 -> Kinka Beach | CX11: ='Catchment Demand - Water Supply'!$C24 -> Tanby | CY11: ='Catchment Demand - Water Supply'!$C25 -> Barmaryee | CZ11: ='Catchment Demand - Water Supply'!$C26 -> Inverness | DA11: ='Catchment Demand - Water Supply'!$C27 -> Adelaiade Park | DB11: ='Catchment Demand - Water Supply'!$C28 -> Bangalee | DC11: ='Catchment Demand - Water Supply'!$C29 -> Keppel Sands | DD11: ='Catchment Demand - Water Supply'!$C30 -> Glenlee-Rockyview | DE11: ='Catchment Demand - Water Supply'!$C31 -> NE Shire & Shoalwater | DF11: ='Catchment Demand - Water Supply'!$C32 -> Sth Shire | DG11: ='Catchment Demand - Water Supply'!$C33 -> SE Shire | DH11: ='Catchment Demand - Water Supply'!$C34 -> Rural Localities with water | DI11: ='Catchment Demand - Water Supply'!$C35 -> N & W Shire - Rural | DJ11: ='Catchment Demand - Water Supply'!$C36 -> The Keppels | DK11: ='Catchment Demand - Water Supply'!$C37 -> Coral Sea | DL11: Checksum 2
B12: Asset ID | C12: LGIP ID | D12: Asset Type (*) | E12: Asset Class | F12: Asset Name | G12: Description | H12: Unit Rate Type (*) | I12: Length/unit (*) | J12: Diameter (*) | K12: Unit Rate | L12: Baseline Valuation | M12: Site/Condition | N12: Multiplier | O12: Gross Value | P12: Land Location/Type | Q12: Size of land (ha) (*) | R12: Unit Cost | S12: Land Value | T12: Valuation Year | U12: Escalation | V12: Current Replacement Cost | DN12: Totals
W13: 1 | X13: =W13+1 -> 2 | Y13: =X13+1 -> 3 | Z13: 4 | AA13: 5 | AB13: 6 | AC13: 7 | AD13: 8 | AE13: 9 | AF13: 10 | AG13: 11 | AH13: 12 | AI13: 13 | AJ13: 14 | AK13: 15 | AL13: 16 | AM13: 17 | AN13: 18 | AO13: 19 | AP13: 20 | AQ13: 21 | AR13: 22 | AS13: 23 | AT13: 24 | AU13: 25 | AV13: 26 | AW13: 27 | AX13: 28 | AY13: 29 | AZ13: 30
B14: Councils ID (from GIS, FAR, AMA etc.) | C14: ID from the LGIP drawings | E14: Reservoir, Trunk Main (TM), MaxDay (MD), MaxHour (MH), AverageDay (AD), etc. | L14: May be calculated from unit rates OR unique values can be direct entered | V14: CRC | W14: =IFERROR(VLOOKUP(W11,watercatch,6,FALSE),"") -> 5479.33063 | X14: 928.3702909 | Y14: 1083.843286 | Z14: 956.8209732 | AA14: 575.6795871 | AB14: 365.8833822 | AC14: 462.6229889 | AD14: 947.5 | AE14: 246 | AF14: 71.80956371 | AG14: 750.6675466 | AH14: 912.0484283 | AI14: 352.9534753 | AJ14: 2899.561519 | AK14: 1566.570638 | AL14: 379.4352564 | AM14: 144 | AN14: 476.4963074 | AO14: 96.00269134 | AP14: 134 | AQ14: 104 | AR14: 270.324288 | AS14: 1409.454453 | AT14: 464.5512875 | AU14: 664.273678 | AV14: 432 | AW14: 191.1969828 | AX14: 307.3300465 | AY14: 19 | AZ14: 0 | BB14: =VLOOKUP(BB11,'Catchment Demand - Water Supply'!$C$8:$H$37,6,FALSE) -> 5479.33063 | BC14: =VLOOKUP(BC11,'Catchment Demand - Water Supply'!$C$8:$H$37,6,FALSE) -> 928.3702909 | BD14: =VLOOKUP(BD11,'Catchment Demand - Water Supply'!$C$8:$H$37,6,FALSE) -> 1083.843286 | BE14: =VLOOKUP(BE11,'Catchment Demand - Water Supply'!$C$8:$H$37,6,FALSE) -> 956.8209732 | BF14: =VLOOKUP(BF11,'Catchment Demand - Water Supply'!$C$8:$H$37,6,FALSE) -> 575.6795871 | BG14: =VLOOKUP(BG11,'Catchment Demand - Water Supply'!$C$8:$H$37,6,FALSE) -> 365.8833822 | BH14: =VLOOKUP(BH11,'Catchment Demand - Water Supply'!$C$8:$H$37,6,FALSE) -> 462.6229889 | BI14: =VLOOKUP(BI11,'Catchment Demand - Water Supply'!$C$8:$H$37,6,FALSE) -> 947.5 | BJ14: =VLOOKUP(BJ11,'Catchment Demand - Water Supply'!$C$8:$H$37,6,FALSE) -> 246 | BK14: =VLOOKUP(BK11,'Catchment Demand - Water Supply'!$C$8:$H$37,6,FALSE) -> 71.80956371 | BL14: =VLOOKUP(BL11,'Catchment Demand - Water Supply'!$C$8:$H$37,6,FALSE) -> 750.6675466 | BM14: =VLOOKUP(BM11,'Catchment Demand - Water Supply'!$C$8:$H$37,6,FALSE) -> 912.0484283 | BN14: =VLOOKUP(BN11,'Catchment Demand - Water Supply'!$C$8:$H$37,6,FALSE) -> 352.9534753 | BO14: =VLOOKUP(BO11,'Catchment Demand - Water Supply'!$C$8:$H$37,6,FALSE) -> 2899.561519 | BP14: =VLOOKUP(BP11,'Catchment Demand - Water Supply'!$C$8:$H$37,6,FALSE) -> 1566.570638 | BQ14: =VLOOKUP(BQ11,'Catchment Demand - Water Supply'!$C$8:$H$37,6,FALSE) -> 379.4352564 | BR14: =VLOOKUP(BR11,'Catchment Demand - Water Supply'!$C$8:$H$37,6,FALSE) -> 144 | BS14: =VLOOKUP(BS11,'Catchment Demand - Water Supply'!$C$8:$H$37,6,FALSE) -> 476.4963074 | BT14: =VLOOKUP(BT11,'Catchment Demand - Water Supply'!$C$8:$H$37,6,FALSE) -> 96.00269134 | BU14: =VLOOKUP(BU11,'Catchment Demand - Water Supply'!$C$8:$H$37,6,FALSE) -> 134 | BV14: =VLOOKUP(BV11,'Catchment Demand - Water Supply'!$C$8:$H$37,6,FALSE) -> 104 | BW14: =VLOOKUP(BW11,'Catchment Demand - Water Supply'!$C$8:$H$37,6,FALSE) -> 270.324288 | BX14: =VLOOKUP(BX11,'Catchment Demand - Water Supply'!$C$8:$H$37,6,FALSE) -> 1409.454453 | BY14: =VLOOKUP(BY11,'Catchment Demand - Water Supply'!$C$8:$H$37,6,FALSE) -> 464.5512875 | BZ14: =VLOOKUP(BZ11,'Catchment Demand - Water Supply'!$C$8:$H$37,6,FALSE) -> 664.273678 | CA14: =VLOOKUP(CA11,'Catchment Demand - Water Supply'!$C$8:$H$37,6,FALSE) -> 432 | CB14: =VLOOKUP(CB11,'Catchment Demand - Water Supply'!$C$8:$H$37,6,FALSE) -> 191.1969828 | CC14: =VLOOKUP(CC11,'Catchment Demand - Water Supply'!$C$8:$H$37,6,FALSE) -> 307.3300465 | CD14: =VLOOKUP(CD11,'Catchment Demand - Water Supply'!$C$8:$H$37,6,FALSE) -> 19 | CE14: =VLOOKUP(CE11,'Catchment Demand - Water Supply'!$C$8:$H$37,6,FALSE) -> 0 | CH14: =SUM(CH15:CH400) -> 24459685.8 | CI14: 4144237.162 | CJ14: 4838267.304 | CK14: 4271240.768 | CL14: 2569828.83 | CM14: 1633300.338 | CN14: 2065145.127 | CO14: 4229632.023 | CP14: 1098141.929 | CQ14: 320557.2878 | CR14: 3350973.608 | CS14: 4071376.505 | CT14: 1575581.342 | CU14: 12943618.21 | CV14: 6993158.137 | CW14: 1693795.79 | CX14: 642814.7876 | CY14: 2127075.504 | CZ14: 428555.2059 | DA14: 598174.8718 | DB14: 464255.1244 | DC14: 1206725.346 | DD14: 1452000 | DE14: 0 | DF14: 0 | DG14: 0 | DH14: 3549500 | DI14: 0 | DJ14: 0 | DK14: 0 | DL14: 0
B15: Byfield | D15: Passive | E15: TM AD | F15: CCW 375 raw Waterpark Cr - RW Booster PS | H15: mPVC (to 450mm) and DICL Trunk Watermains | I15: 320 | J15: 375 | K15: =IF(H15=TYPE1,VLOOKUP(J15,WaterUnitrates1,2,FALSE),IF(H15=TYPE2,VLOOKUP(J15,Unitrates2,2,FALSE),0)) -> 490 | L15: =K15*I15 -> 156800 | M15: nominal | N15: =IF(M15="",1,VLOOKUP(M15,'Unit Rates - Water'!$H$12:$I$23,2,FALSE)) -> 1 | O15: =L15*N15 -> 156800 | P15: Crown Land | R15: =IF(P15="",'Unit Rates - Land'!landcst,IF($E$8="Landuse",VLOOKUP(P15,LAndcost3,2,FALSE),IF($E$8="Location",VLOOKUP(P15,Landcost2,2,FALSE),"Error"))) -> 0 | S15: =IF(R15="",0,R15*10000*Q15) -> 0 | T15: 2011 | U15: =IFERROR(('General Input Sheet'!$G$38/(VLOOKUP('Existing Trunk Assets - Water'!T15,Histindex,3,FALSE))),1) -> 1 | V15: =IFERROR((O15+S15)*U15,0) -> 156800 | W15: y | X15: y | Y15: y | Z15: y | AA15: y | AB15: y | AC15: y | AD15: y | AE15: y | AF15: y | AG15: y | AH15: y | AI15: y | AJ15: y | AK15: y | AL15: y | AM15: y | AN15: y | AO15: y | AP15: y | AQ15: y | AR15: y | BB15: =IF(W15="y",BB$14,IF(AND(W15>0,W15<=1),W15*BB$14,"")) -> 5479.33063 | BC15: =IF(X15="y",BC$14,IF(AND(X15>0,X15<=1),X15*BC$14,"")) -> 928.3702909 | BD15: 1083.843286 | BE15: 956.8209732 | BF15: 575.6795871 | BG15: 365.8833822 | BH15: 462.6229889 | BI15: 947.5 | BJ15: 246 | BK15: 71.80956371 | BL15: 750.6675466 | BM15: 912.0484283 | BN15: 352.9534753 | BO15: 2899.561519 | BP15: 1566.570638 | BQ15: 379.4352564 | BR15: 144 | BS15: 476.4963074 | BT15: 96.00269134 | BU15: 134 | BV15: 104 | BW15: 270.324288 | CF15: =SUM(BB15:CE15) -> 19203.92085 | CH15: =IF(BB15="","",(BB15/$CF15)*$V15) -> 44738.73067 | CI15: 7580.14276 | CJ15: 8849.579655 | CK15: 7812.44256 | CL15: 4700.423416 | CM15: 2987.437554 | CN15: 3777.316373 | CO15: 7736.336821 | CP15: 2008.589824 | CQ15: 586.3250362 | CR15: 6129.199981 | CS15: 7446.874764 | CT15: 2881.864873 | CU15: 23674.91772 | CV15: 12791.04813 | CW15: 3098.088596 | CX15: =IF(BR15="","",(BR15/$CF15)*$V15) -> 1175.759897 | CY15: 3890.592009 | CZ15: 783.861906 | DA15: 1094.109904 | DB15: 849.1599255 | DC15: 2207.197618 | DL15: =IF(SUM(CH15:DK15)=V15,"","ERROR") ->  | DN15: =SUM(CH15:DK15) -> 156800
B16: Byfield | D16: Passive | E16: TM AD | F16: CCW 375 raw RW Booster PS - White Rock | H16: mPVC (to 450mm) and DICL Trunk Watermains | I16: 4110 | J16: 375 | K16: 490 | L16: =K16*I16 -> 2013900 | M16: nominal | N16: =IF(M16="",1,VLOOKUP(M16,'Unit Rates - Water'!$H$12:$I$23,2,FALSE)) -> 1 | O16: =L16*N16 -> 2013900 | P16: Crown Land | R16: =IF(P16="",'Unit Rates - Land'!landcst,IF($E$8="Landuse",VLOOKUP(P16,LAndcost3,2,FALSE),IF($E$8="Location",VLOOKUP(P16,Landcost2,2,FALSE),"Error"))) -> 0 | S16: =IF(R16="",0,R16*10000*Q16) -> 0 | T16: 2011 | U16: =IFERROR(('General Input Sheet'!$G$38/(VLOOKUP('Existing Trunk Assets - Water'!T16,'General Input Sheet'!$E$38:$G$44,3,FALSE))),1) -> 1 | V16: =IFERROR((O16+S16)*U16,0) -> 2013900 | W16: y | X16: y | Y16: y | Z16: y | AA16: y | AB16: y | AC16: y | AD16: y | AE16: y | AF16: y | AG16: y | AH16: y | AI16: y | AJ16: y | AK16: y | AL16: y | AM16: y | AN16: y | AO16: y | AP16: y | AQ16: y | AR16: y | BB16: =IF(W16="y",BB$14,IF(AND(W16>0,W16<=1),W16*BB$14,"")) -> 5479.33063 | BC16: =IF(X16="y",BC$14,IF(AND(X16>0,X16<=1),X16*BC$14,"")) -> 928.3702909 | BD16: =IF(Y16="y",BD$14,IF(AND(Y16>0,Y16<=1),Y16*BD$14,"")) -> 1083.843286 | BE16: =IF(Z16="y",BE$14,IF(AND(Z16>0,Z16<=1),Z16*BE$14,"")) -> 956.8209732 | BF16: =IF(AA16="y",BF$14,IF(AND(AA16>0,AA16<=1),AA16*BF$14,"")) -> 575.6795871 | BG16: =IF(AB16="y",BG$14,IF(AND(AB16>0,AB16<=1),AB16*BG$14,"")) -> 365.8833822 | BH16: =IF(AC16="y",BH$14,IF(AND(AC16>0,AC16<=1),AC16*BH$14,"")) -> 462.6229889 | BI16: =IF(AD16="y",BI$14,IF(AND(AD16>0,AD16<=1),AD16*BI$14,"")) -> 947.5 | BJ16: =IF(AE16="y",BJ$14,IF(AND(AE16>0,AE16<=1),AE16*BJ$14,"")) -> 246 | BK16: =IF(AF16="y",BK$14,IF(AND(AF16>0,AF16<=1),AF16*BK$14,"")) -> 71.80956371 | BL16: =IF(AG16="y",BL$14,IF(AND(AG16>0,AG16<=1),AG16*BL$14,"")) -> 750.6675466 | BM16: =IF(AH16="y",BM$14,IF(AND(AH16>0,AH16<=1),AH16*BM$14,"")) -> 912.0484283 | BN16: =IF(AI16="y",BN$14,IF(AND(AI16>0,AI16<=1),AI16*BN$14,"")) -> 352.9534753 | BO16: =IF(AJ16="y",BO$14,IF(AND(AJ16>0,AJ16<=1),AJ16*BO$14,"")) -> 2899.561519 | BP16: =IF(AK16="y",BP$14,IF(AND(AK16>0,AK16<=1),AK16*BP$14,"")) -> 1566.570638 | BQ16: =IF(AL16="y",BQ$14,IF(AND(AL16>0,AL16<=1),AL16*BQ$14,"")) -> 379.4352564 | BR16: =IF(AM16="y",BR$14,IF(AND(AM16>0,AM16<=1),AM16*BR$14,"")) -> 144 | BS16: =IF(AN16="y",BS$14,IF(AND(AN16>0,AN16<=1),AN16*BS$14,"")) -> 476.4963074 | BT16: =IF(AO16="y",BT$14,IF(AND(AO16>0,AO16<=1),AO16*BT$14,"")) -> 96.00269134 | BU16: =IF(AP16="y",BU$14,IF(AND(AP16>0,AP16<=1),AP16*BU$14,"")) -> 134 | BV16: =IF(AQ16="y",BV$14,IF(AND(AQ16>0,AQ16<=1),AQ16*BV$14,"")) -> 104 | BW16: =IF(AR16="y",BW$14,IF(AND(AR16>0,AR16<=1),AR16*BW$14,"")) -> 270.324288 | BX16: =IF(AS16="y",BX$14,IF(AND(AS16>0,AS16<=1),AS16*BX$14,"")) ->  | BY16: =IF(AT16="y",BY$14,IF(AND(AT16>0,AT16<=1),AT16*BY$14,"")) ->  | BZ16: =IF(AU16="y",BZ$14,IF(AND(AU16>0,AU16<=1),AU16*BZ$14,"")) ->  | CA16: =IF(AV16="y",CA$14,IF(AND(AV16>0,AV16<=1),AV16*CA$14,"")) ->  | CB16: =IF(AW16="y",CB$14,IF(AND(AW16>0,AW16<=1),AW16*CB$14,"")) ->  | CC16: =IF(AX16="y",CC$14,IF(AND(AX16>0,AX16<=1),AX16*CC$14,"")) ->  | CD16: =IF(AY16="y",CD$14,IF(AND(AY16>0,AY16<=1),AY16*CD$14,"")) ->  | CE16: =IF(AZ16="y",CE$14,IF(AND(AZ16>0,AZ16<=1),AZ16*CE$14,"")) ->  | CF16: =SUM(BB16:CE16) -> 19203.92085 | CH16: 574613.072 | CI16: 97357.45857 | CJ16: 113661.7887 | CK16: 100341.0591 | CL16: 60371.06325 | CM16: 38369.90108 | CN16: 48514.90716 | CO16: 99363.57605 | CP16: 25797.82555 | CQ16: 7530.612184 | CR16: 78721.91225 | CS16: 95645.79775 | CT16: 37013.95196 | CU16: 304074.7245 | CV16: 164285.0245 | CW16: 39791.07541 | CX16: 15101.16617 | CY16: 49969.79111 | CZ16: 10067.72636 | DA16: 14052.47408 | DB16: 10906.39779 | DC16: 28348.69441 | DL16: =IF(SUM(CH16:DK16)=V16,"","ERROR") ->  | DN16: =SUM(CH16:DK16) -> 2013900
B17: Byfield | D17: Passive | E17: TM AD | F17: CCW 375 raw White Rock-localbdy | H17: mPVC (to 450mm) and DICL Trunk Watermains | I17: 9290 | J17: 375 | K17: 490 | L17: 4552100 | M17: nominal | N17: =IF(M17="",1,VLOOKUP(M17,'Unit Rates - Water'!$H$12:$I$23,2,FALSE)) -> 1 | O17: 4552100 | P17: Crown Land | R17: =IF(P17="",'Unit Rates - Land'!landcst,IF($E$8="Landuse",VLOOKUP(P17,LAndcost3,2,FALSE),IF($E$8="Location",VLOOKUP(P17,Landcost2,2,FALSE),"Error"))) -> 0 | S17: 0 | T17: 2011 | U17: =IFERROR(('General Input Sheet'!$G$38/(VLOOKUP('Existing Trunk Assets - Water'!T17,'General Input Sheet'!$E$38:$G$44,3,FALSE))),1) -> 1 | V17: 4552100 | W17: y | X17: y | Y17: y | Z17: y | AA17: y | AB17: y | AC17: y | AD17: y | AE17: y | AF17: y | AG17: y | AH17: y | AI17: y | AJ17: y | AK17: y | AL17: y | AM17: y | AN17: y | AO17: y | AP17: y | AQ17: y | AR17: y | BB17: 5479.33063 | BC17: 928.3702909 | BD17: 1083.843286 | BE17: 956.8209732 | BF17: 575.6795871 | BG17: 365.8833822 | BH17: 462.6229889 | BI17: 947.5 | BJ17: 246 | BK17: 71.80956371 | BL17: 750.6675466 | BM17: 912.0484283 | BN17: 352.9534753 | BO17: 2899.561519 | BP17: 1566.570638 | BQ17: 379.4352564 | BR17: 144 | BS17: 476.4963074 | BT17: 96.00269134 | BU17: 134 | BV17: 104 | BW17: 270.324288 | CF17: =SUM(BB17:CE17) -> 19203.92085 | CH17: 1298821.275 | CI17: 220061.0195 | CJ17: 256914.3594 | CK17: 226804.9731 | CL17: 136459.1673 | CM17: 86729.04649 | CN17: 109660.2159 | CO17: 224595.5283 | CP17: 58311.87332 | CQ17: 17021.74871 | CR17: 177938.3369 | CS17: 216192.083 | CT17: 83664.13959 | CU17: 687312.4552 | CV17: 371340.1162 | CW17: 89941.38457 | CX17: 34133.7795 | CY17: 112948.7492 | CZ17: 22756.49096 | DA17: 31763.37815 | DB17: 24652.17409 | DC17: 64077.70585 | DL17: =IF(SUM(CH17:DK17)=V17,"","ERROR") ->  | DN17: 4552100
B18: Woodbury | D18: Passive | E18: TM AD | F18: CCW 375 raw localbdy-Kelly's OSS | H18: mPVC (to 450mm) and DICL Trunk Watermains | I18: 4780 | J18: 375 | K18: 490 | L18: 2342200 | M18: nominal | N18: =IF(M18="",1,VLOOKUP(M18,'Unit Rates - Water'!$H$12:$I$23,2,FALSE)) -> 1 | O18: 2342200 | P18: Crown Land | R18: =IF(P18="",'Unit Rates - Land'!landcst,IF($E$8="Landuse",VLOOKUP(P18,LAndcost3,2,FALSE),IF($E$8="Location",VLOOKUP(P18,Landcost2,2,FALSE),"Error"))) -> 0 | S18: 0 | T18: 2011 | U18: =IFERROR(('General Input Sheet'!$G$38/(VLOOKUP('Existing Trunk Assets - Water'!T18,'General Input Sheet'!$E$38:$G$44,3,FALSE))),1) -> 1 | V18: 2342200 | W18: y | X18: y | Y18: y | Z18: y | AA18: y | AB18: y | AC18: y | AD18: y | AE18: y | AF18: y | AG18: y | AH18: y | AI18: y | AJ18: y | AK18: y | AL18: y | AM18: y | AN18: y | AO18: y | AP18: y | AQ18: y | AR18: y | BB18: 5479.33063 | BC18: 928.3702909 | BD18: 1083.843286 | BE18: 956.8209732 | BF18: 575.6795871 | BG18: 365.8833822 | BH18: 462.6229889 | BI18: 947.5 | BJ18: 246 | BK18: 71.80956371 | BL18: 750.6675466 | BM18: 912.0484283 | BN18: 352.9534753 | BO18: 2899.561519 | BP18: 1566.570638 | BQ18: 379.4352564 | BR18: 144 | BS18: 476.4963074 | BT18: 96.00269134 | BU18: 134 | BV18: 104 | BW18: 270.324288 | CF18: =SUM(BB18:CE18) -> 19203.92085 | CH18: 668284.7894 | CI18: 113228.3825 | CJ18: 132190.5961 | CK18: 116698.3607 | CL18: 70212.57478 | CM18: 44624.84846 | CN18: 56423.66331 | CO18: 115561.5313 | CP18: 30003.31049 | CQ18: 8758.230229 | CR18: 91554.92471 | CS18: 111237.6918 | CT18: 43047.85654 | CU18: 353644.0835 | CV18: 191066.2815 | CW18: 46277.69841 | CX18: 17562.91346 | CY18: 58115.71813 | CZ18: 11708.93722 | DA18: 16343.26669 | DB18: 12684.32639 | DC18: 32970.01442 | DL18: =IF(SUM(CH18:DK18)=V18,"","ERROR") ->  | DN18: 2342200
B19: Byfield | D19: Passive | E19: TM AD | F19: CCW 525 raw White Rock-localbdy | H19: mPVC (to 450mm) and DICL Trunk Watermains | I19: 9290 | J19: 525 | K19: 550 | L19: 5109500 | M19: nominal | N19: =IF(M19="",1,VLOOKUP(M19,'Unit Rates - Water'!$H$12:$I$23,2,FALSE)) -> 1 | O19: 5109500 | P19: Crown Land | R19: =IF(P19="",'Unit Rates - Land'!landcst,IF($E$8="Landuse",VLOOKUP(P19,LAndcost3,2,FALSE),IF($E$8="Location",VLOOKUP(P19,Landcost2,2,FALSE),"Error"))) -> 0 | S19: 0 | T19: 2011 | U19: =IFERROR(('General Input Sheet'!$G$38/(VLOOKUP('Existing Trunk Assets - Water'!T19,'General Input Sheet'!$E$38:$G$44,3,FALSE))),1) -> 1 | V19: 5109500 | W19: y | X19: y | Y19: y | Z19: y | AA19: y | AB19: y | AC19: y | AD19: y | AE19: y | AF19: y | AG19: y | AH19: y | AI19: y | AJ19: y | AK19: y | AL19: y | AM19: y | AN19: y | AO19: y | AP19: y | AQ19: y | AR19: y | BB19: 5479.33063 | BC19: 928.3702909 | BD19: 1083.843286 | BE19: 956.8209732 | BF19: 575.6795871 | BG19: 365.8833822 | BH19: 462.6229889 | BI19: 947.5 | BJ19: 246 | BK19: 71.80956371 | BL19: 750.6675466 | BM19: 912.0484283 | BN19: 352.9534753 | BO19: 2899.561519 | BP19: 1566.570638 | BQ19: 379.4352564 | BR19: 144 | BS19: 476.4963074 | BT19: 96.00269134 | BU19: 134 | BV19: 104 | BW19: 270.324288 | CF19: 19203.92085 | CH19: 1457860.614 | CI19: 247007.2668 | CJ19: 288373.2605 | CK19: 254577.0106 | CL19: 153168.4531 | CM19: 97348.92973 | CN19: 123087.9975 | CO19: 252097.0216 | CP19: 65452.10271 | CQ19: 19106.04447 | CR19: 199726.7047 | CS19: 242664.583 | CT19: 93908.72811 | CU19: 771473.164 | CV19: 416810.3345 | CW19: 100954.6153 | CX19: 38313.42597 | CY19: 126779.2083 | CZ19: 25543.00006 | DA19: 35652.77139 | DB19: 27670.80765 | DC19: 71923.95555 | DN19: 5109500
B20: Woodbury | D20: Passive | E20: TM AD | F20: CCW 525 raw localbdy-Kelly's OSS | H20: mPVC (to 450mm) and DICL Trunk Watermains | I20: 4780 | J20: 525 | K20: 550 | L20: 2629000 | M20: nominal | N20: =IF(M20="",1,VLOOKUP(M20,'Unit Rates - Water'!$H$12:$I$23,2,FALSE)) -> 1 | O20: 2629000 | P20: Crown Land | R20: =IF(P20="",'Unit Rates - Land'!landcst,IF($E$8="Landuse",VLOOKUP(P20,LAndcost3,2,FALSE),IF($E$8="Location",VLOOKUP(P20,Landcost2,2,FALSE),"Error"))) -> 0 | S20: 0 | T20: 2011 | U20: =IFERROR(('General Input Sheet'!$G$38/(VLOOKUP('Existing Trunk Assets - Water'!T20,'General Input Sheet'!$E$38:$G$44,3,FALSE))),1) -> 1 | V20: 2629000 | W20: y | X20: y | Y20: y | Z20: y | AA20: y | AB20: y | AC20: y | AD20: y | AE20: y | AF20: y | AG20: y | AH20: y | AI20: y | AJ20: y | AK20: y | AL20: y | AM20: y | AN20: y | AO20: y | AP20: y | AQ20: y | AR20: y | BB20: =IF(W20="y",BB$14,IF(AND(W20>0,W20<=1),W20*BB$14,"")) -> 5479.33063 | BC20: =IF(X20="y",BC$14,IF(AND(X20>0,X20<=1),X20*BC$14,"")) -> 928.3702909 | BD20: =IF(Y20="y",BD$14,IF(AND(Y20>0,Y20<=1),Y20*BD$14,"")) -> 1083.843286 | BE20: =IF(Z20="y",BE$14,IF(AND(Z20>0,Z20<=1),Z20*BE$14,"")) -> 956.8209732 | BF20: =IF(AA20="y",BF$14,IF(AND(AA20>0,AA20<=1),AA20*BF$14,"")) -> 575.6795871 | BG20: =IF(AB20="y",BG$14,IF(AND(AB20>0,AB20<=1),AB20*BG$14,"")) -> 365.8833822 | BH20: =IF(AC20="y",BH$14,IF(AND(AC20>0,AC20<=1),AC20*BH$14,"")) -> 462.6229889 | BI20: =IF(AD20="y",BI$14,IF(AND(AD20>0,AD20<=1),AD20*BI$14,"")) -> 947.5 | BJ20: =IF(AE20="y",BJ$14,IF(AND(AE20>0,AE20<=1),AE20*BJ$14,"")) -> 246 | BK20: =IF(AF20="y",BK$14,IF(AND(AF20>0,AF20<=1),AF20*BK$14,"")) -> 71.80956371 | BL20: =IF(AG20="y",BL$14,IF(AND(AG20>0,AG20<=1),AG20*BL$14,"")) -> 750.6675466 | BM20: =IF(AH20="y",BM$14,IF(AND(AH20>0,AH20<=1),AH20*BM$14,"")) -> 912.0484283 | BN20: =IF(AI20="y",BN$14,IF(AND(AI20>0,AI20<=1),AI20*BN$14,"")) -> 352.9534753 | BO20: =IF(AJ20="y",BO$14,IF(AND(AJ20>0,AJ20<=1),AJ20*BO$14,"")) -> 2899.561519 | BP20: =IF(AK20="y",BP$14,IF(AND(AK20>0,AK20<=1),AK20*BP$14,"")) -> 1566.570638 | BQ20: =IF(AL20="y",BQ$14,IF(AND(AL20>0,AL20<=1),AL20*BQ$14,"")) -> 379.4352564 | BR20: =IF(AM20="y",BR$14,IF(AND(AM20>0,AM20<=1),AM20*BR$14,"")) -> 144 | BS20: =IF(AN20="y",BS$14,IF(AND(AN20>0,AN20<=1),AN20*BS$14,"")) -> 476.4963074 | BT20: =IF(AO20="y",BT$14,IF(AND(AO20>0,AO20<=1),AO20*BT$14,"")) -> 96.00269134 | BU20: =IF(AP20="y",BU$14,IF(AND(AP20>0,AP20<=1),AP20*BU$14,"")) -> 134 | BV20: =IF(AQ20="y",BV$14,IF(AND(AQ20>0,AQ20<=1),AQ20*BV$14,"")) -> 104 | BW20: =IF(AR20="y",BW$14,IF(AND(AR20>0,AR20<=1),AR20*BW$14,"")) -> 270.324288 | BX20: =IF(AS20="y",BX$14,IF(AND(AS20>0,AS20<=1),AS20*BX$14,"")) ->  | BY20: =IF(AT20="y",BY$14,IF(AND(AT20>0,AT20<=1),AT20*BY$14,"")) ->  | BZ20: =IF(AU20="y",BZ$14,IF(AND(AU20>0,AU20<=1),AU20*BZ$14,"")) ->  | CA20: =IF(AV20="y",CA$14,IF(AND(AV20>0,AV20<=1),AV20*CA$14,"")) ->  | CB20: =IF(AW20="y",CB$14,IF(AND(AW20>0,AW20<=1),AW20*CB$14,"")) ->  | CC20: =IF(AX20="y",CC$14,IF(AND(AX20>0,AX20<=1),AX20*CC$14,"")) ->  | CD20: =IF(AY20="y",CD$14,IF(AND(AY20>0,AY20<=1),AY20*CD$14,"")) ->  | CE20: =IF(AZ20="y",CE$14,IF(AND(AZ20>0,AZ20<=1),AZ20*CE$14,"")) ->  | CF20: 19203.92085 | CH20: 750115.5799 | CI20: 127093.0824 | CJ20: 148377.1997 | CK20: 130987.9559 | CL20: 78810.03291 | CM20: 50089.11562 | CN20: 63332.68331 | CO20: 129711.9228 | CP20: 33677.18525 | CQ20: 9830.666583 | CR20: 102765.7318 | CS20: 124858.6336 | CT20: 48319.02265 | CU20: 396947.4407 | CV20: 214462.1527 | CW20: 51944.35536 | CX20: 19713.47429 | CY20: 65231.92851 | CZ20: 13142.68464 | DA20: 18344.48302 | DB20: 14237.50921 | DC20: 37007.15904 | DN20: 2629000
B21: Woodbury | D21: Passive | E21: TM MD | F21: CCW 375 raw bypass Kelly's OSS-KOSS PS | H21: mPVC (to 450mm) and DICL Trunk Watermains | I21: 770 | J21: 375 | K21: 490 | L21: 377300 | M21: nominal | N21: =IF(M21="",1,VLOOKUP(M21,'Unit Rates - Water'!$H$12:$I$23,2,FALSE)) -> 1 | O21: 377300 | P21: Crown Land | R21: =IF(P21="",'Unit Rates - Land'!landcst,IF($E$8="Landuse",VLOOKUP(P21,LAndcost3,2,FALSE),IF($E$8="Location",VLOOKUP(P21,Landcost2,2,FALSE),"Error"))) -> 0 | S21: 0 | T21: 2011 | U21: =IFERROR(('General Input Sheet'!$G$38/(VLOOKUP('Existing Trunk Assets - Water'!T21,'General Input Sheet'!$E$38:$G$44,3,FALSE))),1) -> 1 | V21: 377300 | W21: y | X21: y | Y21: y | Z21: y | AA21: y | AB21: y | AC21: y | AD21: y | AE21: y | AF21: y | AG21: y | AH21: y | AI21: y | AJ21: y | AK21: y | AL21: y | AM21: y | AN21: y | AO21: y | AP21: y | AQ21: y | AR21: y | BB21: 5479.33063 | BC21: 928.3702909 | BD21: 1083.843286 | BE21: 956.8209732 | BF21: 575.6795871 | BG21: 365.8833822 | BH21: 462.6229889 | BI21: 947.5 | BJ21: 246 | BK21: 71.80956371 | BL21: 750.6675466 | BM21: 912.0484283 | BN21: 352.9534753 | BO21: 2899.561519 | BP21: 1566.570638 | BQ21: 379.4352564 | BR21: 144 | BS21: 476.4963074 | BT21: 96.00269134 | BU21: 134 | BV21: 104 | BW21: 270.324288 | CF21: 19203.92085 | CH21: 107652.5707 | CI21: 18239.71852 | CJ21: 21294.30104 | CK21: 18798.68991 | CL21: 11310.39384 | CM21: 7188.521614 | CN21: 9089.167521 | CO21: 18615.56048 | CP21: 4833.169263 | CQ21: 1410.844618 | CR21: 14748.38745 | CS21: 17919.0424 | CT21: 6934.48735 | CU21: 56967.77077 | CV21: 30778.45957 | CW21: 7454.775685 | CX21: 2829.172252 | CY21: 9361.737021 | CZ21: 1886.167711 | DA21: 2632.701956 | DB21: 2043.291071 | DC21: 5311.069269 | DN21: 377300
B22: Woodbury | D22: Passive | E22: TM MD | F22: CCW 525 raw bypass Kelly's OSS-KOSS PS | H22: mPVC (to 450mm) and DICL Trunk Watermains | I22: 770 | J22: 525 | K22: 550 | L22: 423500 | M22: nominal | N22: =IF(M22="",1,VLOOKUP(M22,'Unit Rates - Water'!$H$12:$I$23,2,FALSE)) -> 1 | O22: 423500 | P22: Crown Land | R22: =IF(P22="",'Unit Rates - Land'!landcst,IF($E$8="Landuse",VLOOKUP(P22,LAndcost3,2,FALSE),IF($E$8="Location",VLOOKUP(P22,Landcost2,2,FALSE),"Error"))) -> 0 | S22: 0 | T22: 2011 | U22: =IFERROR(('General Input Sheet'!$G$38/(VLOOKUP('Existing Trunk Assets - Water'!T22,'General Input Sheet'!$E$38:$G$44,3,FALSE))),1) -> 1 | V22: 423500 | W22: y | X22: y | Y22: y | Z22: y | AA22: y | AB22: y | AC22: y | AD22: y | AE22: y | AF22: y | AG22: y | AH22: y | AI22: y | AJ22: y | AK22: y | AL22: y | AM22: y | AN22: y | AO22: y | AP22: y | AQ22: y | AR22: y | BB22: 5479.33063 | BC22: 928.3702909 | BD22: 1083.843286 | BE22: 956.8209732 | BF22: 575.6795871 | BG22: 365.8833822 | BH22: 462.6229889 | BI22: 947.5 | BJ22: 246 | BK22: 71.80956371 | BL22: 750.6675466 | BM22: 912.0484283 | BN22: 352.9534753 | BO22: 2899.561519 | BP22: 1566.570638 | BQ22: 379.4352564 | BR22: 144 | BS22: 476.4963074 | BT22: 96.00269134 | BU22: 134 | BV22: 104 | BW22: 270.324288 | CF22: 19203.92085 | CH22: 120834.5181 | CI22: 20473.15344 | CJ22: 23901.76648 | CK22: 21100.57031 | CL22: 12695.34003 | CM22: 8068.748751 | CN22: 10202.12681 | CO22: 20895.01686 | CP22: 5424.985908 | CQ22: 1583.601102 | CR22: 16554.31245 | CS22: 20113.21086 | CT22: 7783.60825 | CU22: 63943.41618 | CV22: 34547.25054 | CW22: 8367.605361 | CX22: 3175.601507 | CY22: 10508.07217 | CZ22: 2117.127023 | DA22: 2955.073625 | DB22: 2293.489977 | DC22: 5961.404281 | DN22: 423500
B23: Woodbury | D23: Passive | E23: TM MD | F23: CCW 375 raw Kelly's OSS-Woodbury WTP | H23: mPVC (to 450mm) and DICL Trunk Watermains | I23: 815 | J23: 375 | K23: 490 | L23: 399350 | M23: nominal | N23: =IF(M23="",1,VLOOKUP(M23,'Unit Rates - Water'!$H$12:$I$23,2,FALSE)) -> 1 | O23: 399350 | P23: Crown Land | R23: =IF(P23="",'Unit Rates - Land'!landcst,IF($E$8="Landuse",VLOOKUP(P23,LAndcost3,2,FALSE),IF($E$8="Location",VLOOKUP(P23,Landcost2,2,FALSE),"Error"))) -> 0 | S23: 0 | T23: 2011 | U23: =IFERROR(('General Input Sheet'!$G$38/(VLOOKUP('Existing Trunk Assets - Water'!T23,'General Input Sheet'!$E$38:$G$44,3,FALSE))),1) -> 1 | V23: 399350 | W23: y | X23: y | Y23: y | Z23: y | AA23: y | AB23: y | AC23: y | AD23: y | AE23: y | AF23: y | AG23: y | AH23: y | AI23: y | AJ23: y | AK23: y | AL23: y | AM23: y | AN23: y | AO23: y | AP23: y | AQ23: y | AR23: y | BB23: 5479.33063 | BC23: 928.3702909 | BD23: 1083.843286 | BE23: 956.8209732 | BF23: 575.6795871 | BG23: 365.8833822 | BH23: 462.6229889 | BI23: 947.5 | BJ23: 246 | BK23: 71.80956371 | BL23: 750.6675466 | BM23: 912.0484283 | BN23: 352.9534753 | BO23: 2899.561519 | BP23: 1566.570638 | BQ23: 379.4352564 | BR23: 144 | BS23: 476.4963074 | BT23: 96.00269134 | BU23: 134 | BV23: 104 | BW23: 270.324288 | CF23: 19203.92085 | CH23: 113943.9547 | CI23: 19305.67609 | CJ23: 22538.77318 | CK23: 19897.31465 | CL23: 11971.39089 | CM23: 7608.63002 | CN23: 9620.352636 | CO23: 19703.48284 | CP23: 5115.627207 | CQ23: 1493.296577 | CR23: 15610.3062 | CS23: 18966.25916 | CT23: 7339.749598 | CU23: 60297.05608 | CV23: 32577.20072 | CW23: 7890.444394 | CX23: 2994.513487 | CY23: 9908.851522 | CZ23: 1996.398292 | DA23: 2786.561162 | DB23: 2162.704185 | DC23: 5621.456434 | DN23: 399350
B24: Woodbury | D24: Passive | E24: TM MD | F24: CCW 525 raw Kelly's OSS-Woodbury WTP | H24: mPVC (to 450mm) and DICL Trunk Watermains | I24: 815 | J24: 525 | K24: 550 | L24: 448250 | M24: nominal | N24: =IF(M24="",1,VLOOKUP(M24,'Unit Rates - Water'!$H$12:$I$23,2,FALSE)) -> 1 | O24: 448250 | P24: Crown Land | R24: =IF(P24="",'Unit Rates - Land'!landcst,IF($E$8="Landuse",VLOOKUP(P24,LAndcost3,2,FALSE),IF($E$8="Location",VLOOKUP(P24,Landcost2,2,FALSE),"Error"))) -> 0 | S24: 0 | T24: 2011 | U24: =IFERROR(('General Input Sheet'!$G$38/(VLOOKUP('Existing Trunk Assets - Water'!T24,'General Input Sheet'!$E$38:$G$44,3,FALSE))),1) -> 1 | V24: 448250 | W24: y | X24: y | Y24: y | Z24: y | AA24: y | AB24: y | AC24: y | AD24: y | AE24: y | AF24: y | AG24: y | AH24: y | AI24: y | AJ24: y | AK24: y | AL24: y | AM24: y | AN24: y | AO24: y | AP24: y | AQ24: y | AR24: y | BB24: 5479.33063 | BC24: 928.3702909 | BD24: 1083.843286 | BE24: 956.8209732 | BF24: 575.6795871 | BG24: 365.8833822 | BH24: 462.6229889 | BI24: 947.5 | BJ24: 246 | BK24: 71.80956371 | BL24: 750.6675466 | BM24: 912.0484283 | BN24: 352.9534753 | BO24: 2899.561519 | BP24: 1566.570638 | BQ24: 379.4352564 | BR24: 144 | BS24: 476.4963074 | BT24: 96.00269134 | BU24: 134 | BV24: 104 | BW24: 270.324288 | CF24: 19203.92085 | CH24: 127896.2757 | CI24: 21669.63643 | CJ24: 25298.62296 | CK24: 22333.72052 | CL24: 13437.27549 | CM24: 8540.299002 | CN24: 10798.355 | CO24: 22116.15421 | CP24: 5742.030539 | CQ24: 1676.149219 | CR24: 17521.77227 | CS24: 21288.65825 | CT24: 8238.494447 | CU24: 67680.36907 | CV24: 36566.2457 | CW24: 8856.621259 | CX24: 3361.188608 | CY24: 11122.18028 | CZ24: 2240.855226 | DA24: 3127.772733 | DB24: 2427.525106 | DC24: 6309.798038 | DN24: 448250
B25: Woodbury | D25: Passive | E25: TM MD | F25: CCW 375 TMD WTP to Wood localbdy | H25: mPVC (to 450mm) and DICL Trunk Watermains | I25: 5350 | J25: 375 | K25: 490 | L25: 2621500 | M25: nominal | N25: =IF(M25="",1,VLOOKUP(M25,'Unit Rates - Water'!$H$12:$I$23,2,FALSE)) -> 1 | O25: 2621500 | P25: Crown Land | R25: =IF(P25="",'Unit Rates - Land'!landcst,IF($E$8="Landuse",VLOOKUP(P25,LAndcost3,2,FALSE),IF($E$8="Location",VLOOKUP(P25,Landcost2,2,FALSE),"Error"))) -> 0 | S25: 0 | T25: 2011 | U25: =IFERROR(('General Input Sheet'!$G$38/(VLOOKUP('Existing Trunk Assets - Water'!T25,'General Input Sheet'!$E$38:$G$44,3,FALSE))),1) -> 1 | V25: 2621500 | W25: y | X25: y | Y25: y | Z25: y | AA25: y | AB25: y | AC25: y | AD25: y | AE25: y | AF25: y | AG25: y | AH25: y | AI25: y | AJ25: y | AK25: y | AL25: y | AM25: y | AN25: y | AO25: y | AP25: y | AQ25: y | AR25: y | BB25: 5479.33063 | BC25: 928.3702909 | BD25: 1083.843286 | BE25: 956.8209732 | BF25: 575.6795871 | BG25: 365.8833822 | BH25: 462.6229889 | BI25: 947.5 | BJ25: 246 | BK25: 71.80956371 | BL25: 750.6675466 | BM25: 912.0484283 | BN25: 352.9534753 | BO25: 2899.561519 | BP25: 1566.570638 | BQ25: 379.4352564 | BR25: 144 | BS25: 476.4963074 | BT25: 96.00269134 | BU25: 134 | BV25: 104 | BW25: 270.324288 | CF25: 19203.92085 | CH25: 747975.6534 | CI25: 126730.5118 | CJ25: 147953.9099 | CK25: 130614.2741 | CL25: 78585.20399 | CM25: 49946.2216 | CN25: 63152.0081 | CO25: 129341.8812 | CP25: 33581.11112 | CQ25: 9802.621699 | CR25: 102472.5622 | CS25: 124502.4375 | CT25: 48181.17834 | CU25: 395815.0307 | CV25: 213850.336 | CW25: 51796.16872 | CX25: 19657.23578 | CY25: 65045.83514 | CZ25: 13105.19124 | DA25: 18292.14996 | DB25: 14196.8925 | DC25: 36901.58518 | DN25: 2621500
B26: Bungundarra | D26: Passive | E26: TM MD | F26: CCW 375 TMD Wood localbdy to Bung localbdy | H26: mPVC (to 450mm) and DICL Trunk Watermains | I26: 1550 | J26: 375 | K26: 490 | L26: 759500 | M26: nominal | N26: =IF(M26="",1,VLOOKUP(M26,'Unit Rates - Water'!$H$12:$I$23,2,FALSE)) -> 1 | O26: 759500 | P26: Crown Land | R26: =IF(P26="",'Unit Rates - Land'!landcst,IF($E$8="Landuse",VLOOKUP(P26,LAndcost3,2,FALSE),IF($E$8="Location",VLOOKUP(P26,Landcost2,2,FALSE),"Error"))) -> 0 | S26: 0 | T26: 2011 | U26: =IFERROR(('General Input Sheet'!$G$38/(VLOOKUP('Existing Trunk Assets - Water'!T26,'General Input Sheet'!$E$38:$G$44,3,FALSE))),1) -> 1 | V26: 759500 | W26: y | X26: y | Y26: y | Z26: y | AA26: y | AB26: y | AC26: y | AD26: y | AE26: y | AF26: y | AG26: y | AH26: y | AI26: y | AJ26: y | AK26: y | AL26: y | AM26: y | AN26: y | AO26: y | AP26: y | AQ26: y | AR26: y | BB26: 5479.33063 | BC26: 928.3702909 | BD26: 1083.843286 | BE26: 956.8209732 | BF26: 575.6795871 | BG26: 365.8833822 | BH26: 462.6229889 | BI26: 947.5 | BJ26: 246 | BK26: 71.80956371 | BL26: 750.6675466 | BM26: 912.0484283 | BN26: 352.9534753 | BO26: 2899.561519 | BP26: 1566.570638 | BQ26: 379.4352564 | BR26: 144 | BS26: 476.4963074 | BT26: 96.00269134 | BU26: 134 | BV26: 104 | BW26: 270.324288 | CF26: 19203.92085 | CH26: 216703.2267 | CI26: 36716.31649 | CJ26: 42865.15145 | CK26: 37841.51865 | CL26: 22767.67592 | CM26: 14470.40065 | CN26: 18296.37618 | CO26: 37472.88148 | CP26: 9729.106959 | CQ26: 2840.011894 | CR26: 29688.31241 | CS26: 36070.79964 | CT26: 13959.03298 | CU26: 114675.3827 | CV26: 61956.6394 | CW26: 15006.36664 | CX26: 5695.087 | CY26: 18845.05504 | CZ26: 3796.831107 | DA26: 5299.594847 | DB26: 4113.118389 | DC26: 10691.11346 | DN26: 759500
B27: Adelaide Park | D27: Passive | E27: TM MD | F27: CCW 375 TMD Bung localbdy to Limestone Cr | H27: mPVC (to 450mm) and DICL Trunk Watermains | I27: 4900 | J27: 375 | K27: 490 | L27: 2401000 | M27: nominal | N27: =IF(M27="",1,VLOOKUP(M27,'Unit Rates - Water'!$H$12:$I$23,2,FALSE)) -> 1 | O27: 2401000 | P27: Crown Land | R27: =IF(P27="",'Unit Rates - Land'!landcst,IF($E$8="Landuse",VLOOKUP(P27,LAndcost3,2,FALSE),IF($E$8="Location",VLOOKUP(P27,Landcost2,2,FALSE),"Error"))) -> 0 | S27: 0 | T27: 2011 | U27: =IFERROR(('General Input Sheet'!$G$38/(VLOOKUP('Existing Trunk Assets - Water'!T27,'General Input Sheet'!$E$38:$G$44,3,FALSE))),1) -> 1 | V27: 2401000 | W27: y | X27: y | Y27: y | Z27: y | AA27: y | AB27: y | AC27: y | AD27: y | AE27: y | AF27: y | AG27: y | AH27: y | AI27: y | AJ27: y | AK27: y | AL27: y | AM27: y | AN27: y | AO27: y | AP27: y | AQ27: y | AR27: y | BB27: 5479.33063 | BC27: 928.3702909 | BD27: 1083.843286 | BE27: 956.8209732 | BF27: 575.6795871 | BG27: 365.8833822 | BH27: 462.6229889 | BI27: 947.5 | BJ27: 246 | BK27: 71.80956371 | BL27: 750.6675466 | BM27: 912.0484283 | BN27: 352.9534753 | BO27: 2899.561519 | BP27: 1566.570638 | BQ27: 379.4352564 | BR27: 144 | BS27: 476.4963074 | BT27: 96.00269134 | BU27: 134 | BV27: 104 | BW27: 270.324288 | CF27: 19203.92085 | CH27: 685061.8134 | CI27: 116070.936 | CJ27: 135509.1885 | CK27: 119628.0267 | CL27: 71975.23356 | CM27: 45745.13754 | CN27: 57840.15695 | CO27: 118462.6576 | CP27: 30756.53168 | CQ27: 8978.102117 | CR27: 93853.3747 | CS27: 114030.2698 | CT27: 44128.55587 | CU27: 362522.1777 | CV27: 195862.9246 | CW27: 47439.48163 | CX27: 18003.82342 | CY27: 59574.69013 | CZ27: 12002.88544 | DA27: 16753.5579 | DB27: 13002.76136 | DC27: 33797.71353 | DN27: 2401000
B28: Woodbury | D28: Passive | E28: TM MD | F28: CCW 525 TMD WTP to Wood localbdy | H28: mPVC (to 450mm) and DICL Trunk Watermains | I28: 5350 | J28: 525 | K28: 550 | L28: 2942500 | M28: nominal | N28: =IF(M28="",1,VLOOKUP(M28,'Unit Rates - Water'!$H$12:$I$23,2,FALSE)) -> 1 | O28: 2942500 | P28: Crown Land | R28: =IF(P28="",'Unit Rates - Land'!landcst,IF($E$8="Landuse",VLOOKUP(P28,LAndcost3,2,FALSE),IF($E$8="Location",VLOOKUP(P28,Landcost2,2,FALSE),"Error"))) -> 0 | S28: 0 | T28: 2011 | U28: =IFERROR(('General Input Sheet'!$G$38/(VLOOKUP('Existing Trunk Assets - Water'!T28,'General Input Sheet'!$E$38:$G$44,3,FALSE))),1) -> 1 | V28: 2942500 | W28: y | X28: y | Y28: y | Z28: y | AA28: y | AB28: y | AC28: y | AD28: y | AE28: y | AF28: y | AG28: y | AH28: y | AI28: y | AJ28: y | AK28: y | AL28: y | AM28: y | AN28: y | AO28: y | AP28: y | AQ28: y | AR28: y | BB28: 5479.33063 | BC28: 928.3702909 | BD28: 1083.843286 | BE28: 956.8209732 | BF28: 575.6795871 | BG28: 365.8833822 | BH28: 462.6229889 | BI28: 947.5 | BJ28: 246 | BK28: 71.80956371 | BL28: 750.6675466 | BM28: 912.0484283 | BN28: 352.9534753 | BO28: 2899.561519 | BP28: 1566.570638 | BQ28: 379.4352564 | BR28: 144 | BS28: 476.4963074 | BT28: 96.00269134 | BU28: 134 | BV28: 104 | BW28: 270.324288 | CF28: 19203.92085 | CH28: 839564.5089 | CI28: 142248.5336 | CJ28: 166070.7151 | CK28: 146607.8586 | CL28: 88207.88202 | CM28: 56062.08547 | CN28: 70884.90705 | CO28: 145179.6626 | CP28: 37693.08391 | CQ28: 11002.94272 | CR28: 115020.2228 | CS28: 139747.6339 | CT28: 54080.91447 | CU28: 444282.1773 | CV28: 240036.0914 | CW28: 58138.55673 | CX28: 22064.24424 | CY28: 73010.63128 | CZ28: 14709.90854 | DA28: 20532.00505 | DB28: 15935.2875 | DC28: 41420.14663 | DN28: 2942500
B29: Bungundarra | D29: Passive | E29: TM MD | F29: CCW 525 TMD Wood localbdy to Bung localbdy | H29: mPVC (to 450mm) and DICL Trunk Watermains | I29: 1550 | J29: 525 | K29: 550 | L29: 852500 | M29: nominal | N29: =IF(M29="",1,VLOOKUP(M29,'Unit Rates - Water'!$H$12:$I$23,2,FALSE)) -> 1 | O29: 852500 | P29: Crown Land | R29: =IF(P29="",'Unit Rates - Land'!landcst,IF($E$8="Landuse",VLOOKUP(P29,LAndcost3,2,FALSE),IF($E$8="Location",VLOOKUP(P29,Landcost2,2,FALSE),"Error"))) -> 0 | S29: 0 | T29: 2011 | U29: =IFERROR(('General Input Sheet'!$G$38/(VLOOKUP('Existing Trunk Assets - Water'!T29,'General Input Sheet'!$E$38:$G$44,3,FALSE))),1) -> 1 | V29: 852500 | W29: y | X29: y | Y29: y | Z29: y | AA29: y | AB29: y | AC29: y | AD29: y | AE29: y | AF29: y | AG29: y | AH29: y | AI29: y | AJ29: y | AK29: y | AL29: y | AM29: y | AN29: y | AO29: y | AP29: y | AQ29: y | AR29: y | BB29: 5479.33063 | BC29: 928.3702909 | BD29: 1083.843286 | BE29: 956.8209732 | BF29: 575.6795871 | BG29: 365.8833822 | BH29: 462.6229889 | BI29: 947.5 | BJ29: 246 | BK29: 71.80956371 | BL29: 750.6675466 | BM29: 912.0484283 | BN29: 352.9534753 | BO29: 2899.561519 | BP29: 1566.570638 | BQ29: 379.4352564 | BR29: 144 | BS29: 476.4963074 | BT29: 96.00269134 | BU29: 134 | BV29: 104 | BW29: 270.324288 | CF29: 19203.92085 | CH29: 243238.3157 | CI29: 41212.19198 | CJ29: 48113.94551 | CK29: 42475.174 | CL29: 25555.55461 | CM29: 16242.28645 | CN29: 20536.74877 | CO29: 42061.39758 | CP29: 10920.42618 | CQ29: 3187.768453 | CR29: 33323.61597 | CS29: 40487.63225 | CT29: 15668.30232 | CU29: 128717.2663 | CV29: 69543.16668 | CW29: 16843.88092 | CX29: 6392.444592 | CY29: 21152.6128 | CZ29: 4261.749202 | DA29: 5948.524829 | DB29: 4616.765539 | DC29: 12000.2294 | DN29: 852500
B30: Adelaide Park | D30: Passive | E30: TM MD | F30: CCW 525 Bung localbdy to Limestone Cr | H30: mPVC (to 450mm) and DICL Trunk Watermains | I30: 4900 | J30: 525 | K30: 550 | L30: 2695000 | M30: nominal | N30: =IF(M30="",1,VLOOKUP(M30,'Unit Rates - Water'!$H$12:$I$23,2,FALSE)) -> 1 | O30: 2695000 | P30: Crown Land | R30: =IF(P30="",'Unit Rates - Land'!landcst,IF($E$8="Landuse",VLOOKUP(P30,LAndcost3,2,FALSE),IF($E$8="Location",VLOOKUP(P30,Landcost2,2,FALSE),"Error"))) -> 0 | S30: 0 | T30: 2011 | U30: =IFERROR(('General Input Sheet'!$G$38/(VLOOKUP('Existing Trunk Assets - Water'!T30,'General Input Sheet'!$E$38:$G$44,3,FALSE))),1) -> 1 | V30: 2695000 | W30: y | X30: y | Y30: y | Z30: y | AA30: y | AB30: y | AC30: y | AD30: y | AE30: y | AF30: y | AG30: y | AH30: y | AI30: y | AJ30: y | AK30: y | AL30: y | AM30: y | AN30: y | AO30: y | AP30: y | AQ30: y | AR30: y | BB30: 5479.33063 | BC30: 928.3702909 | BD30: 1083.843286 | BE30: 956.8209732 | BF30: 575.6795871 | BG30: 365.8833822 | BH30: 462.6229889 | BI30: 947.5 | BJ30: 246 | BK30: 71.80956371 | BL30: 750.6675466 | BM30: 912.0484283 | BN30: 352.9534753 | BO30: 2899.561519 | BP30: 1566.570638 | BQ30: 379.4352564 | BR30: 144 | BS30: 476.4963074 | BT30: 96.00269134 | BU30: 134 | BV30: 104 | BW30: 270.324288 | CF30: 19203.92085 | CH30: 768946.9334 | CI30: 130283.7037 | CJ30: 152102.1503 | CK30: 134276.3565 | CL30: 80788.52746 | CM30: 51346.58296 | CN30: 64922.62515 | CO30: 132968.2891 | CP30: 34522.6376 | CQ30: 10077.46156 | CR30: 105345.6247 | CS30: 127993.16 | CT30: 49532.0525 | CU30: 406912.6484 | CV30: 219846.1398 | CW30: =IF(BQ30="","",(BQ30/$CF30)*$V30) -> 53248.39775 | CX30: 20208.37323 | CY30: 66869.55015 | CZ30: 13472.62651 | DA30: 18805.01397 | DB30: 14594.93622 | DC30: 37936.20906 | DN30: 2695000
B31: Adelaide Park | D31: Passive | E31: TM MD | F31: CCW 300 Limestone to Inver localbdy | H31: mPVC (to 450mm) and DICL Trunk Watermains | I31: 4030 | J31: 300 | K31: 380 | L31: 1531400 | M31: nominal | N31: =IF(M31="",1,VLOOKUP(M31,'Unit Rates - Water'!$H$12:$I$23,2,FALSE)) -> 1 | O31: 1531400 | P31: Crown Land | R31: =IF(P31="",'Unit Rates - Land'!landcst,IF($E$8="Landuse",VLOOKUP(P31,LAndcost3,2,FALSE),IF($E$8="Location",VLOOKUP(P31,Landcost2,2,FALSE),"Error"))) -> 0 | S31: 0 | T31: 2011 | U31: =IFERROR(('General Input Sheet'!$G$38/(VLOOKUP('Existing Trunk Assets - Water'!T31,'General Input Sheet'!$E$38:$G$44,3,FALSE))),1) -> 1 | V31: 1531400 | W31: y | X31: y | Y31: y | Z31: y | AA31: y | AB31: y | AC31: y | AD31: y | AE31: y | AF31: y | AG31: y | AH31: y | AI31: y | AJ31: y | AK31: y | AL31: y | AM31: y | AN31: y | AO31: y | AP31: y | AQ31: y | AR31: y | BB31: 5479.33063 | BC31: 928.3702909 | BD31: 1083.843286 | BE31: 956.8209732 | BF31: 575.6795871 | BG31: 365.8833822 | BH31: 462.6229889 | BI31: 947.5 | BJ31: 246 | BK31: 71.80956371 | BL31: 750.6675466 | BM31: 912.0484283 | BN31: 352.9534753 | BO31: 2899.561519 | BP31: 1566.570638 | BQ31: 379.4352564 | BR31: 144 | BS31: 476.4963074 | BT31: 96.00269134 | BU31: 134 | BV31: 104 | BW31: 270.324288 | CF31: 19203.92085 | CH31: =IF(BB31="","",(BB31/$CF31)*$V31) -> 436944.4652 | CI31: 74032.08305 | CJ31: 86430.14211 | CK31: 76300.85802 | CL31: 45907.069 | CM31: 29177.05274 | CN31: 36891.4687 | CO31: 75557.5651 | CP31: 19617.05648 | CQ31: 5726.391329 | CR31: 59861.33195 | CS31: 72730.51029 | CT31: 28145.96854 | CU31: 231223.0166 | CV31: 124924.8158 | CW31: 30257.73518 | CX31: 11483.15501 | CY31: 37997.78445 | CZ31: 7655.651294 | DA31: 10685.71369 | DB31: 8293.389731 | DC31: 21556.77572 | DN31: 1531400
B32: Inverness | D32: Passive | E32: TM MD | F32: CCW 300 Inver localbdy to Yep localbdy | H32: mPVC (to 450mm) and DICL Trunk Watermains | I32: 1530 | J32: 300 | K32: 380 | L32: 581400 | M32: nominal | N32: =IF(M32="",1,VLOOKUP(M32,'Unit Rates - Water'!$H$12:$I$23,2,FALSE)) -> 1 | O32: 581400 | P32: Crown Land | R32: =IF(P32="",'Unit Rates - Land'!landcst,IF($E$8="Landuse",VLOOKUP(P32,LAndcost3,2,FALSE),IF($E$8="Location",VLOOKUP(P32,Landcost2,2,FALSE),"Error"))) -> 0 | S32: 0 | T32: 2011 | U32: =IFERROR(('General Input Sheet'!$G$38/(VLOOKUP('Existing Trunk Assets - Water'!T32,'General Input Sheet'!$E$38:$G$44,3,FALSE))),1) -> 1 | V32: 581400 | W32: y | X32: y | Y32: y | Z32: y | AA32: y | AB32: y | AC32: y | AD32: y | AE32: y | AF32: y | AG32: y | AH32: y | AI32: y | AJ32: y | AK32: y | AL32: y | AM32: y | AN32: y | AO32: y | AP32: y | AQ32: y | AR32: y | BB32: 5479.33063 | BC32: 928.3702909 | BD32: 1083.843286 | BE32: 956.8209732 | BF32: 575.6795871 | BG32: 365.8833822 | BH32: 462.6229889 | BI32: 947.5 | BJ32: 246 | BK32: 71.80956371 | BL32: 750.6675466 | BM32: 912.0484283 | BN32: 352.9534753 | BO32: 2899.561519 | BP32: 1566.570638 | BQ32: 379.4352564 | BR32: 144 | BS32: 476.4963074 | BT32: 96.00269134 | BU32: 134 | BV32: 104 | BW32: 270.324288 | CF32: 19203.92085 | CH32: 165887.1047 | CI32: 28106.47322 | CJ32: 32813.42864 | CK32: 28967.81954 | CL32: 17428.73835 | CM32: 11077.14409 | CN32: 14005.94221 | CO32: 28685.62645 | CP32: 7447.666604 | CQ32: 2174.039388 | CR32: 22726.51064 | CS32: 27612.32773 | CT32: 10685.69029 | CU32: 87784.4207 | CV32: 47428.0318 | CW32: 11487.428 | CX32: 4359.609719 | CY32: 14425.95787 | CZ32: 2906.48796 | DA32: 4056.859045 | DB32: 3148.60702 | DC32: 8184.086066 | DN32: 581400
B33: Yeppoon | D33: Passive | E33: TM MD | F33: CCW 300 Inver localbdy to St Faith's Res | H33: mPVC (to 450mm) and DICL Trunk Watermains | I33: 500 | J33: 300 | K33: 380 | L33: 190000 | M33: nominal | N33: =IF(M33="",1,VLOOKUP(M33,'Unit Rates - Water'!$H$12:$I$23,2,FALSE)) -> 1 | O33: 190000 | P33: Crown Land | R33: =IF(P33="",'Unit Rates - Land'!landcst,IF($E$8="Landuse",VLOOKUP(P33,LAndcost3,2,FALSE),IF($E$8="Location",VLOOKUP(P33,Landcost2,2,FALSE),"Error"))) -> 0 | S33: 0 | T33: 2011 | U33: =IFERROR(('General Input Sheet'!$G$38/(VLOOKUP('Existing Trunk Assets - Water'!T33,'General Input Sheet'!$E$38:$G$44,3,FALSE))),1) -> 1 | V33: 190000 | W33: y | X33: y | Y33: y | Z33: y | AA33: y | AB33: y | AC33: y | AD33: y | AE33: y | AF33: y | AG33: y | AH33: y | AI33: y | AJ33: y | AK33: y | AL33: y | AM33: y | AN33: y | AO33: y | AP33: y | AQ33: y | AR33: y | BB33: 5479.33063 | BC33: 928.3702909 | BD33: 1083.843286 | BE33: 956.8209732 | BF33: 575.6795871 | BG33: 365.8833822 | BH33: 462.6229889 | BI33: 947.5 | BJ33: 246 | BK33: 71.80956371 | BL33: 750.6675466 | BM33: 912.0484283 | BN33: 352.9534753 | BO33: 2899.561519 | BP33: 1566.570638 | BQ33: 379.4352564 | BR33: 144 | BS33: 476.4963074 | BT33: 96.00269134 | BU33: 134 | BV33: 104 | BW33: 270.324288 | CF33: 19203.92085 | CH33: 54211.47211 | CI33: 9185.121967 | CJ33: 10723.34269 | CK33: 9466.607694 | CL33: 5695.666129 | CM33: 3619.98173 | CN33: 4577.105298 | CO33: 9374.38773 | CP33: 2433.877975 | CQ33: 710.4703883 | CR33: 7426.964262 | CS33: 9023.636513 | CT33: 3492.05565 | CU33: 28687.71918 | CV33: 15499.3568 | CW33: 3754.061437 | CX33: 1424.709059 | CY33: 4714.365316 | CZ33: 949.8326668 | DA33: 1325.77093 | DB33: 1028.956542 | DC33: 2674.53793 | DN33: 190000
B34: Adelaide park | D34: Passive | E34: TM MD | F34: CCW 450 Limestone to Inver localbdy | H34: mPVC (to 450mm) and DICL Trunk Watermains | I34: 4030 | J34: 450 | K34: 493 | L34: 1986790 | M34: nominal | N34: =IF(M34="",1,VLOOKUP(M34,'Unit Rates - Water'!$H$12:$I$23,2,FALSE)) -> 1 | O34: 1986790 | P34: Crown Land | R34: =IF(P34="",'Unit Rates - Land'!landcst,IF($E$8="Landuse",VLOOKUP(P34,LAndcost3,2,FALSE),IF($E$8="Location",VLOOKUP(P34,Landcost2,2,FALSE),"Error"))) -> 0 | S34: 0 | T34: 2011 | U34: =IFERROR(('General Input Sheet'!$G$38/(VLOOKUP('Existing Trunk Assets - Water'!T34,'General Input Sheet'!$E$38:$G$44,3,FALSE))),1) -> 1 | V34: 1986790 | W34: y | X34: y | Y34: y | Z34: y | AA34: y | AB34: y | AC34: y | AD34: y | AE34: y | AF34: y | AG34: y | AH34: y | AI34: y | AJ34: y | AK34: y | AL34: y | AM34: y | AN34: y | AO34: y | AP34: y | AQ34: y | AR34: y | BB34: 5479.33063 | BC34: 928.3702909 | BD34: 1083.843286 | BE34: 956.8209732 | BF34: 575.6795871 | BG34: 365.8833822 | BH34: 462.6229889 | BI34: 947.5 | BJ34: 246 | BK34: 71.80956371 | BL34: 750.6675466 | BM34: 912.0484283 | BN34: 352.9534753 | BO34: 2899.561519 | BP34: 1566.570638 | BQ34: 379.4352564 | BR34: 144 | BS34: 476.4963074 | BT34: 96.00269134 | BU34: 134 | BV34: 104 | BW34: 270.324288 | CF34: 19203.92085 | CH34: 566877.9509 | CI34: 96046.8867 | CJ34: 112131.737 | CK34: 98990.32369 | CL34: 59558.38162 | CM34: 37853.38685 | CN34: 47861.8265 | CO34: 98025.99893 | CP34: 25450.54959 | CQ34: 7429.239277 | CR34: 77662.20172 | CS34: 94358.2673 | CT34: 36515.69076 | CU34: 299981.44 | CV34: 162073.511 | CW34: 39255.43012 | CX34: 14897.88269 | CY34: 49297.12562 | CZ34: 9932.200232 | DA34: 13863.3075 | DB34: 10759.58194 | DC34: 27967.08008 | DN34: 1986790
B35: Inverness | D35: Passive | E35: TM MD | F35: CCW 450 Limestone Inver localbdy to Yep localbdy | H35: mPVC (to 450mm) and DICL Trunk Watermains | I35: 1530 | J35: 450 | K35: 493 | L35: 754290 | M35: nominal | N35: =IF(M35="",1,VLOOKUP(M35,'Unit Rates - Water'!$H$12:$I$23,2,FALSE)) -> 1 | O35: 754290 | P35: Crown Land | R35: =IF(P35="",'Unit Rates - Land'!landcst,IF($E$8="Landuse",VLOOKUP(P35,LAndcost3,2,FALSE),IF($E$8="Location",VLOOKUP(P35,Landcost2,2,FALSE),"Error"))) -> 0 | S35: 0 | T35: 2011 | U35: =IFERROR(('General Input Sheet'!$G$38/(VLOOKUP('Existing Trunk Assets - Water'!T35,'General Input Sheet'!$E$38:$G$44,3,FALSE))),1) -> 1 | V35: 754290 | W35: y | X35: y | Y35: y | Z35: y | AA35: y | AB35: y | AC35: y | AD35: y | AE35: y | AF35: y | AG35: y | AH35: y | AI35: y | AJ35: y | AK35: y | AL35: y | AM35: y | AN35: y | AO35: y | AP35: y | AQ35: y | AR35: y | BB35: 5479.33063 | BC35: 928.3702909 | BD35: 1083.843286 | BE35: 956.8209732 | BF35: 575.6795871 | BG35: 365.8833822 | BH35: 462.6229889 | BI35: 947.5 | BJ35: 246 | BK35: 71.80956371 | BL35: 750.6675466 | BM35: 912.0484283 | BN35: 352.9534753 | BO35: 2899.561519 | BP35: 1566.570638 | BQ35: 379.4352564 | BR35: 144 | BS35: 476.4963074 | BT35: 96.00269134 | BU35: 134 | BV35: 104 | BW35: 270.324288 | CF35: 19203.92085 | CH35: 215216.691 | CI35: 36464.45078 | CJ35: 42571.10611 | CK35: 37581.9343 | CL35: 22611.49476 | CM35: 14371.13694 | CN35: 18170.86713 | CO35: 37215.8259 | CP35: 9662.367463 | CQ35: 2820.530048 | CR35: 29484.65723 | CS35: 35823.36203 | CT35: 13863.27714 | CU35: 113888.7353 | CV35: 61531.63072 | CW35: 14903.42632 | CX35: 5656.019978 | CY35: 18715.78218 | CZ35: 3770.785696 | DA35: 5263.240813 | DB35: 4084.903318 | DC35: 10617.77482 | DN35: 754290
B36: Yeppoon | D36: Passive | E36: TM MD | F36: CCW 450 Limestone Inver localbdy to St Faith's Res | H36: mPVC (to 450mm) and DICL Trunk Watermains | I36: 500 | J36: 450 | K36: 493 | L36: 246500 | M36: nominal | N36: =IF(M36="",1,VLOOKUP(M36,'Unit Rates - Water'!$H$12:$I$23,2,FALSE)) -> 1 | O36: 246500 | P36: Crown Land | R36: =IF(P36="",'Unit Rates - Land'!landcst,IF($E$8="Landuse",VLOOKUP(P36,LAndcost3,2,FALSE),IF($E$8="Location",VLOOKUP(P36,Landcost2,2,FALSE),"Error"))) -> 0 | S36: 0 | T36: 2011 | U36: =IFERROR(('General Input Sheet'!$G$38/(VLOOKUP('Existing Trunk Assets - Water'!T36,'General Input Sheet'!$E$38:$G$44,3,FALSE))),1) -> 1 | V36: 246500 | W36: y | X36: y | Y36: y | Z36: y | AA36: y | AB36: y | AC36: y | AD36: y | AE36: y | AF36: y | AG36: y | AH36: y | AI36: y | AJ36: y | AK36: y | AL36: y | AM36: y | AN36: y | AO36: y | AP36: y | AQ36: y | AR36: y | BB36: 5479.33063 | BC36: 928.3702909 | BD36: 1083.843286 | BE36: 956.8209732 | BF36: 575.6795871 | BG36: 365.8833822 | BH36: 462.6229889 | BI36: 947.5 | BJ36: 246 | BK36: 71.80956371 | BL36: 750.6675466 | BM36: 912.0484283 | BN36: 352.9534753 | BO36: 2899.561519 | BP36: 1566.570638 | BQ36: 379.4352564 | BR36: 144 | BS36: 476.4963074 | BT36: 96.00269134 | BU36: 134 | BV36: 104 | BW36: 270.324288 | CF36: 19203.92085 | CH36: 70332.25198 | CI36: 11916.48718 | CJ36: 13912.12618 | CK36: 12281.67788 | CL36: 7389.377373 | CM36: 4696.449981 | CN36: 5938.191874 | CO36: 12162.03461 | CP36: 3157.636426 | CQ36: 921.7418458 | CR36: 9635.508898 | CS36: 11706.98105 | CT36: 4530.482724 | CU36: 37218.54094 | CV36: 20108.37605 | CW36: 4870.400759 | CX36: 1848.372542 | CY36: 6116.268687 | CZ36: 1232.282907 | DA36: 1720.013338 | DB36: 1334.935725 | DC36: 3469.861052 | DN36: 246500
B37: Adelaide Park | D37: Passive | E37: TM MD | F37: CCW 600 Limestone to Inver localbdy | H37: mPVC (to 450mm) and DICL Trunk Watermains | I37: 3500 | J37: 600 | M37: nominal | N37: =IF(M37="",1,VLOOKUP(M37,'Unit Rates - Water'!$H$12:$I$23,2,FALSE)) -> 1 | P37: Crown Land | R37: =IF(P37="",'Unit Rates - Land'!landcst,IF($E$8="Landuse",VLOOKUP(P37,LAndcost3,2,FALSE),IF($E$8="Location",VLOOKUP(P37,Landcost2,2,FALSE),"Error"))) -> 0 | S37: 0 | T37: 2011 | U37: =IFERROR(('General Input Sheet'!$G$38/(VLOOKUP('Existing Trunk Assets - Water'!T37,'General Input Sheet'!$E$38:$G$44,3,FALSE))),1) -> 1 | V37: 0 | W37: y | X37: y | Y37: y | Z37: y | AA37: y | AB37: y | AC37: y | AD37: y | AE37: y | AF37: y | AG37: y | AH37: y | AI37: y | AJ37: y | AK37: y | AL37: y | AM37: y | AN37: y | AO37: y | AP37: y | AQ37: y | AR37: y | BB37: 5479.33063 | BC37: 928.3702909 | BD37: 1083.843286 | BE37: 956.8209732 | BF37: 575.6795871 | BG37: 365.8833822 | BH37: 462.6229889 | BI37: 947.5 | BJ37: 246 | BK37: 71.80956371 | BL37: 750.6675466 | BM37: 912.0484283 | BN37: 352.9534753 | BO37: 2899.561519 | BP37: 1566.570638 | BQ37: 379.4352564 | BR37: 144 | BS37: 476.4963074 | BT37: 96.00269134 | BU37: 134 | BV37: 104 | BW37: 270.324288 | CF37: 19203.92085 | CH37: 0 | CI37: 0 | CJ37: 0 | CK37: 0 | CL37: 0 | CM37: 0 | CN37: 0 | CO37: 0 | CP37: 0 | CQ37: 0 | CR37: 0 | CS37: 0 | CT37: 0 | CU37: 0 | CV37: 0 | CW37: 0 | CX37: 0 | CY37: 0 | CZ37: 0 | DA37: 0 | DB37: 0 | DC37: 0 | DN37: 0
B38: Ironpot | D38: Passive | E38: TM MD | F38: CCW 600 Boundary Res - Ironpot bdy | H38: mPVC (to 450mm) and DICL Trunk Watermains | I38: 6100 | J38: 600 | M38: nominal | N38: =IF(M38="",1,VLOOKUP(M38,'Unit Rates - Water'!$H$12:$I$23,2,FALSE)) -> 1 | P38: Crown Land | R38: =IF(P38="",'Unit Rates - Land'!landcst,IF($E$8="Landuse",VLOOKUP(P38,LAndcost3,2,FALSE),IF($E$8="Location",VLOOKUP(P38,Landcost2,2,FALSE),"Error"))) -> 0 | S38: 0 | T38: 2011 | U38: =IFERROR(('General Input Sheet'!$G$38/(VLOOKUP('Existing Trunk Assets - Water'!T38,'General Input Sheet'!$E$38:$G$44,3,FALSE))),1) -> 1 | V38: 0 | W38: y | X38: y | Y38: y | Z38: y | AA38: y | AB38: y | AC38: y | AD38: y | AE38: y | AF38: y | AG38: y | AH38: y | AI38: y | AJ38: y | AK38: y | AL38: y | AM38: y | AN38: y | AO38: y | AP38: y | AQ38: y | AR38: y | BB38: 5479.33063 | BC38: 928.3702909 | BD38: 1083.843286 | BE38: 956.8209732 | BF38: 575.6795871 | BG38: 365.8833822 | BH38: 462.6229889 | BI38: 947.5 | BJ38: 246 | BK38: 71.80956371 | BL38: 750.6675466 | BM38: 912.0484283 | BN38: 352.9534753 | BO38: 2899.561519 | BP38: 1566.570638 | BQ38: 379.4352564 | BR38: 144 | BS38: 476.4963074 | BT38: 96.00269134 | BU38: 134 | BV38: 104 | BW38: 270.324288 | CF38: 19203.92085 | CH38: 0 | CI38: 0 | CJ38: 0 | CK38: 0 | CL38: 0 | CM38: 0 | CN38: 0 | CO38: 0 | CP38: 0 | CQ38: 0 | CR38: 0 | CS38: 0 | CT38: 0 | CU38: 0 | CV38: 0 | CW38: 0 | CX38: 0 | CY38: 0 | CZ38: 0 | DA38: 0 | DB38: 0 | DC38: 0 | DN38: 0
B39: Mulara | D39: Passive | E39: TM MD | F39: CCW 600 Mulara localbdy -Bond localbdy | H39: mPVC (to 450mm) and DICL Trunk Watermains | I39: 5400 | J39: 600 | M39: nominal | N39: =IF(M39="",1,VLOOKUP(M39,'Unit Rates - Water'!$H$12:$I$23,2,FALSE)) -> 1 | P39: Crown Land | R39: =IF(P39="",'Unit Rates - Land'!landcst,IF($E$8="Landuse",VLOOKUP(P39,LAndcost3,2,FALSE),IF($E$8="Location",VLOOKUP(P39,Landcost2,2,FALSE),"Error"))) -> 0 | S39: 0 | T39: 2011 | U39: =IFERROR(('General Input Sheet'!$G$38/(VLOOKUP('Existing Trunk Assets - Water'!T39,'General Input Sheet'!$E$38:$G$44,3,FALSE))),1) -> 1 | V39: 0 | W39: y | X39: y | Y39: y | Z39: y | AA39: y | AB39: y | AC39: y | AD39: y | AE39: y | AF39: y | AG39: y | AH39: y | AI39: y | AJ39: y | AK39: y | AL39: y | AM39: y | AN39: y | AO39: y | AP39: y | AQ39: y | AR39: y | BB39: 5479.33063 | BC39: 928.3702909 | BD39: 1083.843286 | BE39: 956.8209732 | BF39: 575.6795871 | BG39: 365.8833822 | BH39: 462.6229889 | BI39: 947.5 | BJ39: 246 | BK39: 71.80956371 | BL39: 750.6675466 | BM39: 912.0484283 | BN39: 352.9534753 | BO39: 2899.561519 | BP39: 1566.570638 | BQ39: 379.4352564 | BR39: 144 | BS39: 476.4963074 | BT39: 96.00269134 | BU39: 134 | BV39: 104 | BW39: 270.324288 | CF39: 19203.92085 | CH39: 0 | CI39: 0 | CJ39: 0 | CK39: 0 | CL39: 0 | CM39: 0 | CN39: 0 | CO39: 0 | CP39: 0 | CQ39: 0 | CR39: 0 | CS39: 0 | CT39: 0 | CU39: 0 | CV39: 0 | CW39: 0 | CX39: 0 | CY39: 0 | CZ39: 0 | DA39: 0 | DB39: 0 | DC39: 0 | DN39: 0
B40: Bondoola | D40: Passive | E40: TM MD | F40: CCW 600 Bond localbdy -Hidd localbdy | H40: mPVC (to 450mm) and DICL Trunk Watermains | I40: 6600 | J40: 600 | M40: nominal | N40: =IF(M40="",1,VLOOKUP(M40,'Unit Rates - Water'!$H$12:$I$23,2,FALSE)) -> 1 | P40: Crown Land | R40: =IF(P40="",'Unit Rates - Land'!landcst,IF($E$8="Landuse",VLOOKUP(P40,LAndcost3,2,FALSE),IF($E$8="Location",VLOOKUP(P40,Landcost2,2,FALSE),"Error"))) -> 0 | S40: 0 | T40: 2011 | U40: =IFERROR(('General Input Sheet'!$G$38/(VLOOKUP('Existing Trunk Assets - Water'!T40,'General Input Sheet'!$E$38:$G$44,3,FALSE))),1) -> 1 | V40: 0 | W40: y | X40: y | Y40: y | Z40: y | AA40: y | AB40: y | AC40: y | AD40: y | AE40: y | AF40: y | AG40: y | AH40: y | AI40: y | AJ40: y | AK40: y | AL40: y | AM40: y | AN40: y | AO40: y | AP40: y | AQ40: y | AR40: y | BB40: 5479.33063 | BC40: 928.3702909 | BD40: 1083.843286 | BE40: 956.8209732 | BF40: 575.6795871 | BG40: 365.8833822 | BH40: 462.6229889 | BI40: 947.5 | BJ40: 246 | BK40: 71.80956371 | BL40: 750.6675466 | BM40: 912.0484283 | BN40: 352.9534753 | BO40: 2899.561519 | BP40: 1566.570638 | BQ40: 379.4352564 | BR40: 144 | BS40: 476.4963074 | BT40: 96.00269134 | BU40: 134 | BV40: 104 | BW40: 270.324288 | CF40: 19203.92085 | CH40: 0 | CI40: 0 | CJ40: 0 | CK40: 0 | CL40: 0 | CM40: 0 | CN40: 0 | CO40: 0 | CP40: 0 | CQ40: 0 | CR40: 0 | CS40: 0 | CT40: 0 | CU40: 0 | CV40: 0 | CW40: 0 | CX40: 0 | CY40: 0 | CZ40: 0 | DA40: 0 | DB40: 0 | DC40: 0 | DN40: 0
B41: Hidden Valley | D41: Passive | E41: TM MD | F41: CCW 600 Hidd localbdy- Valve Fac | H41: mPVC (to 450mm) and DICL Trunk Watermains | I41: 2200 | J41: 600 | M41: nominal | N41: =IF(M41="",1,VLOOKUP(M41,'Unit Rates - Water'!$H$12:$I$23,2,FALSE)) -> 1 | P41: Crown Land | R41: =IF(P41="",'Unit Rates - Land'!landcst,IF($E$8="Landuse",VLOOKUP(P41,LAndcost3,2,FALSE),IF($E$8="Location",VLOOKUP(P41,Landcost2,2,FALSE),"Error"))) -> 0 | S41: 0 | T41: 2011 | U41: =IFERROR(('General Input Sheet'!$G$38/(VLOOKUP('Existing Trunk Assets - Water'!T41,'General Input Sheet'!$E$38:$G$44,3,FALSE))),1) -> 1 | V41: 0 | W41: y | X41: y | Y41: y | Z41: y | AA41: y | AB41: y | AC41: y | AD41: y | AE41: y | AF41: y | AG41: y | AH41: y | AI41: y | AJ41: y | AK41: y | AL41: y | AM41: y | AN41: y | AO41: y | AP41: y | AQ41: y | AR41: y | BB41: 5479.33063 | BC41: 928.3702909 | BD41: 1083.843286 | BE41: 956.8209732 | BF41: 575.6795871 | BG41: 365.8833822 | BH41: 462.6229889 | BI41: 947.5 | BJ41: 246 | BK41: 71.80956371 | BL41: 750.6675466 | BM41: 912.0484283 | BN41: 352.9534753 | BO41: 2899.561519 | BP41: 1566.570638 | BQ41: 379.4352564 | BR41: 144 | BS41: 476.4963074 | BT41: 96.00269134 | BU41: 134 | BV41: 104 | BW41: 270.324288 | CF41: 19203.92085 | CH41: 0 | CI41: 0 | CJ41: 0 | CK41: 0 | CL41: 0 | CM41: 0 | CN41: 0 | CO41: 0 | CP41: 0 | CQ41: 0 | CR41: 0 | CS41: 0 | CT41: 0 | CU41: 0 | CV41: 0 | CW41: 0 | CX41: 0 | CY41: 0 | CZ41: 0 | DA41: 0 | DB41: 0 | DC41: 0 | DN41: 0
B42: Hidden Valley | D42: Passive | E42: TM MD | F42: CCW 600 Valve Fac - Pine Res site | H42: mPVC (to 450mm) and DICL Trunk Watermains | I42: 1130 | J42: 600 | M42: nominal | N42: =IF(M42="",1,VLOOKUP(M42,'Unit Rates - Water'!$H$12:$I$23,2,FALSE)) -> 1 | P42: Crown Land | R42: =IF(P42="",'Unit Rates - Land'!landcst,IF($E$8="Landuse",VLOOKUP(P42,LAndcost3,2,FALSE),IF($E$8="Location",VLOOKUP(P42,Landcost2,2,FALSE),"Error"))) -> 0 | S42: 0 | T42: 2011 | U42: =IFERROR(('General Input Sheet'!$G$38/(VLOOKUP('Existing Trunk Assets - Water'!T42,'General Input Sheet'!$E$38:$G$44,3,FALSE))),1) -> 1 | V42: 0 | W42: y | X42: y | Y42: y | Z42: y | AA42: y | AB42: y | AC42: y | AD42: y | AE42: y | AF42: y | AG42: y | AH42: y | AI42: y | AJ42: y | AK42: y | AL42: y | AM42: y | AN42: y | AO42: y | AP42: y | AQ42: y | AR42: y | BB42: 5479.33063 | BC42: 928.3702909 | BD42: 1083.843286 | BE42: 956.8209732 | BF42: 575.6795871 | BG42: 365.8833822 | BH42: 462.6229889 | BI42: 947.5 | BJ42: 246 | BK42: 71.80956371 | BL42: 750.6675466 | BM42: 912.0484283 | BN42: 352.9534753 | BO42: 2899.561519 | BP42: 1566.570638 | BQ42: 379.4352564 | BR42: 144 | BS42: 476.4963074 | BT42: 96.00269134 | BU42: 134 | BV42: 104 | BW42: 270.324288 | CF42: 19203.92085 | CH42: 0 | CI42: 0 | CJ42: 0 | CK42: 0 | CL42: 0 | CM42: 0 | CN42: 0 | CO42: 0 | CP42: 0 | CQ42: 0 | CR42: 0 | CS42: 0 | CT42: 0 | CU42: 0 | CV42: 0 | CW42: 0 | CX42: 0 | CY42: 0 | CZ42: 0 | DA42: 0 | DB42: 0 | DC42: 0 | DN42: 0
B43: Hidden Valley | D43: Passive | E43: TM MD | F43: CCW 750 Pine Res site - Valve Fac | H43: mPVC (to 450mm) and DICL Trunk Watermains | I43: 1130 | J43: 750 | M43: nominal | N43: =IF(M43="",1,VLOOKUP(M43,'Unit Rates - Water'!$H$12:$I$23,2,FALSE)) -> 1 | P43: Crown Land | R43: =IF(P43="",'Unit Rates - Land'!landcst,IF($E$8="Landuse",VLOOKUP(P43,LAndcost3,2,FALSE),IF($E$8="Location",VLOOKUP(P43,Landcost2,2,FALSE),"Error"))) -> 0 | S43: 0 | T43: 2011 | U43: =IFERROR(('General Input Sheet'!$G$38/(VLOOKUP('Existing Trunk Assets - Water'!T43,'General Input Sheet'!$E$38:$G$44,3,FALSE))),1) -> 1 | V43: 0 | W43: y | X43: y | Y43: y | Z43: y | AA43: y | AB43: y | AC43: y | AD43: y | AE43: y | AF43: y | AG43: y | AH43: y | AI43: y | AJ43: y | AK43: y | AL43: y | AM43: y | AN43: y | AO43: y | AP43: y | AQ43: y | AR43: y | BB43: 5479.33063 | BC43: 928.3702909 | BD43: 1083.843286 | BE43: 956.8209732 | BF43: 575.6795871 | BG43: 365.8833822 | BH43: 462.6229889 | BI43: 947.5 | BJ43: 246 | BK43: 71.80956371 | BL43: 750.6675466 | BM43: 912.0484283 | BN43: 352.9534753 | BO43: 2899.561519 | BP43: 1566.570638 | BQ43: 379.4352564 | BR43: 144 | BS43: 476.4963074 | BT43: 96.00269134 | BU43: 134 | BV43: 104 | BW43: 270.324288 | CF43: 19203.92085 | CH43: 0 | CI43: 0 | CJ43: 0 | CK43: 0 | CL43: 0 | CM43: 0 | CN43: 0 | CO43: 0 | CP43: 0 | CQ43: 0 | CR43: 0 | CS43: 0 | CT43: 0 | CU43: 0 | CV43: 0 | CW43: 0 | CX43: 0 | CY43: 0 | CZ43: 0 | DA43: 0 | DB43: 0 | DC43: 0 | DN43: 0
B44: Hidden Valley | D44: Passive | E44: TM MD | F44: CCW 600 Valve Fac - Barm localbdy | H44: mPVC (to 450mm) and DICL Trunk Watermains | I44: 300 | J44: 600 | M44: nominal | N44: =IF(M44="",1,VLOOKUP(M44,'Unit Rates - Water'!$H$12:$I$23,2,FALSE)) -> 1 | P44: Crown Land | R44: =IF(P44="",'Unit Rates - Land'!landcst,IF($E$8="Landuse",VLOOKUP(P44,LAndcost3,2,FALSE),IF($E$8="Location",VLOOKUP(P44,Landcost2,2,FALSE),"Error"))) -> 0 | S44: 0 | T44: 2011 | U44: =IFERROR(('General Input Sheet'!$G$38/(VLOOKUP('Existing Trunk Assets - Water'!T44,'General Input Sheet'!$E$38:$G$44,3,FALSE))),1) -> 1 | V44: 0 | W44: y | X44: y | Y44: y | Z44: y | AA44: y | AB44: y | AC44: y | AD44: y | AE44: y | AF44: y | AG44: y | AH44: y | AI44: y | AJ44: y | AK44: y | AL44: y | AM44: y | AN44: y | AO44: y | AP44: y | AQ44: y | AR44: y | BB44: 5479.33063 | BC44: 928.3702909 | BD44: 1083.843286 | BE44: 956.8209732 | BF44: 575.6795871 | BG44: 365.8833822 | BH44: 462.6229889 | BI44: 947.5 | BJ44: 246 | BK44: 71.80956371 | BL44: 750.6675466 | BM44: 912.0484283 | BN44: 352.9534753 | BO44: 2899.561519 | BP44: 1566.570638 | BQ44: 379.4352564 | BR44: 144 | BS44: 476.4963074 | BT44: 96.00269134 | BU44: 134 | BV44: 104 | BW44: 270.324288 | CF44: 19203.92085 | CH44: 0 | CI44: 0 | CJ44: 0 | CK44: 0 | CL44: 0 | CM44: 0 | CN44: 0 | CO44: 0 | CP44: 0 | CQ44: 0 | CR44: 0 | CS44: 0 | CT44: 0 | CU44: 0 | CV44: 0 | CW44: 0 | CX44: 0 | CY44: 0 | CZ44: 0 | DA44: 0 | DB44: 0 | DC44: 0 | DN44: 0
B45: Barmaryee | D45: Passive | E45: TM MD | F45: CCW 600 Hidd localbdy - Barm localbdy | H45: mPVC (to 450mm) and DICL Trunk Watermains | I45: 4300 | J45: 600 | M45: nominal | N45: =IF(M45="",1,VLOOKUP(M45,'Unit Rates - Water'!$H$12:$I$23,2,FALSE)) -> 1 | P45: Crown Land | R45: =IF(P45="",'Unit Rates - Land'!landcst,IF($E$8="Landuse",VLOOKUP(P45,LAndcost3,2,FALSE),IF($E$8="Location",VLOOKUP(P45,Landcost2,2,FALSE),"Error"))) -> 0 | S45: 0 | T45: 2011 | U45: =IFERROR(('General Input Sheet'!$G$38/(VLOOKUP('Existing Trunk Assets - Water'!T45,'General Input Sheet'!$E$38:$G$44,3,FALSE))),1) -> 1 | V45: 0 | W45: y | X45: y | Y45: y | Z45: y | AA45: y | AB45: y | AC45: y | AD45: y | AE45: y | AF45: y | AG45: y | AH45: y | AI45: y | AJ45: y | AK45: y | AL45: y | AM45: y | AN45: y | AO45: y | AP45: y | AQ45: y | AR45: y | BB45: 5479.33063 | BC45: 928.3702909 | BD45: 1083.843286 | BE45: 956.8209732 | BF45: 575.6795871 | BG45: 365.8833822 | BH45: 462.6229889 | BI45: 947.5 | BJ45: 246 | BK45: 71.80956371 | BL45: 750.6675466 | BM45: 912.0484283 | BN45: 352.9534753 | BO45: 2899.561519 | BP45: 1566.570638 | BQ45: 379.4352564 | BR45: 144 | BS45: 476.4963074 | BT45: 96.00269134 | BU45: 134 | BV45: 104 | BW45: 270.324288 | CF45: 19203.92085 | CH45: 0 | CI45: 0 | CJ45: 0 | CK45: 0 | CL45: 0 | CM45: 0 | CN45: 0 | CO45: 0 | CP45: 0 | CQ45: 0 | CR45: 0 | CS45: 0 | CT45: 0 | CU45: 0 | CV45: 0 | CW45: 0 | CX45: 0 | CY45: 0 | CZ45: 0 | DA45: 0 | DB45: 0 | DC45: 0 | DN45: 0
B46: Barmaryee | D46: Passive | E46: TM MD | F46: CCW 600 Adel localbdy - Neils Rd | H46: mPVC (to 450mm) and DICL Trunk Watermains | I46: 1000 | J46: 600 | M46: nominal | N46: =IF(M46="",1,VLOOKUP(M46,'Unit Rates - Water'!$H$12:$I$23,2,FALSE)) -> 1 | P46: Crown Land | R46: =IF(P46="",'Unit Rates - Land'!landcst,IF($E$8="Landuse",VLOOKUP(P46,LAndcost3,2,FALSE),IF($E$8="Location",VLOOKUP(P46,Landcost2,2,FALSE),"Error"))) -> 0 | S46: 0 | T46: 2011 | U46: =IFERROR(('General Input Sheet'!$G$38/(VLOOKUP('Existing Trunk Assets - Water'!T46,'General Input Sheet'!$E$38:$G$44,3,FALSE))),1) -> 1 | V46: 0 | W46: y | X46: y | Y46: y | Z46: y | AA46: y | AB46: y | AC46: y | AD46: y | AE46: y | AF46: y | AG46: y | AH46: y | AI46: y | AJ46: y | AK46: y | AL46: y | AM46: y | AN46: y | AO46: y | AP46: y | AQ46: y | AR46: y | BB46: 5479.33063 | BC46: 928.3702909 | BD46: 1083.843286 | BE46: 956.8209732 | BF46: 575.6795871 | BG46: 365.8833822 | BH46: 462.6229889 | BI46: 947.5 | BJ46: 246 | BK46: 71.80956371 | BL46: 750.6675466 | BM46: 912.0484283 | BN46: 352.9534753 | BO46: 2899.561519 | BP46: 1566.570638 | BQ46: 379.4352564 | BR46: 144 | BS46: 476.4963074 | BT46: 96.00269134 | BU46: 134 | BV46: 104 | BW46: 270.324288 | CF46: 19203.92085 | CH46: 0 | CI46: 0 | CJ46: 0 | CK46: 0 | CL46: 0 | CM46: 0 | CN46: 0 | CO46: 0 | CP46: 0 | CQ46: 0 | CR46: 0 | CS46: 0 | CT46: 0 | CU46: 0 | CV46: 0 | CW46: 0 | CX46: 0 | CY46: 0 | CZ46: 0 | DA46: 0 | DB46: 0 | DC46: 0 | DN46: 0
B47: Taranganba | D47: Passive | E47: TM MD | F47: CCW 600 Tarang localbdy - Taranganba Res | H47: mPVC (to 450mm) and DICL Trunk Watermains | I47: 400 | J47: 600 | M47: nominal | N47: =IF(M47="",1,VLOOKUP(M47,'Unit Rates - Water'!$H$12:$I$23,2,FALSE)) -> 1 | P47: Crown Land | R47: =IF(P47="",'Unit Rates - Land'!landcst,IF($E$8="Landuse",VLOOKUP(P47,LAndcost3,2,FALSE),IF($E$8="Location",VLOOKUP(P47,Landcost2,2,FALSE),"Error"))) -> 0 | S47: 0 | T47: 2011 | U47: =IFERROR(('General Input Sheet'!$G$38/(VLOOKUP('Existing Trunk Assets - Water'!T47,'General Input Sheet'!$E$38:$G$44,3,FALSE))),1) -> 1 | V47: 0 | W47: y | X47: y | Y47: y | Z47: y | AA47: y | AB47: y | AC47: y | AD47: y | AE47: y | AF47: y | AG47: y | AH47: y | AI47: y | AJ47: y | AK47: y | AL47: y | AM47: y | AN47: y | AO47: y | AP47: y | AQ47: y | AR47: y | BB47: 5479.33063 | BC47: 928.3702909 | BD47: 1083.843286 | BE47: 956.8209732 | BF47: 575.6795871 | BG47: 365.8833822 | BH47: 462.6229889 | BI47: 947.5 | BJ47: 246 | BK47: 71.80956371 | BL47: 750.6675466 | BM47: 912.0484283 | BN47: 352.9534753 | BO47: 2899.561519 | BP47: 1566.570638 | BQ47: 379.4352564 | BR47: 144 | BS47: 476.4963074 | BT47: 96.00269134 | BU47: 134 | BV47: 104 | BW47: 270.324288 | CF47: 19203.92085 | CH47: 0 | CI47: 0 | CJ47: 0 | CK47: 0 | CL47: 0 | CM47: 0 | CN47: 0 | CO47: 0 | CP47: 0 | CQ47: 0 | CR47: 0 | CS47: 0 | CT47: 0 | CU47: 0 | CV47: 0 | CW47: 0 | CX47: 0 | CY47: 0 | CZ47: 0 | DA47: 0 | DB47: 0 | DC47: 0 | DK47: =IF(CE47="","",(CE47/$CF47)*$V47) ->  | DN47: 0
B48: Hidden Valley | D48: Passive | E48: TM MD | F48: CCW 750 Valve Fac - Yep localbdy | H48: mPVC (to 450mm) and DICL Trunk Watermains | I48: 3380 | J48: 750 | M48: nominal | N48: =IF(M48="",1,VLOOKUP(M48,'Unit Rates - Water'!$H$12:$I$23,2,FALSE)) -> 1 | P48: Crown Land | R48: =IF(P48="",'Unit Rates - Land'!landcst,IF($E$8="Landuse",VLOOKUP(P48,LAndcost3,2,FALSE),IF($E$8="Location",VLOOKUP(P48,Landcost2,2,FALSE),"Error"))) -> 0 | S48: 0 | T48: 2011 | U48: =IFERROR(('General Input Sheet'!$G$38/(VLOOKUP('Existing Trunk Assets - Water'!T48,'General Input Sheet'!$E$38:$G$44,3,FALSE))),1) -> 1 | V48: 0 | W48: y | X48: y | Y48: y | Z48: y | AA48: y | AB48: y | AC48: y | AD48: y | AE48: y | AF48: y | AG48: y | AH48: y | AI48: y | AJ48: y | AK48: y | AL48: y | AM48: y | AN48: y | AO48: y | AP48: y | AQ48: y | AR48: y | BB48: 5479.33063 | BC48: 928.3702909 | BD48: 1083.843286 | BE48: 956.8209732 | BF48: 575.6795871 | BG48: 365.8833822 | BH48: 462.6229889 | BI48: 947.5 | BJ48: 246 | BK48: 71.80956371 | BL48: 750.6675466 | BM48: 912.0484283 | BN48: 352.9534753 | BO48: 2899.561519 | BP48: 1566.570638 | BQ48: 379.4352564 | BR48: 144 | BS48: 476.4963074 | BT48: 96.00269134 | BU48: 134 | BV48: 104 | BW48: 270.324288 | CF48: 19203.92085 | CH48: =IF(BB48="","",(BB48/$CF48)*$V48) -> 0 | CI48: 0 | CJ48: 0 | CK48: 0 | CL48: 0 | CM48: 0 | CN48: 0 | CO48: 0 | CP48: 0 | CQ48: 0 | CR48: 0 | CS48: 0 | CT48: 0 | CU48: 0 | CV48: 0 | CW48: 0 | CX48: =IF(BR48="","",(BR48/$CF48)*$V48) -> 0 | CY48: 0 | CZ48: 0 | DA48: 0 | DB48: 0 | DC48: 0 | DN48: 0
B49: Taroomball | D49: Passive | E49: TM MD | F49: CCW 750 Yep localbdy - Tanby Valve | H49: mPVC (to 450mm) and DICL Trunk Watermains | I49: 80 | J49: 750 | M49: nominal | N49: =IF(M49="",1,VLOOKUP(M49,'Unit Rates - Water'!$H$12:$I$23,2,FALSE)) -> 1 | P49: Crown Land | R49: =IF(P49="",'Unit Rates - Land'!landcst,IF($E$8="Landuse",VLOOKUP(P49,LAndcost3,2,FALSE),IF($E$8="Location",VLOOKUP(P49,Landcost2,2,FALSE),"Error"))) -> 0 | S49: 0 | T49: 2011 | U49: =IFERROR(('General Input Sheet'!$G$38/(VLOOKUP('Existing Trunk Assets - Water'!T49,'General Input Sheet'!$E$38:$G$44,3,FALSE))),1) -> 1 | V49: 0 | W49: y | X49: y | Y49: y | Z49: y | AA49: y | AB49: y | AC49: y | AD49: y | AE49: y | AF49: y | AG49: y | AH49: y | AI49: y | AJ49: y | AK49: y | AL49: y | AM49: y | AN49: y | AO49: y | AP49: y | AQ49: y | AR49: y | BB49: 5479.33063 | BC49: 928.3702909 | BD49: 1083.843286 | BE49: 956.8209732 | BF49: 575.6795871 | BG49: 365.8833822 | BH49: 462.6229889 | BI49: 947.5 | BJ49: 246 | BK49: 71.80956371 | BL49: 750.6675466 | BM49: 912.0484283 | BN49: 352.9534753 | BO49: 2899.561519 | BP49: 1566.570638 | BQ49: 379.4352564 | BR49: 144 | BS49: 476.4963074 | BT49: 96.00269134 | BU49: 134 | BV49: 104 | BW49: 270.324288 | CF49: 19203.92085 | CH49: 0 | CI49: 0 | CJ49: 0 | CK49: 0 | CL49: 0 | CM49: 0 | CN49: 0 | CO49: 0 | CP49: 0 | CQ49: 0 | CR49: 0 | CS49: 0 | CT49: 0 | CU49: 0 | CV49: 0 | CW49: 0 | CX49: 0 | CY49: 0 | CZ49: 0 | DA49: 0 | DB49: 0 | DC49: 0 | DN49: 0
B50: Taroomball | D50: Passive | E50: TM MD | F50: CCW 600 Tanby Valve - Taroom localbdy | H50: mPVC (to 450mm) and DICL Trunk Watermains | I50: 330 | J50: 600 | M50: nominal | N50: =IF(M50="",1,VLOOKUP(M50,'Unit Rates - Water'!$H$12:$I$23,2,FALSE)) -> 1 | P50: Crown Land | R50: =IF(P50="",'Unit Rates - Land'!landcst,IF($E$8="Landuse",VLOOKUP(P50,LAndcost3,2,FALSE),IF($E$8="Location",VLOOKUP(P50,Landcost2,2,FALSE),"Error"))) -> 0 | S50: 0 | T50: 2011 | U50: =IFERROR(('General Input Sheet'!$G$38/(VLOOKUP('Existing Trunk Assets - Water'!T50,'General Input Sheet'!$E$38:$G$44,3,FALSE))),1) -> 1 | V50: 0 | W50: y | X50: y | Y50: y | Z50: y | AA50: y | AB50: y | AC50: y | AD50: y | AE50: y | AF50: y | AG50: y | AH50: y | AI50: y | AJ50: y | AK50: y | AL50: y | AM50: y | AN50: y | AO50: y | AP50: y | AQ50: y | AR50: y | BB50: 5479.33063 | BC50: 928.3702909 | BD50: 1083.843286 | BE50: 956.8209732 | BF50: 575.6795871 | BG50: 365.8833822 | BH50: 462.6229889 | BI50: 947.5 | BJ50: 246 | BK50: 71.80956371 | BL50: 750.6675466 | BM50: 912.0484283 | BN50: 352.9534753 | BO50: 2899.561519 | BP50: 1566.570638 | BQ50: 379.4352564 | BR50: 144 | BS50: 476.4963074 | BT50: 96.00269134 | BU50: 134 | BV50: 104 | BW50: 270.324288 | CF50: 19203.92085 | CH50: 0 | CI50: 0 | CJ50: 0 | CK50: 0 | CL50: 0 | CM50: 0 | CN50: 0 | CO50: 0 | CP50: 0 | CQ50: 0 | CR50: 0 | CS50: 0 | CT50: 0 | CU50: 0 | CV50: 0 | CW50: 0 | CX50: 0 | CY50: 0 | CZ50: 0 | DA50: 0 | DB50: 0 | DC50: 0 | DN50: 0
B51: Taroomball | D51: Passive | E51: TM MD | F51: CCW 600 Taroom localbdy - Tarang localbdy | H51: mPVC (to 450mm) and DICL Trunk Watermains | I51: 780 | J51: 600 | M51: nominal | N51: =IF(M51="",1,VLOOKUP(M51,'Unit Rates - Water'!$H$12:$I$23,2,FALSE)) -> 1 | P51: Crown Land | R51: =IF(P51="",'Unit Rates - Land'!landcst,IF($E$8="Landuse",VLOOKUP(P51,LAndcost3,2,FALSE),IF($E$8="Location",VLOOKUP(P51,Landcost2,2,FALSE),"Error"))) -> 0 | S51: 0 | T51: 2011 | U51: =IFERROR(('General Input Sheet'!$G$38/(VLOOKUP('Existing Trunk Assets - Water'!T51,'General Input Sheet'!$E$38:$G$44,3,FALSE))),1) -> 1 | V51: 0 | W51: y | X51: y | Y51: y | Z51: y | AA51: y | AB51: y | AC51: y | AD51: y | AE51: y | AF51: y | AG51: y | AH51: y | AI51: y | AJ51: y | AK51: y | AL51: y | AM51: y | AN51: y | AO51: y | AP51: y | AQ51: y | AR51: y | BB51: 5479.33063 | BC51: 928.3702909 | BD51: 1083.843286 | BE51: 956.8209732 | BF51: 575.6795871 | BG51: 365.8833822 | BH51: 462.6229889 | BI51: 947.5 | BJ51: 246 | BK51: 71.80956371 | BL51: 750.6675466 | BM51: 912.0484283 | BN51: 352.9534753 | BO51: 2899.561519 | BP51: 1566.570638 | BQ51: 379.4352564 | BR51: 144 | BS51: 476.4963074 | BT51: 96.00269134 | BU51: 134 | BV51: 104 | BW51: 270.324288 | CF51: 19203.92085 | CH51: 0 | CI51: 0 | CJ51: 0 | CK51: 0 | CL51: 0 | CM51: 0 | CN51: 0 | CO51: 0 | CP51: 0 | CQ51: 0 | CR51: 0 | CS51: 0 | CT51: 0 | CU51: 0 | CV51: 0 | CW51: 0 | CX51: 0 | CY51: 0 | CZ51: 0 | DA51: 0 | DB51: 0 | DC51: 0 | DN51: 0
B52: Yeppoon | D52: Passive | E52: TM MD | F52: CCW 525 St Faith to Adelaide Park Rd | H52: mPVC (to 450mm) and DICL Trunk Watermains | I52: 1320 | J52: 525 | K52: 550 | L52: 726000 | M52: nominal | N52: =IF(M52="",1,VLOOKUP(M52,'Unit Rates - Water'!$H$12:$I$23,2,FALSE)) -> 1 | O52: 726000 | P52: Crown Land | R52: =IF(P52="",'Unit Rates - Land'!landcst,IF($E$8="Landuse",VLOOKUP(P52,LAndcost3,2,FALSE),IF($E$8="Location",VLOOKUP(P52,Landcost2,2,FALSE),"Error"))) -> 0 | S52: 0 | T52: 2011 | U52: =IFERROR(('General Input Sheet'!$G$38/(VLOOKUP('Existing Trunk Assets - Water'!T52,'General Input Sheet'!$E$38:$G$44,3,FALSE))),1) -> 1 | V52: 726000 | W52: y | X52: y | Y52: y | Z52: y | AA52: y | AB52: y | AC52: y | AD52: y | AE52: y | AF52: y | AG52: y | AH52: y | AI52: y | AJ52: y | AK52: y | AL52: y | AM52: y | AN52: y | AO52: y | AP52: y | AQ52: y | AR52: y | BB52: 5479.33063 | BC52: 928.3702909 | BD52: 1083.843286 | BE52: 956.8209732 | BF52: 575.6795871 | BG52: 365.8833822 | BH52: 462.6229889 | BI52: 947.5 | BJ52: 246 | BK52: 71.80956371 | BL52: 750.6675466 | BM52: 912.0484283 | BN52: 352.9534753 | BO52: 2899.561519 | BP52: 1566.570638 | BQ52: 379.4352564 | BR52: 144 | BS52: 476.4963074 | BT52: 96.00269134 | BU52: 134 | BV52: 104 | BW52: 270.324288 | CF52: 19203.92085 | CH52: 207144.8882 | CI52: 35096.83446 | CJ52: 40974.45682 | CK52: 36172.40624 | CL52: 21763.44005 | CM52: 13832.14072 | CN52: 17489.36025 | CO52: 35820.0289 | CP52: 9299.975842 | CQ52: 2714.744747 | CR52: 28378.82134 | CS52: 34479.79004 | CT52: 13343.32843 | CU52: 109617.2849 | CV52: 59223.85807 | CW52: 14344.46633 | CX52: 5443.888298 | CY52: 18013.838 | CZ52: 3629.360611 | DA52: 5065.840499 | DB52: 3931.697104 | DC52: 10219.5502 | DN52: 726000
B53: Yeppoon | D53: Passive | E53: TM MD | F53: CCW 450 St Faith to Adelaide Park Rd | H53: mPVC (to 450mm) and DICL Trunk Watermains | I53: 1320 | J53: 450 | K53: 493 | L53: 650760 | M53: nominal | N53: =IF(M53="",1,VLOOKUP(M53,'Unit Rates - Water'!$H$12:$I$23,2,FALSE)) -> 1 | O53: 650760 | P53: Crown Land | R53: =IF(P53="",'Unit Rates - Land'!landcst,IF($E$8="Landuse",VLOOKUP(P53,LAndcost3,2,FALSE),IF($E$8="Location",VLOOKUP(P53,Landcost2,2,FALSE),"Error"))) -> 0 | S53: 0 | T53: 2011 | U53: =IFERROR(('General Input Sheet'!$G$38/(VLOOKUP('Existing Trunk Assets - Water'!T53,'General Input Sheet'!$E$38:$G$44,3,FALSE))),1) -> 1 | V53: 650760 | W53: y | X53: y | Y53: y | Z53: y | AA53: y | AB53: y | AC53: y | AD53: y | AE53: y | AF53: y | AG53: y | AH53: y | AI53: y | AJ53: y | AK53: y | AL53: y | AM53: y | AN53: y | AO53: y | AP53: y | AQ53: y | AR53: y | BB53: 5479.33063 | BC53: 928.3702909 | BD53: 1083.843286 | BE53: 956.8209732 | BF53: 575.6795871 | BG53: 365.8833822 | BH53: 462.6229889 | BI53: 947.5 | BJ53: 246 | BK53: 71.80956371 | BL53: 750.6675466 | BM53: 912.0484283 | BN53: 352.9534753 | BO53: 2899.561519 | BP53: 1566.570638 | BQ53: 379.4352564 | BR53: 144 | BS53: 476.4963074 | BT53: 96.00269134 | BU53: 134 | BV53: 104 | BW53: 270.324288 | CF53: 19203.92085 | CH53: 185677.1452 | CI53: 31459.52616 | CJ53: 36728.01311 | CK53: 32423.6296 | CL53: 19507.95626 | CM53: 12398.62795 | CN53: 15676.82655 | CO53: 32107.77136 | CP53: 8336.160164 | CQ53: 2433.398473 | CR53: 25437.74349 | CS53: 30906.42998 | CT53: 11960.47439 | CU53: 98256.94808 | CV53: 53086.11278 | CW53: 12857.858 | CX53: 4879.703511 | CY53: 16146.94933 | CZ53: 3253.226875 | DA53: 4540.835211 | DB53: 3524.230313 | DC53: 9160.433176 | DN53: 650760
B54: Yeppoon | D54: Passive | E54: TM MD | F54: CCW 450 Adelaide Park Rd to Farnb | H54: mPVC (to 450mm) and DICL Trunk Watermains | I54: 2100 | J54: 450 | K54: 493 | L54: 1035300 | M54: nominal | N54: =IF(M54="",1,VLOOKUP(M54,'Unit Rates - Water'!$H$12:$I$23,2,FALSE)) -> 1 | O54: 1035300 | P54: Crown Land | R54: =IF(P54="",'Unit Rates - Land'!landcst,IF($E$8="Landuse",VLOOKUP(P54,LAndcost3,2,FALSE),IF($E$8="Location",VLOOKUP(P54,Landcost2,2,FALSE),"Error"))) -> 0 | S54: 0 | T54: 2011 | U54: =IFERROR(('General Input Sheet'!$G$38/(VLOOKUP('Existing Trunk Assets - Water'!T54,'General Input Sheet'!$E$38:$G$44,3,FALSE))),1) -> 1 | V54: 1035300 | W54: y | X54: y | Y54: y | Z54: y | AA54: y | AB54: y | AC54: y | AD54: y | AE54: y | AF54: y | AG54: y | AH54: y | AI54: y | AJ54: y | AK54: y | AL54: y | AM54: y | AN54: y | AO54: y | AP54: y | AQ54: y | AR54: y | BB54: 5479.33063 | BC54: 928.3702909 | BD54: 1083.843286 | BE54: 956.8209732 | BF54: 575.6795871 | BG54: 365.8833822 | BH54: 462.6229889 | BI54: 947.5 | BJ54: 246 | BK54: 71.80956371 | BL54: 750.6675466 | BM54: 912.0484283 | BN54: 352.9534753 | BO54: 2899.561519 | BP54: 1566.570638 | BQ54: 379.4352564 | BR54: 144 | BS54: 476.4963074 | BT54: 96.00269134 | BU54: 134 | BV54: 104 | BW54: 270.324288 | CF54: 19203.92085 | CH54: 295395.4583 | CI54: 50049.24617 | CJ54: 58430.92995 | CK54: 51583.04708 | CL54: 31035.38497 | CM54: 19725.08992 | CN54: 24940.40587 | CO54: 51080.54535 | CP54: 13262.07299 | CQ54: 3871.315753 | CR54: 40469.13737 | CS54: 49169.32043 | CT54: 19028.02744 | CU54: 156317.8719 | CV54: 84455.17943 | CW54: 20455.68319 | CX54: 7763.164676 | CY54: 25688.32849 | CZ54: 5175.58821 | DA54: 7224.056018 | DB54: 5606.730044 | DC54: 14573.41642 | DN54: 1035300
B55: Yeppoon | D55: Passive | E55: TM MD | F55: CCW 450 Adelaide Park Rd | H55: mPVC (to 450mm) and DICL Trunk Watermains | I55: 870 | J55: 450 | K55: 493 | L55: 428910 | M55: nominal | N55: =IF(M55="",1,VLOOKUP(M55,'Unit Rates - Water'!$H$12:$I$23,2,FALSE)) -> 1 | O55: 428910 | P55: Crown Land | R55: =IF(P55="",'Unit Rates - Land'!landcst,IF($E$8="Landuse",VLOOKUP(P55,LAndcost3,2,FALSE),IF($E$8="Location",VLOOKUP(P55,Landcost2,2,FALSE),"Error"))) -> 0 | S55: 0 | T55: 2011 | U55: =IFERROR(('General Input Sheet'!$G$38/(VLOOKUP('Existing Trunk Assets - Water'!T55,'General Input Sheet'!$E$38:$G$44,3,FALSE))),1) -> 1 | V55: 428910 | W55: y | X55: y | Y55: y | Z55: y | AA55: y | AB55: y | AC55: y | AD55: y | AE55: y | AF55: y | AG55: y | AH55: y | AI55: y | AJ55: y | AK55: y | AL55: y | AM55: y | AN55: y | AO55: y | AP55: y | AQ55: y | AR55: y | BB55: 5479.33063 | BC55: 928.3702909 | BD55: 1083.843286 | BE55: 956.8209732 | BF55: 575.6795871 | BG55: 365.8833822 | BH55: 462.6229889 | BI55: 947.5 | BJ55: 246 | BK55: 71.80956371 | BL55: 750.6675466 | BM55: 912.0484283 | BN55: 352.9534753 | BO55: 2899.561519 | BP55: 1566.570638 | BQ55: 379.4352564 | BR55: 144 | BS55: 476.4963074 | BT55: 96.00269134 | BU55: 134 | BV55: 104 | BW55: 270.324288 | CF55: 19203.92085 | CH55: 122378.1184 | CI55: 20734.6877 | CJ55: 24207.09955 | CK55: 21370.11951 | CL55: 12857.51663 | CM55: 8171.822967 | CN55: 10332.45386 | CO55: 21161.94022 | CP55: 5494.287381 | CQ55: 1603.830812 | CR55: 16765.78548 | CS55: 20370.14703 | CT55: 7883.03994 | CU55: 64760.26123 | CV55: 34988.57433 | CW55: 8474.497321 | CX55: 3216.168223 | CY55: 10642.30752 | CZ55: 2144.172258 | DA55: 2992.823207 | DB55: 2322.788161 | DC55: 6037.55823 | DN55: 428910
B56: Yeppoon | D56: Passive | E56: TM MD | F56: CCW 450 Adelaide Park Rd - Tanby Rd Valve | H56: mPVC (to 450mm) and DICL Trunk Watermains | I56: 2355 | J56: 450 | K56: 493 | L56: 1161015 | M56: nominal | N56: =IF(M56="",1,VLOOKUP(M56,'Unit Rates - Water'!$H$12:$I$23,2,FALSE)) -> 1 | O56: 1161015 | P56: Crown Land | R56: =IF(P56="",'Unit Rates - Land'!landcst,IF($E$8="Landuse",VLOOKUP(P56,LAndcost3,2,FALSE),IF($E$8="Location",VLOOKUP(P56,Landcost2,2,FALSE),"Error"))) -> 0 | S56: 0 | T56: 2011 | U56: =IFERROR(('General Input Sheet'!$G$38/(VLOOKUP('Existing Trunk Assets - Water'!T56,'General Input Sheet'!$E$38:$G$44,3,FALSE))),1) -> 1 | V56: 1161015 | W56: y | X56: y | Y56: y | Z56: y | AA56: y | AB56: y | AC56: y | AD56: y | AE56: y | AF56: y | AG56: y | AH56: y | AI56: y | AJ56: y | AK56: y | AL56: y | AM56: y | AN56: y | AO56: y | AP56: y | AQ56: y | AR56: y | BB56: 5479.33063 | BC56: 928.3702909 | BD56: 1083.843286 | BE56: 956.8209732 | BF56: 575.6795871 | BG56: 365.8833822 | BH56: 462.6229889 | BI56: 947.5 | BJ56: 246 | BK56: 71.80956371 | BL56: 750.6675466 | BM56: 912.0484283 | BN56: 352.9534753 | BO56: 2899.561519 | BP56: 1566.570638 | BQ56: 379.4352564 | BR56: 144 | BS56: 476.4963074 | BT56: 96.00269134 | BU56: 134 | BV56: 104 | BW56: 270.324288 | CF56: 19203.92085 | CH56: 331264.9068 | CI56: 56126.65463 | CJ56: 65526.11431 | CK56: 57846.7028 | CL56: 34803.96743 | CM56: 22120.27941 | CN56: 27968.88373 | CO56: 57283.183 | CP56: 14872.46757 | CQ56: 4341.404094 | CR56: 45383.24691 | CS56: 55139.88077 | CT56: 21338.57363 | CU56: 175299.3278 | CV56: 94710.45121 | CW56: 22939.58758 | CX56: 8705.834672 | CY56: 28807.62552 | CZ56: 5804.052493 | DA56: 8101.26282 | DB56: 6287.547263 | DC56: 16343.04555 | DN56: 1161015
B57: Yeppoon | D57: Passive | E57: TM MD | F57: CCW 375 CBD to Farnborough | H57: mPVC (to 450mm) and DICL Trunk Watermains | I57: 375 | J57: 375 | K57: 490 | L57: 183750 | M57: nominal | N57: =IF(M57="",1,VLOOKUP(M57,'Unit Rates - Water'!$H$12:$I$23,2,FALSE)) -> 1 | O57: 183750 | P57: Crown Land | R57: =IF(P57="",'Unit Rates - Land'!landcst,IF($E$8="Landuse",VLOOKUP(P57,LAndcost3,2,FALSE),IF($E$8="Location",VLOOKUP(P57,Landcost2,2,FALSE),"Error"))) -> 0 | S57: 0 | T57: 2011 | U57: =IFERROR(('General Input Sheet'!$G$38/(VLOOKUP('Existing Trunk Assets - Water'!T57,'General Input Sheet'!$E$38:$G$44,3,FALSE))),1) -> 1 | V57: 183750 | W57: y | X57: y | Y57: y | Z57: y | AA57: y | AB57: y | AC57: y | AD57: y | AE57: y | AF57: y | AG57: y | AH57: y | AI57: y | AJ57: y | AK57: y | AL57: y | AM57: y | AN57: y | AO57: y | AP57: y | AQ57: y | AR57: y | BB57: 5479.33063 | BC57: 928.3702909 | BD57: 1083.843286 | BE57: 956.8209732 | BF57: 575.6795871 | BG57: 365.8833822 | BH57: 462.6229889 | BI57: 947.5 | BJ57: 246 | BK57: 71.80956371 | BL57: 750.6675466 | BM57: 912.0484283 | BN57: 352.9534753 | BO57: 2899.561519 | BP57: 1566.570638 | BQ57: 379.4352564 | BR57: 144 | BS57: 476.4963074 | BT57: 96.00269134 | BU57: 134 | BV57: 104 | BW57: 270.324288 | CF57: 19203.92085 | CH57: 52428.2 | CI57: 8882.979797 | CJ57: 10370.60116 | CK57: 9155.206126 | CL57: 5508.308691 | CM57: 3500.903384 | CN57: 4426.542624 | CO57: 9066.019712 | CP57: 2353.8162 | CQ57: 687.0996518 | CR57: 7182.656227 | CS57: 8726.806364 | CT57: 3377.185398 | CU57: 27744.04421 | CV57: 14989.50953 | CW57: 3630.572574 | CX57: 1377.843629 | CY57: 4559.28751 | CZ57: 918.5881711 | DA57: 1282.160044 | DB57: 995.1092877 | DC57: 2586.559709 | DN57: 183750
B58: Yeppoon | D58: Passive | E58: TM MD | F58: CCW 300 James St | H58: mPVC (to 450mm) and DICL Trunk Watermains | I58: 270 | J58: 300 | K58: 380 | L58: 102600 | M58: nominal | N58: =IF(M58="",1,VLOOKUP(M58,'Unit Rates - Water'!$H$12:$I$23,2,FALSE)) -> 1 | O58: 102600 | P58: Crown Land | R58: =IF(P58="",'Unit Rates - Land'!landcst,IF($E$8="Landuse",VLOOKUP(P58,LAndcost3,2,FALSE),IF($E$8="Location",VLOOKUP(P58,Landcost2,2,FALSE),"Error"))) -> 0 | S58: 0 | T58: 2011 | U58: =IFERROR(('General Input Sheet'!$G$38/(VLOOKUP('Existing Trunk Assets - Water'!T58,'General Input Sheet'!$E$38:$G$44,3,FALSE))),1) -> 1 | V58: 102600 | W58: y | X58: y | Y58: y | Z58: y | AA58: y | AB58: y | AC58: y | AD58: y | AE58: y | AF58: y | AG58: y | AH58: y | AI58: y | AJ58: y | AK58: y | AL58: y | AM58: y | AN58: y | AO58: y | AP58: y | AQ58: y | AR58: y | BB58: 5479.33063 | BC58: 928.3702909 | BD58: 1083.843286 | BE58: 956.8209732 | BF58: 575.6795871 | BG58: 365.8833822 | BH58: 462.6229889 | BI58: 947.5 | BJ58: 246 | BK58: 71.80956371 | BL58: 750.6675466 | BM58: 912.0484283 | BN58: 352.9534753 | BO58: 2899.561519 | BP58: 1566.570638 | BQ58: 379.4352564 | BR58: 144 | BS58: 476.4963074 | BT58: 96.00269134 | BU58: 134 | BV58: 104 | BW58: 270.324288 | CF58: 19203.92085 | CH58: 29274.19494 | CI58: 4959.965862 | CJ58: 5790.605055 | CK58: 5111.968155 | CL58: 3075.65971 | CM58: 1954.790134 | CN58: 2471.636861 | CO58: 5062.169374 | CP58: 1314.294107 | CQ58: 383.6540097 | CR58: 4010.560702 | CS58: 4872.763717 | CT58: 1885.710051 | CU58: 15491.36836 | CV58: 8369.65267 | CW58: 2027.193176 | CX58: 769.3428917 | CY58: 2545.757271 | CZ58: 512.9096401 | DA58: 715.916302 | DB58: 555.6365329 | DC58: 1444.250482 | DN58: 102600
B59: Yeppoon | D59: Passive | E59: TM MH | F59: CCW 300 Condon Dve | H59: mPVC (to 450mm) and DICL Trunk Watermains | I59: 2400 | J59: 300 | K59: 380 | L59: 912000 | M59: nominal | N59: =IF(M59="",1,VLOOKUP(M59,'Unit Rates - Water'!$H$12:$I$23,2,FALSE)) -> 1 | O59: 912000 | P59: Crown Land | R59: =IF(P59="",'Unit Rates - Land'!landcst,IF($E$8="Landuse",VLOOKUP(P59,LAndcost3,2,FALSE),IF($E$8="Location",VLOOKUP(P59,Landcost2,2,FALSE),"Error"))) -> 0 | S59: 0 | T59: 2011 | U59: =IFERROR(('General Input Sheet'!$G$38/(VLOOKUP('Existing Trunk Assets - Water'!T59,'General Input Sheet'!$E$38:$G$44,3,FALSE))),1) -> 1 | V59: 912000 | W59: y | X59: y | Y59: y | Z59: y | AA59: y | AB59: y | AC59: y | AD59: y | AE59: y | AF59: y | AG59: y | AH59: y | AI59: y | AJ59: y | AK59: y | AL59: y | AM59: y | AN59: y | AO59: y | AP59: y | AQ59: y | AR59: y | BB59: 5479.33063 | BC59: 928.3702909 | BD59: 1083.843286 | BE59: 956.8209732 | BF59: 575.6795871 | BG59: 365.8833822 | BH59: 462.6229889 | BI59: 947.5 | BJ59: 246 | BK59: 71.80956371 | BL59: 750.6675466 | BM59: 912.0484283 | BN59: 352.9534753 | BO59: 2899.561519 | BP59: 1566.570638 | BQ59: 379.4352564 | BR59: 144 | BS59: 476.4963074 | BT59: 96.00269134 | BU59: 134 | BV59: 104 | BW59: 270.324288 | CF59: 19203.92085 | CH59: 260215.0661 | CI59: 44088.58544 | CJ59: 51472.04493 | CK59: 45439.71693 | CL59: 27339.19742 | CM59: 17375.9123 | CN59: 21970.10543 | CO59: 44997.0611 | CP59: 11682.61428 | CQ59: 3410.257864 | CR59: 35649.42846 | CS59: 43313.45526 | CT59: 16761.86712 | CU59: 137701.0521 | CV59: 74396.91262 | CW59: 18019.4949 | CX59: 6838.603482 | CY59: 22628.95352 | CZ59: 4559.1968 | DA59: 6363.700462 | DB59: 4938.991403 | DC59: 12837.78207 | DN59: 912000
B60: Yeppoon | D60: Passive | E60: TM MH | F60: CCW 200 Old Rtn Rd | H60: mPVC (to 450mm) and DICL Trunk Watermains | I60: 750 | J60: 200 | K60: 340 | L60: 255000 | M60: nominal | N60: =IF(M60="",1,VLOOKUP(M60,'Unit Rates - Water'!$H$12:$I$23,2,FALSE)) -> 1 | O60: 255000 | P60: Crown Land | R60: =IF(P60="",'Unit Rates - Land'!landcst,IF($E$8="Landuse",VLOOKUP(P60,LAndcost3,2,FALSE),IF($E$8="Location",VLOOKUP(P60,Landcost2,2,FALSE),"Error"))) -> 0 | S60: 0 | T60: 2011 | U60: =IFERROR(('General Input Sheet'!$G$38/(VLOOKUP('Existing Trunk Assets - Water'!T60,'General Input Sheet'!$E$38:$G$44,3,FALSE))),1) -> 1 | V60: 255000 | W60: y | X60: y | Y60: y | Z60: y | AA60: y | AB60: y | AC60: y | AD60: y | AE60: y | AF60: y | AG60: y | AH60: y | AI60: y | AJ60: y | AK60: y | AL60: y | AM60: y | AN60: y | AO60: y | AP60: y | AQ60: y | AR60: y | BB60: 5479.33063 | BC60: 928.3702909 | BD60: 1083.843286 | BE60: 956.8209732 | BF60: 575.6795871 | BG60: 365.8833822 | BH60: 462.6229889 | BI60: 947.5 | BJ60: 246 | BK60: 71.80956371 | BL60: 750.6675466 | BM60: 912.0484283 | BN60: 352.9534753 | BO60: 2899.561519 | BP60: 1566.570638 | BQ60: 379.4352564 | BR60: 144 | BS60: 476.4963074 | BT60: 96.00269134 | BU60: 134 | BV60: 104 | BW60: 270.324288 | CF60: 19203.92085 | CH60: 72757.50204 | CI60: 12327.40053 | CJ60: 14391.85467 | CK60: 12705.18401 | CL60: 7644.183489 | CM60: 4858.396532 | CN60: 6142.957111 | CO60: 12581.41511 | CP60: 3266.52044 | CQ60: 953.5260474 | CR60: 9967.767826 | CS60: 12110.67006 | CT60: 4686.706266 | CU60: 38501.9389 | CV60: 20801.76833 | CW60: 5038.345613 | CX60: 1912.109526 | CY60: 6327.174504 | CZ60: 1274.775421 | DA60: 1779.324142 | DB60: 1380.967991 | DC60: 3589.511433 | DN60: 255000
B61: Yeppoon | D61: Passive | E61: TM MD | F61: CCW 375 Farnborough Rd | H61: mPVC (to 450mm) and DICL Trunk Watermains | I61: 1860 | J61: 375 | K61: 490 | L61: 911400 | M61: nominal | N61: =IF(M61="",1,VLOOKUP(M61,'Unit Rates - Water'!$H$12:$I$23,2,FALSE)) -> 1 | O61: 911400 | P61: Crown Land | R61: =IF(P61="",'Unit Rates - Land'!landcst,IF($E$8="Landuse",VLOOKUP(P61,LAndcost3,2,FALSE),IF($E$8="Location",VLOOKUP(P61,Landcost2,2,FALSE),"Error"))) -> 0 | S61: 0 | T61: 2011 | U61: =IFERROR(('General Input Sheet'!$G$38/(VLOOKUP('Existing Trunk Assets - Water'!T61,'General Input Sheet'!$E$38:$G$44,3,FALSE))),1) -> 1 | V61: 911400 | W61: y | X61: y | Y61: y | Z61: y | AA61: y | AB61: y | AC61: y | AD61: y | AE61: y | AF61: y | AG61: y | AH61: y | AI61: y | AJ61: y | AK61: y | AL61: y | AM61: y | AN61: y | AO61: y | AP61: y | AQ61: y | AR61: y | BB61: 5479.33063 | BC61: 928.3702909 | BD61: 1083.843286 | BE61: 956.8209732 | BF61: 575.6795871 | BG61: 365.8833822 | BH61: 462.6229889 | BI61: 947.5 | BJ61: 246 | BK61: 71.80956371 | BL61: 750.6675466 | BM61: 912.0484283 | BN61: 352.9534753 | BO61: 2899.561519 | BP61: 1566.570638 | BQ61: 379.4352564 | BR61: 144 | BS61: 476.4963074 | BT61: 96.00269134 | BU61: 134 | BV61: 104 | BW61: 270.324288 | CF61: 19203.92085 | CH61: 260043.872 | CI61: 44059.57979 | CJ61: 51438.18174 | CK61: 45409.82238 | CL61: 27321.21111 | CM61: 17364.48078 | CN61: 21955.65142 | CO61: 44967.45777 | CP61: 11674.92835 | CQ61: 3408.014273 | CR61: 35625.97489 | CS61: 43284.95957 | CT61: 16750.83957 | CU61: 137610.4593 | CV61: 74347.96728 | CW61: 18007.63997 | CX61: 6834.1044 | CY61: 22614.06605 | CZ61: 4556.197329 | DA61: 6359.513817 | DB61: 4935.742067 | DC61: 12829.33616 | DN61: 911400
B62: Meikleville Hill | D62: Passive | E62: TM MD | F62: CCW 200 RM Farn PS to Res | H62: mPVC (to 450mm) and DICL Trunk Watermains | I62: 320 | J62: 200 | K62: 340 | L62: 108800 | M62: nominal | N62: =IF(M62="",1,VLOOKUP(M62,'Unit Rates - Water'!$H$12:$I$23,2,FALSE)) -> 1 | O62: 108800 | P62: Crown Land | R62: =IF(P62="",'Unit Rates - Land'!landcst,IF($E$8="Landuse",VLOOKUP(P62,LAndcost3,2,FALSE),IF($E$8="Location",VLOOKUP(P62,Landcost2,2,FALSE),"Error"))) -> 0 | S62: 0 | T62: 2011 | U62: =IFERROR(('General Input Sheet'!$G$38/(VLOOKUP('Existing Trunk Assets - Water'!T62,'General Input Sheet'!$E$38:$G$44,3,FALSE))),1) -> 1 | V62: 108800 | W62: y | X62: y | Y62: y | Z62: y | AA62: y | AB62: y | AC62: y | AD62: y | AE62: y | AF62: y | AG62: y | AH62: y | AI62: y | AJ62: y | AK62: y | AL62: y | AM62: y | AN62: y | AO62: y | AP62: y | AQ62: y | AR62: y | BB62: 5479.33063 | BC62: 928.3702909 | BD62: 1083.843286 | BE62: 956.8209732 | BF62: 575.6795871 | BG62: 365.8833822 | BH62: 462.6229889 | BI62: 947.5 | BJ62: 246 | BK62: 71.80956371 | BL62: 750.6675466 | BM62: 912.0484283 | BN62: 352.9534753 | BO62: 2899.561519 | BP62: 1566.570638 | BQ62: 379.4352564 | BR62: 144 | BS62: 476.4963074 | BT62: 96.00269134 | BU62: 134 | BV62: 104 | BW62: 270.324288 | CF62: 19203.92085 | CH62: 31043.20087 | CI62: 5259.690895 | CJ62: 6140.524659 | CK62: 5420.878511 | CL62: 3261.518289 | CM62: 2072.915854 | CN62: 2620.995034 | CO62: 5368.070447 | CP62: 1393.715388 | CQ62: 406.8377802 | CR62: 4252.914272 | CS62: 5167.219224 | CT62: 1999.66134 | CU62: 16427.49393 | CV62: 8875.421155 | CW62: 2149.694128 | CX62: 815.8333978 | CY62: 2699.594455 | CZ62: 543.9041797 | DA62: 759.1783007 | DB62: 589.2130095 | DC62: 1531.524878 | DN62: 108800
B63: Meikleville Hill | D63: Passive | E63: TM MH | F63: CCW 200 Cokas to Barlow localbdy | H63: mPVC (to 450mm) and DICL Trunk Watermains | I63: 850 | J63: 200 | K63: 340 | L63: 289000 | M63: nominal | N63: =IF(M63="",1,VLOOKUP(M63,'Unit Rates - Water'!$H$12:$I$23,2,FALSE)) -> 1 | O63: 289000 | P63: Crown Land | R63: =IF(P63="",'Unit Rates - Land'!landcst,IF($E$8="Landuse",VLOOKUP(P63,LAndcost3,2,FALSE),IF($E$8="Location",VLOOKUP(P63,Landcost2,2,FALSE),"Error"))) -> 0 | S63: 0 | T63: 2011 | U63: =IFERROR(('General Input Sheet'!$G$38/(VLOOKUP('Existing Trunk Assets - Water'!T63,'General Input Sheet'!$E$38:$G$44,3,FALSE))),1) -> 1 | V63: 289000 | W63: y | X63: y | Y63: y | Z63: y | AA63: y | AB63: y | AC63: y | AD63: y | AE63: y | AF63: y | AG63: y | AH63: y | AI63: y | AJ63: y | AK63: y | AL63: y | AM63: y | AN63: y | AO63: y | AP63: y | AQ63: y | AR63: y | BB63: 5479.33063 | BC63: 928.3702909 | BD63: 1083.843286 | BE63: 956.8209732 | BF63: 575.6795871 | BG63: 365.8833822 | BH63: 462.6229889 | BI63: 947.5 | BJ63: 246 | BK63: 71.80956371 | BL63: 750.6675466 | BM63: 912.0484283 | BN63: 352.9534753 | BO63: 2899.561519 | BP63: 1566.570638 | BQ63: 379.4352564 | BR63: 144 | BS63: 476.4963074 | BT63: 96.00269134 | BU63: 134 | BV63: 104 | BW63: 270.324288 | CF63: 19203.92085 | CH63: 82458.50232 | CI63: 13971.05394 | CJ63: 16310.76862 | CK63: 14399.20855 | CL63: 8663.407954 | CM63: 5506.182737 | CN63: 6962.018059 | CO63: 14258.93713 | CP63: 3702.056499 | CQ63: 1080.662854 | CR63: 11296.80354 | CS63: 13725.42606 | CT63: 5311.600435 | CU63: 43635.53076 | CV63: 23575.33744 | CW63: =IF(BQ63="","",(BQ63/$CF63)*$V63) -> 5710.125028 | CX63: 2167.057463 | CY63: 7170.797771 | CZ63: 1444.745477 | DA63: 2016.567361 | DB63: 1565.097057 | DC63: 4068.112957 | DN63: 289000
B64: Barlows Hill | D64: Passive | E64: TM MH | F64: CCW 200 Barlow localbdy to Island View St | H64: mPVC (to 450mm) and DICL Trunk Watermains | I64: 135 | J64: 200 | K64: 340 | L64: 45900 | M64: nominal | N64: =IF(M64="",1,VLOOKUP(M64,'Unit Rates - Water'!$H$12:$I$23,2,FALSE)) -> 1 | O64: 45900 | P64: Crown Land | R64: =IF(P64="",'Unit Rates - Land'!landcst,IF($E$8="Landuse",VLOOKUP(P64,LAndcost3,2,FALSE),IF($E$8="Location",VLOOKUP(P64,Landcost2,2,FALSE),"Error"))) -> 0 | S64: 0 | T64: 2011 | U64: =IFERROR(('General Input Sheet'!$G$38/(VLOOKUP('Existing Trunk Assets - Water'!T64,'General Input Sheet'!$E$38:$G$44,3,FALSE))),1) -> 1 | V64: 45900 | W64: y | X64: y | Y64: y | Z64: y | AA64: y | AB64: y | AC64: y | AD64: y | AE64: y | AF64: y | AG64: y | AH64: y | AI64: y | AJ64: y | AK64: y | AL64: y | AM64: y | AN64: y | AO64: y | AP64: y | AQ64: y | AR64: y | BB64: 5479.33063 | BC64: 928.3702909 | BD64: 1083.843286 | BE64: 956.8209732 | BF64: 575.6795871 | BG64: 365.8833822 | BH64: 462.6229889 | BI64: 947.5 | BJ64: 246 | BK64: 71.80956371 | BL64: 750.6675466 | BM64: 912.0484283 | BN64: 352.9534753 | BO64: 2899.561519 | BP64: 1566.570638 | BQ64: 379.4352564 | BR64: 144 | BS64: 476.4963074 | BT64: 96.00269134 | BU64: 134 | BV64: 104 | BW64: 270.324288 | CF64: 19203.92085 | CH64: =IF(BB64="","",(BB64/$CF64)*$V64) -> 13096.35037 | CI64: 2218.932096 | CJ64: 2590.53384 | CK64: 2286.933122 | CL64: 1375.953028 | CM64: 874.5113758 | CN64: 1105.73228 | CO64: 2264.65472 | CP64: 587.9736793 | CQ64: 171.6346885 | CR64: 1794.198209 | CS64: 2179.92061 | CT64: 843.607128 | CU64: 6930.349002 | CV64: 3744.3183 | CW64: 906.9022103 | CX64: 344.1797147 | CY64: 1138.891411 | CZ64: 229.4595758 | DA64: 320.2783456 | DB64: 248.5742384 | DC64: 646.1120579 | DN64: 45900
B65: Farnborough | D65: Passive | E65: TM MD | F65: CCW 375 Farn Rd & Pac Hts Rd | H65: mPVC (to 450mm) and DICL Trunk Watermains | I65: 226 | J65: 375 | K65: 490 | L65: 110740 | M65: nominal | N65: =IF(M65="",1,VLOOKUP(M65,'Unit Rates - Water'!$H$12:$I$23,2,FALSE)) -> 1 | O65: 110740 | P65: Crown Land | R65: =IF(P65="",'Unit Rates - Land'!landcst,IF($E$8="Landuse",VLOOKUP(P65,LAndcost3,2,FALSE),IF($E$8="Location",VLOOKUP(P65,Landcost2,2,FALSE),"Error"))) -> 0 | S65: 0 | T65: 2011 | U65: =IFERROR(('General Input Sheet'!$G$38/(VLOOKUP('Existing Trunk Assets - Water'!T65,'General Input Sheet'!$E$38:$G$44,3,FALSE))),1) -> 1 | V65: 110740 | W65: y | X65: y | Y65: y | Z65: y | AA65: y | AB65: y | AC65: y | AD65: y | AE65: y | AF65: y | AG65: y | AH65: y | AI65: y | AJ65: y | AK65: y | AL65: y | AM65: y | AN65: y | AO65: y | AP65: y | AQ65: y | AR65: y | BB65: 5479.33063 | BC65: 928.3702909 | BD65: 1083.843286 | BE65: 956.8209732 | BF65: 575.6795871 | BG65: 365.8833822 | BH65: 462.6229889 | BI65: 947.5 | BJ65: 246 | BK65: 71.80956371 | BL65: 750.6675466 | BM65: 912.0484283 | BN65: 352.9534753 | BO65: 2899.561519 | BP65: 1566.570638 | BQ65: 379.4352564 | BR65: 144 | BS65: 476.4963074 | BT65: 96.00269134 | BU65: 134 | BV65: 104 | BW65: 270.324288 | CF65: 19203.92085 | CH65: 31596.72853 | CI65: 5353.475824 | CJ65: 6250.015631 | CK65: 5517.537558 | CL65: 3319.674038 | CM65: 2109.877772 | CN65: 2667.729688 | CO65: 5463.78788 | CP65: 1418.566563 | CQ65: 414.0920568 | CR65: 4328.747486 | CS65: 5259.355302 | CT65: 2035.317066 | CU65: 16720.41064 | CV65: 9033.677745 | CW65: 2188.025071 | CX65: 830.3804271 | CY65: 2747.730606 | CZ65: 553.6024711 | DA65: 772.7151197 | DB65: 599.7191974 | DC65: 1558.833318 | DN65: 110740
B66: Pacific Heights | D66: Passive | E66: TM MD | F66: CCW 300 Pac Hts Rd | H66: mPVC (to 450mm) and DICL Trunk Watermains | I66: 300 | J66: 300 | K66: 380 | L66: 114000 | M66: nominal | N66: =IF(M66="",1,VLOOKUP(M66,'Unit Rates - Water'!$H$12:$I$23,2,FALSE)) -> 1 | O66: 114000 | P66: Crown Land | R66: =IF(P66="",'Unit Rates - Land'!landcst,IF($E$8="Landuse",VLOOKUP(P66,LAndcost3,2,FALSE),IF($E$8="Location",VLOOKUP(P66,Landcost2,2,FALSE),"Error"))) -> 0 | S66: 0 | T66: 2011 | U66: =IFERROR(('General Input Sheet'!$G$38/(VLOOKUP('Existing Trunk Assets - Water'!T66,'General Input Sheet'!$E$38:$G$44,3,FALSE))),1) -> 1 | V66: 114000 | W66: y | X66: y | Y66: y | Z66: y | AA66: y | AB66: y | AC66: y | AD66: y | AE66: y | AF66: y | AG66: y | AH66: y | AI66: y | AJ66: y | AK66: y | AL66: y | AM66: y | AN66: y | AO66: y | AP66: y | AQ66: y | AR66: y | BB66: 5479.33063 | BC66: 928.3702909 | BD66: 1083.843286 | BE66: 956.8209732 | BF66: 575.6795871 | BG66: 365.8833822 | BH66: 462.6229889 | BI66: 947.5 | BJ66: 246 | BK66: 71.80956371 | BL66: 750.6675466 | BM66: 912.0484283 | BN66: 352.9534753 | BO66: 2899.561519 | BP66: 1566.570638 | BQ66: 379.4352564 | BR66: 144 | BS66: 476.4963074 | BT66: 96.00269134 | BU66: 134 | BV66: 104 | BW66: 270.324288 | CF66: 19203.92085 | CH66: 32526.88327 | CI66: 5511.07318 | CJ66: 6434.005616 | CK66: 5679.964617 | CL66: 3417.399677 | CM66: 2171.989038 | CN66: 2746.263179 | CO66: 5624.632638 | CP66: 1460.326785 | CQ66: 426.282233 | CR66: 4456.178557 | CS66: 5414.181908 | CT66: 2095.23339 | CU66: 17212.63151 | CV66: 9299.614078 | CW66: 2252.436862 | CX66: 854.8254352 | CY66: 2828.61919 | CZ66: 569.8996001 | DA66: 795.4625577 | DB66: 617.3739254 | DC66: 1604.722758 | DN66: 114000
B67: Pacific Heights | D67: Passive | E67: TM MD | F67: CCW 250 Pac Hts Rd | H67: mPVC (to 450mm) and DICL Trunk Watermains | I67: 620 | J67: 250 | K67: 380 | L67: 235600 | M67: nominal | N67: =IF(M67="",1,VLOOKUP(M67,'Unit Rates - Water'!$H$12:$I$23,2,FALSE)) -> 1 | O67: 235600 | P67: Crown Land | R67: =IF(P67="",'Unit Rates - Land'!landcst,IF($E$8="Landuse",VLOOKUP(P67,LAndcost3,2,FALSE),IF($E$8="Location",VLOOKUP(P67,Landcost2,2,FALSE),"Error"))) -> 0 | S67: 0 | T67: 2011 | U67: =IFERROR(('General Input Sheet'!$G$38/(VLOOKUP('Existing Trunk Assets - Water'!T67,'General Input Sheet'!$E$38:$G$44,3,FALSE))),1) -> 1 | V67: 235600 | W67: y | X67: y | Y67: y | Z67: y | AA67: y | AB67: y | AC67: y | AD67: y | AE67: y | AF67: y | AG67: y | AH67: y | AI67: y | AJ67: y | AK67: y | AL67: y | AM67: y | AN67: y | AO67: y | AP67: y | AQ67: y | AR67: y | BB67: 5479.33063 | BC67: 928.3702909 | BD67: 1083.843286 | BE67: 956.8209732 | BF67: 575.6795871 | BG67: 365.8833822 | BH67: 462.6229889 | BI67: 947.5 | BJ67: 246 | BK67: 71.80956371 | BL67: 750.6675466 | BM67: 912.0484283 | BN67: 352.9534753 | BO67: 2899.561519 | BP67: 1566.570638 | BQ67: 379.4352564 | BR67: 144 | BS67: 476.4963074 | BT67: 96.00269134 | BU67: 134 | BV67: 104 | BW67: 270.324288 | CF67: 19203.92085 | CH67: 67222.22542 | CI67: 11389.55124 | CJ67: 13296.94494 | CK67: 11738.59354 | CL67: 7062.626 | CM67: 4488.777345 | CN67: 5675.61057 | CO67: 11624.24078 | CP67: 3018.008689 | CQ67: 880.9832815 | CR67: 9209.435685 | CS67: 11189.30928 | CT67: 4330.149005 | CU67: 35572.77179 | CV67: 19219.20243 | CW67: 4655.036182 | CX67: 1766.639233 | CY67: 5845.812992 | CZ67: 1177.792507 | DA67: 1643.955953 | DB67: 1275.906113 | DC67: 3316.427033 | DF67: =IF(BZ67="","",(BZ67/$CF67)*$V67) ->  | DN67: 235600
B68: Pacific Heights | D68: Passive | E68: TM MD | F68: CCW 200 Pac Hts Rd | H68: mPVC (to 450mm) and DICL Trunk Watermains | I68: 290 | J68: 200 | K68: 340 | L68: 98600 | M68: nominal | N68: =IF(M68="",1,VLOOKUP(M68,'Unit Rates - Water'!$H$12:$I$23,2,FALSE)) -> 1 | O68: 98600 | P68: Crown Land | R68: =IF(P68="",'Unit Rates - Land'!landcst,IF($E$8="Landuse",VLOOKUP(P68,LAndcost3,2,FALSE),IF($E$8="Location",VLOOKUP(P68,Landcost2,2,FALSE),"Error"))) -> 0 | S68: 0 | T68: 2011 | U68: =IFERROR(('General Input Sheet'!$G$38/(VLOOKUP('Existing Trunk Assets - Water'!T68,'General Input Sheet'!$E$38:$G$44,3,FALSE))),1) -> 1 | V68: 98600 | W68: y | X68: y | Y68: y | Z68: y | AA68: y | AB68: y | AC68: y | AD68: y | AE68: y | AF68: y | AG68: y | AH68: y | AI68: y | AJ68: y | AK68: y | AL68: y | AM68: y | AN68: y | AO68: y | AP68: y | AQ68: y | AR68: y | BB68: 5479.33063 | BC68: 928.3702909 | BD68: 1083.843286 | BE68: 956.8209732 | BF68: 575.6795871 | BG68: 365.8833822 | BH68: 462.6229889 | BI68: 947.5 | BJ68: 246 | BK68: 71.80956371 | BL68: 750.6675466 | BM68: 912.0484283 | BN68: 352.9534753 | BO68: 2899.561519 | BP68: 1566.570638 | BQ68: 379.4352564 | BR68: 144 | BS68: 476.4963074 | BT68: 96.00269134 | BU68: 134 | BV68: 104 | BW68: 270.324288 | CF68: 19203.92085 | CH68: 28132.90079 | CI68: 4766.594873 | CJ68: 5564.850472 | CK68: 4912.671151 | CL68: 2955.750949 | CM68: 1878.579992 | CN68: 2375.27675 | CO68: 4864.813843 | CP68: 1263.05457 | CQ68: 368.6967383 | CR68: 3854.203559 | CS68: 4682.792422 | CT68: 1812.19309 | CU68: 14887.41638 | CV68: 8043.350421 | CW68: 1948.160304 | CX68: 739.3490168 | CY68: 2446.507475 | CZ68: 492.9131629 | DA68: 688.005335 | DB68: 533.9742899 | DC68: 1387.944421 | DN68: 98600
B69: Taroomball | D69: Passive | E69: TM MD | F69: CCW 450 Tanby Rd | H69: mPVC (to 450mm) and DICL Trunk Watermains | I69: 1770 | J69: 450 | K69: 493 | L69: 872610 | M69: nominal | N69: =IF(M69="",1,VLOOKUP(M69,'Unit Rates - Water'!$H$12:$I$23,2,FALSE)) -> 1 | O69: 872610 | P69: Crown Land | R69: =IF(P69="",'Unit Rates - Land'!landcst,IF($E$8="Landuse",VLOOKUP(P69,LAndcost3,2,FALSE),IF($E$8="Location",VLOOKUP(P69,Landcost2,2,FALSE),"Error"))) -> 0 | S69: 0 | T69: 2011 | U69: =IFERROR(('General Input Sheet'!$G$38/(VLOOKUP('Existing Trunk Assets - Water'!T69,'General Input Sheet'!$E$38:$G$44,3,FALSE))),1) -> 1 | V69: 872610 | W69: y | X69: y | Y69: y | Z69: y | AA69: y | AB69: y | AC69: y | AD69: y | AE69: y | AF69: y | AG69: y | AH69: y | AI69: y | AJ69: y | AK69: y | AL69: y | AM69: y | AN69: y | AO69: y | AP69: y | AQ69: y | AR69: y | BB69: 5479.33063 | BC69: 928.3702909 | BD69: 1083.843286 | BE69: 956.8209732 | BF69: 575.6795871 | BG69: 365.8833822 | BH69: 462.6229889 | BI69: 947.5 | BJ69: 246 | BK69: 71.80956371 | BL69: 750.6675466 | BM69: 912.0484283 | BN69: 352.9534753 | BO69: 2899.561519 | BP69: 1566.570638 | BQ69: 379.4352564 | BR69: 144 | BS69: 476.4963074 | BT69: 96.00269134 | BU69: 134 | BV69: 104 | BW69: 270.324288 | CF69: 19203.92085 | CH69: 248976.172 | CI69: 42184.36463 | CJ69: 49248.92668 | CK69: 43477.13969 | CL69: 26158.3959 | CM69: 16625.43293 | CN69: 21021.19923 | CO69: 43053.60251 | CP69: 11178.03295 | CQ69: 3262.966134 | CR69: 34109.7015 | CS69: 41442.71293 | CT69: 16037.90884 | CU69: 131753.6349 | CV69: 71183.65123 | CW69: 17241.21869 | CX69: 6543.238798 | CY69: 21651.59115 | CZ69: 4362.281491 | DA69: 6088.847215 | DB69: 4725.672465 | DC69: 12283.30812 | DN69: 872610
B70: Taranganba | D70: Passive | E70: TM MD | F70: CCW 375 Taranganba Res to Lamm localbdy | H70: mPVC (to 450mm) and DICL Trunk Watermains | I70: 1850 | J70: 375 | K70: 490 | L70: 906500 | M70: nominal | N70: =IF(M70="",1,VLOOKUP(M70,'Unit Rates - Water'!$H$12:$I$23,2,FALSE)) -> 1 | O70: 906500 | P70: Crown Land | R70: =IF(P70="",'Unit Rates - Land'!landcst,IF($E$8="Landuse",VLOOKUP(P70,LAndcost3,2,FALSE),IF($E$8="Location",VLOOKUP(P70,Landcost2,2,FALSE),"Error"))) -> 0 | S70: 0 | T70: 2011 | U70: =IFERROR(('General Input Sheet'!$G$38/(VLOOKUP('Existing Trunk Assets - Water'!T70,'General Input Sheet'!$E$38:$G$44,3,FALSE))),1) -> 1 | V70: 906500 | W70: y | X70: y | Y70: y | Z70: y | AA70: y | AB70: y | AC70: y | AD70: y | AE70: y | AF70: y | AG70: y | AH70: y | AI70: y | AJ70: y | AK70: y | AL70: y | AM70: y | AN70: y | AO70: y | AP70: y | AQ70: y | AR70: y | BB70: 5479.33063 | BC70: 928.3702909 | BD70: 1083.843286 | BE70: 956.8209732 | BF70: 575.6795871 | BG70: 365.8833822 | BH70: 462.6229889 | BI70: 947.5 | BJ70: 246 | BK70: 71.80956371 | BL70: 750.6675466 | BM70: 912.0484283 | BN70: 352.9534753 | BO70: 2899.561519 | BP70: 1566.570638 | BQ70: 379.4352564 | BR70: 144 | BS70: 476.4963074 | BT70: 96.00269134 | BU70: 134 | BV70: 104 | BW70: 270.324288 | CF70: 19203.92085 | CH70: 258645.7867 | CI70: 43822.70033 | CJ70: 51161.63238 | CK70: 45165.68355 | CL70: 27174.32287 | CM70: 17271.12336 | CN70: 21837.61028 | CO70: 44725.69725 | CP70: 11612.15992 | CQ70: 3389.691616 | CR70: 35434.43739 | CS70: 43052.24473 | CT70: 16660.7813 | CU70: 136870.6181 | CV70: 73948.24703 | CW70: 17910.8247 | CX70: 6797.361904 | CY70: 22492.48505 | CZ70: 4531.701644 | DA70: 6325.322882 | DB70: 4909.205819 | DC70: 12760.36123 | DN70: 906500
B71: Taroomball | D71: Passive | E71: TM MD | F71: CCW 375 Carige Blv | H71: mPVC (to 450mm) and DICL Trunk Watermains | I71: 810 | J71: 375 | K71: 490 | L71: 396900 | M71: nominal | N71: =IF(M71="",1,VLOOKUP(M71,'Unit Rates - Water'!$H$12:$I$23,2,FALSE)) -> 1 | O71: 396900 | P71: Crown Land | R71: =IF(P71="",'Unit Rates - Land'!landcst,IF($E$8="Landuse",VLOOKUP(P71,LAndcost3,2,FALSE),IF($E$8="Location",VLOOKUP(P71,Landcost2,2,FALSE),"Error"))) -> 0 | S71: 0 | T71: 2011 | U71: =IFERROR(('General Input Sheet'!$G$38/(VLOOKUP('Existing Trunk Assets - Water'!T71,'General Input Sheet'!$E$38:$G$44,3,FALSE))),1) -> 1 | V71: 396900 | W71: y | X71: y | Y71: y | Z71: y | AA71: y | AB71: y | AC71: y | AD71: y | AE71: y | AF71: y | AG71: y | AH71: y | AI71: y | AJ71: y | AK71: y | AL71: y | AM71: y | AN71: y | AO71: y | AP71: y | AQ71: y | AR71: y | BB71: 5479.33063 | BC71: 928.3702909 | BD71: 1083.843286 | BE71: 956.8209732 | BF71: 575.6795871 | BG71: 365.8833822 | BH71: 462.6229889 | BI71: 947.5 | BJ71: 246 | BK71: 71.80956371 | BL71: 750.6675466 | BM71: 912.0484283 | BN71: 352.9534753 | BO71: 2899.561519 | BP71: 1566.570638 | BQ71: 379.4352564 | BR71: 144 | BS71: 476.4963074 | BT71: 96.00269134 | BU71: 134 | BV71: 104 | BW71: 270.324288 | CF71: 19203.92085 | CH71: 113244.912 | CI71: 19187.23636 | CJ71: 22400.4985 | CK71: 19775.24523 | CL71: 11897.94677 | CM71: 7561.951308 | CN71: 9561.332068 | CO71: 19582.60258 | CP71: 5084.242991 | CQ71: 1484.135248 | CR71: 15514.53745 | CS71: 18849.90175 | CT71: 7294.720459 | CU71: 59927.13549 | CV71: 32377.34059 | CW71: 7842.03676 | CX71: 2976.142239 | CY71: 9848.061022 | CZ71: 1984.15045 | DA71: 2769.465694 | DB71: 2149.436061 | DC71: 5586.968971 | DN71: 396900
B72: Taranganba | D72: Passive | E72: TM MD | F72: CCW 375 Tarang Res to Taranganba Rd local bdy | H72: mPVC (to 450mm) and DICL Trunk Watermains | I72: 1185 | J72: 375 | K72: 490 | L72: 580650 | M72: nominal | N72: =IF(M72="",1,VLOOKUP(M72,'Unit Rates - Water'!$H$12:$I$23,2,FALSE)) -> 1 | O72: 580650 | P72: Crown Land | R72: =IF(P72="",'Unit Rates - Land'!landcst,IF($E$8="Landuse",VLOOKUP(P72,LAndcost3,2,FALSE),IF($E$8="Location",VLOOKUP(P72,Landcost2,2,FALSE),"Error"))) -> 0 | S72: 0 | T72: 2011 | U72: =IFERROR(('General Input Sheet'!$G$38/(VLOOKUP('Existing Trunk Assets - Water'!T72,'General Input Sheet'!$E$38:$G$44,3,FALSE))),1) -> 1 | V72: 580650 | W72: y | X72: y | Y72: y | Z72: y | AA72: y | AB72: y | AC72: y | AD72: y | AE72: y | AF72: y | AG72: y | AH72: y | AI72: y | AJ72: y | AK72: y | AL72: y | AM72: y | AN72: y | AO72: y | AP72: y | AQ72: y | AR72: y | BB72: 5479.33063 | BC72: 928.3702909 | BD72: 1083.843286 | BE72: 956.8209732 | BF72: 575.6795871 | BG72: 365.8833822 | BH72: 462.6229889 | BI72: 947.5 | BJ72: 246 | BK72: 71.80956371 | BL72: 750.6675466 | BM72: 912.0484283 | BN72: 352.9534753 | BO72: 2899.561519 | BP72: 1566.570638 | BQ72: 379.4352564 | BR72: 144 | BS72: 476.4963074 | BT72: 96.00269134 | BU72: 134 | BV72: 104 | BW72: 270.324288 | CF72: 19203.92085 | CH72: 165673.112 | CI72: 28070.21616 | CJ72: 32771.09966 | CK72: 28930.45136 | CL72: 17406.25546 | CM72: 11062.85469 | CN72: 13987.87469 | CO72: 28648.62229 | CP72: 7438.059191 | CQ72: 2171.2349 | CR72: 22697.19368 | CS72: 27576.70811 | CT72: 10671.90586 | CU72: 87671.1797 | CV72: 47366.85012 | CW72: 11472.60933 | CX72: 4353.985868 | CY72: 14407.34853 | CZ72: 2902.738621 | DA72: 4051.625738 | DB72: 3144.545349 | DC72: 8173.52868 | DN72: 580650
B73: Taroomball | D73: Passive | E73: TM MD | F73: CCW 375 Taranganba localbdy to Tanby Rd | H73: mPVC (to 450mm) and DICL Trunk Watermains | I73: 585 | J73: 375 | K73: 490 | L73: 286650 | M73: nominal | N73: =IF(M73="",1,VLOOKUP(M73,'Unit Rates - Water'!$H$12:$I$23,2,FALSE)) -> 1 | O73: 286650 | P73: Crown Land | R73: =IF(P73="",'Unit Rates - Land'!landcst,IF($E$8="Landuse",VLOOKUP(P73,LAndcost3,2,FALSE),IF($E$8="Location",VLOOKUP(P73,Landcost2,2,FALSE),"Error"))) -> 0 | S73: 0 | T73: 2011 | U73: =IFERROR(('General Input Sheet'!$G$38/(VLOOKUP('Existing Trunk Assets - Water'!T73,'General Input Sheet'!$E$38:$G$44,3,FALSE))),1) -> 1 | V73: 286650 | W73: y | X73: y | Y73: y | Z73: y | AA73: y | AB73: y | AC73: y | AD73: y | AE73: y | AF73: y | AG73: y | AH73: y | AI73: y | AJ73: y | AK73: y | AL73: y | AM73: y | AN73: y | AO73: y | AP73: y | AQ73: y | AR73: y | BB73: 5479.33063 | BC73: 928.3702909 | BD73: 1083.843286 | BE73: 956.8209732 | BF73: 575.6795871 | BG73: 365.8833822 | BH73: 462.6229889 | BI73: 947.5 | BJ73: 246 | BK73: 71.80956371 | BL73: 750.6675466 | BM73: 912.0484283 | BN73: 352.9534753 | BO73: 2899.561519 | BP73: 1566.570638 | BQ73: 379.4352564 | BR73: 144 | BS73: 476.4963074 | BT73: 96.00269134 | BU73: 134 | BV73: 104 | BW73: 270.324288 | CF73: 19203.92085 | CH73: 81787.992 | CI73: 13857.44848 | CJ73: 16178.13781 | CK73: 14282.12156 | CL73: 8592.961557 | CM73: 5461.409278 | CN73: 6905.406494 | CO73: 14142.99075 | CP73: 3671.953272 | CQ73: 1071.875457 | CR73: 11204.94371 | CS73: 13613.81793 | CT73: 5268.409221 | CU73: 43280.70897 | CV73: 23383.63487 | CW73: 5663.693215 | CX73: 2149.436061 | CY73: 7112.488516 | CZ73: 1432.997547 | DA73: 2000.169668 | DB73: 1552.370489 | DC73: 4035.033146 | DN73: 286650
B74: Lammermoor | D74: Passive | E74: TM MD | F74: CCW 375 Scenic Hwy Tarang localbdy to Rosslocalbdy on Buccaneer | H74: mPVC (to 450mm) and DICL Trunk Watermains | I74: 2354 | J74: 375 | K74: 490 | L74: 1153460 | M74: nominal | N74: =IF(M74="",1,VLOOKUP(M74,'Unit Rates - Water'!$H$12:$I$23,2,FALSE)) -> 1 | O74: 1153460 | P74: Crown Land | R74: =IF(P74="",'Unit Rates - Land'!landcst,IF($E$8="Landuse",VLOOKUP(P74,LAndcost3,2,FALSE),IF($E$8="Location",VLOOKUP(P74,Landcost2,2,FALSE),"Error"))) -> 0 | S74: 0 | T74: 2011 | U74: =IFERROR(('General Input Sheet'!$G$38/(VLOOKUP('Existing Trunk Assets - Water'!T74,'General Input Sheet'!$E$38:$G$44,3,FALSE))),1) -> 1 | V74: 1153460 | W74: y | X74: y | Y74: y | Z74: y | AA74: y | AB74: y | AC74: y | AD74: y | AE74: y | AF74: y | AG74: y | AH74: y | AI74: y | AJ74: y | AK74: y | AL74: y | AM74: y | AN74: y | AO74: y | AP74: y | AQ74: y | AR74: y | BB74: 5479.33063 | BC74: 928.3702909 | BD74: 1083.843286 | BE74: 956.8209732 | BF74: 575.6795871 | BG74: 365.8833822 | BH74: 462.6229889 | BI74: 947.5 | BJ74: 246 | BK74: 71.80956371 | BL74: 750.6675466 | BM74: 912.0484283 | BN74: 352.9534753 | BO74: 2899.561519 | BP74: 1566.570638 | BQ74: 379.4352564 | BR74: 144 | BS74: 476.4963074 | BT74: 96.00269134 | BU74: 134 | BV74: 104 | BW74: 270.324288 | CF74: 19203.92085 | CH74: 329109.2875 | CI74: 55761.42518 | CJ74: 65099.72034 | CK74: 57470.28059 | CL74: 34577.48975 | CM74: 21976.33751 | CN74: 27786.88357 | CO74: 56910.42774 | CP74: 14775.68889 | CQ74: 4313.153548 | CR74: 45087.92736 | CS74: 54781.07248 | CT74: 21199.71847 | CU74: 174158.6135 | CV74: 94094.14784 | CW74: 22790.31424 | CX74: 8649.183741 | CY74: 28620.16746 | CZ74: 5766.284146 | DA74: 8048.545981 | DB74: 6246.632702 | DC74: 16236.69748 | DN74: 1153460
B75: Lammermoor | D75: Passive | E75: TM MD | F75: CCW 375 Buccaneer St to Lamm localbdy | H75: mPVC (to 450mm) and DICL Trunk Watermains | I75: 110 | J75: 375 | K75: 490 | L75: 53900 | M75: nominal | N75: =IF(M75="",1,VLOOKUP(M75,'Unit Rates - Water'!$H$12:$I$23,2,FALSE)) -> 1 | O75: 53900 | P75: Crown Land | R75: =IF(P75="",'Unit Rates - Land'!landcst,IF($E$8="Landuse",VLOOKUP(P75,LAndcost3,2,FALSE),IF($E$8="Location",VLOOKUP(P75,Landcost2,2,FALSE),"Error"))) -> 0 | S75: 0 | T75: 2011 | U75: =IFERROR(('General Input Sheet'!$G$38/(VLOOKUP('Existing Trunk Assets - Water'!T75,'General Input Sheet'!$E$38:$G$44,3,FALSE))),1) -> 1 | V75: 53900 | W75: y | X75: y | Y75: y | Z75: y | AA75: y | AB75: y | AC75: y | AD75: y | AE75: y | AF75: y | AG75: y | AH75: y | AI75: y | AJ75: y | AK75: y | AL75: y | AM75: y | AN75: y | AO75: y | AP75: y | AQ75: y | AR75: y | BB75: 5479.33063 | BC75: 928.3702909 | BD75: 1083.843286 | BE75: 956.8209732 | BF75: 575.6795871 | BG75: 365.8833822 | BH75: 462.6229889 | BI75: 947.5 | BJ75: 246 | BK75: 71.80956371 | BL75: 750.6675466 | BM75: 912.0484283 | BN75: 352.9534753 | BO75: 2899.561519 | BP75: 1566.570638 | BQ75: 379.4352564 | BR75: 144 | BS75: 476.4963074 | BT75: 96.00269134 | BU75: 134 | BV75: 104 | BW75: 270.324288 | CF75: 19203.92085 | CH75: 15378.93867 | CI75: 2605.674074 | CJ75: 3042.043006 | CK75: 2685.52713 | CL75: 1615.770549 | CM75: 1026.931659 | CN75: 1298.452503 | CO75: 2659.365782 | CP75: 690.4527519 | CQ75: 201.5492312 | CR75: 2106.912493 | CS75: 2559.8632 | CT75: 990.6410501 | CU75: 8138.252968 | CV75: 4396.922796 | CW75: 1064.967955 | CX75: 404.1674645 | CY75: 1337.391003 | CZ75: 269.4525302 | DA75: 376.1002795 | DB75: 291.8987244 | DC75: 758.7241813 | DN75: 53900
B76: Lammermoor | D76: Passive | E76: TM MD | F76: CCW 375 Buccaneer localbdy to Lam Res | H76: mPVC (to 450mm) and DICL Trunk Watermains | I76: 345 | J76: 375 | K76: 490 | L76: 169050 | M76: nominal | N76: =IF(M76="",1,VLOOKUP(M76,'Unit Rates - Water'!$H$12:$I$23,2,FALSE)) -> 1 | O76: 169050 | P76: Crown Land | R76: =IF(P76="",'Unit Rates - Land'!landcst,IF($E$8="Landuse",VLOOKUP(P76,LAndcost3,2,FALSE),IF($E$8="Location",VLOOKUP(P76,Landcost2,2,FALSE),"Error"))) -> 0 | S76: 0 | T76: 2011 | U76: =IFERROR(('General Input Sheet'!$G$38/(VLOOKUP('Existing Trunk Assets - Water'!T76,'General Input Sheet'!$E$38:$G$44,3,FALSE))),1) -> 1 | V76: 169050 | W76: y | X76: y | Y76: y | Z76: y | AA76: y | AB76: y | AC76: y | AD76: y | AE76: y | AF76: y | AG76: y | AH76: y | AI76: y | AJ76: y | AK76: y | AL76: y | AM76: y | AN76: y | AO76: y | AP76: y | AQ76: y | AR76: y | BB76: 5479.33063 | BC76: 928.3702909 | BD76: 1083.843286 | BE76: 956.8209732 | BF76: 575.6795871 | BG76: 365.8833822 | BH76: 462.6229889 | BI76: 947.5 | BJ76: 246 | BK76: 71.80956371 | BL76: 750.6675466 | BM76: 912.0484283 | BN76: 352.9534753 | BO76: 2899.561519 | BP76: 1566.570638 | BQ76: 379.4352564 | BR76: 144 | BS76: 476.4963074 | BT76: 96.00269134 | BU76: 134 | BV76: 104 | BW76: 270.324288 | CF76: 19203.92085 | CH76: 48233.944 | CI76: 8172.341413 | CJ76: 9540.953065 | CK76: 8422.789635 | CL76: 5067.643995 | CM76: 3220.831113 | CN76: 4072.419214 | CO76: 8340.738135 | CP76: 2165.510904 | CQ76: 632.1316797 | CR76: 6608.043729 | CS76: 8028.661855 | CT76: 3107.010566 | CU76: 25524.52067 | CV76: 13790.34877 | CW76: 3340.126768 | CX76: 1267.616139 | CY76: 4194.544509 | CZ76: 845.1011175 | DA76: 1179.58724 | DB76: 915.5005447 | DC76: 2379.634932 | DN76: 169050
B77: Rosslyn | D77: Passive | E77: TM MD | F77: CCW 375 Buccaneer to Kemp bch | H77: mPVC (to 450mm) and DICL Trunk Watermains | I77: 400 | J77: 375 | K77: 490 | L77: 196000 | M77: nominal | N77: =IF(M77="",1,VLOOKUP(M77,'Unit Rates - Water'!$H$12:$I$23,2,FALSE)) -> 1 | O77: 196000 | P77: Crown Land | R77: =IF(P77="",'Unit Rates - Land'!landcst,IF($E$8="Landuse",VLOOKUP(P77,LAndcost3,2,FALSE),IF($E$8="Location",VLOOKUP(P77,Landcost2,2,FALSE),"Error"))) -> 0 | S77: 0 | T77: 2011 | U77: =IFERROR(('General Input Sheet'!$G$38/(VLOOKUP('Existing Trunk Assets - Water'!T77,'General Input Sheet'!$E$38:$G$44,3,FALSE))),1) -> 1 | V77: 196000 | W77: y | X77: y | Y77: y | Z77: y | AA77: y | AB77: y | AC77: y | AD77: y | AE77: y | AF77: y | AG77: y | AH77: y | AI77: y | AJ77: y | AK77: y | AL77: y | AM77: y | AN77: y | AO77: y | AP77: y | AQ77: y | AR77: y | BB77: 5479.33063 | BC77: 928.3702909 | BD77: 1083.843286 | BE77: 956.8209732 | BF77: 575.6795871 | BG77: 365.8833822 | BH77: 462.6229889 | BI77: 947.5 | BJ77: 246 | BK77: 71.80956371 | BL77: 750.6675466 | BM77: 912.0484283 | BN77: 352.9534753 | BO77: 2899.561519 | BP77: 1566.570638 | BQ77: 379.4352564 | BR77: 144 | BS77: 476.4963074 | BT77: 96.00269134 | BU77: 134 | BV77: 104 | BW77: 270.324288 | CF77: 19203.92085 | CH77: 55923.41334 | CI77: 9475.17845 | CJ77: 11061.97457 | CK77: 9765.553201 | CL77: 5875.52927 | CM77: 3734.296942 | CN77: 4721.645466 | CO77: 9670.421026 | CP77: 2510.73728 | CQ77: 732.9062953 | CR77: 7661.499976 | CS77: 9308.593455 | CT77: 3602.331091 | CU77: 29593.64716 | CV77: 15988.81017 | CW77: 3872.610746 | CX77: 1469.699871 | CY77: 4863.240011 | CZ77: 979.8273826 | DA77: 1367.63738 | DB77: 1061.449907 | DC77: 2758.997023 | DN77: 196000
B78: Rosslyn | D78: Passive | E78: TM MD | F78: CCW 200 Breakwater Dve | H78: mPVC (to 450mm) and DICL Trunk Watermains | I78: 540 | J78: 200 | K78: 340 | L78: 183600 | M78: nominal | N78: =IF(M78="",1,VLOOKUP(M78,'Unit Rates - Water'!$H$12:$I$23,2,FALSE)) -> 1 | O78: 183600 | P78: Crown Land | R78: =IF(P78="",'Unit Rates - Land'!landcst,IF($E$8="Landuse",VLOOKUP(P78,LAndcost3,2,FALSE),IF($E$8="Location",VLOOKUP(P78,Landcost2,2,FALSE),"Error"))) -> 0 | S78: 0 | T78: 2011 | U78: =IFERROR(('General Input Sheet'!$G$38/(VLOOKUP('Existing Trunk Assets - Water'!T78,'General Input Sheet'!$E$38:$G$44,3,FALSE))),1) -> 1 | V78: 183600 | W78: y | X78: y | Y78: y | Z78: y | AA78: y | AB78: y | AC78: y | AD78: y | AE78: y | AF78: y | AG78: y | AH78: y | AI78: y | AJ78: y | AK78: y | AL78: y | AM78: y | AN78: y | AO78: y | AP78: y | AQ78: y | AR78: y | BB78: 5479.33063 | BC78: 928.3702909 | BD78: 1083.843286 | BE78: 956.8209732 | BF78: 575.6795871 | BG78: 365.8833822 | BH78: 462.6229889 | BI78: 947.5 | BJ78: 246 | BK78: 71.80956371 | BL78: 750.6675466 | BM78: 912.0484283 | BN78: 352.9534753 | BO78: 2899.561519 | BP78: 1566.570638 | BQ78: 379.4352564 | BR78: 144 | BS78: 476.4963074 | BT78: 96.00269134 | BU78: 134 | BV78: 104 | BW78: 270.324288 | CF78: 19203.92085 | CH78: 52385.40147 | CI78: 8875.728385 | CJ78: 10362.13536 | CK78: 9147.732488 | CL78: 5503.812112 | CM78: 3498.045503 | CN78: 4422.92912 | CO78: 9058.61888 | CP78: 2351.894717 | CQ78: 686.5387541 | CR78: 7176.792834 | CS78: 8719.682441 | CT78: 3374.428512 | CU78: 27721.39601 | CV78: 14977.2732 | CW78: 3627.608841 | CX78: 1376.718859 | CY78: 4555.565643 | CZ78: 917.8383033 | DA78: 1281.113382 | DB78: 994.2969536 | DC78: 2584.448232 | DN78: 183600
B79: Rosslyn | D79: Passive | E79: TM MD | F79: CCW 375 Scenic Hwy at Kemp | H79: mPVC (to 450mm) and DICL Trunk Watermains | I79: 1835 | J79: 450 | K79: =IF(H79=TYPE1,VLOOKUP(J79,WaterUnitrates1,2,FALSE),IF(H79=TYPE2,VLOOKUP(J79,Unitrates2,2,FALSE),0)) -> 493 | L79: 904655 | M79: nominal | N79: =IF(M79="",1,VLOOKUP(M79,'Unit Rates - Water'!$H$12:$I$23,2,FALSE)) -> 1 | O79: 904655 | P79: Crown Land | R79: =IF(P79="",'Unit Rates - Land'!landcst,IF($E$8="Landuse",VLOOKUP(P79,LAndcost3,2,FALSE),IF($E$8="Location",VLOOKUP(P79,Landcost2,2,FALSE),"Error"))) -> 0 | S79: 0 | T79: 2011 | U79: =IFERROR(('General Input Sheet'!$G$38/(VLOOKUP('Existing Trunk Assets - Water'!T79,'General Input Sheet'!$E$38:$G$44,3,FALSE))),1) -> 1 | V79: 904655 | W79: y | X79: y | Y79: y | Z79: y | AA79: y | AB79: y | AC79: y | AD79: y | AE79: y | AF79: y | AG79: y | AH79: y | AI79: y | AJ79: y | AK79: y | AL79: y | AM79: y | AN79: y | AO79: y | AP79: y | AQ79: y | AR79: y | BB79: 5479.33063 | BC79: 928.3702909 | BD79: 1083.843286 | BE79: 956.8209732 | BF79: 575.6795871 | BG79: 365.8833822 | BH79: 462.6229889 | BI79: 947.5 | BJ79: 246 | BK79: 71.80956371 | BL79: 750.6675466 | BM79: 912.0484283 | BN79: 352.9534753 | BO79: 2899.561519 | BP79: 1566.570638 | BQ79: 379.4352564 | BR79: 144 | BS79: 476.4963074 | BT79: 96.00269134 | BU79: 134 | BV79: 104 | BW79: 270.324288 | CF79: 19203.92085 | CH79: 258119.3648 | CI79: 43733.50796 | CJ79: 51057.50308 | CK79: 45073.75781 | CL79: 27119.01496 | CM79: 17235.97143 | CN79: 21793.16418 | CO79: 44634.66701 | CP79: 11588.52568 | CQ79: 3382.792574 | CR79: 35362.31766 | CS79: 42964.62047 | CT79: 16626.8716 | CU79: 136592.0452 | CV79: 73797.74012 | CW79: 17874.37079 | CX79: 6783.527229 | CY79: 22446.70608 | CZ79: 4522.478269 | DA79: 6312.448949 | DB79: 4899.21411 | DC79: 12734.39006 | DN79: 904655
B80: Mulambin | D80: Passive | E80: TM MD | F80: CCW 375 Scenic H - Mul & Caus | H80: mPVC (to 450mm) and DICL Trunk Watermains | I80: 1975 | J80: 450 | K80: 493 | L80: =K80*I80 -> 973675 | M80: nominal | N80: =IF(M80="",1,VLOOKUP(M80,'Unit Rates - Water'!$H$12:$I$23,2,FALSE)) -> 1 | O80: =L80*N80 -> 973675 | P80: Crown Land | R80: =IF(P80="",'Unit Rates - Land'!landcst,IF($E$8="Landuse",VLOOKUP(P80,LAndcost3,2,FALSE),IF($E$8="Location",VLOOKUP(P80,Landcost2,2,FALSE),"Error"))) -> 0 | S80: =IF(R80="",0,R80*10000*Q80) -> 0 | T80: 2011 | U80: =IFERROR(('General Input Sheet'!$G$38/(VLOOKUP('Existing Trunk Assets - Water'!T80,'General Input Sheet'!$E$38:$G$44,3,FALSE))),1) -> 1 | V80: =IFERROR((O80+S80)*U80,0) -> 973675 | W80: y | X80: y | Y80: y | Z80: y | AA80: y | AB80: y | AC80: y | AD80: y | AE80: y | AF80: y | AG80: y | AH80: y | AI80: y | AJ80: y | AK80: y | AL80: y | AM80: y | AN80: y | AO80: y | AP80: y | AQ80: y | AR80: y | BB80: 5479.33063 | BC80: 928.3702909 | BD80: 1083.843286 | BE80: 956.8209732 | BF80: 575.6795871 | BG80: 365.8833822 | BH80: 462.6229889 | BI80: 947.5 | BJ80: 246 | BK80: 71.80956371 | BL80: 750.6675466 | BM80: 912.0484283 | BN80: 352.9534753 | BO80: 2899.561519 | BP80: 1566.570638 | BQ80: 379.4352564 | BR80: 144 | BS80: 476.4963074 | BT80: 96.00269134 | BU80: 134 | BV80: 104 | BW80: 270.324288 | CF80: 19203.92085 | CH80: 277812.3953 | CI80: 47070.12437 | CJ80: 54952.89841 | CK80: 48512.62762 | CL80: 29188.04062 | CM80: 18550.97743 | CN80: 23455.8579 | CO80: 48040.0367 | CP80: 12472.66388 | CQ80: 3640.880291 | CR80: 38060.26015 | CS80: 46242.57516 | CT80: 17895.40676 | CU80: 147013.2367 | CV80: 79428.08541 | CW80: 19238.083 | CX80: 7301.07154 | CY80: 24159.26131 | CZ80: 4867.517483 | DA80: 6794.052683 | DB80: 5272.996113 | DC80: 13705.95115 | DN80: =SUM(CH80:DK80) -> 973675
B81: Mulambin | D81: Passive | E81: TM MD | F81: CCW 375 Scenic H - Mul & Caus | H81: mPVC (to 450mm) and DICL Trunk Watermains | I81: 556 | J81: 375 | K81: 490 | L81: 272440 | M81: nominal | N81: =IF(M81="",1,VLOOKUP(M81,'Unit Rates - Water'!$H$12:$I$23,2,FALSE)) -> 1 | O81: 272440 | P81: Crown Land | R81: =IF(P81="",'Unit Rates - Land'!landcst,IF($E$8="Landuse",VLOOKUP(P81,LAndcost3,2,FALSE),IF($E$8="Location",VLOOKUP(P81,Landcost2,2,FALSE),"Error"))) -> 0 | S81: 0 | T81: 2011 | U81: =IFERROR(('General Input Sheet'!$G$38/(VLOOKUP('Existing Trunk Assets - Water'!T81,'General Input Sheet'!$E$38:$G$44,3,FALSE))),1) -> 1 | V81: 272440 | W81: y | X81: y | Y81: y | Z81: y | AA81: y | AB81: y | AC81: y | AD81: y | AE81: y | AF81: y | AG81: y | AH81: y | AI81: y | AJ81: y | AK81: y | AL81: y | AM81: y | AN81: y | AO81: y | AP81: y | AQ81: y | AR81: y | BB81: 5479.33063 | BC81: 928.3702909 | BD81: 1083.843286 | BE81: 956.8209732 | BF81: 575.6795871 | BG81: 365.8833822 | BH81: 462.6229889 | BI81: 947.5 | BJ81: 246 | BK81: 71.80956371 | BL81: 750.6675466 | BM81: 912.0484283 | BN81: 352.9534753 | BO81: 2899.561519 | BP81: 1566.570638 | BQ81: 379.4352564 | BR81: 144 | BS81: 476.4963074 | BT81: 96.00269134 | BU81: 134 | BV81: 104 | BW81: 270.324288 | CF81: 19203.92085 | CH81: =IF(BB81="","",(BB81/$CF81)*$V81) -> 77733.54454 | CI81: 13170.49805 | CJ81: 15376.14465 | CK81: 13574.11895 | CL81: 8166.985685 | CM81: 5190.67275 | CN81: 6563.087197 | CO81: 13441.88523 | CP81: 3489.924819 | CQ81: 1018.73975 | CR81: 10649.48497 | CS81: 12938.9449 | CT81: 5007.240217 | CU81: 41135.16955 | CV81: 22224.44613 | CW81: 5382.928936 | CX81: 2042.882821 | CY81: 6759.903615 | CZ81: 1361.960062 | DA81: 1901.015958 | DB81: 1475.415371 | DC81: 3835.005862 | DN81: 272440
B82: Kinka Beach | D82: Passive | E82: TM MD | F82: CCW 450 Scenic H - Caus to Kinka PS | H82: mPVC (to 450mm) and DICL Trunk Watermains | I82: 1920 | J82: 450 | K82: 493 | L82: 946560 | M82: nominal | N82: =IF(M82="",1,VLOOKUP(M82,'Unit Rates - Water'!$H$12:$I$23,2,FALSE)) -> 1 | O82: 946560 | P82: Crown Land | R82: =IF(P82="",'Unit Rates - Land'!landcst,IF($E$8="Landuse",VLOOKUP(P82,LAndcost3,2,FALSE),IF($E$8="Location",VLOOKUP(P82,Landcost2,2,FALSE),"Error"))) -> 0 | S82: 0 | T82: 2011 | U82: =IFERROR(('General Input Sheet'!$G$38/(VLOOKUP('Existing Trunk Assets - Water'!T82,'General Input Sheet'!$E$38:$G$44,3,FALSE))),1) -> 1 | V82: 946560 | W82: y | X82: y | Y82: y | Z82: y | AA82: y | AB82: y | AC82: y | AD82: y | AE82: y | AF82: y | AG82: y | AH82: y | AI82: y | AJ82: y | AK82: y | AL82: y | AM82: y | AN82: y | AO82: y | AP82: y | AQ82: y | AR82: y | BB82: 5479.33063 | BC82: 928.3702909 | BD82: 1083.843286 | BE82: 956.8209732 | BF82: 575.6795871 | BG82: 365.8833822 | BH82: 462.6229889 | BI82: 947.5 | BJ82: 246 | BK82: 71.80956371 | BL82: 750.6675466 | BM82: 912.0484283 | BN82: 352.9534753 | BO82: 2899.561519 | BP82: 1566.570638 | BQ82: 379.4352564 | BR82: 144 | BS82: 476.4963074 | BT82: 96.00269134 | BU82: 134 | BV82: 104 | BW82: 270.324288 | CF82: =SUM(BB82:CE82) -> 19203.92085 | CH82: 270075.8476 | CI82: 45759.31078 | CJ82: 53422.56453 | CK82: 47161.64305 | CL82: 28375.20911 | CM82: 18034.36793 | CN82: 22802.6568 | CO82: 46702.21289 | CP82: 12125.32387 | CQ82: 3539.488688 | CR82: 37000.35417 | CS82: 44954.80725 | CT82: 17397.05366 | CU82: 142919.1972 | CV82: 77216.16405 | CW82: 18702.33891 | CX82: 7097.750561 | CY82: 23486.47176 | CZ82: 4731.966363 | DA82: 6604.851216 | DB82: 5126.153183 | DC82: 13324.26644 | DL82: =IF(SUM(CH82:DK82)=V82,"","ERROR") ->  | DN82: 946560
B83: Kinka Beach | D83: Passive | E83: TM MD | F83: CCW 450 Scenic H - Kinka PS to Sunflower | H83: mPVC (to 450mm) and DICL Trunk Watermains | I83: 560 | J83: 450 | K83: 493 | L83: 276080 | M83: nominal | N83: =IF(M83="",1,VLOOKUP(M83,'Unit Rates - Water'!$H$12:$I$23,2,FALSE)) -> 1 | O83: 276080 | P83: Crown Land | R83: =IF(P83="",'Unit Rates - Land'!landcst,IF($E$8="Landuse",VLOOKUP(P83,LAndcost3,2,FALSE),IF($E$8="Location",VLOOKUP(P83,Landcost2,2,FALSE),"Error"))) -> 0 | S83: 0 | T83: 2011 | U83: =IFERROR(('General Input Sheet'!$G$38/(VLOOKUP('Existing Trunk Assets - Water'!T83,'General Input Sheet'!$E$38:$G$44,3,FALSE))),1) -> 1 | V83: 276080 | W83: y | X83: y | Y83: y | Z83: y | AA83: y | AB83: y | AC83: y | AD83: y | AE83: y | AF83: y | AG83: y | AH83: y | AI83: y | AJ83: y | AK83: y | AL83: y | AM83: y | AN83: y | AO83: y | AP83: y | AQ83: y | AR83: y | BB83: 5479.33063 | BC83: 928.3702909 | BD83: 1083.843286 | BE83: 956.8209732 | BF83: 575.6795871 | BG83: 365.8833822 | BH83: 462.6229889 | BI83: 947.5 | BJ83: 246 | BK83: 71.80956371 | BL83: 750.6675466 | BM83: 912.0484283 | BN83: 352.9534753 | BO83: 2899.561519 | BP83: 1566.570638 | BQ83: 379.4352564 | BR83: 144 | BS83: 476.4963074 | BT83: 96.00269134 | BU83: 134 | BV83: 104 | BW83: 270.324288 | CF83: 19203.92085 | CH83: 78772.12221 | CI83: 13346.46565 | CJ83: 15581.58132 | CK83: 13755.47922 | CL83: 8276.102657 | CM83: 5260.023979 | CN83: 6650.774899 | CO83: 13621.47876 | CP83: 3536.552797 | CQ83: 1032.350867 | CR83: 10791.76997 | CS83: 13111.81878 | CT83: 5074.140651 | CU83: 41684.76585 | CV83: 22521.38118 | CW83: 5454.84885 | CX83: 2070.177247 | CY83: 6850.220929 | CZ83: 1380.156856 | DA83: 1926.414938 | DB83: 1495.128012 | DC83: 3886.244378 | DN83: 276080
B84: Kinka Beach | D84: Passive | E84: TM MD | F84: CCW 375 Scenic H - Sunflower to EP localbdy | H84: mPVC (to 450mm) and DICL Trunk Watermains | I84: 1265 | J84: 375 | K84: 490 | L84: 619850 | M84: nominal | N84: =IF(M84="",1,VLOOKUP(M84,'Unit Rates - Water'!$H$12:$I$23,2,FALSE)) -> 1 | O84: 619850 | P84: Crown Land | R84: =IF(P84="",'Unit Rates - Land'!landcst,IF($E$8="Landuse",VLOOKUP(P84,LAndcost3,2,FALSE),IF($E$8="Location",VLOOKUP(P84,Landcost2,2,FALSE),"Error"))) -> 0 | S84: 0 | T84: 2011 | U84: =IFERROR(('General Input Sheet'!$G$38/(VLOOKUP('Existing Trunk Assets - Water'!T84,'General Input Sheet'!$E$38:$G$44,3,FALSE))),1) -> 1 | V84: 619850 | W84: y | X84: y | Y84: y | Z84: y | AA84: y | AB84: y | AC84: y | AD84: y | AE84: y | AF84: y | AG84: y | AH84: y | AI84: y | AJ84: y | AK84: y | AL84: y | AM84: y | AN84: y | AO84: y | AP84: y | AQ84: y | AR84: y | BB84: =IF(W84="y",BB$14,IF(AND(W84>0,W84<=1),W84*BB$14,"")) -> 5479.33063 | BC84: =IF(X84="y",BC$14,IF(AND(X84>0,X84<=1),X84*BC$14,"")) -> 928.3702909 | BD84: =IF(Y84="y",BD$14,IF(AND(Y84>0,Y84<=1),Y84*BD$14,"")) -> 1083.843286 | BE84: =IF(Z84="y",BE$14,IF(AND(Z84>0,Z84<=1),Z84*BE$14,"")) -> 956.8209732 | BF84: =IF(AA84="y",BF$14,IF(AND(AA84>0,AA84<=1),AA84*BF$14,"")) -> 575.6795871 | BG84: =IF(AB84="y",BG$14,IF(AND(AB84>0,AB84<=1),AB84*BG$14,"")) -> 365.8833822 | BH84: =IF(AC84="y",BH$14,IF(AND(AC84>0,AC84<=1),AC84*BH$14,"")) -> 462.6229889 | BI84: =IF(AD84="y",BI$14,IF(AND(AD84>0,AD84<=1),AD84*BI$14,"")) -> 947.5 | BJ84: =IF(AE84="y",BJ$14,IF(AND(AE84>0,AE84<=1),AE84*BJ$14,"")) -> 246 | BK84: =IF(AF84="y",BK$14,IF(AND(AF84>0,AF84<=1),AF84*BK$14,"")) -> 71.80956371 | BL84: =IF(AG84="y",BL$14,IF(AND(AG84>0,AG84<=1),AG84*BL$14,"")) -> 750.6675466 | BM84: =IF(AH84="y",BM$14,IF(AND(AH84>0,AH84<=1),AH84*BM$14,"")) -> 912.0484283 | BN84: =IF(AI84="y",BN$14,IF(AND(AI84>0,AI84<=1),AI84*BN$14,"")) -> 352.9534753 | BO84: =IF(AJ84="y",BO$14,IF(AND(AJ84>0,AJ84<=1),AJ84*BO$14,"")) -> 2899.561519 | BP84: =IF(AK84="y",BP$14,IF(AND(AK84>0,AK84<=1),AK84*BP$14,"")) -> 1566.570638 | BQ84: =IF(AL84="y",BQ$14,IF(AND(AL84>0,AL84<=1),AL84*BQ$14,"")) -> 379.4352564 | BR84: =IF(AM84="y",BR$14,IF(AND(AM84>0,AM84<=1),AM84*BR$14,"")) -> 144 | BS84: =IF(AN84="y",BS$14,IF(AND(AN84>0,AN84<=1),AN84*BS$14,"")) -> 476.4963074 | BT84: =IF(AO84="y",BT$14,IF(AND(AO84>0,AO84<=1),AO84*BT$14,"")) -> 96.00269134 | BU84: =IF(AP84="y",BU$14,IF(AND(AP84>0,AP84<=1),AP84*BU$14,"")) -> 134 | BV84: =IF(AQ84="y",BV$14,IF(AND(AQ84>0,AQ84<=1),AQ84*BV$14,"")) -> 104 | BW84: =IF(AR84="y",BW$14,IF(AND(AR84>0,AR84<=1),AR84*BW$14,"")) -> 270.324288 | BX84: =IF(AS84="y",BX$14,IF(AND(AS84>0,AS84<=1),AS84*BX$14,"")) ->  | BY84: =IF(AT84="y",BY$14,IF(AND(AT84>0,AT84<=1),AT84*BY$14,"")) ->  | BZ84: =IF(AU84="y",BZ$14,IF(AND(AU84>0,AU84<=1),AU84*BZ$14,"")) ->  | CA84: =IF(AV84="y",CA$14,IF(AND(AV84>0,AV84<=1),AV84*CA$14,"")) ->  | CB84: =IF(AW84="y",CB$14,IF(AND(AW84>0,AW84<=1),AW84*CB$14,"")) ->  | CC84: =IF(AX84="y",CC$14,IF(AND(AX84>0,AX84<=1),AX84*CC$14,"")) ->  | CD84: =IF(AY84="y",CD$14,IF(AND(AY84>0,AY84<=1),AY84*CD$14,"")) ->  | CE84: =IF(AZ84="y",CE$14,IF(AND(AZ84>0,AZ84<=1),AZ84*CE$14,"")) ->  | CF84: 19203.92085 | CH84: 176857.7947 | CI84: 29965.25185 | CJ84: 34983.49457 | CK84: 30883.562 | CL84: 18581.36132 | CM84: 11809.71408 | CN84: 14932.20379 | CO84: 30582.7065 | CP84: 7940.206647 | CQ84: 2317.816159 | CR84: 24229.49367 | CS84: 29438.4268 | CT84: 11392.37208 | CU84: 93589.90913 | CV84: 50564.61216 | CW84: 12247.13148 | CX84: 4647.925842 | CY84: 15379.99653 | CZ84: 3098.704097 | DA84: 4325.153214 | DB84: 3356.83533 | DC84: 8725.328084 | DN84: 619850
B85: Kinka Beach | D85: Passive | E85: TM MD | F85: CCW 375 Kinka Bch Rd to Tanby localbdy | H85: mPVC (to 450mm) and DICL Trunk Watermains | I85: 1180 | J85: 375 | K85: 490 | L85: 578200 | M85: nominal | N85: =IF(M85="",1,VLOOKUP(M85,'Unit Rates - Water'!$H$12:$I$23,2,FALSE)) -> 1 | O85: 578200 | P85: Crown Land | R85: =IF(P85="",'Unit Rates - Land'!landcst,IF($E$8="Landuse",VLOOKUP(P85,LAndcost3,2,FALSE),IF($E$8="Location",VLOOKUP(P85,Landcost2,2,FALSE),"Error"))) -> 0 | S85: 0 | T85: 2011 | U85: =IFERROR(('General Input Sheet'!$G$38/(VLOOKUP('Existing Trunk Assets - Water'!T85,'General Input Sheet'!$E$38:$G$44,3,FALSE))),1) -> 1 | V85: 578200 | W85: y | X85: y | Y85: y | Z85: y | AA85: y | AB85: y | AC85: y | AD85: y | AE85: y | AF85: y | AG85: y | AH85: y | AI85: y | AJ85: y | AK85: y | AL85: y | AM85: y | AN85: y | AO85: y | AP85: y | AQ85: y | AR85: y | BB85: 5479.33063 | BC85: 928.3702909 | BD85: 1083.843286 | BE85: 956.8209732 | BF85: 575.6795871 | BG85: 365.8833822 | BH85: 462.6229889 | BI85: 947.5 | BJ85: 246 | BK85: 71.80956371 | BL85: 750.6675466 | BM85: 912.0484283 | BN85: 352.9534753 | BO85: 2899.561519 | BP85: 1566.570638 | BQ85: 379.4352564 | BR85: 144 | BS85: 476.4963074 | BT85: 96.00269134 | BU85: 134 | BV85: 104 | BW85: 270.324288 | CF85: 19203.92085 | CH85: 164974.0693 | CI85: 27951.77643 | CJ85: 32632.82498 | CK85: 28808.38194 | CL85: 17332.81135 | CM85: 11016.17598 | CN85: 13928.85412 | CO85: 28527.74203 | CP85: 7406.674975 | CQ85: 2162.073571 | CR85: 22601.42493 | CS85: 27460.35069 | CT85: 10626.87672 | CU85: 87301.25911 | CV85: 47166.99 | CW85: 11424.2017 | CX85: 4335.61462 | CY85: 14346.55803 | CZ85: 2890.490779 | DA85: 4034.530271 | DB85: 3131.277225 | DC85: 8139.041217 | DN85: 578200
B86: Tanby | D86: Passive | E86: TM MD | F86: CCW 375 Kinka Bch Rd | H86: mPVC (to 450mm) and DICL Trunk Watermains | I86: 2630 | J86: 375 | K86: 490 | L86: 1288700 | M86: nominal | N86: =IF(M86="",1,VLOOKUP(M86,'Unit Rates - Water'!$H$12:$I$23,2,FALSE)) -> 1 | O86: 1288700 | P86: Crown Land | R86: =IF(P86="",'Unit Rates - Land'!landcst,IF($E$8="Landuse",VLOOKUP(P86,LAndcost3,2,FALSE),IF($E$8="Location",VLOOKUP(P86,Landcost2,2,FALSE),"Error"))) -> 0 | S86: 0 | T86: 2011 | U86: =IFERROR(('General Input Sheet'!$G$38/(VLOOKUP('Existing Trunk Assets - Water'!T86,'General Input Sheet'!$E$38:$G$44,3,FALSE))),1) -> 1 | V86: 1288700 | W86: y | X86: y | Y86: y | Z86: y | AA86: y | AB86: y | AC86: y | AD86: y | AE86: y | AF86: y | AG86: y | AH86: y | AI86: y | AJ86: y | AK86: y | AL86: y | AM86: y | AN86: y | AO86: y | AP86: y | AQ86: y | AR86: y | BB86: 5479.33063 | BC86: 928.3702909 | BD86: 1083.843286 | BE86: 956.8209732 | BF86: 575.6795871 | BG86: 365.8833822 | BH86: 462.6229889 | BI86: 947.5 | BJ86: 246 | BK86: 71.80956371 | BL86: 750.6675466 | BM86: 912.0484283 | BN86: 352.9534753 | BO86: 2899.561519 | BP86: 1566.570638 | BQ86: 379.4352564 | BR86: 144 | BS86: 476.4963074 | BT86: 96.00269134 | BU86: 134 | BV86: 104 | BW86: 270.324288 | CF86: 19203.92085 | CH86: 367696.4427 | CI86: 62299.29831 | CJ86: 72732.48279 | CK86: 64208.51229 | CL86: 38631.60495 | CM86: 24553.0024 | CN86: 31044.81894 | CO86: 63583.01825 | CP86: 16508.09761 | CQ86: 4818.858891 | CR86: 50374.36234 | CS86: 61204.00197 | CT86: 23685.32692 | CU86: 194578.23 | CV86: 105126.4269 | CW86: 25462.41565 | CX86: 9663.276652 | CY86: 31975.80307 | CZ86: 6442.36504 | DA86: 8992.215773 | DB86: 6979.033138 | DC86: 18140.40542 | DN86: 1288700
B87: Tanby | D87: Passive | E87: TM MD | F87: CCW 375 Tanby Hts Est | H87: mPVC (to 450mm) and DICL Trunk Watermains | I87: 1082 | J87: 375 | K87: 490 | L87: 530180 | M87: nominal | N87: =IF(M87="",1,VLOOKUP(M87,'Unit Rates - Water'!$H$12:$I$23,2,FALSE)) -> 1 | O87: 530180 | P87: Crown Land | R87: =IF(P87="",'Unit Rates - Land'!landcst,IF($E$8="Landuse",VLOOKUP(P87,LAndcost3,2,FALSE),IF($E$8="Location",VLOOKUP(P87,Landcost2,2,FALSE),"Error"))) -> 0 | S87: 0 | T87: 2011 | U87: =IFERROR(('General Input Sheet'!$G$38/(VLOOKUP('Existing Trunk Assets - Water'!T87,'General Input Sheet'!$E$38:$G$44,3,FALSE))),1) -> 1 | V87: 530180 | W87: y | X87: y | Y87: y | Z87: y | AA87: y | AB87: y | AC87: y | AD87: y | AE87: y | AF87: y | AG87: y | AH87: y | AI87: y | AJ87: y | AK87: y | AL87: y | AM87: y | AN87: y | AO87: y | AP87: y | AQ87: y | AR87: y | BB87: 5479.33063 | BC87: 928.3702909 | BD87: 1083.843286 | BE87: 956.8209732 | BF87: 575.6795871 | BG87: 365.8833822 | BH87: 462.6229889 | BI87: 947.5 | BJ87: 246 | BK87: 71.80956371 | BL87: 750.6675466 | BM87: 912.0484283 | BN87: 352.9534753 | BO87: 2899.561519 | BP87: 1566.570638 | BQ87: 379.4352564 | BR87: 144 | BS87: 476.4963074 | BT87: 96.00269134 | BU87: 134 | BV87: 104 | BW87: 270.324288 | CF87: 19203.92085 | CH87: 151272.8331 | CI87: 25630.35771 | CJ87: 29922.64121 | CK87: 26415.82141 | CL87: 15893.30668 | CM87: 10101.27323 | CN87: 12772.05098 | CO87: 26158.48888 | CP87: 6791.544342 | CQ87: 1982.511529 | CR87: 20724.35743 | CS87: 25179.7453 | CT87: 9744.305601 | CU87: 80050.81556 | CV87: 43249.73151 | CW87: 10475.41207 | CX87: 3975.538151 | CY87: 13155.06423 | CZ87: 2650.43307 | DA87: 3699.459113 | DB87: 2871.221998 | DC87: 7463.086947 | DN87: 530180
B88: Tanby | D88: Passive | E88: TM MD | F88: CCW 375 Tanby Hts Est to Res Inlet | H88: mPVC (to 450mm) and DICL Trunk Watermains | I88: 210 | J88: 375 | K88: 490 | L88: 102900 | M88: nominal | N88: =IF(M88="",1,VLOOKUP(M88,'Unit Rates - Water'!$H$12:$I$23,2,FALSE)) -> 1 | O88: 102900 | P88: Crown Land | R88: =IF(P88="",'Unit Rates - Land'!landcst,IF($E$8="Landuse",VLOOKUP(P88,LAndcost3,2,FALSE),IF($E$8="Location",VLOOKUP(P88,Landcost2,2,FALSE),"Error"))) -> 0 | S88: 0 | T88: 2011 | U88: =IFERROR(('General Input Sheet'!$G$38/(VLOOKUP('Existing Trunk Assets - Water'!T88,'General Input Sheet'!$E$38:$G$44,3,FALSE))),1) -> 1 | V88: 102900 | W88: y | X88: y | Y88: y | Z88: y | AA88: y | AB88: y | AC88: y | AD88: y | AE88: y | AF88: y | AG88: y | AH88: y | AI88: y | AJ88: y | AK88: y | AL88: y | AM88: y | AN88: y | AO88: y | AP88: y | AQ88: y | AR88: y | BB88: 5479.33063 | BC88: 928.3702909 | BD88: 1083.843286 | BE88: 956.8209732 | BF88: 575.6795871 | BG88: 365.8833822 | BH88: 462.6229889 | BI88: 947.5 | BJ88: 246 | BK88: 71.80956371 | BL88: 750.6675466 | BM88: 912.0484283 | BN88: 352.9534753 | BO88: 2899.561519 | BP88: 1566.570638 | BQ88: 379.4352564 | BR88: 144 | BS88: 476.4963074 | BT88: 96.00269134 | BU88: 134 | BV88: 104 | BW88: 270.324288 | CF88: 19203.92085 | CH88: 29359.792 | CI88: 4974.468686 | CJ88: 5807.536649 | CK88: 5126.91543 | CL88: 3084.652867 | CM88: 1960.505895 | CN88: 2478.863869 | CO88: 5076.971039 | CP88: 1318.137072 | CQ88: 384.775805 | CR88: 4022.287487 | CS88: 4887.011564 | CT88: 1891.223823 | CU88: 15536.66476 | CV88: 8394.125338 | CW88: 2033.120641 | CX88: 771.5924323 | CY88: 2553.201006 | CZ88: 514.4093758 | DA88: 718.0096245 | DB88: 557.2612011 | DC88: 1448.473437 | DN88: 102900
B89: Tanby | D89: Passive | E89: TM MD | F89: CCW 300 Kinka West Res Outlet | H89: mPVC (to 450mm) and DICL Trunk Watermains | I89: 210 | J89: 300 | K89: 380 | L89: 79800 | M89: nominal | N89: =IF(M89="",1,VLOOKUP(M89,'Unit Rates - Water'!$H$12:$I$23,2,FALSE)) -> 1 | O89: 79800 | P89: Crown Land | R89: =IF(P89="",'Unit Rates - Land'!landcst,IF($E$8="Landuse",VLOOKUP(P89,LAndcost3,2,FALSE),IF($E$8="Location",VLOOKUP(P89,Landcost2,2,FALSE),"Error"))) -> 0 | S89: 0 | T89: 2011 | U89: =IFERROR(('General Input Sheet'!$G$38/(VLOOKUP('Existing Trunk Assets - Water'!T89,'General Input Sheet'!$E$38:$G$44,3,FALSE))),1) -> 1 | V89: 79800 | W89: y | X89: y | Y89: y | Z89: y | AA89: y | AB89: y | AC89: y | AD89: y | AE89: y | AF89: y | AG89: y | AH89: y | AI89: y | AJ89: y | AK89: y | AL89: y | AM89: y | AN89: y | AO89: y | AP89: y | AQ89: y | AR89: y | BB89: 5479.33063 | BC89: 928.3702909 | BD89: 1083.843286 | BE89: 956.8209732 | BF89: 575.6795871 | BG89: 365.8833822 | BH89: 462.6229889 | BI89: 947.5 | BJ89: 246 | BK89: 71.80956371 | BL89: 750.6675466 | BM89: 912.0484283 | BN89: 352.9534753 | BO89: 2899.561519 | BP89: 1566.570638 | BQ89: 379.4352564 | BR89: 144 | BS89: 476.4963074 | BT89: 96.00269134 | BU89: 134 | BV89: 104 | BW89: 270.324288 | CF89: 19203.92085 | CH89: 22768.81829 | CI89: 3857.751226 | CJ89: 4503.803932 | CK89: 3975.975232 | CL89: 2392.179774 | CM89: 1520.392327 | CN89: 1922.384225 | CO89: 3937.242846 | CP89: 1022.22875 | CQ89: 298.3975631 | CR89: 3119.32499 | CS89: 3789.927335 | CT89: 1466.663373 | CU89: 12048.84206 | CV89: 6509.729854 | CW89: 1576.705804 | CX89: 598.3778046 | CY89: 1980.033433 | CZ89: 398.92972 | DA89: 556.8237904 | DB89: 432.1617478 | DC89: 1123.305931 | DN89: 79800
B90: Tanby | D90: Passive | E90: TM MH | F90: CCW 200 Tanby Hts HZ | H90: mPVC (to 450mm) and DICL Trunk Watermains | I90: 270 | J90: 200 | K90: 340 | L90: 91800 | M90: nominal | N90: =IF(M90="",1,VLOOKUP(M90,'Unit Rates - Water'!$H$12:$I$23,2,FALSE)) -> 1 | O90: 91800 | P90: Crown Land | R90: =IF(P90="",'Unit Rates - Land'!landcst,IF($E$8="Landuse",VLOOKUP(P90,LAndcost3,2,FALSE),IF($E$8="Location",VLOOKUP(P90,Landcost2,2,FALSE),"Error"))) -> 0 | S90: 0 | T90: 2011 | U90: =IFERROR(('General Input Sheet'!$G$38/(VLOOKUP('Existing Trunk Assets - Water'!T90,'General Input Sheet'!$E$38:$G$44,3,FALSE))),1) -> 1 | V90: 91800 | W90: y | X90: y | Y90: y | Z90: y | AA90: y | AB90: y | AC90: y | AD90: y | AE90: y | AF90: y | AG90: y | AH90: y | AI90: y | AJ90: y | AK90: y | AL90: y | AM90: y | AN90: y | AO90: y | AP90: y | AQ90: y | AR90: y | BB90: 5479.33063 | BC90: 928.3702909 | BD90: 1083.843286 | BE90: 956.8209732 | BF90: 575.6795871 | BG90: 365.8833822 | BH90: 462.6229889 | BI90: 947.5 | BJ90: 246 | BK90: 71.80956371 | BL90: 750.6675466 | BM90: 912.0484283 | BN90: 352.9534753 | BO90: 2899.561519 | BP90: 1566.570638 | BQ90: 379.4352564 | BR90: 144 | BS90: 476.4963074 | BT90: 96.00269134 | BU90: 134 | BV90: 104 | BW90: 270.324288 | CF90: 19203.92085 | CH90: 26192.70074 | CI90: 4437.864192 | CJ90: 5181.067681 | CK90: 4573.866244 | CL90: 2751.906056 | CM90: 1749.022752 | CN90: 2211.46456 | CO90: 4529.30944 | CP90: 1175.947359 | CQ90: 343.2693771 | CR90: 3588.396417 | CS90: 4359.84122 | CT90: 1687.214256 | CU90: 13860.698 | CV90: 7488.636599 | CW90: 1813.804421 | CX90: 688.3594294 | CY90: 2277.782821 | CZ90: 458.9191516 | DA90: 640.5566912 | DB90: 497.1484768 | DC90: 1292.224116 | DN90: 91800
B91: Emu Park | D91: Passive | E91: TM MD | F91: CCW 375 Scenic H-Kink to EP Res | H91: mPVC (to 450mm) and DICL Trunk Watermains | I91: 2735 | J91: 375 | K91: 490 | L91: 1340150 | M91: nominal | N91: =IF(M91="",1,VLOOKUP(M91,'Unit Rates - Water'!$H$12:$I$23,2,FALSE)) -> 1 | O91: 1340150 | P91: Crown Land | R91: =IF(P91="",'Unit Rates - Land'!landcst,IF($E$8="Landuse",VLOOKUP(P91,LAndcost3,2,FALSE),IF($E$8="Location",VLOOKUP(P91,Landcost2,2,FALSE),"Error"))) -> 0 | S91: 0 | T91: 2011 | U91: =IFERROR(('General Input Sheet'!$G$38/(VLOOKUP('Existing Trunk Assets - Water'!T91,'General Input Sheet'!$E$38:$G$44,3,FALSE))),1) -> 1 | V91: 1340150 | W91: y | X91: y | Y91: y | Z91: y | AA91: y | AB91: y | AC91: y | AD91: y | AE91: y | AF91: y | AG91: y | AH91: y | AI91: y | AJ91: y | AK91: y | AL91: y | AM91: y | AN91: y | AO91: y | AP91: y | AQ91: y | AR91: y | BB91: 5479.33063 | BC91: 928.3702909 | BD91: 1083.843286 | BE91: 956.8209732 | BF91: 575.6795871 | BG91: 365.8833822 | BH91: 462.6229889 | BI91: 947.5 | BJ91: 246 | BK91: 71.80956371 | BL91: 750.6675466 | BM91: 912.0484283 | BN91: 352.9534753 | BO91: 2899.561519 | BP91: 1566.570638 | BQ91: 379.4352564 | BR91: 144 | BS91: 476.4963074 | BT91: 96.00269134 | BU91: 134 | BV91: 104 | BW91: 270.324288 | CF91: 19203.92085 | CH91: 382376.3387 | CI91: 64786.53265 | CJ91: 75636.25111 | CK91: 66771.97001 | CL91: 40173.93138 | CM91: 25533.25534 | CN91: 32284.25087 | CO91: 66121.50377 | CP91: 17167.16615 | CQ91: 5011.246794 | CR91: 52385.50608 | CS91: 63647.50775 | CT91: 24630.93884 | CU91: 202346.5624 | CV91: 109323.4895 | CW91: 26478.97597 | CX91: 10049.07287 | CY91: 33252.40357 | CZ91: 6699.569728 | DA91: 9351.220586 | DB91: 7257.663738 | DC91: 18864.64214 | DN91: 1340150
B92: Emu Park | D92: Passive | E92: TM MD | F92: CCW 375 Fountain St-Res to Hill | H92: mPVC (to 450mm) and DICL Trunk Watermains | I92: 2136 | J92: 375 | K92: 490 | L92: 1046640 | M92: nominal | N92: =IF(M92="",1,VLOOKUP(M92,'Unit Rates - Water'!$H$12:$I$23,2,FALSE)) -> 1 | O92: 1046640 | P92: Crown Land | R92: =IF(P92="",'Unit Rates - Land'!landcst,IF($E$8="Landuse",VLOOKUP(P92,LAndcost3,2,FALSE),IF($E$8="Location",VLOOKUP(P92,Landcost2,2,FALSE),"Error"))) -> 0 | S92: 0 | T92: 2011 | U92: =IFERROR(('General Input Sheet'!$G$38/(VLOOKUP('Existing Trunk Assets - Water'!T92,'General Input Sheet'!$E$38:$G$44,3,FALSE))),1) -> 1 | V92: 1046640 | W92: y | X92: y | Y92: y | Z92: y | AA92: y | AB92: y | AC92: y | AD92: y | AE92: y | AF92: y | AG92: y | AH92: y | AI92: y | AJ92: y | AK92: y | AL92: y | AM92: y | AN92: y | AO92: y | AP92: y | AQ92: y | AR92: y | BB92: 5479.33063 | BC92: 928.3702909 | BD92: 1083.843286 | BE92: 956.8209732 | BF92: 575.6795871 | BG92: 365.8833822 | BH92: 462.6229889 | BI92: 947.5 | BJ92: 246 | BK92: 71.80956371 | BL92: 750.6675466 | BM92: 912.0484283 | BN92: 352.9534753 | BO92: 2899.561519 | BP92: 1566.570638 | BQ92: 379.4352564 | BR92: 144 | BS92: 476.4963074 | BT92: 96.00269134 | BU92: 134 | BV92: 104 | BW92: 270.324288 | CF92: 19203.92085 | CH92: 298631.0272 | CI92: 50597.45292 | CJ92: 59070.9442 | CK92: 52148.05409 | CL92: 31375.3263 | CM92: 19941.14567 | CN92: 25213.58679 | CO92: 51640.04828 | CP92: 13407.33707 | CQ92: 3913.719617 | CR92: 40912.40987 | CS92: 49707.88905 | CT92: 19236.44803 | CU92: 158030.0758 | CV92: 85380.2463 | CW92: 20679.74138 | CX92: 7848.197311 | CY92: 25969.70166 | CZ92: 5232.278223 | DA92: 7303.183609 | DB92: 5668.142503 | DC92: 14733.0441 | DN92: 1046640
B93: Emu Park | D93: Passive | E93: TM MD | F93: CCW 375 Hill St - Fountain to Hartley | H93: mPVC (to 450mm) and DICL Trunk Watermains | I93: 370 | J93: 375 | K93: 490 | L93: 181300 | M93: nominal | N93: =IF(M93="",1,VLOOKUP(M93,'Unit Rates - Water'!$H$12:$I$23,2,FALSE)) -> 1 | O93: 181300 | P93: Crown Land | R93: =IF(P93="",'Unit Rates - Land'!landcst,IF($E$8="Landuse",VLOOKUP(P93,LAndcost3,2,FALSE),IF($E$8="Location",VLOOKUP(P93,Landcost2,2,FALSE),"Error"))) -> 0 | S93: 0 | T93: 2011 | U93: =IFERROR(('General Input Sheet'!$G$38/(VLOOKUP('Existing Trunk Assets - Water'!T93,'General Input Sheet'!$E$38:$G$44,3,FALSE))),1) -> 1 | V93: 181300 | W93: y | X93: y | Y93: y | Z93: y | AA93: y | AB93: y | AC93: y | AD93: y | AE93: y | AF93: y | AG93: y | AH93: y | AI93: y | AJ93: y | AK93: y | AL93: y | AM93: y | AN93: y | AO93: y | AP93: y | AQ93: y | AR93: y | BB93: 5479.33063 | BC93: 928.3702909 | BD93: 1083.843286 | BE93: 956.8209732 | BF93: 575.6795871 | BG93: 365.8833822 | BH93: 462.6229889 | BI93: 947.5 | BJ93: 246 | BK93: 71.80956371 | BL93: 750.6675466 | BM93: 912.0484283 | BN93: 352.9534753 | BO93: 2899.561519 | BP93: 1566.570638 | BQ93: 379.4352564 | BR93: 144 | BS93: 476.4963074 | BT93: 96.00269134 | BU93: 134 | BV93: 104 | BW93: 270.324288 | CF93: 19203.92085 | CH93: 51729.15734 | CI93: 8764.540066 | CJ93: 10232.32648 | CK93: 9033.136711 | CL93: 5434.864575 | CM93: 3454.224672 | CN93: 4367.522056 | CO93: 8945.139449 | CP93: 2322.431984 | CQ93: 677.9383231 | CR93: 7086.887478 | CS93: 8610.448946 | CT93: 3332.156259 | CU93: 27374.12362 | CV93: 14789.64941 | CW93: 3582.16494 | CX93: 1359.472381 | CY93: 4498.49701 | CZ93: 906.3403289 | DA93: 1265.064576 | DB93: 981.8411638 | DC93: 2552.072246 | DN93: 181300
B94: Emu Park | D94: Passive | E94: TM MD | F94: CCW 300 Hartley St to Svendsen Rd | H94: mPVC (to 450mm) and DICL Trunk Watermains | I94: 635 | J94: 300 | K94: 380 | L94: 241300 | M94: nominal | N94: =IF(M94="",1,VLOOKUP(M94,'Unit Rates - Water'!$H$12:$I$23,2,FALSE)) -> 1 | O94: 241300 | P94: Crown Land | R94: =IF(P94="",'Unit Rates - Land'!landcst,IF($E$8="Landuse",VLOOKUP(P94,LAndcost3,2,FALSE),IF($E$8="Location",VLOOKUP(P94,Landcost2,2,FALSE),"Error"))) -> 0 | S94: 0 | T94: 2011 | U94: =IFERROR(('General Input Sheet'!$G$38/(VLOOKUP('Existing Trunk Assets - Water'!T94,'General Input Sheet'!$E$38:$G$44,3,FALSE))),1) -> 1 | V94: 241300 | W94: y | X94: y | Y94: y | Z94: y | AA94: y | AB94: y | AC94: y | AD94: y | AE94: y | AF94: y | AG94: y | AH94: y | AI94: y | AJ94: y | AK94: y | AL94: y | AM94: y | AN94: y | AO94: y | AP94: y | AQ94: y | AR94: y | BB94: 5479.33063 | BC94: 928.3702909 | BD94: 1083.843286 | BE94: 956.8209732 | BF94: 575.6795871 | BG94: 365.8833822 | BH94: 462.6229889 | BI94: 947.5 | BJ94: 246 | BK94: 71.80956371 | BL94: 750.6675466 | BM94: 912.0484283 | BN94: 352.9534753 | BO94: 2899.561519 | BP94: 1566.570638 | BQ94: 379.4352564 | BR94: 144 | BS94: 476.4963074 | BT94: 96.00269134 | BU94: 134 | BV94: 104 | BW94: 270.324288 | CF94: 19203.92085 | CH94: 68848.56958 | CI94: 11665.1049 | CJ94: 13618.64522 | CK94: 12022.59177 | CL94: 7233.495984 | CM94: 4597.376797 | CN94: 5812.923729 | CO94: 11905.47242 | CP94: 3091.025029 | CQ94: 902.2973931 | CR94: 9432.244613 | CS94: 11460.01837 | CT94: 4434.910675 | CU94: 36433.40336 | CV94: 19684.18313 | CW94: 4767.658025 | CX94: 1809.380504 | CY94: 5987.243952 | CZ94: 1206.287487 | DA94: 1683.729081 | DB94: 1306.774809 | DC94: 3396.663171 | DN94: 241300
B95: Emu Park | D95: Passive | E95: TM MD | F95: CCW 300 Fountain - Hill to Hartley | H95: mPVC (to 450mm) and DICL Trunk Watermains | I95: 780 | J95: 300 | K95: 380 | L95: 296400 | M95: nominal | N95: =IF(M95="",1,VLOOKUP(M95,'Unit Rates - Water'!$H$12:$I$23,2,FALSE)) -> 1 | O95: 296400 | P95: Crown Land | R95: =IF(P95="",'Unit Rates - Land'!landcst,IF($E$8="Landuse",VLOOKUP(P95,LAndcost3,2,FALSE),IF($E$8="Location",VLOOKUP(P95,Landcost2,2,FALSE),"Error"))) -> 0 | S95: 0 | T95: 2011 | U95: =IFERROR(('General Input Sheet'!$G$38/(VLOOKUP('Existing Trunk Assets - Water'!T95,'General Input Sheet'!$E$38:$G$44,3,FALSE))),1) -> 1 | V95: 296400 | W95: y | X95: y | Y95: y | Z95: y | AA95: y | AB95: y | AC95: y | AD95: y | AE95: y | AF95: y | AG95: y | AH95: y | AI95: y | AJ95: y | AK95: y | AL95: y | AM95: y | AN95: y | AO95: y | AP95: y | AQ95: y | AR95: y | BB95: 5479.33063 | BC95: 928.3702909 | BD95: 1083.843286 | BE95: 956.8209732 | BF95: 575.6795871 | BG95: 365.8833822 | BH95: 462.6229889 | BI95: 947.5 | BJ95: 246 | BK95: 71.80956371 | BL95: 750.6675466 | BM95: 912.0484283 | BN95: 352.9534753 | BO95: 2899.561519 | BP95: 1566.570638 | BQ95: 379.4352564 | BR95: 144 | BS95: 476.4963074 | BT95: 96.00269134 | BU95: 134 | BV95: 104 | BW95: 270.324288 | CF95: 19203.92085 | CH95: 84569.89649 | CI95: 14328.79027 | CJ95: 16728.4146 | CK95: 14767.908 | CL95: 8885.239161 | CM95: 5647.171499 | CN95: 7140.284265 | CO95: 14624.04486 | CP95: 3796.849641 | CQ95: 1108.333806 | CR95: 11586.06425 | CS95: 14076.87296 | CT95: 5447.606813 | CU95: 44752.84192 | CV95: 24178.9966 | CW95: 5856.335842 | CX95: 2222.546132 | CY95: 7354.409894 | CZ95: 1481.73896 | DA95: 2068.20265 | DB95: 1605.172206 | DC95: 4172.279171 | DD95: =IF(BX95="","",(BX95/$CF95)*$V95) ->  | DN95: 296400
B96: Emu Park | D96: Passive | E96: TM MD | F96: CCW 375 Hartley St | H96: mPVC (to 450mm) and DICL Trunk Watermains | I96: 860 | J96: 375 | K96: 490 | L96: 421400 | M96: nominal | N96: =IF(M96="",1,VLOOKUP(M96,'Unit Rates - Water'!$H$12:$I$23,2,FALSE)) -> 1 | O96: 421400 | P96: Crown Land | R96: =IF(P96="",'Unit Rates - Land'!landcst,IF($E$8="Landuse",VLOOKUP(P96,LAndcost3,2,FALSE),IF($E$8="Location",VLOOKUP(P96,Landcost2,2,FALSE),"Error"))) -> 0 | S96: 0 | T96: 2011 | U96: =IFERROR(('General Input Sheet'!$G$38/(VLOOKUP('Existing Trunk Assets - Water'!T96,'General Input Sheet'!$E$38:$G$44,3,FALSE))),1) -> 1 | V96: 421400 | W96: y | X96: y | Y96: y | Z96: y | AA96: y | AB96: y | AC96: y | AD96: y | AE96: y | AF96: y | AG96: y | AH96: y | AI96: y | AJ96: y | AK96: y | AL96: y | AM96: y | AN96: y | AO96: y | AP96: y | AQ96: y | AR96: y | BB96: 5479.33063 | BC96: 928.3702909 | BD96: 1083.843286 | BE96: 956.8209732 | BF96: 575.6795871 | BG96: 365.8833822 | BH96: 462.6229889 | BI96: 947.5 | BJ96: 246 | BK96: 71.80956371 | BL96: 750.6675466 | BM96: 912.0484283 | BN96: 352.9534753 | BO96: 2899.561519 | BP96: 1566.570638 | BQ96: 379.4352564 | BR96: 144 | BS96: 476.4963074 | BT96: 96.00269134 | BU96: 134 | BV96: 104 | BW96: 270.324288 | CF96: 19203.92085 | CH96: 120235.3387 | CI96: 20371.63367 | CJ96: 23783.24532 | CK96: 20995.93938 | CL96: 12632.38793 | CM96: 8028.738426 | CN96: 10151.53775 | CO96: 20791.40521 | CP96: 5398.085151 | CQ96: 1575.748535 | CR96: 16472.22495 | CS96: 20013.47593 | CT96: 7745.011846 | CU96: 63626.34138 | CV96: 34375.94186 | CW96: 8326.113103 | CX96: =IF(BR96="","",(BR96/$CF96)*$V96) -> 3159.854723 | CY96: 10455.96602 | CZ96: 2106.628872 | DA96: 2940.420367 | DB96: 2282.1173 | DC96: 5931.843599 | DN96: 421400
B97: Kinka Beach | D97: Passive | E97: TM MD | F97: CCW 375 Kinka to Albermarle St | H97: mPVC (to 450mm) and DICL Trunk Watermains | I97: 3100 | J97: 375 | K97: 490 | L97: 1519000 | M97: nominal | N97: =IF(M97="",1,VLOOKUP(M97,'Unit Rates - Water'!$H$12:$I$23,2,FALSE)) -> 1 | O97: 1519000 | P97: Crown Land | R97: =IF(P97="",'Unit Rates - Land'!landcst,IF($E$8="Landuse",VLOOKUP(P97,LAndcost3,2,FALSE),IF($E$8="Location",VLOOKUP(P97,Landcost2,2,FALSE),"Error"))) -> 0 | S97: 0 | T97: 2011 | U97: =IFERROR(('General Input Sheet'!$G$38/(VLOOKUP('Existing Trunk Assets - Water'!T97,'General Input Sheet'!$E$38:$G$44,3,FALSE))),1) -> 1 | V97: 1519000 | W97: y | X97: y | Y97: y | Z97: y | AA97: y | AB97: y | AC97: y | AD97: y | AE97: y | AF97: y | AG97: y | AH97: y | AI97: y | AJ97: y | AK97: y | AL97: y | AM97: y | AN97: y | AO97: y | AP97: y | AQ97: y | AR97: y | BB97: 5479.33063 | BC97: 928.3702909 | BD97: 1083.843286 | BE97: 956.8209732 | BF97: 575.6795871 | BG97: 365.8833822 | BH97: 462.6229889 | BI97: 947.5 | BJ97: 246 | BK97: 71.80956371 | BL97: 750.6675466 | BM97: 912.0484283 | BN97: 352.9534753 | BO97: 2899.561519 | BP97: 1566.570638 | BQ97: 379.4352564 | BR97: 144 | BS97: 476.4963074 | BT97: 96.00269134 | BU97: 134 | BV97: 104 | BW97: 270.324288 | CF97: 19203.92085 | CH97: 433406.4534 | CI97: 73432.63299 | CJ97: 85730.30291 | CK97: 75683.0373 | CL97: 45535.35184 | CM97: 28940.8013 | CN97: 36592.75236 | CO97: 74945.76295 | CP97: 19458.21392 | CQ97: 5680.023788 | CR97: 59376.62481 | CS97: 72141.59928 | CT97: 27918.06596 | CU97: 229350.7655 | CV97: =IF(BP97="","",(BP97/$CF97)*$V97) -> 123913.2788 | CW97: 30012.73328 | CX97: 11390.174 | CY97: 37690.11008 | CZ97: 7593.662215 | DA97: 10599.18969 | DB97: 8226.236778 | DC97: 21382.22693 | DN97: 1519000
B98: Emu Park | D98: Passive | E98: TM MD | F98: CCW 375 Albermarle St to West EP Res | H98: mPVC (to 450mm) and DICL Trunk Watermains | I98: 940 | J98: 375 | K98: 490 | L98: 460600 | M98: nominal | N98: =IF(M98="",1,VLOOKUP(M98,'Unit Rates - Water'!$H$12:$I$23,2,FALSE)) -> 1 | O98: 460600 | P98: Crown Land | R98: =IF(P98="",'Unit Rates - Land'!landcst,IF($E$8="Landuse",VLOOKUP(P98,LAndcost3,2,FALSE),IF($E$8="Location",VLOOKUP(P98,Landcost2,2,FALSE),"Error"))) -> 0 | S98: 0 | T98: 2011 | U98: =IFERROR(('General Input Sheet'!$G$38/(VLOOKUP('Existing Trunk Assets - Water'!T98,'General Input Sheet'!$E$38:$G$44,3,FALSE))),1) -> 1 | V98: 460600 | W98: y | X98: y | Y98: y | Z98: y | AA98: y | AB98: y | AC98: y | AD98: y | AE98: y | AF98: y | AG98: y | AH98: y | AI98: y | AJ98: y | AK98: y | AL98: y | AM98: y | AN98: y | AO98: y | AP98: y | AQ98: y | AR98: y | BB98: 5479.33063 | BC98: 928.3702909 | BD98: 1083.843286 | BE98: 956.8209732 | BF98: 575.6795871 | BG98: 365.8833822 | BH98: 462.6229889 | BI98: 947.5 | BJ98: 246 | BK98: 71.80956371 | BL98: 750.6675466 | BM98: 912.0484283 | BN98: 352.9534753 | BO98: 2899.561519 | BP98: 1566.570638 | BQ98: 379.4352564 | BR98: 144 | BS98: 476.4963074 | BT98: 96.00269134 | BU98: 134 | BV98: 104 | BW98: 270.324288 | CF98: 19203.92085 | CH98: =IF(BB98="","",(BB98/$CF98)*$V98) -> 131420.0213 | CI98: 22266.66936 | CJ98: 25995.64024 | CK98: 22949.05002 | CL98: 13807.49378 | CM98: 8775.597815 | CN98: 11095.86684 | CO98: 22725.48941 | CP98: 5900.232607 | CQ98: 1722.329794 | CR98: 18004.52494 | CS98: 21875.19462 | CT98: 8465.478064 | CU98: 69545.07082 | CV98: 37573.7039 | CW98: 9100.635252 | CX98: 3453.794697 | CY98: 11428.61403 | CZ98: 2302.594349 | DA98: 3213.947843 | DB98: 2494.407281 | DC98: 6483.643003 | DN98: 460600
B99: Emu Park | D99: Passive | E99: TM MD | F99: CCW 375 West EP Res to Rtn Rd | H99: mPVC (to 450mm) and DICL Trunk Watermains | I99: 430 | J99: 450 | K99: 493 | L99: 211990 | M99: nominal | N99: =IF(M99="",1,VLOOKUP(M99,'Unit Rates - Water'!$H$12:$I$23,2,FALSE)) -> 1 | O99: 211990 | P99: Crown Land | R99: =IF(P99="",'Unit Rates - Land'!landcst,IF($E$8="Landuse",VLOOKUP(P99,LAndcost3,2,FALSE),IF($E$8="Location",VLOOKUP(P99,Landcost2,2,FALSE),"Error"))) -> 0 | S99: 0 | T99: 2011 | U99: =IFERROR(('General Input Sheet'!$G$38/(VLOOKUP('Existing Trunk Assets - Water'!T99,'General Input Sheet'!$E$38:$G$44,3,FALSE))),1) -> 1 | V99: 211990 | W99: y | X99: y | Y99: y | Z99: y | AA99: y | AB99: y | AC99: y | AD99: y | AE99: y | AF99: y | AG99: y | AH99: y | AI99: y | AJ99: y | AK99: y | AL99: y | AM99: y | AN99: y | AO99: y | AP99: y | AQ99: y | AR99: y | BB99: 5479.33063 | BC99: 928.3702909 | BD99: 1083.843286 | BE99: 956.8209732 | BF99: 575.6795871 | BG99: 365.8833822 | BH99: 462.6229889 | BI99: 947.5 | BJ99: 246 | BK99: 71.80956371 | BL99: 750.6675466 | BM99: 912.0484283 | BN99: 352.9534753 | BO99: 2899.561519 | BP99: 1566.570638 | BQ99: 379.4352564 | BR99: 144 | BS99: 476.4963074 | BT99: 96.00269134 | BU99: 134 | BV99: 104 | BW99: 270.324288 | CF99: 19203.92085 | CH99: 60485.7367 | CI99: 10248.17898 | CJ99: 11964.42851 | CK99: 10562.24297 | CL99: 6354.864541 | CM99: 4038.946984 | CN99: 5106.845012 | CO99: 10459.34976 | CP99: 2715.567326 | CQ99: 792.6979874 | CR99: 8286.537652 | CS99: 10068.00371 | CT99: 3896.215143 | CU99: 32007.94521 | CV99: 17293.20341 | CW99: 4188.544653 | CX99: 1589.600386 | CY99: 5259.991071 | CZ99: 1059.7633 | DA99: 1479.21147 | DB99: 1148.044723 | DC99: 2984.080504 | DN99: 211990
B100: Emu Park | D100: Passive | E100: TM MD | F100: CCW 450 Rtn Rd-Fountain to West EP Res inlet | H100: mPVC (to 450mm) and DICL Trunk Watermains | I100: 3272 | J100: 450 | K100: 493 | L100: 1613096 | M100: nominal | N100: =IF(M100="",1,VLOOKUP(M100,'Unit Rates - Water'!$H$12:$I$23,2,FALSE)) -> 1 | O100: 1613096 | P100: Crown Land | R100: =IF(P100="",'Unit Rates - Land'!landcst,IF($E$8="Landuse",VLOOKUP(P100,LAndcost3,2,FALSE),IF($E$8="Location",VLOOKUP(P100,Landcost2,2,FALSE),"Error"))) -> 0 | S100: 0 | T100: 2011 | U100: =IFERROR(('General Input Sheet'!$G$38/(VLOOKUP('Existing Trunk Assets - Water'!T100,'General Input Sheet'!$E$38:$G$44,3,FALSE))),1) -> 1 | V100: 1613096 | W100: y | X100: y | Y100: y | Z100: y | AA100: y | AB100: y | AC100: y | AD100: y | AE100: y | AF100: y | AG100: y | AH100: y | AI100: y | AJ100: y | AK100: y | AL100: y | AM100: y | AN100: y | AO100: y | AP100: y | AQ100: y | AR100: y | BB100: 5479.33063 | BC100: 928.3702909 | BD100: 1083.843286 | BE100: 956.8209732 | BF100: 575.6795871 | BG100: 365.8833822 | BH100: 462.6229889 | BI100: 947.5 | BJ100: 246 | BK100: 71.80956371 | BL100: 750.6675466 | BM100: 912.0484283 | BN100: 352.9534753 | BO100: 2899.561519 | BP100: 1566.570638 | BQ100: 379.4352564 | BR100: 144 | BS100: 476.4963074 | BT100: 96.00269134 | BU100: 134 | BV100: 104 | BW100: 270.324288 | CF100: 19203.92085 | CH100: 460254.2569 | CI100: 77981.49213 | CJ100: 91040.95372 | CK100: 80371.30003 | CL100: 48356.08553 | CM100: 30733.56868 | CN100: 38859.52762 | CO100: 79588.35447 | CP100: 20663.57277 | CQ100: 6031.878639 | CR100: 63054.77023 | CS100: 76610.48402 | CT100: 29647.47895 | CU100: 243558.1319 | CV100: 131589.2129 | CW100: 31871.90257 | CX100: 12095.74991 | CY100: 40024.86229 | CZ100: 8064.059344 | DA100: 11255.76728 | DB100: 8735.819382 | DC100: 22706.77072 | DN100: 1613096
B101: Emu Park | D101: Passive | E101: TM MD | F101: CCW 300 Hartley St Augm | H101: mPVC (to 450mm) and DICL Trunk Watermains | I101: 2810 | J101: 300 | K101: 380 | L101: 1067800 | M101: nominal | N101: =IF(M101="",1,VLOOKUP(M101,'Unit Rates - Water'!$H$12:$I$23,2,FALSE)) -> 1 | O101: 1067800 | P101: Crown Land | R101: =IF(P101="",'Unit Rates - Land'!landcst,IF($E$8="Landuse",VLOOKUP(P101,LAndcost3,2,FALSE),IF($E$8="Location",VLOOKUP(P101,Landcost2,2,FALSE),"Error"))) -> 0 | S101: 0 | T101: 2011 | U101: =IFERROR(('General Input Sheet'!$G$38/(VLOOKUP('Existing Trunk Assets - Water'!T101,'General Input Sheet'!$E$38:$G$44,3,FALSE))),1) -> 1 | V101: 1067800 | W101: y | X101: y | Y101: y | Z101: y | AA101: y | AB101: y | AC101: y | AD101: y | AE101: y | AF101: y | AG101: y | AH101: y | AI101: y | AJ101: y | AK101: y | AL101: y | AM101: y | AN101: y | AO101: y | AP101: y | AQ101: y | AR101: y | BB101: 5479.33063 | BC101: 928.3702909 | BD101: 1083.843286 | BE101: 956.8209732 | BF101: 575.6795871 | BG101: 365.8833822 | BH101: 462.6229889 | BI101: 947.5 | BJ101: 246 | BK101: 71.80956371 | BL101: 750.6675466 | BM101: 912.0484283 | BN101: 352.9534753 | BO101: 2899.561519 | BP101: 1566.570638 | BQ101: 379.4352564 | BR101: 144 | BS101: 476.4963074 | BT101: 96.00269134 | BU101: 134 | BV101: 104 | BW101: 270.324288 | CF101: 19203.92085 | CH101: 304668.4733 | CI101: 51620.38545 | CJ101: 60265.18594 | CK101: 53202.33524 | CL101: 32009.64365 | CM101: 20344.29732 | CN101: 25723.33178 | CO101: 52684.05904 | CP101: 13678.39422 | CQ101: 3992.843582 | CR101: 41739.53915 | CS101: 50712.8372 | CT101: 19625.35275 | CU101: 161224.9818 | CV101: 87106.38519 | CW101: 21097.82528 | CX101: 8006.86491 | CY101: 26494.73308 | CZ101: 5338.059587 | DA101: 7450.832624 | DB101: 5782.735768 | DC101: 15030.90317 | DN101: 1067800
B102: Zilzie | D102: Passive | E102: TM MD | F102: CCW 150 Monte Carlo to Coorooman Bdy to KS | H102: mPVC (to 450mm) and DICL Trunk Watermains | I102: 1080 | J102: 150 | K102: 310 | L102: 334800 | M102: nominal | N102: =IF(M102="",1,VLOOKUP(M102,'Unit Rates - Water'!$H$12:$I$23,2,FALSE)) -> 1 | O102: 334800 | P102: Crown Land | R102: =IF(P102="",'Unit Rates - Land'!landcst,IF($E$8="Landuse",VLOOKUP(P102,LAndcost3,2,FALSE),IF($E$8="Location",VLOOKUP(P102,Landcost2,2,FALSE),"Error"))) -> 0 | S102: 0 | T102: 2011 | U102: =IFERROR(('General Input Sheet'!$G$38/(VLOOKUP('Existing Trunk Assets - Water'!T102,'General Input Sheet'!$E$38:$G$44,3,FALSE))),1) -> 1 | V102: 334800 | W102: y | X102: y | Y102: y | Z102: y | AA102: y | AB102: y | AC102: y | AD102: y | AE102: y | AF102: y | AG102: y | AH102: y | AI102: y | AJ102: y | AK102: y | AL102: y | AM102: y | AN102: y | AO102: y | AP102: y | AQ102: y | AR102: y | BB102: 5479.33063 | BC102: 928.3702909 | BD102: 1083.843286 | BE102: 956.8209732 | BF102: 575.6795871 | BG102: 365.8833822 | BH102: 462.6229889 | BI102: 947.5 | BJ102: 246 | BK102: 71.80956371 | BL102: 750.6675466 | BM102: 912.0484283 | BN102: 352.9534753 | BO102: 2899.561519 | BP102: 1566.570638 | BQ102: 379.4352564 | BR102: 144 | BS102: 476.4963074 | BT102: 96.00269134 | BU102: 134 | BV102: 104 | BW102: 270.324288 | CF102: 19203.92085 | CH102: 95526.32033 | CI102: 16185.15176 | CJ102: 18895.6586 | CK102: 16681.15924 | CL102: 10036.36326 | CM102: 6378.788859 | CN102: 8065.341336 | CO102: 16518.65796 | CP102: 4288.74919 | CQ102: 1251.92361 | CR102: 13087.09282 | CS102: 15900.59739 | CT102: 6153.369639 | CU102: 50550.78096 | CV102: 27311.49819 | CW102: 6615.051416 | CX102: 2510.487331 | CY102: 8307.207937 | CZ102: 1673.705141 | DA102: 2336.147933 | DB102: 1813.129739 | DC102: 4712.817363 | DN102: 334800
B103: Zilzie | D103: Passive | E103: TM MD | F103: CCW 150 EP Bdy -Coorooman Creek Bdy to KS | H103: mPVC (to 450mm) and DICL Trunk Watermains | I103: 2300 | J103: 150 | K103: 310 | L103: 713000 | M103: nominal | N103: =IF(M103="",1,VLOOKUP(M103,'Unit Rates - Water'!$H$12:$I$23,2,FALSE)) -> 1 | O103: 713000 | P103: Crown Land | R103: =IF(P103="",'Unit Rates - Land'!landcst,IF($E$8="Landuse",VLOOKUP(P103,LAndcost3,2,FALSE),IF($E$8="Location",VLOOKUP(P103,Landcost2,2,FALSE),"Error"))) -> 0 | S103: 0 | T103: 2011 | U103: =IFERROR(('General Input Sheet'!$G$38/(VLOOKUP('Existing Trunk Assets - Water'!T103,'General Input Sheet'!$E$38:$G$44,3,FALSE))),1) -> 1 | V103: 713000 | W103: y | X103: y | Y103: y | Z103: y | AA103: y | AB103: y | AC103: y | AD103: y | AE103: y | AF103: y | AG103: y | AH103: y | AI103: y | AJ103: y | AK103: y | AL103: y | AM103: y | AN103: y | AO103: y | AP103: y | AQ103: y | AR103: y | BB103: 5479.33063 | BC103: 928.3702909 | BD103: 1083.843286 | BE103: 956.8209732 | BF103: 575.6795871 | BG103: 365.8833822 | BH103: 462.6229889 | BI103: 947.5 | BJ103: 246 | BK103: 71.80956371 | BL103: 750.6675466 | BM103: 912.0484283 | BN103: 352.9534753 | BO103: 2899.561519 | BP103: 1566.570638 | BQ103: 379.4352564 | BR103: 144 | BS103: 476.4963074 | BT103: 96.00269134 | BU103: 134 | BV103: 104 | BW103: 270.324288 | CF103: 19203.92085 | CH103: 203435.6822 | CI103: 34468.37875 | CJ103: 40240.75443 | CK103: 35524.69098 | CL103: 21373.73658 | CM103: 13584.45775 | CN103: 17176.18988 | CO103: 35178.62343 | CP103: 9133.447349 | CQ103: 2666.133615 | CR103: 27870.66063 | CS103: 33862.38333 | CT103: 13104.39831 | CU103: 107654.4409 | CV103: 58163.37577 | CW103: 14087.6095 | CX103: 5346.408204 | CY103: 17691.27616 | CZ103: 3564.37206 | DA103: 4975.129857 | DB103: 3861.294814 | DC103: 10036.5555 | DN103: 713000
B104: Keppel Sands | D104: Passive | E104: TM MD | F104: CCW 150 Coorooman bdy to KS Res | H104: mPVC (to 450mm) and DICL Trunk Watermains | I104: 3180 | J104: 150 | K104: 310 | L104: 985800 | M104: nominal | N104: =IF(M104="",1,VLOOKUP(M104,'Unit Rates - Water'!$H$12:$I$23,2,FALSE)) -> 1 | O104: 985800 | P104: Crown Land | R104: =IF(P104="",'Unit Rates - Land'!landcst,IF($E$8="Landuse",VLOOKUP(P104,LAndcost3,2,FALSE),IF($E$8="Location",VLOOKUP(P104,Landcost2,2,FALSE),"Error"))) -> 0 | S104: 0 | T104: 2011 | U104: =IFERROR(('General Input Sheet'!$G$38/(VLOOKUP('Existing Trunk Assets - Water'!T104,'General Input Sheet'!$E$38:$G$44,3,FALSE))),1) -> 1 | V104: 985800 | W104: y | X104: y | Y104: y | Z104: y | AA104: y | AB104: y | AC104: y | AD104: y | AE104: y | AF104: y | AG104: y | AH104: y | AI104: y | AJ104: y | AK104: y | AL104: y | AM104: y | AN104: y | AO104: y | AP104: y | AQ104: y | AR104: y | BB104: 5479.33063 | BC104: 928.3702909 | BD104: 1083.843286 | BE104: 956.8209732 | BF104: 575.6795871 | BG104: 365.8833822 | BH104: 462.6229889 | BI104: 947.5 | BJ104: 246 | BK104: 71.80956371 | BL104: 750.6675466 | BM104: 912.0484283 | BN104: 352.9534753 | BO104: 2899.561519 | BP104: 1566.570638 | BQ104: 379.4352564 | BR104: 144 | BS104: 476.4963074 | BT104: 96.00269134 | BU104: 134 | BV104: 104 | BW104: 270.324288 | CF104: 19203.92085 | CH104: 281271.9432 | CI104: 47656.28018 | CJ104: 55637.21699 | CK104: 49116.74666 | CL104: 29551.51405 | CM104: 18781.98942 | CN104: 23747.94949 | CO104: 48638.27065 | CP104: 12627.98373 | CQ104: 3686.21952 | CR104: 38534.21773 | CS104: 46818.42565 | CT104: 18118.25505 | CU104: 148843.9662 | CV104: 80417.1891 | CW104: 19477.65139 | CX104: 7391.990474 | CY104: 24460.11226 | CZ104: 4928.131805 | DA104: 6878.657802 | DB104: 5338.659787 | DC104: 13876.6289 | DN104: 985800
B105: Woodbury | D105: Active | E105: TWTP MD | F105: CCW TMD Woodbury WTP | H105: Res, BPS and WTP | I105: 1 | J105: WTP | K105: 10200000 | L105: 10200000 | M105: nominal | N105: =IF(M105="",1,VLOOKUP(M105,'Unit Rates - Water'!$H$12:$I$23,2,FALSE)) -> 1 | O105: 10200000 | P105: Rural Grazing unFlooded m2 | Q105: 2 | R105: =IF(P105="",'Unit Rates - Land'!landcst,IF($E$8="Landuse",VLOOKUP(P105,LAndcost3,2,FALSE),IF($E$8="Location",VLOOKUP(P105,Landcost2,2,FALSE),"Error"))) -> 0.7 | S105: 14000 | T105: 2011 | U105: =IFERROR(('General Input Sheet'!$G$38/(VLOOKUP('Existing Trunk Assets - Water'!T105,'General Input Sheet'!$E$38:$G$44,3,FALSE))),1) -> 1 | V105: 10214000 | W105: y | X105: y | Y105: y | Z105: y | AA105: y | AB105: y | AC105: y | AD105: y | AE105: y | AF105: y | AG105: y | AH105: y | AI105: y | AJ105: y | AK105: y | AL105: y | AM105: y | AN105: y | AO105: y | AP105: y | AQ105: y | AR105: y | BB105: 5479.33063 | BC105: 928.3702909 | BD105: 1083.843286 | BE105: 956.8209732 | BF105: 575.6795871 | BG105: 365.8833822 | BH105: 462.6229889 | BI105: 947.5 | BJ105: 246 | BK105: 71.80956371 | BL105: 750.6675466 | BM105: 912.0484283 | BN105: 352.9534753 | BO105: 2899.561519 | BP105: 1566.570638 | BQ105: 379.4352564 | BR105: 144 | BS105: 476.4963074 | BT105: 96.00269134 | BU105: 134 | BV105: 104 | BW105: 270.324288 | CF105: 19203.92085 | CH105: 2914294.611 | CI105: 493772.8198 | CJ105: 576464.3278 | CK105: 508904.9 | CL105: 306187.0202 | CM105: 194602.5968 | CN105: 246055.5448 | CO105: 503947.3488 | CP105: 130840.156 | CQ105: 38193.39235 | CR105: 399257.963 | CS105: 485091.7018 | CT105: 187725.56 | CU105: 1542191.388 | CV105: 833212.7911 | CW105: 201810.4396 | CX105: 76589.35961 | CY105: 253434.3544 | CZ105: 51061.00452 | DA105: 71270.65408 | DB105: 55314.53749 | DC105: 143777.5285 | DN105: 10214000
B106: Emu Park | D106: Active | E106: TRES MD | F106: CCW MD Emu Park | H106: Res, BPS and WTP | I106: 1 | J106: 2ML Reservoir | K106: 1020000 | L106: =K106*I106 -> 1020000 | M106: nominal | N106: =IF(M106="",1,VLOOKUP(M106,'Unit Rates - Water'!$H$12:$I$23,2,FALSE)) -> 1 | O106: 1020000 | P106: Water Reservoir 50 x 50 ea | Q106: 0.25 | R106: =IF(P106="",'Unit Rates - Land'!landcst,IF($E$8="Landuse",VLOOKUP(P106,LAndcost3,2,FALSE),IF($E$8="Location",VLOOKUP(P106,Landcost2,2,FALSE),"Error"))) -> 5 | S106: 12500 | T106: 2011 | U106: =IFERROR(('General Input Sheet'!$G$38/(VLOOKUP('Existing Trunk Assets - Water'!T106,'General Input Sheet'!$E$38:$G$44,3,FALSE))),1) -> 1 | V106: 1032500 | W106: y | X106: y | Y106: y | Z106: y | AA106: y | AB106: y | AC106: y | AD106: y | AE106: y | AF106: y | AG106: y | AH106: y | AI106: y | AJ106: y | AK106: y | AL106: y | AM106: y | AN106: y | AO106: y | AP106: y | AQ106: y | AR106: y | BB106: 5479.33063 | BC106: 928.3702909 | BD106: 1083.843286 | BE106: 956.8209732 | BF106: 575.6795871 | BG106: 365.8833822 | BH106: 462.6229889 | BI106: 947.5 | BJ106: 246 | BK106: 71.80956371 | BL106: 750.6675466 | BM106: 912.0484283 | BN106: 352.9534753 | BO106: 2899.561519 | BP106: 1566.570638 | BQ106: 379.4352564 | BR106: 144 | BS106: 476.4963074 | BT106: 96.00269134 | BU106: 134 | BV106: 104 | BW106: 270.324288 | CF106: 19203.92085 | CH106: 294596.5524 | CI106: 49913.88648 | CJ106: 58272.90175 | CK106: 51443.53918 | CL106: 30951.44883 | CM106: 19671.74282 | CN106: 24872.95379 | CO106: 50942.39648 | CP106: 13226.20531 | CQ106: 3860.845663 | CR106: 40359.68737 | CS106: 49036.34052 | CT106: 18976.56557 | CU106: 155895.1056 | CV106: 84226.76785 | CW106: 20400.36018 | CX106: 7742.168963 | CY106: 25618.85363 | CZ106: 5161.590676 | DA106: 7204.518341 | DB106: 5591.566474 | DC106: 14534.00217 | DN106: 1032500
B107: Woodbury | D107: Active | E107: TDam AD | F107: CCW AD Kelly's Offstream Storage | H107: Res, BPS and WTP | I107: 1 | J107: KOSS | K107: 7225000 | L107: 7225000 | M107: nominal | N107: =IF(M107="",1,VLOOKUP(M107,'Unit Rates - Water'!$H$12:$I$23,2,FALSE)) -> 1 | O107: 7225000 | P107: Rural Grazing Flooded m2 | Q107: 50 | R107: =IF(P107="",'Unit Rates - Land'!landcst,IF($E$8="Landuse",VLOOKUP(P107,LAndcost3,2,FALSE),IF($E$8="Location",VLOOKUP(P107,Landcost2,2,FALSE),"Error"))) -> 0.1 | S107: 50000 | T107: 2011 | U107: =IFERROR(('General Input Sheet'!$G$38/(VLOOKUP('Existing Trunk Assets - Water'!T107,'General Input Sheet'!$E$38:$G$44,3,FALSE))),1) -> 1 | V107: 7275000 | W107: y | X107: y | Y107: y | Z107: y | AA107: y | AB107: y | AC107: y | AD107: y | AE107: y | AF107: y | AG107: y | AH107: y | AI107: y | AJ107: y | AK107: y | AL107: y | AM107: y | AN107: y | AO107: y | AP107: y | AQ107: y | AR107: y | BB107: 5479.33063 | BC107: 928.3702909 | BD107: 1083.843286 | BE107: 956.8209732 | BF107: 575.6795871 | BG107: 365.8833822 | BH107: 462.6229889 | BI107: 947.5 | BJ107: 246 | BK107: 71.80956371 | BL107: 750.6675466 | BM107: 912.0484283 | BN107: 352.9534753 | BO107: 2899.561519 | BP107: 1566.570638 | BQ107: 379.4352564 | BR107: 144 | BS107: 476.4963074 | BT107: 96.00269134 | BU107: 134 | BV107: 104 | BW107: 270.324288 | CF107: 19203.92085 | CH107: 2075728.735 | CI107: 351693.4858 | CJ107: 410591.1479 | CK107: 362471.4262 | CL107: 218084.0584 | CM107: 138607.1952 | CN107: 175254.9529 | CO107: 358940.3723 | CP107: 93191.90668 | CQ107: 27203.53724 | CR107: 284374.5527 | CS107: 345510.2928 | CT107: 133708.9729 | CU107: 1098437.669 | CV107: 593462.2142 | CW107: 143741.0366 | CX107: 54551.36001 | CY107: 180510.5667 | CZ107: 36368.5929 | DA107: 50763.07112 | DB107: 39398.20445 | DC107: 102406.6497 | DN107: 7275000
B108: Keppel Sands | D108: Active | E108: TRES MD | F108: CCW MD Keppel Sands Res | H108: Res, BPS and WTP | I108: 1 | J108: 0.68ML Reservoir | K108: 510000 | L108: 510000 | M108: nominal | N108: =IF(M108="",1,VLOOKUP(M108,'Unit Rates - Water'!$H$12:$I$23,2,FALSE)) -> 1 | O108: 510000 | P108: Crown Land | R108: =IF(P108="",'Unit Rates - Land'!landcst,IF($E$8="Landuse",VLOOKUP(P108,LAndcost3,2,FALSE),IF($E$8="Location",VLOOKUP(P108,Landcost2,2,FALSE),"Error"))) -> 0 | S108: 0 | T108: 2011 | U108: =IFERROR(('General Input Sheet'!$G$38/(VLOOKUP('Existing Trunk Assets - Water'!T108,'General Input Sheet'!$E$38:$G$44,3,FALSE))),1) -> 1 | V108: 510000 | W108: y | X108: y | Y108: y | Z108: y | AA108: y | AB108: y | AC108: y | AD108: y | AE108: y | AF108: y | AG108: y | AH108: y | AI108: y | AJ108: y | AK108: y | AL108: y | AM108: y | AN108: y | AO108: y | AP108: y | AQ108: y | AR108: y | BB108: 5479.33063 | BC108: 928.3702909 | BD108: 1083.843286 | BE108: 956.8209732 | BF108: 575.6795871 | BG108: 365.8833822 | BH108: 462.6229889 | BI108: 947.5 | BJ108: 246 | BK108: 71.80956371 | BL108: 750.6675466 | BM108: 912.0484283 | BN108: 352.9534753 | BO108: 2899.561519 | BP108: 1566.570638 | BQ108: 379.4352564 | BR108: 144 | BS108: 476.4963074 | BT108: 96.00269134 | BU108: 134 | BV108: 104 | BW108: 270.324288 | CF108: 19203.92085 | CH108: 145515.0041 | CI108: 24654.80107 | CJ108: 28783.70934 | CK108: 25410.36802 | CL108: 15288.36698 | CM108: 9716.793064 | CN108: 12285.91422 | CO108: 25162.83022 | CP108: 6533.040881 | CQ108: 1907.052095 | CR108: 19935.53565 | CS108: 24221.34011 | CT108: 9373.412533 | CU108: 77003.8778 | CV108: 41603.53666 | CW108: 10076.69123 | CX108: 3824.219052 | CY108: 12654.34901 | CZ108: 2549.550842 | DA108: 3558.648285 | DB108: 2761.935982 | DC108: 7179.022865 | DN108: 510000
B109: Lammermoor | D109: Active | E109: TRES MD | F109: CCW MD Lammermoor | H109: Res, BPS and WTP | I109: 1 | J109: 4ML Reservoir | K109: 1275000 | L109: 1275000 | M109: nominal | N109: =IF(M109="",1,VLOOKUP(M109,'Unit Rates - Water'!$H$12:$I$23,2,FALSE)) -> 1 | O109: 1275000 | P109: Water Reservoir 50 x 50 ea | Q109: 0.25 | R109: =IF(P109="",'Unit Rates - Land'!landcst,IF($E$8="Landuse",VLOOKUP(P109,LAndcost3,2,FALSE),IF($E$8="Location",VLOOKUP(P109,Landcost2,2,FALSE),"Error"))) -> 5 | S109: 12500 | T109: 2011 | U109: =IFERROR(('General Input Sheet'!$G$38/(VLOOKUP('Existing Trunk Assets - Water'!T109,'General Input Sheet'!$E$38:$G$44,3,FALSE))),1) -> 1 | V109: 1287500 | W109: y | X109: y | Y109: y | Z109: y | AA109: y | AB109: y | AC109: y | AD109: y | AE109: y | AF109: y | AG109: y | AH109: y | AI109: y | AJ109: y | AK109: y | AL109: y | AM109: y | AN109: y | AO109: y | AP109: y | AQ109: y | AR109: y | BB109: 5479.33063 | BC109: 928.3702909 | BD109: 1083.843286 | BE109: 956.8209732 | BF109: 575.6795871 | BG109: 365.8833822 | BH109: 462.6229889 | BI109: 947.5 | BJ109: 246 | BK109: 71.80956371 | BL109: 750.6675466 | BM109: 912.0484283 | BN109: 352.9534753 | BO109: 2899.561519 | BP109: 1566.570638 | BQ109: 379.4352564 | BR109: 144 | BS109: 476.4963074 | BT109: 96.00269134 | BU109: 134 | BV109: 104 | BW109: 270.324288 | CF109: 19203.92085 | CH109: 367354.0544 | CI109: 62241.28701 | CJ109: 72664.75641 | CK109: 64148.72319 | CL109: 38595.63232 | CM109: 24530.13935 | CN109: 31015.9109 | CO109: 63523.81159 | CP109: 16492.72575 | CQ109: 4814.37171 | CR109: 50327.4552 | CS109: 61147.01058 | CT109: 23663.27184 | CU109: 194397.0445 | CV109: 105028.5362 | CW109: 25438.70579 | CX109: 9654.27849 | CY109: 31946.02813 | CZ109: 6436.366097 | DA109: 8983.842483 | DB109: 6972.534465 | DC109: 18123.51361 | DN109: 1287500
B110: Meikleville Hill | D110: Active | E110: TRES MD | F110: CCW MD Meikleville Hill Res | H110: Res, BPS and WTP | I110: 1 | J110: 0.45ML Reservoir | K110: 425000 | L110: 425000 | M110: nominal | N110: =IF(M110="",1,VLOOKUP(M110,'Unit Rates - Water'!$H$12:$I$23,2,FALSE)) -> 1 | O110: 425000 | P110: Water Reservoir 50 x 50 ea | Q110: 0.25 | R110: =IF(P110="",'Unit Rates - Land'!landcst,IF($E$8="Landuse",VLOOKUP(P110,LAndcost3,2,FALSE),IF($E$8="Location",VLOOKUP(P110,Landcost2,2,FALSE),"Error"))) -> 5 | S110: 12500 | T110: 2011 | U110: =IFERROR(('General Input Sheet'!$G$38/(VLOOKUP('Existing Trunk Assets - Water'!T110,'General Input Sheet'!$E$38:$G$44,3,FALSE))),1) -> 1 | V110: 437500 | W110: y | X110: y | Y110: y | Z110: y | AA110: y | AB110: y | AC110: y | AD110: y | AE110: y | AF110: y | AG110: y | AH110: y | AI110: y | AJ110: y | AK110: y | AL110: y | AM110: y | AN110: y | AO110: y | AP110: y | AQ110: y | AR110: y | BB110: 5479.33063 | BC110: 928.3702909 | BD110: 1083.843286 | BE110: 956.8209732 | BF110: 575.6795871 | BG110: 365.8833822 | BH110: 462.6229889 | BI110: 947.5 | BJ110: 246 | BK110: 71.80956371 | BL110: 750.6675466 | BM110: 912.0484283 | BN110: 352.9534753 | BO110: 2899.561519 | BP110: 1566.570638 | BQ110: 379.4352564 | BR110: 144 | BS110: 476.4963074 | BT110: 96.00269134 | BU110: 134 | BV110: 104 | BW110: 270.324288 | CF110: 19203.92085 | CH110: 124829.0476 | CI110: 21149.9519 | CJ110: 24691.90752 | CK110: 21798.10982 | CL110: 13115.02069 | CM110: 8335.484246 | CN110: 10539.3872 | CO110: 21585.76122 | CP110: 5604.324285 | CQ110: 1635.951552 | CR110: 17101.56245 | CS110: 20778.11039 | CT110: 8040.917614 | CU110: 66057.24812 | CV110: 35689.30841 | CW110: 8644.220414 | CX110: 3280.580069 | CY110: 10855.44645 | CZ110: 2187.114693 | DA110: 3052.762009 | DB110: 2369.307828 | DC110: 6158.475497 | DN110: 437500
B111: Pacific Heights | D111: Active | E111: TRES MD | F111: CCW MD Pacific Hts Res | H111: Res, BPS and WTP | I111: 1 | J111: 4ML Reservoir | K111: 1275000 | L111: 1275000 | M111: nominal | N111: =IF(M111="",1,VLOOKUP(M111,'Unit Rates - Water'!$H$12:$I$23,2,FALSE)) -> 1 | O111: 1275000 | P111: Water Reservoir 50 x 50 ea | Q111: 0.25 | R111: =IF(P111="",'Unit Rates - Land'!landcst,IF($E$8="Landuse",VLOOKUP(P111,LAndcost3,2,FALSE),IF($E$8="Location",VLOOKUP(P111,Landcost2,2,FALSE),"Error"))) -> 5 | S111: 12500 | T111: 2011 | U111: =IFERROR(('General Input Sheet'!$G$38/(VLOOKUP('Existing Trunk Assets - Water'!T111,'General Input Sheet'!$E$38:$G$44,3,FALSE))),1) -> 1 | V111: 1287500 | W111: y | X111: y | Y111: y | Z111: y | AA111: y | AB111: y | AC111: y | AD111: y | AE111: y | AF111: y | AG111: y | AH111: y | AI111: y | AJ111: y | AK111: y | AL111: y | AM111: y | AN111: y | AO111: y | AP111: y | AQ111: y | AR111: y | BB111: 5479.33063 | BC111: 928.3702909 | BD111: 1083.843286 | BE111: 956.8209732 | BF111: 575.6795871 | BG111: 365.8833822 | BH111: 462.6229889 | BI111: 947.5 | BJ111: 246 | BK111: 71.80956371 | BL111: 750.6675466 | BM111: 912.0484283 | BN111: 352.9534753 | BO111: 2899.561519 | BP111: 1566.570638 | BQ111: 379.4352564 | BR111: 144 | BS111: 476.4963074 | BT111: 96.00269134 | BU111: 134 | BV111: 104 | BW111: 270.324288 | CF111: 19203.92085 | CH111: 367354.0544 | CI111: 62241.28701 | CJ111: 72664.75641 | CK111: 64148.72319 | CL111: 38595.63232 | CM111: 24530.13935 | CN111: 31015.9109 | CO111: 63523.81159 | CP111: 16492.72575 | CQ111: 4814.37171 | CR111: 50327.4552 | CS111: 61147.01058 | CT111: 23663.27184 | CU111: 194397.0445 | CV111: 105028.5362 | CW111: 25438.70579 | CX111: 9654.27849 | CY111: 31946.02813 | CZ111: 6436.366097 | DA111: 8983.842483 | DB111: 6972.534465 | DC111: 18123.51361 | DN111: 1287500
B112: Zilzie | D112: Active | E112: TRES MD | F112: CCW MD Seaspray Tank | H112: Res, BPS and WTP | I112: 1 | J112: 1ML Reservoir | K112: 680000 | L112: 680000 | M112: nominal | N112: =IF(M112="",1,VLOOKUP(M112,'Unit Rates - Water'!$H$12:$I$23,2,FALSE)) -> 1 | O112: 680000 | P112: Water Reservoir 50 x 50 ea | Q112: 0.25 | R112: =IF(P112="",'Unit Rates - Land'!landcst,IF($E$8="Landuse",VLOOKUP(P112,LAndcost3,2,FALSE),IF($E$8="Location",VLOOKUP(P112,Landcost2,2,FALSE),"Error"))) -> 5 | S112: 12500 | T112: 2011 | U112: =IFERROR(('General Input Sheet'!$G$38/(VLOOKUP('Existing Trunk Assets - Water'!T112,'General Input Sheet'!$E$38:$G$44,3,FALSE))),1) -> 1 | V112: 692500 | W112: y | X112: y | Y112: y | Z112: y | AA112: y | AB112: y | AC112: y | AD112: y | AE112: y | AF112: y | AG112: y | AH112: y | AI112: y | AJ112: y | AK112: y | AL112: y | AM112: y | AN112: y | AO112: y | AP112: y | AQ112: y | AR112: y | BB112: 5479.33063 | BC112: 928.3702909 | BD112: 1083.843286 | BE112: 956.8209732 | BF112: 575.6795871 | BG112: 365.8833822 | BH112: 462.6229889 | BI112: 947.5 | BJ112: 246 | BK112: 71.80956371 | BL112: 750.6675466 | BM112: 912.0484283 | BN112: 352.9534753 | BO112: 2899.561519 | BP112: 1566.570638 | BQ112: 379.4352564 | BR112: 144 | BS112: 476.4963074 | BT112: 96.00269134 | BU112: 134 | BV112: 104 | BW112: 270.324288 | CF112: 19203.92085 | CH112: 197586.5497 | CI112: 33477.35243 | CJ112: 39083.76219 | CK112: 34503.29383 | CL112: 20759.20418 | CM112: 13193.88078 | CN112: 16682.34431 | CO112: 34167.17633 | CP112: 8870.844725 | CQ112: 2589.477599 | CR112: 27069.33027 | CS112: 32888.78045 | CT112: 12727.62388 | CU112: 104559.187 | CV112: 56491.07674 | CW112: 13682.56603 | CX112: 5192.689595 | CY112: 17182.62096 | CZ112: 3461.890114 | DA112: 4832.086151 | DB112: 3750.275819 | DC112: 9747.98693 | DN112: 692500
B113: Yeppoon | D113: Active | E113: TRES MD | F113: CCW MD St Faith's Res No. 1 | H113: Res, BPS and WTP | I113: 1 | J113: 2ML Reservoir | K113: 1020000 | L113: 1020000 | M113: nominal | N113: =IF(M113="",1,VLOOKUP(M113,'Unit Rates - Water'!$H$12:$I$23,2,FALSE)) -> 1 | O113: 1020000 | P113: Water Reservoir 50 x 50 ea | Q113: 0.25 | R113: =IF(P113="",'Unit Rates - Land'!landcst,IF($E$8="Landuse",VLOOKUP(P113,LAndcost3,2,FALSE),IF($E$8="Location",VLOOKUP(P113,Landcost2,2,FALSE),"Error"))) -> 5 | S113: 12500 | T113: 2011 | U113: =IFERROR(('General Input Sheet'!$G$38/(VLOOKUP('Existing Trunk Assets - Water'!T113,'General Input Sheet'!$E$38:$G$44,3,FALSE))),1) -> 1 | V113: 1032500 | W113: y | X113: y | Y113: y | Z113: y | AA113: y | AB113: y | AC113: y | AD113: y | AE113: y | AF113: y | AG113: y | AH113: y | AI113: y | AJ113: y | AK113: y | AL113: y | AM113: y | AN113: y | AO113: y | AP113: y | AQ113: y | AR113: y | BB113: 5479.33063 | BC113: 928.3702909 | BD113: 1083.843286 | BE113: 956.8209732 | BF113: 575.6795871 | BG113: 365.8833822 | BH113: 462.6229889 | BI113: 947.5 | BJ113: 246 | BK113: 71.80956371 | BL113: 750.6675466 | BM113: 912.0484283 | BN113: 352.9534753 | BO113: 2899.561519 | BP113: 1566.570638 | BQ113: 379.4352564 | BR113: 144 | BS113: 476.4963074 | BT113: 96.00269134 | BU113: 134 | BV113: 104 | BW113: 270.324288 | CF113: 19203.92085 | CH113: 294596.5524 | CI113: 49913.88648 | CJ113: 58272.90175 | CK113: 51443.53918 | CL113: 30951.44883 | CM113: 19671.74282 | CN113: 24872.95379 | CO113: 50942.39648 | CP113: 13226.20531 | CQ113: 3860.845663 | CR113: 40359.68737 | CS113: 49036.34052 | CT113: 18976.56557 | CU113: 155895.1056 | CV113: 84226.76785 | CW113: 20400.36018 | CX113: 7742.168963 | CY113: 25618.85363 | CZ113: 5161.590676 | DA113: 7204.518341 | DB113: 5591.566474 | DC113: 14534.00217 | DN113: 1032500
B114: Yeppoon | D114: Active | E114: TRES MD | F114: CCW MD St Faith's Res No. 2 | H114: Res, BPS and WTP | I114: 1 | J114: 2ML Reservoir | K114: 1020000 | L114: 1020000 | M114: nominal | N114: =IF(M114="",1,VLOOKUP(M114,'Unit Rates - Water'!$H$12:$I$23,2,FALSE)) -> 1 | O114: 1020000 | P114: Water Reservoir 50 x 50 ea | Q114: 0.25 | R114: =IF(P114="",'Unit Rates - Land'!landcst,IF($E$8="Landuse",VLOOKUP(P114,LAndcost3,2,FALSE),IF($E$8="Location",VLOOKUP(P114,Landcost2,2,FALSE),"Error"))) -> 5 | S114: 12500 | T114: 2011 | U114: =IFERROR(('General Input Sheet'!$G$38/(VLOOKUP('Existing Trunk Assets - Water'!T114,'General Input Sheet'!$E$38:$G$44,3,FALSE))),1) -> 1 | V114: 1032500 | W114: y | X114: y | Y114: y | Z114: y | AA114: y | AB114: y | AC114: y | AD114: y | AE114: y | AF114: y | AG114: y | AH114: y | AI114: y | AJ114: y | AK114: y | AL114: y | AM114: y | AN114: y | AO114: y | AP114: y | AQ114: y | AR114: y | BB114: 5479.33063 | BC114: 928.3702909 | BD114: 1083.843286 | BE114: 956.8209732 | BF114: 575.6795871 | BG114: 365.8833822 | BH114: 462.6229889 | BI114: 947.5 | BJ114: 246 | BK114: 71.80956371 | BL114: 750.6675466 | BM114: 912.0484283 | BN114: 352.9534753 | BO114: 2899.561519 | BP114: 1566.570638 | BQ114: 379.4352564 | BR114: 144 | BS114: 476.4963074 | BT114: 96.00269134 | BU114: 134 | BV114: 104 | BW114: 270.324288 | CF114: 19203.92085 | CH114: 294596.5524 | CI114: 49913.88648 | CJ114: 58272.90175 | CK114: 51443.53918 | CL114: 30951.44883 | CM114: 19671.74282 | CN114: 24872.95379 | CO114: 50942.39648 | CP114: 13226.20531 | CQ114: 3860.845663 | CR114: 40359.68737 | CS114: 49036.34052 | CT114: 18976.56557 | CU114: 155895.1056 | CV114: 84226.76785 | CW114: 20400.36018 | CX114: 7742.168963 | CY114: 25618.85363 | CZ114: 5161.590676 | DA114: 7204.518341 | DB114: 5591.566474 | DC114: 14534.00217 | DN114: 1032500
B115: Yeppoon | D115: Active | E115: TRES MD | F115: CCW MD St Faith's Res No. 3 | H115: Res, BPS and WTP | I115: 1 | J115: 2ML Reservoir | K115: 1020000 | L115: 1020000 | M115: nominal | N115: =IF(M115="",1,VLOOKUP(M115,'Unit Rates - Water'!$H$12:$I$23,2,FALSE)) -> 1 | O115: 1020000 | P115: Water Reservoir 50 x 50 ea | Q115: 0.25 | R115: =IF(P115="",'Unit Rates - Land'!landcst,IF($E$8="Landuse",VLOOKUP(P115,LAndcost3,2,FALSE),IF($E$8="Location",VLOOKUP(P115,Landcost2,2,FALSE),"Error"))) -> 5 | S115: 12500 | T115: 2011 | U115: =IFERROR(('General Input Sheet'!$G$38/(VLOOKUP('Existing Trunk Assets - Water'!T115,'General Input Sheet'!$E$38:$G$44,3,FALSE))),1) -> 1 | V115: 1032500 | W115: y | X115: y | Y115: y | Z115: y | AA115: y | AB115: y | AC115: y | AD115: y | AE115: y | AF115: y | AG115: y | AH115: y | AI115: y | AJ115: y | AK115: y | AL115: y | AM115: y | AN115: y | AO115: y | AP115: y | AQ115: y | AR115: y | BB115: 5479.33063 | BC115: 928.3702909 | BD115: 1083.843286 | BE115: 956.8209732 | BF115: 575.6795871 | BG115: 365.8833822 | BH115: 462.6229889 | BI115: 947.5 | BJ115: 246 | BK115: 71.80956371 | BL115: 750.6675466 | BM115: 912.0484283 | BN115: 352.9534753 | BO115: 2899.561519 | BP115: 1566.570638 | BQ115: 379.4352564 | BR115: 144 | BS115: 476.4963074 | BT115: 96.00269134 | BU115: 134 | BV115: 104 | BW115: 270.324288 | CF115: 19203.92085 | CH115: 294596.5524 | CI115: 49913.88648 | CJ115: 58272.90175 | CK115: 51443.53918 | CL115: 30951.44883 | CM115: 19671.74282 | CN115: 24872.95379 | CO115: 50942.39648 | CP115: 13226.20531 | CQ115: 3860.845663 | CR115: 40359.68737 | CS115: 49036.34052 | CT115: 18976.56557 | CU115: 155895.1056 | CV115: 84226.76785 | CW115: 20400.36018 | CX115: 7742.168963 | CY115: 25618.85363 | CZ115: 5161.590676 | DA115: 7204.518341 | DB115: 5591.566474 | DC115: 14534.00217 | DN115: 1032500
B116: Taranganba | D116: Active | E116: TRES MD | F116: CCW MD Taranganba Res | H116: Res, BPS and WTP | I116: 1 | J116: 12ML Reservoir | K116: 2975000 | L116: 2975000 | M116: nominal | N116: =IF(M116="",1,VLOOKUP(M116,'Unit Rates - Water'!$H$12:$I$23,2,FALSE)) -> 1 | O116: 2975000 | P116: Water Reservoir 50 x 50 ea | Q116: 0.5 | R116: =IF(P116="",'Unit Rates - Land'!landcst,IF($E$8="Landuse",VLOOKUP(P116,LAndcost3,2,FALSE),IF($E$8="Location",VLOOKUP(P116,Landcost2,2,FALSE),"Error"))) -> 5 | S116: 25000 | T116: 2011 | U116: =IFERROR(('General Input Sheet'!$G$38/(VLOOKUP('Existing Trunk Assets - Water'!T116,'General Input Sheet'!$E$38:$G$44,3,FALSE))),1) -> 1 | V116: 3000000 | W116: y | X116: y | Y116: y | Z116: y | AA116: y | AB116: y | AC116: y | AD116: y | AE116: y | AF116: y | AG116: y | AH116: y | AI116: y | AJ116: y | AK116: y | AL116: y | AM116: y | AN116: y | AO116: y | AP116: y | AQ116: y | AR116: y | BB116: 5479.33063 | BC116: 928.3702909 | BD116: 1083.843286 | BE116: 956.8209732 | BF116: 575.6795871 | BG116: 365.8833822 | BH116: 462.6229889 | BI116: 947.5 | BJ116: 246 | BK116: 71.80956371 | BL116: 750.6675466 | BM116: 912.0484283 | BN116: 352.9534753 | BO116: 2899.561519 | BP116: 1566.570638 | BQ116: 379.4352564 | BR116: 144 | BS116: 476.4963074 | BT116: 96.00269134 | BU116: 134 | BV116: 104 | BW116: 270.324288 | CF116: 19203.92085 | CH116: 855970.6123 | CI116: 145028.2416 | CJ116: 169315.9373 | CK116: =IF(BE116="","",(BE116/$CF116)*$V116) -> 149472.7531 | CL116: 89931.57046 | CM116: 57157.60626 | CN116: 72270.08366 | CO116: 148016.6484 | CP116: 38429.65224 | CQ116: 11217.9535 | CR116: 117267.8568 | CS116: 142478.4713 | CT116: 55137.72078 | CU116: 452963.9871 | CV116: 244726.6863 | CW116: 59274.65427 | CX116: 22495.40619 | CY116: 74437.3471 | CZ116: 14997.3579 | DA116: 20933.2252 | DB116: 16246.68225 | DC116: 42229.54627 | DK116: =IF(CE116="","",(CE116/$CF116)*$V116) ->  | DN116: 3000000
B117: Byfield | D117: Active | E117: TDam AD | F117: CCW AD Water Park Weir | H117: Res, BPS and WTP | I117: 1 | J117: Weir | K117: 425000 | L117: 425000 | M117: nominal | N117: =IF(M117="",1,VLOOKUP(M117,'Unit Rates - Water'!$H$12:$I$23,2,FALSE)) -> 1 | O117: 425000 | P117: Crown Land | R117: =IF(P117="",'Unit Rates - Land'!landcst,IF($E$8="Landuse",VLOOKUP(P117,LAndcost3,2,FALSE),IF($E$8="Location",VLOOKUP(P117,Landcost2,2,FALSE),"Error"))) -> 0 | S117: 0 | T117: 2011 | U117: =IFERROR(('General Input Sheet'!$G$38/(VLOOKUP('Existing Trunk Assets - Water'!T117,'General Input Sheet'!$E$38:$G$44,3,FALSE))),1) -> 1 | V117: 425000 | W117: y | X117: y | Y117: y | Z117: y | AA117: y | AB117: y | AC117: y | AD117: y | AE117: y | AF117: y | AG117: y | AH117: y | AI117: y | AJ117: y | AK117: y | AL117: y | AM117: y | AN117: y | AO117: y | AP117: y | AQ117: y | AR117: y | BB117: 5479.33063 | BC117: 928.3702909 | BD117: 1083.843286 | BE117: 956.8209732 | BF117: 575.6795871 | BG117: 365.8833822 | BH117: 462.6229889 | BI117: 947.5 | BJ117: 246 | BK117: 71.80956371 | BL117: 750.6675466 | BM117: 912.0484283 | BN117: 352.9534753 | BO117: 2899.561519 | BP117: 1566.570638 | BQ117: 379.4352564 | BR117: 144 | BS117: 476.4963074 | BT117: 96.00269134 | BU117: 134 | BV117: 104 | BW117: 270.324288 | CF117: 19203.92085 | CH117: =IF(BB117="","",(BB117/$CF117)*$V117) -> 121262.5034 | CI117: 20545.66756 | CJ117: 23986.42445 | CK117: 21175.30668 | CL117: 12740.30581 | CM117: 8097.327554 | CN117: 10238.26185 | CO117: 20969.02518 | CP117: 5444.200734 | CQ117: 1589.210079 | CR117: 16612.94638 | CS117: 20184.45009 | CT117: 7811.177111 | CU117: 64169.89817 | CV117: 34669.61389 | CW117: 8397.242688 | CX117: 3186.84921 | CY117: 10545.29084 | CZ117: 2124.625702 | DA117: 2965.540237 | DB117: 2301.613318 | DC117: 5982.519054 | DN117: 425000
B118: Byfield | D118: Active | E118: TRES AD | F118: CCW AD Water Park HL Tank | H118: Res, BPS and WTP | I118: 1 | J118: Tank | K118: 85000 | L118: 85000 | M118: nominal | N118: =IF(M118="",1,VLOOKUP(M118,'Unit Rates - Water'!$H$12:$I$23,2,FALSE)) -> 1 | O118: 85000 | P118: Rural Grazing unFlooded m2 | Q118: 0.5 | R118: =IF(P118="",'Unit Rates - Land'!landcst,IF($E$8="Landuse",VLOOKUP(P118,LAndcost3,2,FALSE),IF($E$8="Location",VLOOKUP(P118,Landcost2,2,FALSE),"Error"))) -> 0.7 | S118: 3500 | T118: 2011 | U118: =IFERROR(('General Input Sheet'!$G$38/(VLOOKUP('Existing Trunk Assets - Water'!T118,'General Input Sheet'!$E$38:$G$44,3,FALSE))),1) -> 1 | V118: 88500 | W118: y | X118: y | Y118: y | Z118: y | AA118: y | AB118: y | AC118: y | AD118: y | AE118: y | AF118: y | AG118: y | AH118: y | AI118: y | AJ118: y | AK118: y | AL118: y | AM118: y | AN118: y | AO118: y | AP118: y | AQ118: y | AR118: y | BB118: 5479.33063 | BC118: 928.3702909 | BD118: 1083.843286 | BE118: 956.8209732 | BF118: 575.6795871 | BG118: 365.8833822 | BH118: 462.6229889 | BI118: 947.5 | BJ118: 246 | BK118: 71.80956371 | BL118: 750.6675466 | BM118: 912.0484283 | BN118: 352.9534753 | BO118: 2899.561519 | BP118: 1566.570638 | BQ118: 379.4352564 | BR118: 144 | BS118: 476.4963074 | BT118: 96.00269134 | BU118: 134 | BV118: 104 | BW118: 270.324288 | CF118: 19203.92085 | CH118: 25251.13306 | CI118: 4278.333127 | CJ118: 4994.82015 | CK118: 4409.446216 | CL118: 2652.981329 | CM118: 1686.149385 | CN118: 2131.967468 | CO118: 4366.491127 | CP118: 1133.674741 | CQ118: 330.9296282 | CR118: 3459.401775 | CS118: 4203.114902 | CT118: 1626.562763 | CU118: 13362.43762 | CV118: 7219.437244 | CW118: 1748.602301 | CX118: 663.6144826 | CY118: 2195.90174 | CZ118: 442.4220579 | DA118: 617.5301435 | DB118: 479.2771263 | DC118: 1245.771615 | DN118: 88500
B119: Bungundarra | D119: Active | E119: TRES MD | F119: CCW MD Woodbury Hts Res | H119: Res, BPS and WTP | I119: 1 | J119: 0.3ML Reservoir | K119: 382000 | L119: 382000 | M119: nominal | N119: =IF(M119="",1,VLOOKUP(M119,'Unit Rates - Water'!$H$12:$I$23,2,FALSE)) -> 1 | O119: 382000 | P119: Water Reservoir 50 x 50 ea | Q119: 0.25 | R119: =IF(P119="",'Unit Rates - Land'!landcst,IF($E$8="Landuse",VLOOKUP(P119,LAndcost3,2,FALSE),IF($E$8="Location",VLOOKUP(P119,Landcost2,2,FALSE),"Error"))) -> 5 | S119: 12500 | T119: 2011 | U119: =IFERROR(('General Input Sheet'!$G$38/(VLOOKUP('Existing Trunk Assets - Water'!T119,'General Input Sheet'!$E$38:$G$44,3,FALSE))),1) -> 1 | V119: 394500 | W119: y | X119: y | Y119: y | Z119: y | AA119: y | AB119: y | AC119: y | AD119: y | AE119: y | AF119: y | AG119: y | AH119: y | AI119: y | AJ119: y | AK119: y | AL119: y | AM119: y | AN119: y | AO119: y | AP119: y | AQ119: y | AR119: y | BB119: 5479.33063 | BC119: 928.3702909 | BD119: 1083.843286 | BE119: 956.8209732 | BF119: 575.6795871 | BG119: 365.8833822 | BH119: 462.6229889 | BI119: 947.5 | BJ119: 246 | BK119: 71.80956371 | BL119: 750.6675466 | BM119: 912.0484283 | BN119: 352.9534753 | BO119: 2899.561519 | BP119: 1566.570638 | BQ119: 379.4352564 | BR119: 144 | BS119: 476.4963074 | BT119: 96.00269134 | BU119: 134 | BV119: 104 | BW119: 270.324288 | CF119: 19203.92085 | CH119: 112560.1355 | CI119: 19071.21377 | CJ119: 22265.04575 | CK119: 19655.66703 | CL119: 11826.00152 | CM119: 7516.225223 | CN119: 9503.516001 | CO119: 19464.18926 | CP119: 5053.49927 | CQ119: 1475.160885 | CR119: 15420.72317 | CS119: 18735.91897 | CT119: 7250.610283 | CU119: 59564.7643 | CV119: 32181.55924 | CW119: 7794.617036 | CX119: 2958.145914 | CY119: 9788.511144 | CZ119: 1972.152563 | DA119: 2752.719114 | DB119: 2136.438716 | DC119: 5553.185334 | DN119: 394500
B120: Woodbury | D120: Active | E120: TRES CWT | F120: CCW Woodbury WTP CWT | H120: Res, BPS and WTP | I120: 1 | J120: Tank | K120: 85000 | L120: 85000 | M120: nominal | N120: =IF(M120="",1,VLOOKUP(M120,'Unit Rates - Water'!$H$12:$I$23,2,FALSE)) -> 1 | O120: 85000 | P120: Water Reservoir 50 x 50 ea | Q120: 0.1 | R120: =IF(P120="",'Unit Rates - Land'!landcst,IF($E$8="Landuse",VLOOKUP(P120,LAndcost3,2,FALSE),IF($E$8="Location",VLOOKUP(P120,Landcost2,2,FALSE),"Error"))) -> 5 | S120: 5000 | T120: 2011 | U120: =IFERROR(('General Input Sheet'!$G$38/(VLOOKUP('Existing Trunk Assets - Water'!T120,'General Input Sheet'!$E$38:$G$44,3,FALSE))),1) -> 1 | V120: 90000 | W120: y | X120: y | Y120: y | Z120: y | AA120: y | AB120: y | AC120: y | AD120: y | AE120: y | AF120: y | AG120: y | AH120: y | AI120: y | AJ120: y | AK120: y | AL120: y | AM120: y | AN120: y | AO120: y | AP120: y | AQ120: y | AR120: y | BB120: 5479.33063 | BC120: 928.3702909 | BD120: 1083.843286 | BE120: 956.8209732 | BF120: 575.6795871 | BG120: 365.8833822 | BH120: 462.6229889 | BI120: 947.5 | BJ120: 246 | BK120: 71.80956371 | BL120: 750.6675466 | BM120: 912.0484283 | BN120: 352.9534753 | BO120: 2899.561519 | BP120: 1566.570638 | BQ120: 379.4352564 | BR120: 144 | BS120: 476.4963074 | BT120: 96.00269134 | BU120: 134 | BV120: 104 | BW120: 270.324288 | CF120: 19203.92085 | CH120: 25679.11837 | CI120: 4350.847247 | CJ120: 5079.478118 | CK120: 4484.182592 | CL120: 2697.947114 | CM120: 1714.728188 | CN120: 2168.10251 | CO120: 4440.499451 | CP120: 1152.889567 | CQ120: 336.538605 | CR120: 3518.035703 | CS120: 4274.354138 | CT120: 1654.131623 | CU120: 13588.91961 | CV120: 7341.800588 | CW120: 1778.239628 | CX120: 674.8621857 | CY120: 2233.120413 | CZ120: 449.9207369 | DA120: 627.9967561 | DB120: 487.4004674 | DC120: 1266.886388 | DL120: ERROR | DN120: 90000
B121: Woodbury | D121: Active | E121: TWTP MD | F121: CCW Woodbury WTP Inlet | H121: Res, BPS and WTP | I121: 1 | J121: WTP Inlet | K121: 85000 | L121: 85000 | M121: nominal | N121: =IF(M121="",1,VLOOKUP(M121,'Unit Rates - Water'!$H$12:$I$23,2,FALSE)) -> 1 | O121: 85000 | P121: Rural Grazing Flooded m2 | Q121: 2 | R121: =IF(P121="",'Unit Rates - Land'!landcst,IF($E$8="Landuse",VLOOKUP(P121,LAndcost3,2,FALSE),IF($E$8="Location",VLOOKUP(P121,Landcost2,2,FALSE),"Error"))) -> 0.1 | S121: 2000 | T121: 2011 | U121: =IFERROR(('General Input Sheet'!$G$38/(VLOOKUP('Existing Trunk Assets - Water'!T121,'General Input Sheet'!$E$38:$G$44,3,FALSE))),1) -> 1 | V121: 87000 | W121: y | X121: y | Y121: y | Z121: y | AA121: y | AB121: y | AC121: y | AD121: y | AE121: y | AF121: y | AG121: y | AH121: y | AI121: y | AJ121: y | AK121: y | AL121: y | AM121: y | AN121: y | AO121: y | AP121: y | AQ121: y | AR121: y | BB121: 5479.33063 | BC121: 928.3702909 | BD121: 1083.843286 | BE121: 956.8209732 | BF121: 575.6795871 | BG121: 365.8833822 | BH121: 462.6229889 | BI121: 947.5 | BJ121: 246 | BK121: 71.80956371 | BL121: 750.6675466 | BM121: 912.0484283 | BN121: 352.9534753 | BO121: 2899.561519 | BP121: 1566.570638 | BQ121: 379.4352564 | BR121: 144 | BS121: 476.4963074 | BT121: 96.00269134 | BU121: 134 | BV121: 104 | BW121: 270.324288 | CF121: 19203.92085 | CH121: 24823.14776 | CI121: 4205.819006 | CJ121: 4910.162181 | CK121: 4334.709839 | CL121: 2608.015543 | CM121: 1657.570582 | CN121: 2095.832426 | CO121: 4292.482803 | CP121: 1114.459915 | CQ121: 325.3206515 | CR121: 3400.767846 | CS121: 4131.875666 | CT121: 1598.993903 | CU121: 13135.95563 | CV121: 7097.073901 | CW121: 1718.964974 | CX121: 652.3667795 | CY121: 2158.683066 | CZ121: 434.923379 | DA121: 607.0635309 | DB121: 471.1537852 | DC121: 1224.656842 | DN121: 87000
B122: Emu Park | D122: Active | E122: TWPS MH | F122: CCW MH Emu Park HZPS Augm | H122: Res, BPS and WTP | I122: 1 | J122: BPS | K122: 340000 | L122: 340000 | M122: nominal | N122: =IF(M122="",1,VLOOKUP(M122,'Unit Rates - Water'!$H$12:$I$23,2,FALSE)) -> 1 | O122: 340000 | P122: Residential Zoned, unDeveloped m2 | Q122: 0.05 | R122: =IF(P122="",'Unit Rates - Land'!landcst,IF($E$8="Landuse",VLOOKUP(P122,LAndcost3,2,FALSE),IF($E$8="Location",VLOOKUP(P122,Landcost2,2,FALSE),"Error"))) -> 72 | S122: 36000 | T122: 2011 | U122: =IFERROR(('General Input Sheet'!$G$38/(VLOOKUP('Existing Trunk Assets - Water'!T122,'General Input Sheet'!$E$38:$G$44,3,FALSE))),1) -> 1 | V122: 376000 | W122: y | X122: y | Y122: y | Z122: y | AA122: y | AB122: y | AC122: y | AD122: y | AE122: y | AF122: y | AG122: y | AH122: y | AI122: y | AJ122: y | AK122: y | AL122: y | AM122: y | AN122: y | AO122: y | AP122: y | AQ122: y | AR122: y | BB122: 5479.33063 | BC122: 928.3702909 | BD122: 1083.843286 | BE122: 956.8209732 | BF122: 575.6795871 | BG122: 365.8833822 | BH122: 462.6229889 | BI122: 947.5 | BJ122: 246 | BK122: 71.80956371 | BL122: 750.6675466 | BM122: 912.0484283 | BN122: 352.9534753 | BO122: 2899.561519 | BP122: 1566.570638 | BQ122: 379.4352564 | BR122: 144 | BS122: 476.4963074 | BT122: 96.00269134 | BU122: 134 | BV122: 104 | BW122: 270.324288 | CF122: 19203.92085 | CH122: 107281.6501 | CI122: 18176.87294 | CJ122: 21220.93081 | CK122: 18733.91838 | CL122: 11271.4235 | CM122: 7163.753318 | CN122: 9057.850485 | CO122: 18551.41993 | CP122: 4816.516414 | CQ122: 1405.983505 | CR122: 14697.57138 | CS122: 17857.30173 | CT122: 6910.594338 | CU122: 56771.48638 | CV122: 30672.41134 | CW122: 7429.090002 | CX122: 2819.424242 | CY122: 9329.480837 | CZ122: 1879.668856 | DA122: 2623.630892 | DB122: 2036.250842 | DC122: 5292.769799 | DN122: 376000
B123: Kinka Beach | D123: Active | E123: TWPS MD | F123: CCW MD Kinka Beach Booster PS | H123: Res, BPS and WTP | I123: 1 | J123: BPS | K123: 340000 | L123: 340000 | M123: nominal | N123: =IF(M123="",1,VLOOKUP(M123,'Unit Rates - Water'!$H$12:$I$23,2,FALSE)) -> 1 | O123: 340000 | P123: Residential Zoned, unDeveloped m2 | Q123: 0.05 | R123: =IF(P123="",'Unit Rates - Land'!landcst,IF($E$8="Landuse",VLOOKUP(P123,LAndcost3,2,FALSE),IF($E$8="Location",VLOOKUP(P123,Landcost2,2,FALSE),"Error"))) -> 72 | S123: 36000 | T123: 2011 | U123: =IFERROR(('General Input Sheet'!$G$38/(VLOOKUP('Existing Trunk Assets - Water'!T123,'General Input Sheet'!$E$38:$G$44,3,FALSE))),1) -> 1 | V123: 376000 | W123: y | X123: y | Y123: y | Z123: y | AA123: y | AB123: y | AC123: y | AD123: y | AE123: y | AF123: y | AG123: y | AH123: y | AI123: y | AJ123: y | AK123: y | AL123: y | AM123: y | AN123: y | AO123: y | AP123: y | AQ123: y | AR123: y | BB123: 5479.33063 | BC123: 928.3702909 | BD123: 1083.843286 | BE123: 956.8209732 | BF123: 575.6795871 | BG123: 365.8833822 | BH123: 462.6229889 | BI123: 947.5 | BJ123: 246 | BK123: 71.80956371 | BL123: 750.6675466 | BM123: 912.0484283 | BN123: 352.9534753 | BO123: 2899.561519 | BP123: 1566.570638 | BQ123: 379.4352564 | BR123: 144 | BS123: 476.4963074 | BT123: 96.00269134 | BU123: 134 | BV123: 104 | BW123: 270.324288 | CF123: 19203.92085 | CH123: 107281.6501 | CI123: 18176.87294 | CJ123: 21220.93081 | CK123: 18733.91838 | CL123: 11271.4235 | CM123: 7163.753318 | CN123: 9057.850485 | CO123: 18551.41993 | CP123: 4816.516414 | CQ123: 1405.983505 | CR123: 14697.57138 | CS123: 17857.30173 | CT123: 6910.594338 | CU123: 56771.48638 | CV123: 30672.41134 | CW123: 7429.090002 | CX123: 2819.424242 | CY123: 9329.480837 | CZ123: 1879.668856 | DA123: 2623.630892 | DB123: 2036.250842 | DC123: 5292.769799 | DN123: 376000
B124: Tanby | D124: Active | E124: TWPS MH | F124: CCW MH Kinka West HZPS | H124: Res, BPS and WTP | I124: 1 | J124: BPS | K124: 340000 | L124: 340000 | M124: nominal | N124: =IF(M124="",1,VLOOKUP(M124,'Unit Rates - Water'!$H$12:$I$23,2,FALSE)) -> 1 | O124: 340000 | P124: Residential Zoned, unDeveloped m2 | Q124: 0.05 | R124: =IF(P124="",'Unit Rates - Land'!landcst,IF($E$8="Landuse",VLOOKUP(P124,LAndcost3,2,FALSE),IF($E$8="Location",VLOOKUP(P124,Landcost2,2,FALSE),"Error"))) -> 72 | S124: 36000 | T124: 2011 | U124: =IFERROR(('General Input Sheet'!$G$38/(VLOOKUP('Existing Trunk Assets - Water'!T124,'General Input Sheet'!$E$38:$G$44,3,FALSE))),1) -> 1 | V124: 376000 | W124: y | X124: y | Y124: y | Z124: y | AA124: y | AB124: y | AC124: y | AD124: y | AE124: y | AF124: y | AG124: y | AH124: y | AI124: y | AJ124: y | AK124: y | AL124: y | AM124: y | AN124: y | AO124: y | AP124: y | AQ124: y | AR124: y | BB124: 5479.33063 | BC124: 928.3702909 | BD124: 1083.843286 | BE124: 956.8209732 | BF124: 575.6795871 | BG124: 365.8833822 | BH124: 462.6229889 | BI124: 947.5 | BJ124: 246 | BK124: 71.80956371 | BL124: 750.6675466 | BM124: 912.0484283 | BN124: 352.9534753 | BO124: 2899.561519 | BP124: 1566.570638 | BQ124: 379.4352564 | BR124: 144 | BS124: 476.4963074 | BT124: 96.00269134 | BU124: 134 | BV124: 104 | BW124: 270.324288 | CF124: 19203.92085 | CH124: 107281.6501 | CI124: 18176.87294 | CJ124: 21220.93081 | CK124: 18733.91838 | CL124: 11271.4235 | CM124: 7163.753318 | CN124: 9057.850485 | CO124: 18551.41993 | CP124: 4816.516414 | CQ124: 1405.983505 | CR124: 14697.57138 | CS124: 17857.30173 | CT124: 6910.594338 | CU124: 56771.48638 | CV124: 30672.41134 | CW124: 7429.090002 | CX124: 2819.424242 | CY124: 9329.480837 | CZ124: 1879.668856 | DA124: 2623.630892 | DB124: 2036.250842 | DC124: 5292.769799 | DN124: 376000
B125: Yeppoon | D125: Active | E125: TWPS MD | F125: CCW MD Meikleville HZPS | H125: Res, BPS and WTP | I125: 1 | J125: BPS | K125: 340000 | L125: 340000 | M125: nominal | N125: =IF(M125="",1,VLOOKUP(M125,'Unit Rates - Water'!$H$12:$I$23,2,FALSE)) -> 1 | O125: 340000 | P125: Residential Zoned, unDeveloped m2 | Q125: 0.05 | R125: =IF(P125="",'Unit Rates - Land'!landcst,IF($E$8="Landuse",VLOOKUP(P125,LAndcost3,2,FALSE),IF($E$8="Location",VLOOKUP(P125,Landcost2,2,FALSE),"Error"))) -> 72 | S125: 36000 | T125: 2011 | U125: =IFERROR(('General Input Sheet'!$G$38/(VLOOKUP('Existing Trunk Assets - Water'!T125,'General Input Sheet'!$E$38:$G$44,3,FALSE))),1) -> 1 | V125: 376000 | W125: y | X125: y | Y125: y | Z125: y | AA125: y | AB125: y | AC125: y | AD125: y | AE125: y | AF125: y | AG125: y | AH125: y | AI125: y | AJ125: y | AK125: y | AL125: y | AM125: y | AN125: y | AO125: y | AP125: y | AQ125: y | AR125: y | BB125: 5479.33063 | BC125: 928.3702909 | BD125: 1083.843286 | BE125: 956.8209732 | BF125: 575.6795871 | BG125: 365.8833822 | BH125: 462.6229889 | BI125: 947.5 | BJ125: 246 | BK125: 71.80956371 | BL125: 750.6675466 | BM125: 912.0484283 | BN125: 352.9534753 | BO125: 2899.561519 | BP125: 1566.570638 | BQ125: 379.4352564 | BR125: 144 | BS125: 476.4963074 | BT125: 96.00269134 | BU125: 134 | BV125: 104 | BW125: 270.324288 | CF125: 19203.92085 | CH125: 107281.6501 | CI125: 18176.87294 | CJ125: 21220.93081 | CK125: 18733.91838 | CL125: 11271.4235 | CM125: 7163.753318 | CN125: 9057.850485 | CO125: 18551.41993 | CP125: 4816.516414 | CQ125: 1405.983505 | CR125: 14697.57138 | CS125: 17857.30173 | CT125: 6910.594338 | CU125: 56771.48638 | CV125: 30672.41134 | CW125: 7429.090002 | CX125: 2819.424242 | CY125: 9329.480837 | CZ125: 1879.668856 | DA125: 2623.630892 | DB125: 2036.250842 | DC125: 5292.769799 | DN125: 376000
B126: Pacific Heights | D126: Active | E126: TWPS MH | F126: CCW MH Pacific Hts HZPS | H126: Res, BPS and WTP | I126: 1 | J126: BPS | K126: 340000 | L126: 340000 | M126: nominal | N126: =IF(M126="",1,VLOOKUP(M126,'Unit Rates - Water'!$H$12:$I$23,2,FALSE)) -> 1 | O126: 340000 | P126: Residential Zoned, unDeveloped m2 | Q126: 0.05 | R126: =IF(P126="",'Unit Rates - Land'!landcst,IF($E$8="Landuse",VLOOKUP(P126,LAndcost3,2,FALSE),IF($E$8="Location",VLOOKUP(P126,Landcost2,2,FALSE),"Error"))) -> 72 | S126: 36000 | T126: 2011 | U126: =IFERROR(('General Input Sheet'!$G$38/(VLOOKUP('Existing Trunk Assets - Water'!T126,'General Input Sheet'!$E$38:$G$44,3,FALSE))),1) -> 1 | V126: 376000 | W126: y | X126: y | Y126: y | Z126: y | AA126: y | AB126: y | AC126: y | AD126: y | AE126: y | AF126: y | AG126: y | AH126: y | AI126: y | AJ126: y | AK126: y | AL126: y | AM126: y | AN126: y | AO126: y | AP126: y | AQ126: y | AR126: y | BB126: 5479.33063 | BC126: 928.3702909 | BD126: 1083.843286 | BE126: 956.8209732 | BF126: 575.6795871 | BG126: 365.8833822 | BH126: 462.6229889 | BI126: 947.5 | BJ126: 246 | BK126: 71.80956371 | BL126: 750.6675466 | BM126: 912.0484283 | BN126: 352.9534753 | BO126: 2899.561519 | BP126: 1566.570638 | BQ126: 379.4352564 | BR126: 144 | BS126: 476.4963074 | BT126: 96.00269134 | BU126: 134 | BV126: 104 | BW126: 270.324288 | CF126: 19203.92085 | CH126: 107281.6501 | CI126: 18176.87294 | CJ126: 21220.93081 | CK126: 18733.91838 | CL126: 11271.4235 | CM126: 7163.753318 | CN126: 9057.850485 | CO126: 18551.41993 | CP126: 4816.516414 | CQ126: 1405.983505 | CR126: 14697.57138 | CS126: 17857.30173 | CT126: 6910.594338 | CU126: 56771.48638 | CV126: 30672.41134 | CW126: 7429.090002 | CX126: 2819.424242 | CY126: 9329.480837 | CZ126: 1879.668856 | DA126: 2623.630892 | DB126: 2036.250842 | DC126: 5292.769799 | DN126: 376000
B127: Byfield | D127: Active | E127: TWPS AD | F127: CCW AD Waterpark LLPS | H127: Res, BPS and WTP | I127: 1 | J127: Waterpark LLPS | K127: 637000 | L127: 637000 | M127: nominal | N127: =IF(M127="",1,VLOOKUP(M127,'Unit Rates - Water'!$H$12:$I$23,2,FALSE)) -> 1 | O127: 637000 | P127: Crown Land | Q127: 0.05 | R127: =IF(P127="",'Unit Rates - Land'!landcst,IF($E$8="Landuse",VLOOKUP(P127,LAndcost3,2,FALSE),IF($E$8="Location",VLOOKUP(P127,Landcost2,2,FALSE),"Error"))) -> 0 | S127: 0 | T127: 2011 | U127: =IFERROR(('General Input Sheet'!$G$38/(VLOOKUP('Existing Trunk Assets - Water'!T127,'General Input Sheet'!$E$38:$G$44,3,FALSE))),1) -> 1 | V127: 637000 | W127: y | X127: y | Y127: y | Z127: y | AA127: y | AB127: y | AC127: y | AD127: y | AE127: y | AF127: y | AG127: y | AH127: y | AI127: y | AJ127: y | AK127: y | AL127: y | AM127: y | AN127: y | AO127: y | AP127: y | AQ127: y | AR127: y | BB127: 5479.33063 | BC127: 928.3702909 | BD127: 1083.843286 | BE127: 956.8209732 | BF127: 575.6795871 | BG127: 365.8833822 | BH127: 462.6229889 | BI127: 947.5 | BJ127: 246 | BK127: 71.80956371 | BL127: 750.6675466 | BM127: 912.0484283 | BN127: 352.9534753 | BO127: 2899.561519 | BP127: 1566.570638 | BQ127: 379.4352564 | BR127: 144 | BS127: 476.4963074 | BT127: 96.00269134 | BU127: 134 | BV127: 104 | BW127: 270.324288 | CF127: 19203.92085 | CH127: 181751.0933 | CI127: 30794.32996 | CJ127: 35951.41735 | CK127: 31738.0479 | CL127: 19095.47013 | CM127: 12136.46506 | CN127: 15345.34776 | CO127: 31428.86834 | CP127: 8159.896159 | CQ127: 2381.94546 | CR127: 24899.87492 | CS127: 30252.92873 | CT127: 11707.57605 | CU127: 96179.35326 | CV127: 51963.63305 | CW127: 12585.98492 | CX127: 4776.524581 | CY127: 15805.53003 | CZ127: 3184.438993 | DA127: 4444.821485 | DB127: 3449.712197 | DC127: 8966.740324 | DN127: 637000
B128: Byfield | D128: Active | E128: TWPS AD | F128: CCW AD Waterpark HLPS | H128: Res, BPS and WTP | I128: 1 | J128: Waterpark HLPS | K128: 1360000 | L128: 1360000 | M128: nominal | N128: =IF(M128="",1,VLOOKUP(M128,'Unit Rates - Water'!$H$12:$I$23,2,FALSE)) -> 1 | O128: 1360000 | P128: Rural Grazing unFlooded m2 | Q128: 0.05 | R128: =IF(P128="",'Unit Rates - Land'!landcst,IF($E$8="Landuse",VLOOKUP(P128,LAndcost3,2,FALSE),IF($E$8="Location",VLOOKUP(P128,Landcost2,2,FALSE),"Error"))) -> 0.7 | S128: 350 | T128: 2011 | U128: =IFERROR(('General Input Sheet'!$G$38/(VLOOKUP('Existing Trunk Assets - Water'!T128,'General Input Sheet'!$E$38:$G$44,3,FALSE))),1) -> 1 | V128: 1360350 | W128: y | X128: y | Y128: y | Z128: y | AA128: y | AB128: y | AC128: y | AD128: y | AE128: y | AF128: y | AG128: y | AH128: y | AI128: y | AJ128: y | AK128: y | AL128: y | AM128: y | AN128: y | AO128: y | AP128: y | AQ128: y | AR128: y | BB128: 5479.33063 | BC128: 928.3702909 | BD128: 1083.843286 | BE128: 956.8209732 | BF128: 575.6795871 | BG128: 365.8833822 | BH128: 462.6229889 | BI128: 947.5 | BJ128: 246 | BK128: 71.80956371 | BL128: 750.6675466 | BM128: 912.0484283 | BN128: 352.9534753 | BO128: 2899.561519 | BP128: 1566.570638 | BQ128: 379.4352564 | BR128: 144 | BS128: 476.4963074 | BT128: 96.00269134 | BU128: 134 | BV128: 104 | BW128: 270.324288 | CF128: 19203.92085 | CH128: 388139.8741 | CI128: 65763.05614 | CJ128: 76776.31176 | CK128: 67778.41988 | CL128: 40779.47062 | CM128: 25918.11656 | CN128: 32770.86943 | CO128: 67118.1492 | CP128: 17425.92581 | CQ128: 5086.781014 | CR128: 53175.10965 | CS128: 64606.86279 | CT128: 25002.19949 | CU128: 205396.5199 | CV128: 110971.3159 | CW128: 26878.09198 | CX128: 10200.54194 | CY128: 33753.61504 | CZ128: 6800.551938 | DA128: 9492.170969 | DB128: 7367.058065 | DC128: 19148.98775 | DN128: 1360350
B129: Woodbury | D129: Active | E129: TWPS MD | F129: CCW MD Kelly's OSS PS | H129: Res, BPS and WTP | I129: 1 | J129: KOSS PS | K129: 1105000 | L129: 1105000 | M129: nominal | N129: =IF(M129="",1,VLOOKUP(M129,'Unit Rates - Water'!$H$12:$I$23,2,FALSE)) -> 1 | O129: 1105000 | P129: Rural Grazing unFlooded m2 | Q129: 0.05 | R129: =IF(P129="",'Unit Rates - Land'!landcst,IF($E$8="Landuse",VLOOKUP(P129,LAndcost3,2,FALSE),IF($E$8="Location",VLOOKUP(P129,Landcost2,2,FALSE),"Error"))) -> 0.7 | S129: 350 | T129: 2011 | U129: =IFERROR(('General Input Sheet'!$G$38/(VLOOKUP('Existing Trunk Assets - Water'!T129,'General Input Sheet'!$E$38:$G$44,3,FALSE))),1) -> 1 | V129: 1105350 | W129: y | X129: y | Y129: y | Z129: y | AA129: y | AB129: y | AC129: y | AD129: y | AE129: y | AF129: y | AG129: y | AH129: y | AI129: y | AJ129: y | AK129: y | AL129: y | AM129: y | AN129: y | AO129: y | AP129: y | AQ129: y | AR129: y | BB129: 5479.33063 | BC129: 928.3702909 | BD129: 1083.843286 | BE129: 956.8209732 | BF129: 575.6795871 | BG129: 365.8833822 | BH129: 462.6229889 | BI129: 947.5 | BJ129: 246 | BK129: 71.80956371 | BL129: 750.6675466 | BM129: 912.0484283 | BN129: 352.9534753 | BO129: 2899.561519 | BP129: 1566.570638 | BQ129: 379.4352564 | BR129: 144 | BS129: 476.4963074 | BT129: 96.00269134 | BU129: 134 | BV129: 104 | BW129: 270.324288 | CF129: 19203.92085 | CH129: 315382.3721 | CI129: 53435.65561 | CJ129: 62384.45709 | CK129: 55073.23587 | CL129: 33135.28714 | CM129: 21059.72003 | CN129: 26627.91232 | CO129: 54536.73409 | CP129: 14159.40537 | CQ129: 4133.254967 | CR129: 43207.34183 | CS129: 52496.19273 | CT129: 20315.49322 | CU129: 166894.581 | CV129: 90169.54755 | CW129: 21839.74637 | CX129: 8288.43241 | CY129: 27426.44054 | CZ129: 5525.776517 | DA129: 7712.846826 | DB129: 5986.090074 | DC129: 15559.47632 | DN129: 1105350
B130: Yeppoon | D130: Active | E130: TWPS MD | F130: CCW MD St Faith's PS to Taranganba Res | H130: Res, BPS and WTP | I130: 1 | J130: BPS | K130: 340000 | L130: 340000 | M130: nominal | N130: =IF(M130="",1,VLOOKUP(M130,'Unit Rates - Water'!$H$12:$I$23,2,FALSE)) -> 1 | O130: 340000 | P130: Crown Land | Q130: 0.05 | R130: =IF(P130="",'Unit Rates - Land'!landcst,IF($E$8="Landuse",VLOOKUP(P130,LAndcost3,2,FALSE),IF($E$8="Location",VLOOKUP(P130,Landcost2,2,FALSE),"Error"))) -> 0 | S130: 0 | T130: 2011 | U130: =IFERROR(('General Input Sheet'!$G$38/(VLOOKUP('Existing Trunk Assets - Water'!T130,'General Input Sheet'!$E$38:$G$44,3,FALSE))),1) -> 1 | V130: 340000 | W130: y | X130: y | Y130: y | Z130: y | AA130: y | AB130: y | AC130: y | AD130: y | AE130: y | AF130: y | AG130: y | AH130: y | AI130: y | AJ130: y | AK130: y | AL130: y | AM130: y | AN130: y | AO130: y | AP130: y | AQ130: y | AR130: y | BB130: 5479.33063 | BC130: 928.3702909 | BD130: 1083.843286 | BE130: 956.8209732 | BF130: 575.6795871 | BG130: 365.8833822 | BH130: 462.6229889 | BI130: 947.5 | BJ130: 246 | BK130: 71.80956371 | BL130: 750.6675466 | BM130: 912.0484283 | BN130: 352.9534753 | BO130: 2899.561519 | BP130: 1566.570638 | BQ130: 379.4352564 | BR130: 144 | BS130: 476.4963074 | BT130: 96.00269134 | BU130: 134 | BV130: 104 | BW130: 270.324288 | CF130: 19203.92085 | CH130: 97010.00273 | CI130: 16436.53405 | CJ130: 19189.13956 | CK130: 16940.24535 | CL130: 10192.24465 | CM130: 6477.862043 | CN130: 8190.609481 | CO130: 16775.22015 | CP130: 4355.360587 | CQ130: 1271.368063 | CR130: 13290.3571 | CS130: 16147.56008 | CT130: 6248.941689 | CU130: 51335.91854 | CV130: 27735.69111 | CW130: 6717.79415 | CX130: 2549.479368 | CY130: 8436.232672 | CZ130: 1699.700562 | DA130: 2372.43219 | DB130: 1841.290655 | DC130: 4786.015244 | DN130: 340000
B131: Woodbury | D131: Active | E131: TWPS MD | F131: CCW MD Woodbury HLPS | H131: Res, BPS and WTP | I131: 1 | J131: BPS | K131: 340000 | L131: 340000 | M131: nominal | N131: =IF(M131="",1,VLOOKUP(M131,'Unit Rates - Water'!$H$12:$I$23,2,FALSE)) -> 1 | O131: 340000 | P131: Rural Grazing unFlooded m2 | Q131: 0.05 | R131: =IF(P131="",'Unit Rates - Land'!landcst,IF($E$8="Landuse",VLOOKUP(P131,LAndcost3,2,FALSE),IF($E$8="Location",VLOOKUP(P131,Landcost2,2,FALSE),"Error"))) -> 0.7 | S131: 350 | T131: 2011 | U131: =IFERROR(('General Input Sheet'!$G$38/(VLOOKUP('Existing Trunk Assets - Water'!T131,'General Input Sheet'!$E$38:$G$44,3,FALSE))),1) -> 1 | V131: 340350 | W131: y | X131: y | Y131: y | Z131: y | AA131: y | AB131: y | AC131: y | AD131: y | AE131: y | AF131: y | AG131: y | AH131: y | AI131: y | AJ131: y | AK131: y | AL131: y | AM131: y | AN131: y | AO131: y | AP131: y | AQ131: y | AR131: y | BB131: 5479.33063 | BC131: 928.3702909 | BD131: 1083.843286 | BE131: 956.8209732 | BF131: 575.6795871 | BG131: 365.8833822 | BH131: 462.6229889 | BI131: 947.5 | BJ131: 246 | BK131: 71.80956371 | BL131: 750.6675466 | BM131: 912.0484283 | BN131: 352.9534753 | BO131: 2899.561519 | BP131: 1566.570638 | BQ131: 379.4352564 | BR131: 144 | BS131: 476.4963074 | BT131: 96.00269134 | BU131: 134 | BV131: 104 | BW131: 270.324288 | CF131: 19203.92085 | CH131: 97109.86596 | CI131: 16453.45401 | CJ131: 19208.89308 | CK131: 16957.68384 | CL131: 10202.73667 | CM131: 6484.53043 | CN131: 8199.040991 | CO131: 16792.48876 | CP131: 4359.844047 | CQ131: 1272.676824 | CR131: 13304.03835 | CS131: 16164.18256 | CT131: 6255.374423 | CU131: 51388.76433 | CV131: 27764.24256 | CW131: 6724.709527 | CX131: 2552.103832 | CY131: 8444.917029 | CZ131: 1701.450253 | DA131: 2374.874399 | DB131: 1843.186101 | DC131: 4790.942024 | DN131: 340350
B132: Yeppoon | D132: Active | E132: TWPS MH | F132: CCW MH Yeppoon West HZ | H132: Res, BPS and WTP | I132: 1 | J132: BPS | K132: 340000 | L132: 340000 | M132: nominal | N132: =IF(M132="",1,VLOOKUP(M132,'Unit Rates - Water'!$H$12:$I$23,2,FALSE)) -> 1 | O132: 340000 | P132: Crown Land | Q132: 0.05 | R132: =IF(P132="",'Unit Rates - Land'!landcst,IF($E$8="Landuse",VLOOKUP(P132,LAndcost3,2,FALSE),IF($E$8="Location",VLOOKUP(P132,Landcost2,2,FALSE),"Error"))) -> 0 | S132: 0 | T132: 2011 | U132: =IFERROR(('General Input Sheet'!$G$38/(VLOOKUP('Existing Trunk Assets - Water'!T132,'General Input Sheet'!$E$38:$G$44,3,FALSE))),1) -> 1 | V132: 340000 | W132: y | X132: y | Y132: y | Z132: y | AA132: y | AB132: y | AC132: y | AD132: y | AE132: y | AF132: y | AG132: y | AH132: y | AI132: y | AJ132: y | AK132: y | AL132: y | AM132: y | AN132: y | AO132: y | AP132: y | AQ132: y | AR132: y | BB132: 5479.33063 | BC132: 928.3702909 | BD132: 1083.843286 | BE132: 956.8209732 | BF132: 575.6795871 | BG132: 365.8833822 | BH132: 462.6229889 | BI132: 947.5 | BJ132: 246 | BK132: 71.80956371 | BL132: 750.6675466 | BM132: 912.0484283 | BN132: 352.9534753 | BO132: 2899.561519 | BP132: 1566.570638 | BQ132: 379.4352564 | BR132: 144 | BS132: 476.4963074 | BT132: 96.00269134 | BU132: 134 | BV132: 104 | BW132: 270.324288 | CF132: 19203.92085 | CH132: 97010.00273 | CI132: 16436.53405 | CJ132: 19189.13956 | CK132: 16940.24535 | CL132: 10192.24465 | CM132: 6477.862043 | CN132: 8190.609481 | CO132: 16775.22015 | CP132: 4355.360587 | CQ132: 1271.368063 | CR132: 13290.3571 | CS132: 16147.56008 | CT132: 6248.941689 | CU132: 51335.91854 | CV132: 27735.69111 | CW132: 6717.79415 | CX132: 2549.479368 | CY132: 8436.232672 | CZ132: 1699.700562 | DA132: 2372.43219 | DB132: 1841.290655 | DC132: 4786.015244 | DN132: 340000
B133: Ogmore | D133: Passive | E133: TM AD | F133: OGW 100 TAD Rising Main | H133: mPVC (to 450mm) and DICL Trunk Watermains | I133: 5500 | J133: 100 | K133: 260 | L133: 1430000 | M133: nominal | N133: =IF(M133="",1,VLOOKUP(M133,'Unit Rates - Water'!$H$12:$I$23,2,FALSE)) -> 1 | O133: 1430000 | P133: Crown Land | R133: =IF(P133="",'Unit Rates - Land'!landcst,IF($E$8="Landuse",VLOOKUP(P133,LAndcost3,2,FALSE),IF($E$8="Location",VLOOKUP(P133,Landcost2,2,FALSE),"Error"))) -> 0 | S133: 0 | T133: 2011 | U133: =IFERROR(('General Input Sheet'!$G$38/(VLOOKUP('Existing Trunk Assets - Water'!T133,'General Input Sheet'!$E$38:$G$44,3,FALSE))),1) -> 1 | V133: 1430000 | AW133: y | CB133: 191.1969828 | CF133: 191.1969828 | DH133: 1430000 | DN133: 1430000
B134: Marlborough | D134: Passive | E134: TM MD | F134: MARW 150 MD Rising Main | H134: mPVC (to 450mm) and DICL Trunk Watermains | I134: 2200 | J134: 150 | K134: 310 | L134: 682000 | M134: nominal | N134: =IF(M134="",1,VLOOKUP(M134,'Unit Rates - Water'!$H$12:$I$23,2,FALSE)) -> 1 | O134: 682000 | P134: Crown Land | R134: =IF(P134="",'Unit Rates - Land'!landcst,IF($E$8="Landuse",VLOOKUP(P134,LAndcost3,2,FALSE),IF($E$8="Location",VLOOKUP(P134,Landcost2,2,FALSE),"Error"))) -> 0 | S134: 0 | T134: 2011 | U134: =IFERROR(('General Input Sheet'!$G$38/(VLOOKUP('Existing Trunk Assets - Water'!T134,'General Input Sheet'!$E$38:$G$44,3,FALSE))),1) -> 1 | V134: 682000 | AW134: y | CB134: 191.1969828 | CF134: 191.1969828 | DH134: 682000 | DN134: 682000
B135: The Caves | D135: Passive | E135: TM MD | F135: CAVW 600 TMD Ramsay Cr to Mt Charlton | H135: mPVC (to 450mm) and DICL Trunk Watermains | I135: 5500 | J135: 600 | M135: nominal | N135: =IF(M135="",1,VLOOKUP(M135,'Unit Rates - Water'!$H$12:$I$23,2,FALSE)) -> 1 | P135: Crown Land | R135: =IF(P135="",'Unit Rates - Land'!landcst,IF($E$8="Landuse",VLOOKUP(P135,LAndcost3,2,FALSE),IF($E$8="Location",VLOOKUP(P135,Landcost2,2,FALSE),"Error"))) -> 0 | S135: 0 | T135: 2011 | U135: =IFERROR(('General Input Sheet'!$G$38/(VLOOKUP('Existing Trunk Assets - Water'!T135,'General Input Sheet'!$E$38:$G$44,3,FALSE))),1) -> 1 | V135: 0 | AS135: y | BX135: 1409.454453 | CF135: 1409.454453 | DD135: 0 | DN135: 0
B136: Etna Creek | D136: Passive | E136: TM MD | F136: CAVW 600 TMD Etna localbdy to Caves localbdy | H136: mPVC (to 450mm) and DICL Trunk Watermains | I136: 4800 | J136: 600 | M136: nominal | N136: =IF(M136="",1,VLOOKUP(M136,'Unit Rates - Water'!$H$12:$I$23,2,FALSE)) -> 1 | P136: Crown Land | R136: =IF(P136="",'Unit Rates - Land'!landcst,IF($E$8="Landuse",VLOOKUP(P136,LAndcost3,2,FALSE),IF($E$8="Location",VLOOKUP(P136,Landcost2,2,FALSE),"Error"))) -> 0 | S136: 0 | T136: 2011 | U136: =IFERROR(('General Input Sheet'!$G$38/(VLOOKUP('Existing Trunk Assets - Water'!T136,'General Input Sheet'!$E$38:$G$44,3,FALSE))),1) -> 1 | V136: 0 | AS136: y | BX136: 1409.454453 | CF136: 1409.454453 | DD136: 0 | DN136: 0
B137: Glendale | D137: Passive | E137: TM MD | F137: CAVW 600 TMD Glenlee localbdy to Etna localbdy | H137: mPVC (to 450mm) and DICL Trunk Watermains | I137: 400 | J137: 600 | M137: nominal | N137: =IF(M137="",1,VLOOKUP(M137,'Unit Rates - Water'!$H$12:$I$23,2,FALSE)) -> 1 | P137: Crown Land | R137: =IF(P137="",'Unit Rates - Land'!landcst,IF($E$8="Landuse",VLOOKUP(P137,LAndcost3,2,FALSE),IF($E$8="Location",VLOOKUP(P137,Landcost2,2,FALSE),"Error"))) -> 0 | S137: 0 | T137: 2011 | U137: =IFERROR(('General Input Sheet'!$G$38/(VLOOKUP('Existing Trunk Assets - Water'!T137,'General Input Sheet'!$E$38:$G$44,3,FALSE))),1) -> 1 | V137: 0 | AS137: y | BX137: 1409.454453 | CF137: 1409.454453 | DD137: 0 | DN137: 0
B138: Glenlee | D138: Passive | E138: TM MD | F138: CAVW 600 TMD Ramsay Cr to Glenlee localbdy | H138: mPVC (to 450mm) and DICL Trunk Watermains | I138: 5400 | J138: 600 | M138: nominal | N138: =IF(M138="",1,VLOOKUP(M138,'Unit Rates - Water'!$H$12:$I$23,2,FALSE)) -> 1 | P138: Crown Land | R138: =IF(P138="",'Unit Rates - Land'!landcst,IF($E$8="Landuse",VLOOKUP(P138,LAndcost3,2,FALSE),IF($E$8="Location",VLOOKUP(P138,Landcost2,2,FALSE),"Error"))) -> 0 | S138: 0 | T138: 2011 | U138: =IFERROR(('General Input Sheet'!$G$38/(VLOOKUP('Existing Trunk Assets - Water'!T138,'General Input Sheet'!$E$38:$G$44,3,FALSE))),1) -> 1 | V138: 0 | AS138: y | BX138: 1409.454453 | CF138: 1409.454453 | CX138: =IF(BR138="","",(BR138/$CF138)*$V138) ->  | DD138: 0 | DN138: 0
B139: The Caves | D139: Active | E139: TRES MD | F139: CAVW TMD Caves HZ Tanks | H139: Res, BPS and WTP | I139: 1 | J139: 0.1ML Reservoir | K139: 297000 | L139: 297000 | M139: nominal | N139: =IF(M139="",1,VLOOKUP(M139,'Unit Rates - Water'!$H$12:$I$23,2,FALSE)) -> 1 | O139: 297000 | P139: Water Reservoir 50 x 50 ea | Q139: 0.1 | R139: =IF(P139="",'Unit Rates - Land'!landcst,IF($E$8="Landuse",VLOOKUP(P139,LAndcost3,2,FALSE),IF($E$8="Location",VLOOKUP(P139,Landcost2,2,FALSE),"Error"))) -> 5 | S139: 5000 | T139: 2011 | U139: =IFERROR(('General Input Sheet'!$G$38/(VLOOKUP('Existing Trunk Assets - Water'!T139,'General Input Sheet'!$E$38:$G$44,3,FALSE))),1) -> 1 | V139: 302000 | AS139: y | BX139: 1409.454453 | CF139: 1409.454453 | DD139: 302000 | DN139: 302000
B140: The Caves | D140: Active | E140: TRES MD | F140: CAVW TMD Caves HZ Tanks | H140: Res, BPS and WTP | I140: 1 | J140: 0.1ML Reservoir | K140: 297000 | L140: 297000 | M140: nominal | N140: =IF(M140="",1,VLOOKUP(M140,'Unit Rates - Water'!$H$12:$I$23,2,FALSE)) -> 1 | O140: 297000 | P140: Water Reservoir 50 x 50 ea | Q140: 0.1 | R140: =IF(P140="",'Unit Rates - Land'!landcst,IF($E$8="Landuse",VLOOKUP(P140,LAndcost3,2,FALSE),IF($E$8="Location",VLOOKUP(P140,Landcost2,2,FALSE),"Error"))) -> 5 | S140: 5000 | T140: 2011 | U140: =IFERROR(('General Input Sheet'!$G$38/(VLOOKUP('Existing Trunk Assets - Water'!T140,'General Input Sheet'!$E$38:$G$44,3,FALSE))),1) -> 1 | V140: 302000 | AS140: y | BX140: 1409.454453 | CF140: 1409.454453 | DD140: 302000 | DN140: 302000
B141: The Caves | D141: Active | E141: TRES MD | F141: CAVW MD Mt Charlton | H141: Res, BPS and WTP | I141: 1 | J141: 9ML Reservoir | K141: 1360000 | L141: 1360000 | M141: nominal | N141: =IF(M141="",1,VLOOKUP(M141,'Unit Rates - Water'!$H$12:$I$23,2,FALSE)) -> 1 | O141: 1360000 | P141: Water Reservoir 50 x 50 ea | Q141: 2 | R141: =IF(P141="",'Unit Rates - Land'!landcst,IF($E$8="Landuse",VLOOKUP(P141,LAndcost3,2,FALSE),IF($E$8="Location",VLOOKUP(P141,Landcost2,2,FALSE),"Error"))) -> 5 | S141: 100000 | T141: 2011 | U141: =IFERROR(('General Input Sheet'!$G$38/(VLOOKUP('Existing Trunk Assets - Water'!T141,'General Input Sheet'!$E$38:$G$44,3,FALSE))),1) -> 1 | V141: 1460000 | AS141: y | BX141: 1409.454453 | CF141: 1409.454453 | DD141: 1460000 | DN141: 1460000
B142: Marlborough | D142: Active | E142: TGW AD | F142: MARW AD Marlborough GWPS | H142: Res, BPS and WTP | I142: 1 | J142: Tank | K142: 85000 | L142: 85000 | M142: nominal | N142: =IF(M142="",1,VLOOKUP(M142,'Unit Rates - Water'!$H$12:$I$23,2,FALSE)) -> 1 | O142: 85000 | P142: Water Reservoir 50 x 50 ea | Q142: 0.1 | R142: =IF(P142="",'Unit Rates - Land'!landcst,IF($E$8="Landuse",VLOOKUP(P142,LAndcost3,2,FALSE),IF($E$8="Location",VLOOKUP(P142,Landcost2,2,FALSE),"Error"))) -> 5 | S142: 5000 | T142: 2011 | U142: =IFERROR(('General Input Sheet'!$G$38/(VLOOKUP('Existing Trunk Assets - Water'!T142,'General Input Sheet'!$E$38:$G$44,3,FALSE))),1) -> 1 | V142: 90000 | AW142: y | CB142: 191.1969828 | CF142: 191.1969828 | DH142: 90000 | DN142: 90000
B143: Marlborough | D143: Active | E143: TRES MD | F143: MARW Marlborough Pipe Tank | H143: Res, BPS and WTP | I143: 1 | J143: 0.1ML Reservoir | K143: =IF(H143=TYPE1,VLOOKUP(J143,WaterUnitrates1,2,FALSE),IF(H143=TYPE2,VLOOKUP(J143,Unitrates2,2,FALSE),0)) -> 297000 | L143: 297000 | M143: nominal | N143: =IF(M143="",1,VLOOKUP(M143,'Unit Rates - Water'!$H$12:$I$23,2,FALSE)) -> 1 | O143: 297000 | P143: Water Reservoir 50 x 50 ea | Q143: 0.1 | R143: =IF(P143="",'Unit Rates - Land'!landcst,IF($E$8="Landuse",VLOOKUP(P143,LAndcost3,2,FALSE),IF($E$8="Location",VLOOKUP(P143,Landcost2,2,FALSE),"Error"))) -> 5 | S143: 5000 | T143: 2011 | U143: =IFERROR(('General Input Sheet'!$G$38/(VLOOKUP('Existing Trunk Assets - Water'!T143,'General Input Sheet'!$E$38:$G$44,3,FALSE))),1) -> 1 | V143: 302000 | AW143: y | CB143: 191.1969828 | CF143: 191.1969828 | DH143: 302000 | DN143: 302000
B144: Marlborough | D144: Active | E144: TRES CWT | F144: MARW RO tank PS | H144: Res, BPS and WTP | I144: 1 | J144: Tank | K144: 85000 | L144: =K144*I144 -> 85000 | M144: nominal | N144: =IF(M144="",1,VLOOKUP(M144,'Unit Rates - Water'!$H$12:$I$23,2,FALSE)) -> 1 | O144: =L144*N144 -> 85000 | P144: Water Reservoir 50 x 50 ea | Q144: 0.1 | R144: =IF(P144="",'Unit Rates - Land'!landcst,IF($E$8="Landuse",VLOOKUP(P144,LAndcost3,2,FALSE),IF($E$8="Location",VLOOKUP(P144,Landcost2,2,FALSE),"Error"))) -> 5 | S144: =IF(R144="",0,R144*10000*Q144) -> 5000 | T144: 2011 | U144: =IFERROR(('General Input Sheet'!$G$38/(VLOOKUP('Existing Trunk Assets - Water'!T144,'General Input Sheet'!$E$38:$G$44,3,FALSE))),1) -> 1 | V144: =IFERROR((O144+S144)*U144,0) -> 90000 | AW144: y | CB144: 191.1969828 | CF144: 191.1969828 | DH144: 90000 | DN144: =SUM(CH144:DK144) -> 90000
B145: Ogmore | D145: Active | E145: TDam AD | F145: OGW AD Montrose Cr PS | H145: Res, BPS and WTP | I145: 1 | J145: Montrose Cr Impoundment | K145: 8500 | L145: 8500 | M145: nominal | N145: =IF(M145="",1,VLOOKUP(M145,'Unit Rates - Water'!$H$12:$I$23,2,FALSE)) -> 1 | O145: 8500 | P145: Crown Land | R145: =IF(P145="",'Unit Rates - Land'!landcst,IF($E$8="Landuse",VLOOKUP(P145,LAndcost3,2,FALSE),IF($E$8="Location",VLOOKUP(P145,Landcost2,2,FALSE),"Error"))) -> 0 | S145: 0 | T145: 2011 | U145: =IFERROR(('General Input Sheet'!$G$38/(VLOOKUP('Existing Trunk Assets - Water'!T145,'General Input Sheet'!$E$38:$G$44,3,FALSE))),1) -> 1 | V145: 8500 | AW145: y | CB145: 191.1969828 | CF145: 191.1969828 | DH145: 8500 | DN145: 8500
B146: Ogmore | D146: Active | E146: TRES AD | F146: OGW AD Town tanks PS | H146: Res, BPS and WTP | I146: 3 | J146: Tank | K146: 85000 | L146: 255000 | M146: nominal | N146: =IF(M146="",1,VLOOKUP(M146,'Unit Rates - Water'!$H$12:$I$23,2,FALSE)) -> 1 | O146: 255000 | P146: Crown Land | R146: =IF(P146="",'Unit Rates - Land'!landcst,IF($E$8="Landuse",VLOOKUP(P146,LAndcost3,2,FALSE),IF($E$8="Location",VLOOKUP(P146,Landcost2,2,FALSE),"Error"))) -> 0 | S146: 0 | T146: 2011 | U146: =IFERROR(('General Input Sheet'!$G$38/(VLOOKUP('Existing Trunk Assets - Water'!T146,'General Input Sheet'!$E$38:$G$44,3,FALSE))),1) -> 1 | V146: 255000 | AW146: y | CB146: 191.1969828 | CF146: =SUM(BB146:CE146) -> 191.1969828 | DH146: 255000 | DL146: =IF(SUM(CH146:DK146)=V146,"","ERROR") ->  | DN146: 255000
B147: The Caves | D147: Active | E147: TWPS MD | F147: CAVW MD Barmoya Rd PS | H147: Res, BPS and WTP | I147: 1 | J147: BPS | K147: 340000 | L147: 340000 | M147: nominal | N147: =IF(M147="",1,VLOOKUP(M147,'Unit Rates - Water'!$H$12:$I$23,2,FALSE)) -> 1 | O147: 340000 | P147: Residential Zoned, unDeveloped m2 | Q147: 0.05 | R147: =IF(P147="",'Unit Rates - Land'!landcst,IF($E$8="Landuse",VLOOKUP(P147,LAndcost3,2,FALSE),IF($E$8="Location",VLOOKUP(P147,Landcost2,2,FALSE),"Error"))) -> 72 | S147: 36000 | T147: 2011 | U147: =IFERROR(('General Input Sheet'!$G$38/(VLOOKUP('Existing Trunk Assets - Water'!T147,'General Input Sheet'!$E$38:$G$44,3,FALSE))),1) -> 1 | V147: 376000 | AS147: y | BX147: 1409.454453 | CF147: 1409.454453 | DD147: 376000 | DN147: 376000
B148: Marlborough | D148: Active | E148: TWPS MD | F148: MARW MD Bores | H148: Res, BPS and WTP | I148: 2 | J148: Bore | K148: 127000 | L148: 254000 | M148: nominal | N148: =IF(M148="",1,VLOOKUP(M148,'Unit Rates - Water'!$H$12:$I$23,2,FALSE)) -> 1 | O148: 254000 | P148: Crown Land | R148: =IF(P148="",'Unit Rates - Land'!landcst,IF($E$8="Landuse",VLOOKUP(P148,LAndcost3,2,FALSE),IF($E$8="Location",VLOOKUP(P148,Landcost2,2,FALSE),"Error"))) -> 0 | S148: 0 | T148: 2011 | U148: =IFERROR(('General Input Sheet'!$G$38/(VLOOKUP('Existing Trunk Assets - Water'!T148,'General Input Sheet'!$E$38:$G$44,3,FALSE))),1) -> 1 | V148: 254000 | AW148: y | BB148: =IF(W148="y",BB$14,IF(AND(W148>0,W148<=1),W148*BB$14,"")) ->  | BC148: =IF(X148="y",BC$14,IF(AND(X148>0,X148<=1),X148*BC$14,"")) ->  | BD148: =IF(Y148="y",BD$14,IF(AND(Y148>0,Y148<=1),Y148*BD$14,"")) ->  | BE148: =IF(Z148="y",BE$14,IF(AND(Z148>0,Z148<=1),Z148*BE$14,"")) ->  | BF148: =IF(AA148="y",BF$14,IF(AND(AA148>0,AA148<=1),AA148*BF$14,"")) ->  | BG148: =IF(AB148="y",BG$14,IF(AND(AB148>0,AB148<=1),AB148*BG$14,"")) ->  | BH148: =IF(AC148="y",BH$14,IF(AND(AC148>0,AC148<=1),AC148*BH$14,"")) ->  | BI148: =IF(AD148="y",BI$14,IF(AND(AD148>0,AD148<=1),AD148*BI$14,"")) ->  | BJ148: =IF(AE148="y",BJ$14,IF(AND(AE148>0,AE148<=1),AE148*BJ$14,"")) ->  | BK148: =IF(AF148="y",BK$14,IF(AND(AF148>0,AF148<=1),AF148*BK$14,"")) ->  | BL148: =IF(AG148="y",BL$14,IF(AND(AG148>0,AG148<=1),AG148*BL$14,"")) ->  | BM148: =IF(AH148="y",BM$14,IF(AND(AH148>0,AH148<=1),AH148*BM$14,"")) ->  | BN148: =IF(AI148="y",BN$14,IF(AND(AI148>0,AI148<=1),AI148*BN$14,"")) ->  | BO148: =IF(AJ148="y",BO$14,IF(AND(AJ148>0,AJ148<=1),AJ148*BO$14,"")) ->  | BP148: =IF(AK148="y",BP$14,IF(AND(AK148>0,AK148<=1),AK148*BP$14,"")) ->  | BQ148: =IF(AL148="y",BQ$14,IF(AND(AL148>0,AL148<=1),AL148*BQ$14,"")) ->  | BR148: =IF(AM148="y",BR$14,IF(AND(AM148>0,AM148<=1),AM148*BR$14,"")) ->  | BS148: =IF(AN148="y",BS$14,IF(AND(AN148>0,AN148<=1),AN148*BS$14,"")) ->  | BT148: =IF(AO148="y",BT$14,IF(AND(AO148>0,AO148<=1),AO148*BT$14,"")) ->  | BU148: =IF(AP148="y",BU$14,IF(AND(AP148>0,AP148<=1),AP148*BU$14,"")) ->  | BV148: =IF(AQ148="y",BV$14,IF(AND(AQ148>0,AQ148<=1),AQ148*BV$14,"")) ->  | BW148: =IF(AR148="y",BW$14,IF(AND(AR148>0,AR148<=1),AR148*BW$14,"")) ->  | BX148: =IF(AS148="y",BX$14,IF(AND(AS148>0,AS148<=1),AS148*BX$14,"")) ->  | BY148: =IF(AT148="y",BY$14,IF(AND(AT148>0,AT148<=1),AT148*BY$14,"")) ->  | BZ148: =IF(AU148="y",BZ$14,IF(AND(AU148>0,AU148<=1),AU148*BZ$14,"")) ->  | CA148: =IF(AV148="y",CA$14,IF(AND(AV148>0,AV148<=1),AV148*CA$14,"")) ->  | CB148: =IF(AW148="y",CB$14,IF(AND(AW148>0,AW148<=1),AW148*CB$14,"")) -> 191.1969828 | CC148: =IF(AX148="y",CC$14,IF(AND(AX148>0,AX148<=1),AX148*CC$14,"")) ->  | CD148: =IF(AY148="y",CD$14,IF(AND(AY148>0,AY148<=1),AY148*CD$14,"")) ->  | CE148: =IF(AZ148="y",CE$14,IF(AND(AZ148>0,AZ148<=1),AZ148*CE$14,"")) ->  | CF148: 191.1969828 | DH148: 254000 | DN148: 254000
B149: Marlborough | D149: Active | E149: TWPS MD | F149: MARW MD RO Plant | H149: Res, BPS and WTP | I149: 1 | J149: RO WTP | K149: 300000 | L149: 300000 | M149: nominal | N149: =IF(M149="",1,VLOOKUP(M149,'Unit Rates - Water'!$H$12:$I$23,2,FALSE)) -> 1 | O149: 300000 | P149: Residential Zoned, unDeveloped m2 | Q149: 0.05 | R149: =IF(P149="",'Unit Rates - Land'!landcst,IF($E$8="Landuse",VLOOKUP(P149,LAndcost3,2,FALSE),IF($E$8="Location",VLOOKUP(P149,Landcost2,2,FALSE),"Error"))) -> 72 | S149: 36000 | T149: 2011 | U149: =IFERROR(('General Input Sheet'!$G$38/(VLOOKUP('Existing Trunk Assets - Water'!T149,'General Input Sheet'!$E$38:$G$44,3,FALSE))),1) -> 1 | V149: 336000 | AW149: y | CB149: 191.1969828 | CF149: 191.1969828 | CU149: =IF(BO149="","",(BO149/$CF149)*$V149) ->  | DH149: 336000 | DN149: 336000
B150: Ogmore | D150: Active | E150: TWPS AD | F150: OGW AD Montrose Cr Intake | H150: Res, BPS and WTP | I150: 1 | J150: Montrose Cr PS | K150: 17000 | L150: 17000 | M150: nominal | N150: =IF(M150="",1,VLOOKUP(M150,'Unit Rates - Water'!$H$12:$I$23,2,FALSE)) -> 1 | O150: 17000 | P150: Crown Land | R150: =IF(P150="",'Unit Rates - Land'!landcst,IF($E$8="Landuse",VLOOKUP(P150,LAndcost3,2,FALSE),IF($E$8="Location",VLOOKUP(P150,Landcost2,2,FALSE),"Error"))) -> 0 | S150: 0 | T150: 2011 | U150: =IFERROR(('General Input Sheet'!$G$38/(VLOOKUP('Existing Trunk Assets - Water'!T150,'General Input Sheet'!$E$38:$G$44,3,FALSE))),1) -> 1 | V150: 17000 | AW150: y | CB150: 191.1969828 | CF150: 191.1969828 | CH150: =IF(BB150="","",(BB150/$CF150)*$V150) ->  | DH150: 17000 | DN150: 17000
B151: Ogmore | D151: Active | E151: TWPS AD | F151: OGW AD Pump Bldg | H151: Res, BPS and WTP | I151: 1 | J151: Tank | K151: 85000 | L151: 85000 | M151: nominal | N151: =IF(M151="",1,VLOOKUP(M151,'Unit Rates - Water'!$H$12:$I$23,2,FALSE)) -> 1 | O151: 85000 | P151: Crown Land | R151: =IF(P151="",'Unit Rates - Land'!landcst,IF($E$8="Landuse",VLOOKUP(P151,LAndcost3,2,FALSE),IF($E$8="Location",VLOOKUP(P151,Landcost2,2,FALSE),"Error"))) -> 0 | S151: 0 | T151: 2011 | U151: =IFERROR(('General Input Sheet'!$G$38/(VLOOKUP('Existing Trunk Assets - Water'!T151,'General Input Sheet'!$E$38:$G$44,3,FALSE))),1) -> 1 | V151: 85000 | AW151: y | CB151: 191.1969828 | CF151: 191.1969828 | DH151: 85000 | DN151: 85000
K152: 0 | L152: 0 | N152: =IF(M152="",1,VLOOKUP(M152,'Unit Rates - Water'!$H$12:$I$23,2,FALSE)) -> 1 | O152: 0 | R152: =IF(P152="",'Unit Rates - Land'!landcst,IF($E$8="Landuse",VLOOKUP(P152,LAndcost3,2,FALSE),IF($E$8="Location",VLOOKUP(P152,Landcost2,2,FALSE),"Error"))) -> 2 | S152: 0 | U152: =IFERROR(('General Input Sheet'!$G$38/(VLOOKUP('Existing Trunk Assets - Water'!T152,'General Input Sheet'!$E$38:$G$44,3,FALSE))),1) -> 1 | V152: 0 | AW152: y | CB152: 191.1969828 | CF152: 191.1969828 | DH152: 0 | DN152: 0
K153: 0 | L153: 0 | N153: =IF(M153="",1,VLOOKUP(M153,'Unit Rates - Water'!$H$12:$I$23,2,FALSE)) -> 1 | O153: 0 | R153: =IF(P153="",'Unit Rates - Land'!landcst,IF($E$8="Landuse",VLOOKUP(P153,LAndcost3,2,FALSE),IF($E$8="Location",VLOOKUP(P153,Landcost2,2,FALSE),"Error"))) -> 2 | S153: 0 | U153: =IFERROR(('General Input Sheet'!$G$38/(VLOOKUP('Existing Trunk Assets - Water'!T153,'General Input Sheet'!$E$38:$G$44,3,FALSE))),1) -> 1 | V153: 0 | CF153: 0
B154: Woodbury | D154: Active | E154: TDam AD | F154: CCW AD Kelly's Offstream Storage | G154: Terminal Value | H154: Res, BPS and WTP | I154: -0.8 | J154: KOSS | K154: 7225000 | L154: -5780000 | M154: nominal | N154: =IF(M154="",1,VLOOKUP(M154,'Unit Rates - Water'!$H$12:$I$23,2,FALSE)) -> 1 | O154: -5780000 | P154: Rural Grazing unFlooded m2 | Q154: 50 | R154: =IF(P154="",'Unit Rates - Land'!landcst,IF($E$8="Landuse",VLOOKUP(P154,LAndcost3,2,FALSE),IF($E$8="Location",VLOOKUP(P154,Landcost2,2,FALSE),"Error"))) -> 0.7 | S154: 350000 | T154: 2011 | U154: =IFERROR(('General Input Sheet'!$G$38/(VLOOKUP('Existing Trunk Assets - Water'!T154,'General Input Sheet'!$E$38:$G$44,3,FALSE))),1) -> 1 | V154: -5430000 | W154: y | X154: y | Y154: y | Z154: y | AA154: y | AB154: y | AC154: y | AD154: y | AE154: y | AF154: y | AG154: y | AH154: y | AI154: y | AJ154: y | AK154: y | AL154: y | AM154: y | AN154: y | AO154: y | AP154: y | AQ154: y | AR154: y | BB154: 5479.33063 | BC154: 928.3702909 | BD154: 1083.843286 | BE154: 956.8209732 | BF154: 575.6795871 | BG154: 365.8833822 | BH154: 462.6229889 | BI154: 947.5 | BJ154: 246 | BK154: 71.80956371 | BL154: 750.6675466 | BM154: 912.0484283 | BN154: 352.9534753 | BO154: 2899.561519 | BP154: 1566.570638 | BQ154: 379.4352564 | BR154: 144 | BS154: 476.4963074 | BT154: 96.00269134 | BU154: 134 | BV154: 104 | BW154: 270.324288 | CF154: 19203.92085 | CH154: -1549306.808 | CI154: -262501.1173 | CJ154: -306461.8465 | CK154: -270545.6831 | CL154: -162776.1425 | CM154: -103455.2673 | CN154: -130808.8514 | CO154: -267910.1335 | CP154: -69557.67055 | CQ154: -20304.49583 | CR154: -212254.8208 | CS154: -257886.033 | CT154: -99799.27462 | CU154: -819864.8166 | CV154: -442955.3021 | CW154: -107287.1242 | CX154: -40716.6852 | CY154: -134731.5983 | CZ154: -27145.21779 | DA154: -37889.13762 | DB154: -29406.49487 | DC154: -76435.47874 | DN154: -5430000
B155: Woodbury | D155: Active | E155: TWTP MD | F155: CCW TMD Woodbury WTP | G155: Terminal Value | H155: Res, BPS and WTP | I155: -0.6 | J155: WTP | K155: 10200000 | L155: -6120000 | M155: nominal | N155: =IF(M155="",1,VLOOKUP(M155,'Unit Rates - Water'!$H$12:$I$23,2,FALSE)) -> 1 | O155: -6120000 | P155: Rural Grazing unFlooded m2 | Q155: 2 | R155: =IF(P155="",'Unit Rates - Land'!landcst,IF($E$8="Landuse",VLOOKUP(P155,LAndcost3,2,FALSE),IF($E$8="Location",VLOOKUP(P155,Landcost2,2,FALSE),"Error"))) -> 0.7 | S155: 14000 | T155: 2011 | U155: =IFERROR(('General Input Sheet'!$G$38/(VLOOKUP('Existing Trunk Assets - Water'!T155,'General Input Sheet'!$E$38:$G$44,3,FALSE))),1) -> 1 | V155: -6106000 | W155: y | X155: y | Y155: y | Z155: y | AA155: y | AB155: y | AC155: y | AD155: y | AE155: y | AF155: y | AG155: y | AH155: y | AI155: y | AJ155: y | AK155: y | AL155: y | AM155: y | AN155: y | AO155: y | AP155: y | AQ155: y | AR155: y | BB155: 5479.33063 | BC155: 928.3702909 | BD155: 1083.843286 | BE155: 956.8209732 | BF155: 575.6795871 | BG155: 365.8833822 | BH155: 462.6229889 | BI155: 947.5 | BJ155: 246 | BK155: 71.80956371 | BL155: 750.6675466 | BM155: 912.0484283 | BN155: 352.9534753 | BO155: 2899.561519 | BP155: 1566.570638 | BQ155: 379.4352564 | BR155: 144 | BS155: 476.4963074 | BT155: 96.00269134 | BU155: 134 | BV155: 104 | BW155: 270.324288 | CF155: 19203.92085 | CH155: -1742185.52 | CI155: -295180.8144 | CJ155: -344614.371 | CK155: -304226.8767 | CL155: -183040.7231 | CM155: -116334.7813 | CN155: -147093.7103 | CO155: -301263.2183 | CP155: -78217.15219 | CQ155: -22832.27469 | CR155: -238679.1778 | CS155: -289991.1818 | CT155: -112223.641 | CU155: -921932.7017 | CV155: -498100.3821 | CW155: -120643.6797 | CX155: -45785.65006 | CY155: -151504.8138 | CZ155: -30524.62244 | DA155: -42606.09103 | DB155: -33067.41394 | DC155: -85951.20317 | DN155: -6106000
B156: Lammermoor | D156: Active | E156: TRES MD | F156: CCW MD Lammermoor | G156: Terminal Value | H156: Res, BPS and WTP | I156: -0.8 | J156: 4ML Reservoir | K156: 1275000 | L156: -1020000 | M156: nominal | N156: =IF(M156="",1,VLOOKUP(M156,'Unit Rates - Water'!$H$12:$I$23,2,FALSE)) -> 1 | O156: -1020000 | P156: Water Reservoir 50 x 50 ea | Q156: 0.25 | R156: =IF(P156="",'Unit Rates - Land'!landcst,IF($E$8="Landuse",VLOOKUP(P156,LAndcost3,2,FALSE),IF($E$8="Location",VLOOKUP(P156,Landcost2,2,FALSE),"Error"))) -> 5 | S156: 12500 | T156: 2011 | U156: =IFERROR(('General Input Sheet'!$G$38/(VLOOKUP('Existing Trunk Assets - Water'!T156,'General Input Sheet'!$E$38:$G$44,3,FALSE))),1) -> 1 | V156: -1007500 | W156: y | X156: y | Y156: y | Z156: y | AA156: y | AB156: y | AC156: y | AD156: y | AE156: y | AF156: y | AG156: y | AH156: y | AI156: y | AJ156: y | AK156: y | AL156: y | AM156: y | AN156: y | AO156: y | AP156: y | AQ156: y | AR156: y | BB156: 5479.33063 | BC156: 928.3702909 | BD156: 1083.843286 | BE156: 956.8209732 | BF156: 575.6795871 | BG156: 365.8833822 | BH156: 462.6229889 | BI156: 947.5 | BJ156: 246 | BK156: 71.80956371 | BL156: 750.6675466 | BM156: 912.0484283 | BN156: 352.9534753 | BO156: 2899.561519 | BP156: 1566.570638 | BQ156: 379.4352564 | BR156: 144 | BS156: 476.4963074 | BT156: 96.00269134 | BU156: 134 | BV156: 104 | BW156: 270.324288 | CF156: 19203.92085 | CH156: =IF(BB156="","",(BB156/$CF156)*$V156) -> -287463.464 | CI156: -48705.3178 | CJ156: -56861.9356 | CK156: -50197.93291 | CL156: -30202.01908 | CM156: -19195.42944 | CN156: -24270.7031 | CO156: -49708.92441 | CP156: -12905.95821 | CQ156: -3767.362717 | CR156: -39382.45523 | CS156: -47849.01993 | CT156: -18517.08456 | CU156: -152120.4057 | CV156: =IF(BP156="","",(BP156/$CF156)*$V156) -> -82187.3788 | CW156: =IF(BQ156="","",(BQ156/$CF156)*$V156) -> -19906.40473 | CX156: -7554.707245 | CY156: -24998.5424 | CZ156: -5036.612694 | DA156: -7030.074798 | DB156: -5456.177455 | DC156: -14182.08929 | DN156: -1007500
B157: Pacific Heights | D157: Active | E157: TRES MD | F157: CCW MD Pacific Hts Res | G157: Terminal Value | H157: Res, BPS and WTP | I157: -0.8 | J157: 4ML Reservoir | K157: 1275000 | L157: -1020000 | M157: nominal | N157: =IF(M157="",1,VLOOKUP(M157,'Unit Rates - Water'!$H$12:$I$23,2,FALSE)) -> 1 | O157: -1020000 | P157: Water Reservoir 50 x 50 ea | Q157: 0.25 | R157: =IF(P157="",'Unit Rates - Land'!landcst,IF($E$8="Landuse",VLOOKUP(P157,LAndcost3,2,FALSE),IF($E$8="Location",VLOOKUP(P157,Landcost2,2,FALSE),"Error"))) -> 5 | S157: 12500 | T157: 2011 | U157: =IFERROR(('General Input Sheet'!$G$38/(VLOOKUP('Existing Trunk Assets - Water'!T157,'General Input Sheet'!$E$38:$G$44,3,FALSE))),1) -> 1 | V157: -1007500 | W157: y | X157: y | Y157: y | Z157: y | AA157: y | AB157: y | AC157: y | AD157: y | AE157: y | AF157: y | AG157: y | AH157: y | AI157: y | AJ157: y | AK157: y | AL157: y | AM157: y | AN157: y | AO157: y | AP157: y | AQ157: y | AR157: y | BB157: 5479.33063 | BC157: 928.3702909 | BD157: 1083.843286 | BE157: 956.8209732 | BF157: 575.6795871 | BG157: 365.8833822 | BH157: 462.6229889 | BI157: 947.5 | BJ157: 246 | BK157: 71.80956371 | BL157: 750.6675466 | BM157: 912.0484283 | BN157: 352.9534753 | BO157: 2899.561519 | BP157: 1566.570638 | BQ157: 379.4352564 | BR157: 144 | BS157: 476.4963074 | BT157: 96.00269134 | BU157: 134 | BV157: 104 | BW157: 270.324288 | CF157: 19203.92085 | CH157: -287463.464 | CI157: -48705.3178 | CJ157: -56861.9356 | CK157: -50197.93291 | CL157: -30202.01908 | CM157: -19195.42944 | CN157: -24270.7031 | CO157: -49708.92441 | CP157: -12905.95821 | CQ157: -3767.362717 | CR157: -39382.45523 | CS157: -47849.01993 | CT157: -18517.08456 | CU157: -152120.4057 | CV157: -82187.3788 | CW157: -19906.40473 | CX157: =IF(BR157="","",(BR157/$CF157)*$V157) -> -7554.707245 | CY157: =IF(BS157="","",(BS157/$CF157)*$V157) -> -24998.5424 | CZ157: =IF(BT157="","",(BT157/$CF157)*$V157) -> -5036.612694 | DA157: =IF(BU157="","",(BU157/$CF157)*$V157) -> -7030.074798 | DB157: =IF(BV157="","",(BV157/$CF157)*$V157) -> -5456.177455 | DC157: =IF(BW157="","",(BW157/$CF157)*$V157) -> -14182.08929 | DD157: =IF(BX157="","",(BX157/$CF157)*$V157) ->  | DE157: =IF(BY157="","",(BY157/$CF157)*$V157) ->  | DN157: -1007500
B158: Taranganba | D158: Active | E158: TRES MD | F158: CCW MD Taranganba Res | G158: Terminal Value | H158: Res, BPS and WTP | I158: -0.5 | J158: 12ML Reservoir | K158: 2975000 | L158: -1487500 | M158: nominal | N158: =IF(M158="",1,VLOOKUP(M158,'Unit Rates - Water'!$H$12:$I$23,2,FALSE)) -> 1 | O158: -1487500 | P158: Water Reservoir 50 x 50 ea | Q158: 0.5 | R158: =IF(P158="",'Unit Rates - Land'!landcst,IF($E$8="Landuse",VLOOKUP(P158,LAndcost3,2,FALSE),IF($E$8="Location",VLOOKUP(P158,Landcost2,2,FALSE),"Error"))) -> 5 | S158: 25000 | T158: 2011 | U158: =IFERROR(('General Input Sheet'!$G$38/(VLOOKUP('Existing Trunk Assets - Water'!T158,'General Input Sheet'!$E$38:$G$44,3,FALSE))),1) -> 1 | V158: -1462500 | W158: y | X158: y | Y158: y | Z158: y | AA158: y | AB158: y | AC158: y | AD158: y | AE158: y | AF158: y | AG158: y | AH158: y | AI158: y | AJ158: y | AK158: y | AL158: y | AM158: y | AN158: y | AO158: y | AP158: y | AQ158: y | AR158: y | BB158: 5479.33063 | BC158: 928.3702909 | BD158: 1083.843286 | BE158: 956.8209732 | BF158: 575.6795871 | BG158: 365.8833822 | BH158: 462.6229889 | BI158: 947.5 | BJ158: 246 | BK158: 71.80956371 | BL158: 750.6675466 | BM158: 912.0484283 | BN158: 352.9534753 | BO158: 2899.561519 | BP158: 1566.570638 | BQ158: 379.4352564 | BR158: 144 | BS158: 476.4963074 | BT158: 96.00269134 | BU158: 134 | BV158: 104 | BW158: 270.324288 | CF158: 19203.92085 | CH158: -417285.6735 | CI158: -70701.26777 | CJ158: -82541.51942 | CK158: -72867.96712 | CL158: -43841.6406 | CM158: -27864.33305 | CN158: -35231.66578 | CO158: -72158.11608 | CP158: -18734.45547 | CQ158: -5468.752331 | CR158: -57168.08018 | CS158: -69458.25473 | CT158: -26879.63888 | CU158: -220819.9437 | CV158: -119304.2595 | CW158: -28896.39396 | CX158: -10966.51052 | CY158: -36288.20671 | CZ158: -7311.211974 | DA158: -10204.94729 | DB158: -7920.257596 | DC158: -20586.9038 | DN158: -1462500
B159: Zilzie | D159: Active | E159: TRES MD | F159: CCW MD Seaspray Tank | G159: Terminal Value | H159: Res, BPS and WTP | I159: -0.7 | J159: 1ML Reservoir | K159: 680000 | L159: -476000 | M159: nominal | N159: =IF(M159="",1,VLOOKUP(M159,'Unit Rates - Water'!$H$12:$I$23,2,FALSE)) -> 1 | O159: -476000 | P159: Water Reservoir 50 x 50 ea | Q159: 0.25 | R159: =IF(P159="",'Unit Rates - Land'!landcst,IF($E$8="Landuse",VLOOKUP(P159,LAndcost3,2,FALSE),IF($E$8="Location",VLOOKUP(P159,Landcost2,2,FALSE),"Error"))) -> 5 | S159: 12500 | T159: 2011 | U159: =IFERROR(('General Input Sheet'!$G$38/(VLOOKUP('Existing Trunk Assets - Water'!T159,'General Input Sheet'!$E$38:$G$44,3,FALSE))),1) -> 1 | V159: -463500 | W159: y | X159: y | Y159: y | Z159: y | AA159: y | AB159: y | AC159: y | AD159: y | AE159: y | AF159: y | AG159: y | AH159: y | AI159: y | AJ159: y | AK159: y | AL159: y | AM159: y | AN159: y | AO159: y | AP159: y | AQ159: y | AR159: y | BB159: 5479.33063 | BC159: 928.3702909 | BD159: 1083.843286 | BE159: 956.8209732 | BF159: 575.6795871 | BG159: 365.8833822 | BH159: 462.6229889 | BI159: 947.5 | BJ159: 246 | BK159: 71.80956371 | BL159: 750.6675466 | BM159: 912.0484283 | BN159: 352.9534753 | BO159: 2899.561519 | BP159: 1566.570638 | BQ159: 379.4352564 | BR159: 144 | BS159: 476.4963074 | BT159: 96.00269134 | BU159: 134 | BV159: 104 | BW159: 270.324288 | CF159: 19203.92085 | CH159: -132247.4596 | CI159: -22406.86332 | CJ159: -26159.31231 | CK159: -23093.54035 | CL159: -13894.42764 | CM159: -8830.850167 | CN159: -11165.72793 | CO159: -22868.57217 | CP159: -5937.381271 | CQ159: -1733.173816 | CR159: -18117.88387 | CS159: -22012.92381 | CT159: -8518.777861 | CU159: -69982.936 | CV159: -37810.27303 | CW159: -9157.934085 | CX159: -3475.540256 | CY159: -11500.57013 | CZ159: -2317.091795 | DA159: -3234.183294 | DB159: -2510.112407 | DC159: -6524.464898 | DN159: -463500
B160: Ironpot | D160: Passive | E160: TM MD | F160: CCW 600 Boundary Res - Ironpot local bdy | G160: Terminal Value | H160: mPVC (to 450mm) and DICL Trunk Watermains | I160: -4800 | J160: 600 | M160: nominal | N160: =IF(M160="",1,VLOOKUP(M160,'Unit Rates - Water'!$H$12:$I$23,2,FALSE)) -> 1 | P160: Crown Land | R160: =IF(P160="",'Unit Rates - Land'!landcst,IF($E$8="Landuse",VLOOKUP(P160,LAndcost3,2,FALSE),IF($E$8="Location",VLOOKUP(P160,Landcost2,2,FALSE),"Error"))) -> 0 | S160: 0 | T160: 2011 | U160: =IFERROR(('General Input Sheet'!$G$38/(VLOOKUP('Existing Trunk Assets - Water'!T160,'General Input Sheet'!$E$38:$G$44,3,FALSE))),1) -> 1 | V160: 0 | W160: y | X160: y | Y160: y | Z160: y | AA160: y | AB160: y | AC160: y | AD160: y | AE160: y | AF160: y | AG160: y | AH160: y | AI160: y | AJ160: y | AK160: y | AL160: y | AM160: y | AN160: y | AO160: y | AP160: y | AQ160: y | AR160: y | BB160: 5479.33063 | BC160: 928.3702909 | BD160: 1083.843286 | BE160: 956.8209732 | BF160: 575.6795871 | BG160: 365.8833822 | BH160: 462.6229889 | BI160: 947.5 | BJ160: 246 | BK160: 71.80956371 | BL160: 750.6675466 | BM160: 912.0484283 | BN160: 352.9534753 | BO160: 2899.561519 | BP160: 1566.570638 | BQ160: 379.4352564 | BR160: 144 | BS160: 476.4963074 | BT160: 96.00269134 | BU160: 134 | BV160: 104 | BW160: 270.324288 | CF160: 19203.92085 | CH160: 0 | CI160: 0 | CJ160: 0 | CK160: 0 | CL160: 0 | CM160: 0 | CN160: 0 | CO160: 0 | CP160: 0 | CQ160: 0 | CR160: 0 | CS160: 0 | CT160: 0 | CU160: 0 | CV160: 0 | CW160: 0 | CX160: 0 | CY160: 0 | CZ160: 0 | DA160: 0 | DB160: 0 | DC160: 0 | DN160: =SUM(CH160:DK160) -> 0
B161: Mulara | D161: Passive | E161: TM MD | F161: CCW 600 Mulara localbdy -Bond localbdy | G161: Terminal Value | H161: mPVC (to 450mm) and DICL Trunk Watermains | I161: -4300 | J161: 600 | M161: nominal | N161: =IF(M161="",1,VLOOKUP(M161,'Unit Rates - Water'!$H$12:$I$23,2,FALSE)) -> 1 | P161: Crown Land | R161: =IF(P161="",'Unit Rates - Land'!landcst,IF($E$8="Landuse",VLOOKUP(P161,LAndcost3,2,FALSE),IF($E$8="Location",VLOOKUP(P161,Landcost2,2,FALSE),"Error"))) -> 0 | S161: 0 | T161: 2011 | U161: =IFERROR(('General Input Sheet'!$G$38/(VLOOKUP('Existing Trunk Assets - Water'!T161,'General Input Sheet'!$E$38:$G$44,3,FALSE))),1) -> 1 | V161: 0 | W161: y | X161: y | Y161: y | Z161: y | AA161: y | AB161: y | AC161: y | AD161: y | AE161: y | AF161: y | AG161: y | AH161: y | AI161: y | AJ161: y | AK161: y | AL161: y | AM161: y | AN161: y | AO161: y | AP161: y | AQ161: y | AR161: y | BB161: 5479.33063 | BC161: 928.3702909 | BD161: 1083.843286 | BE161: 956.8209732 | BF161: 575.6795871 | BG161: 365.8833822 | BH161: 462.6229889 | BI161: 947.5 | BJ161: 246 | BK161: 71.80956371 | BL161: 750.6675466 | BM161: 912.0484283 | BN161: 352.9534753 | BO161: 2899.561519 | BP161: 1566.570638 | BQ161: 379.4352564 | BR161: 144 | BS161: 476.4963074 | BT161: 96.00269134 | BU161: 134 | BV161: 104 | BW161: 270.324288 | CF161: 19203.92085 | CH161: 0 | CI161: 0 | CJ161: 0 | CK161: 0 | CL161: 0 | CM161: 0 | CN161: 0 | CO161: 0 | CP161: 0 | CQ161: 0 | CR161: 0 | CS161: 0 | CT161: 0 | CU161: 0 | CV161: 0 | CW161: 0 | CX161: 0 | CY161: 0 | CZ161: 0 | DA161: 0 | DB161: 0 | DC161: 0 | DN161: 0
B162: Bondoola | D162: Passive | E162: TM MD | F162: CCW 600 Bond localbdy -Hidd localbdy | G162: Terminal Value | H162: mPVC (to 450mm) and DICL Trunk Watermains | I162: -5200 | J162: 600 | M162: nominal | N162: =IF(M162="",1,VLOOKUP(M162,'Unit Rates - Water'!$H$12:$I$23,2,FALSE)) -> 1 | P162: Crown Land | R162: =IF(P162="",'Unit Rates - Land'!landcst,IF($E$8="Landuse",VLOOKUP(P162,LAndcost3,2,FALSE),IF($E$8="Location",VLOOKUP(P162,Landcost2,2,FALSE),"Error"))) -> 0 | S162: 0 | T162: 2011 | U162: =IFERROR(('General Input Sheet'!$G$38/(VLOOKUP('Existing Trunk Assets - Water'!T162,'General Input Sheet'!$E$38:$G$44,3,FALSE))),1) -> 1 | V162: 0 | W162: y | X162: y | Y162: y | Z162: y | AA162: y | AB162: y | AC162: y | AD162: y | AE162: y | AF162: y | AG162: y | AH162: y | AI162: y | AJ162: y | AK162: y | AL162: y | AM162: y | AN162: y | AO162: y | AP162: y | AQ162: y | AR162: y | BB162: 5479.33063 | BC162: 928.3702909 | BD162: 1083.843286 | BE162: 956.8209732 | BF162: 575.6795871 | BG162: 365.8833822 | BH162: 462.6229889 | BI162: 947.5 | BJ162: 246 | BK162: 71.80956371 | BL162: 750.6675466 | BM162: 912.0484283 | BN162: 352.9534753 | BO162: 2899.561519 | BP162: 1566.570638 | BQ162: 379.4352564 | BR162: 144 | BS162: 476.4963074 | BT162: 96.00269134 | BU162: 134 | BV162: 104 | BW162: 270.324288 | CF162: 19203.92085 | CH162: 0 | CI162: 0 | CJ162: 0 | CK162: 0 | CL162: 0 | CM162: 0 | CN162: 0 | CO162: 0 | CP162: 0 | CQ162: 0 | CR162: 0 | CS162: 0 | CT162: 0 | CU162: 0 | CV162: 0 | CW162: 0 | CX162: 0 | CY162: 0 | CZ162: 0 | DA162: 0 | DB162: 0 | DC162: 0 | DN162: 0
B163: Hidden Valley | D163: Passive | E163: TM MD | F163: CCW 600 Hidd localbdy- Valve Fac | G163: Terminal Value | H163: mPVC (to 450mm) and DICL Trunk Watermains | I163: -1700 | J163: 600 | M163: nominal | N163: =IF(M163="",1,VLOOKUP(M163,'Unit Rates - Water'!$H$12:$I$23,2,FALSE)) -> 1 | P163: Crown Land | R163: =IF(P163="",'Unit Rates - Land'!landcst,IF($E$8="Landuse",VLOOKUP(P163,LAndcost3,2,FALSE),IF($E$8="Location",VLOOKUP(P163,Landcost2,2,FALSE),"Error"))) -> 0 | S163: 0 | T163: 2011 | U163: =IFERROR(('General Input Sheet'!$G$38/(VLOOKUP('Existing Trunk Assets - Water'!T163,'General Input Sheet'!$E$38:$G$44,3,FALSE))),1) -> 1 | V163: 0 | W163: y | X163: y | Y163: y | Z163: y | AA163: y | AB163: y | AC163: y | AD163: y | AE163: y | AF163: y | AG163: y | AH163: y | AI163: y | AJ163: y | AK163: y | AL163: y | AM163: y | AN163: y | AO163: y | AP163: y | AQ163: y | AR163: y | BB163: 5479.33063 | BC163: 928.3702909 | BD163: 1083.843286 | BE163: 956.8209732 | BF163: 575.6795871 | BG163: 365.8833822 | BH163: 462.6229889 | BI163: 947.5 | BJ163: 246 | BK163: 71.80956371 | BL163: 750.6675466 | BM163: 912.0484283 | BN163: 352.9534753 | BO163: 2899.561519 | BP163: 1566.570638 | BQ163: 379.4352564 | BR163: 144 | BS163: 476.4963074 | BT163: 96.00269134 | BU163: 134 | BV163: 104 | BW163: 270.324288 | CF163: 19203.92085 | CH163: 0 | CI163: 0 | CJ163: 0 | CK163: 0 | CL163: 0 | CM163: 0 | CN163: 0 | CO163: 0 | CP163: 0 | CQ163: 0 | CR163: 0 | CS163: 0 | CT163: 0 | CU163: 0 | CV163: 0 | CW163: 0 | CX163: 0 | CY163: 0 | CZ163: 0 | DA163: 0 | DB163: 0 | DC163: 0 | DN163: 0
D164: Passive | E164: TM MD | F164: CCW 600 Adel localbdy - Neils Rd | G164: Terminal Value | H164: mPVC (to 450mm) and DICL Trunk Watermains | I164: -800 | J164: 600 | M164: nominal | N164: =IF(M164="",1,VLOOKUP(M164,'Unit Rates - Water'!$H$12:$I$23,2,FALSE)) -> 1 | P164: Crown Land | R164: =IF(P164="",'Unit Rates - Land'!landcst,IF($E$8="Landuse",VLOOKUP(P164,LAndcost3,2,FALSE),IF($E$8="Location",VLOOKUP(P164,Landcost2,2,FALSE),"Error"))) -> 0 | S164: 0 | T164: 2011 | U164: =IFERROR(('General Input Sheet'!$G$38/(VLOOKUP('Existing Trunk Assets - Water'!T164,'General Input Sheet'!$E$38:$G$44,3,FALSE))),1) -> 1 | V164: 0 | W164: y | X164: y | Y164: y | Z164: y | AA164: y | AB164: y | AC164: y | AD164: y | AE164: y | AF164: y | AG164: y | AH164: y | AI164: y | AJ164: y | AK164: y | AL164: y | AM164: y | AN164: y | AO164: y | AP164: y | AQ164: y | AR164: y | BB164: 5479.33063 | BC164: 928.3702909 | BD164: 1083.843286 | BE164: 956.8209732 | BF164: 575.6795871 | BG164: 365.8833822 | BH164: 462.6229889 | BI164: 947.5 | BJ164: 246 | BK164: 71.80956371 | BL164: 750.6675466 | BM164: 912.0484283 | BN164: 352.9534753 | BO164: 2899.561519 | BP164: 1566.570638 | BQ164: 379.4352564 | BR164: 144 | BS164: 476.4963074 | BT164: 96.00269134 | BU164: 134 | BV164: 104 | BW164: 270.324288 | CF164: 19203.92085 | CH164: 0 | CI164: 0 | CJ164: 0 | CK164: 0 | CL164: 0 | CM164: 0 | CN164: 0 | CO164: 0 | CP164: 0 | CQ164: 0 | CR164: 0 | CS164: 0 | CT164: 0 | CU164: 0 | CV164: 0 | CW164: 0 | CX164: 0 | CY164: 0 | CZ164: 0 | DA164: 0 | DB164: 0 | DC164: 0 | DN164: 0
D165: Passive | E165: TM MD | F165: CCW 600 Tarang localbdy - Taranganba Res | G165: Terminal Value | H165: mPVC (to 450mm) and DICL Trunk Watermains | I165: -300 | J165: 600 | M165: nominal | N165: =IF(M165="",1,VLOOKUP(M165,'Unit Rates - Water'!$H$12:$I$23,2,FALSE)) -> 1 | P165: Crown Land | R165: =IF(P165="",'Unit Rates - Land'!landcst,IF($E$8="Landuse",VLOOKUP(P165,LAndcost3,2,FALSE),IF($E$8="Location",VLOOKUP(P165,Landcost2,2,FALSE),"Error"))) -> 0 | S165: 0 | T165: 2011 | U165: =IFERROR(('General Input Sheet'!$G$38/(VLOOKUP('Existing Trunk Assets - Water'!T165,'General Input Sheet'!$E$38:$G$44,3,FALSE))),1) -> 1 | V165: 0 | W165: y | X165: y | Y165: y | Z165: y | AA165: y | AB165: y | AC165: y | AD165: y | AE165: y | AF165: y | AG165: y | AH165: y | AI165: y | AJ165: y | AK165: y | AL165: y | AM165: y | AN165: y | AO165: y | AP165: y | AQ165: y | AR165: y | BB165: 5479.33063 | BC165: 928.3702909 | BD165: 1083.843286 | BE165: 956.8209732 | BF165: 575.6795871 | BG165: 365.8833822 | BH165: 462.6229889 | BI165: 947.5 | BJ165: 246 | BK165: 71.80956371 | BL165: 750.6675466 | BM165: 912.0484283 | BN165: 352.9534753 | BO165: 2899.561519 | BP165: 1566.570638 | BQ165: 379.4352564 | BR165: 144 | BS165: 476.4963074 | BT165: 96.00269134 | BU165: 134 | BV165: 104 | BW165: 270.324288 | CF165: 19203.92085 | CH165: 0 | CI165: 0 | CJ165: 0 | CK165: 0 | CL165: 0 | CM165: 0 | CN165: 0 | CO165: 0 | CP165: 0 | CQ165: 0 | CR165: 0 | CS165: 0 | CT165: 0 | CU165: 0 | CV165: 0 | CW165: 0 | CX165: 0 | CY165: 0 | CZ165: 0 | DA165: 0 | DB165: 0 | DC165: 0 | DN165: 0
D166: Passive | E166: TM MD | F166: CCW 750 Valve Fac - Yep localbdy | G166: Terminal Value | H166: mPVC (to 450mm) and DICL Trunk Watermains | I166: -2700 | J166: 750 | M166: nominal | N166: =IF(M166="",1,VLOOKUP(M166,'Unit Rates - Water'!$H$12:$I$23,2,FALSE)) -> 1 | P166: Crown Land | R166: =IF(P166="",'Unit Rates - Land'!landcst,IF($E$8="Landuse",VLOOKUP(P166,LAndcost3,2,FALSE),IF($E$8="Location",VLOOKUP(P166,Landcost2,2,FALSE),"Error"))) -> 0 | S166: 0 | T166: 2011 | U166: =IFERROR(('General Input Sheet'!$G$38/(VLOOKUP('Existing Trunk Assets - Water'!T166,'General Input Sheet'!$E$38:$G$44,3,FALSE))),1) -> 1 | V166: 0 | W166: y | X166: y | Y166: y | Z166: y | AA166: y | AB166: y | AC166: y | AD166: y | AE166: y | AF166: y | AG166: y | AH166: y | AI166: y | AJ166: y | AK166: y | AL166: y | AM166: y | AN166: y | AO166: y | AP166: y | AQ166: y | AR166: y | BB166: 5479.33063 | BC166: 928.3702909 | BD166: 1083.843286 | BE166: 956.8209732 | BF166: 575.6795871 | BG166: 365.8833822 | BH166: 462.6229889 | BI166: 947.5 | BJ166: 246 | BK166: 71.80956371 | BL166: 750.6675466 | BM166: 912.0484283 | BN166: 352.9534753 | BO166: 2899.561519 | BP166: 1566.570638 | BQ166: 379.4352564 | BR166: 144 | BS166: 476.4963074 | BT166: 96.00269134 | BU166: 134 | BV166: 104 | BW166: 270.324288 | CF166: 19203.92085 | CH166: 0 | CI166: 0 | CJ166: 0 | CK166: 0 | CL166: 0 | CM166: 0 | CN166: 0 | CO166: 0 | CP166: 0 | CQ166: 0 | CR166: 0 | CS166: 0 | CT166: 0 | CU166: 0 | CV166: 0 | CW166: 0 | CX166: 0 | CY166: 0 | CZ166: 0 | DA166: 0 | DB166: 0 | DC166: 0 | DN166: 0
D167: Passive | E167: TM MD | F167: CCW 750 Yep localbdy - Tanby Valve | G167: Terminal Value | H167: mPVC (to 450mm) and DICL Trunk Watermains | I167: -60 | J167: 750 | M167: nominal | N167: =IF(M167="",1,VLOOKUP(M167,'Unit Rates - Water'!$H$12:$I$23,2,FALSE)) -> 1 | P167: Crown Land | R167: =IF(P167="",'Unit Rates - Land'!landcst,IF($E$8="Landuse",VLOOKUP(P167,LAndcost3,2,FALSE),IF($E$8="Location",VLOOKUP(P167,Landcost2,2,FALSE),"Error"))) -> 0 | S167: 0 | T167: 2011 | U167: =IFERROR(('General Input Sheet'!$G$38/(VLOOKUP('Existing Trunk Assets - Water'!T167,'General Input Sheet'!$E$38:$G$44,3,FALSE))),1) -> 1 | V167: 0 | W167: y | X167: y | Y167: y | Z167: y | AA167: y | AB167: y | AC167: y | AD167: y | AE167: y | AF167: y | AG167: y | AH167: y | AI167: y | AJ167: y | AK167: y | AL167: y | AM167: y | AN167: y | AO167: y | AP167: y | AQ167: y | AR167: y | BB167: 5479.33063 | BC167: 928.3702909 | BD167: 1083.843286 | BE167: 956.8209732 | BF167: 575.6795871 | BG167: 365.8833822 | BH167: 462.6229889 | BI167: 947.5 | BJ167: 246 | BK167: 71.80956371 | BL167: 750.6675466 | BM167: 912.0484283 | BN167: 352.9534753 | BO167: 2899.561519 | BP167: 1566.570638 | BQ167: 379.4352564 | BR167: 144 | BS167: 476.4963074 | BT167: 96.00269134 | BU167: 134 | BV167: 104 | BW167: 270.324288 | CF167: 19203.92085 | CH167: 0 | CI167: 0 | CJ167: 0 | CK167: 0 | CL167: 0 | CM167: 0 | CN167: 0 | CO167: 0 | CP167: 0 | CQ167: 0 | CR167: 0 | CS167: 0 | CT167: 0 | CU167: 0 | CV167: 0 | CW167: 0 | CX167: 0 | CY167: 0 | CZ167: 0 | DA167: 0 | DB167: 0 | DC167: 0 | DN167: 0
D168: Passive | E168: TM MD | F168: CCW 600 Tanby Valve - Taroom localbdy | G168: Terminal Value | H168: mPVC (to 450mm) and DICL Trunk Watermains | I168: -240 | J168: 600 | M168: nominal | N168: =IF(M168="",1,VLOOKUP(M168,'Unit Rates - Water'!$H$12:$I$23,2,FALSE)) -> 1 | P168: Crown Land | R168: =IF(P168="",'Unit Rates - Land'!landcst,IF($E$8="Landuse",VLOOKUP(P168,LAndcost3,2,FALSE),IF($E$8="Location",VLOOKUP(P168,Landcost2,2,FALSE),"Error"))) -> 0 | S168: 0 | T168: 2011 | U168: =IFERROR(('General Input Sheet'!$G$38/(VLOOKUP('Existing Trunk Assets - Water'!T168,'General Input Sheet'!$E$38:$G$44,3,FALSE))),1) -> 1 | V168: 0 | W168: y | X168: y | Y168: y | Z168: y | AA168: y | AB168: y | AC168: y | AD168: y | AE168: y | AF168: y | AG168: y | AH168: y | AI168: y | AJ168: y | AK168: y | AL168: y | AM168: y | AN168: y | AO168: y | AP168: y | AQ168: y | AR168: y | BB168: 5479.33063 | BC168: 928.3702909 | BD168: 1083.843286 | BE168: 956.8209732 | BF168: 575.6795871 | BG168: 365.8833822 | BH168: 462.6229889 | BI168: 947.5 | BJ168: 246 | BK168: 71.80956371 | BL168: 750.6675466 | BM168: 912.0484283 | BN168: 352.9534753 | BO168: 2899.561519 | BP168: 1566.570638 | BQ168: 379.4352564 | BR168: 144 | BS168: 476.4963074 | BT168: 96.00269134 | BU168: 134 | BV168: 104 | BW168: 270.324288 | CF168: 19203.92085 | CH168: 0 | CI168: 0 | CJ168: 0 | CK168: 0 | CL168: 0 | CM168: 0 | CN168: 0 | CO168: 0 | CP168: 0 | CQ168: 0 | CR168: 0 | CS168: 0 | CT168: 0 | CU168: 0 | CV168: 0 | CW168: 0 | CX168: 0 | CY168: 0 | CZ168: 0 | DA168: 0 | DB168: 0 | DC168: 0 | DN168: 0
D169: Passive | E169: TM MD | F169: CCW 600 Taroom localbdy - Tarang localbdy | G169: Terminal Value | H169: mPVC (to 450mm) and DICL Trunk Watermains | I169: -600 | J169: 600 | M169: nominal | N169: =IF(M169="",1,VLOOKUP(M169,'Unit Rates - Water'!$H$12:$I$23,2,FALSE)) -> 1 | P169: Crown Land | R169: =IF(P169="",'Unit Rates - Land'!landcst,IF($E$8="Landuse",VLOOKUP(P169,LAndcost3,2,FALSE),IF($E$8="Location",VLOOKUP(P169,Landcost2,2,FALSE),"Error"))) -> 0 | S169: 0 | T169: 2011 | U169: =IFERROR(('General Input Sheet'!$G$38/(VLOOKUP('Existing Trunk Assets - Water'!T169,'General Input Sheet'!$E$38:$G$44,3,FALSE))),1) -> 1 | V169: 0 | W169: y | X169: y | Y169: y | Z169: y | AA169: y | AB169: y | AC169: y | AD169: y | AE169: y | AF169: y | AG169: y | AH169: y | AI169: y | AJ169: y | AK169: y | AL169: y | AM169: y | AN169: y | AO169: y | AP169: y | AQ169: y | AR169: y | BB169: 5479.33063 | BC169: 928.3702909 | BD169: 1083.843286 | BE169: 956.8209732 | BF169: 575.6795871 | BG169: 365.8833822 | BH169: 462.6229889 | BI169: 947.5 | BJ169: 246 | BK169: 71.80956371 | BL169: 750.6675466 | BM169: 912.0484283 | BN169: 352.9534753 | BO169: 2899.561519 | BP169: 1566.570638 | BQ169: 379.4352564 | BR169: 144 | BS169: 476.4963074 | BT169: 96.00269134 | BU169: 134 | BV169: 104 | BW169: 270.324288 | CF169: 19203.92085 | CH169: 0 | CI169: 0 | CJ169: 0 | CK169: 0 | CL169: 0 | CM169: 0 | CN169: 0 | CO169: 0 | CP169: 0 | CQ169: 0 | CR169: 0 | CS169: 0 | CT169: 0 | CU169: 0 | CV169: 0 | CW169: 0 | CX169: 0 | CY169: 0 | CZ169: 0 | DA169: 0 | DB169: 0 | DC169: 0 | DN169: 0
D170: Passive | E170: TM MD | F170: CAVW 600 TMD Ramsay Cr to Mt Charlton | G170: Terminal Value | H170: mPVC (to 450mm) and DICL Trunk Watermains | I170: -4500 | J170: 600 | M170: nominal | N170: =IF(M170="",1,VLOOKUP(M170,'Unit Rates - Water'!$H$12:$I$23,2,FALSE)) -> 1 | P170: Crown Land | R170: =IF(P170="",'Unit Rates - Land'!landcst,IF($E$8="Landuse",VLOOKUP(P170,LAndcost3,2,FALSE),IF($E$8="Location",VLOOKUP(P170,Landcost2,2,FALSE),"Error"))) -> 0 | S170: 0 | T170: 2011 | U170: =IFERROR(('General Input Sheet'!$G$38/(VLOOKUP('Existing Trunk Assets - Water'!T170,'General Input Sheet'!$E$38:$G$44,3,FALSE))),1) -> 1 | V170: 0 | AS170: y | BX170: 1409.454453 | CF170: 1409.454453 | DD170: 0 | DN170: =SUM(CH170:DK170) -> 0
D171: Passive | E171: TM MD | F171: CAVW 600 TMD Etna localbdy to Caves localbdy | G171: Terminal Value | H171: mPVC (to 450mm) and DICL Trunk Watermains | I171: -3500 | J171: 600 | M171: nominal | N171: =IF(M171="",1,VLOOKUP(M171,'Unit Rates - Water'!$H$12:$I$23,2,FALSE)) -> 1 | P171: Crown Land | R171: =IF(P171="",'Unit Rates - Land'!landcst,IF($E$8="Landuse",VLOOKUP(P171,LAndcost3,2,FALSE),IF($E$8="Location",VLOOKUP(P171,Landcost2,2,FALSE),"Error"))) -> 0 | S171: 0 | T171: 2011 | U171: =IFERROR(('General Input Sheet'!$G$38/(VLOOKUP('Existing Trunk Assets - Water'!T171,'General Input Sheet'!$E$38:$G$44,3,FALSE))),1) -> 1 | V171: 0 | AS171: y | BX171: 1409.454453 | CF171: 1409.454453 | DD171: 0 | DN171: 0
D172: Passive | E172: TM MD | F172: CAVW 600 TMD Glenlee localbdy to Etna localbdy | G172: Terminal Value | H172: mPVC (to 450mm) and DICL Trunk Watermains | I172: -300 | J172: 600 | M172: nominal | N172: =IF(M172="",1,VLOOKUP(M172,'Unit Rates - Water'!$H$12:$I$23,2,FALSE)) -> 1 | P172: Crown Land | R172: =IF(P172="",'Unit Rates - Land'!landcst,IF($E$8="Landuse",VLOOKUP(P172,LAndcost3,2,FALSE),IF($E$8="Location",VLOOKUP(P172,Landcost2,2,FALSE),"Error"))) -> 0 | S172: 0 | T172: 2011 | U172: =IFERROR(('General Input Sheet'!$G$38/(VLOOKUP('Existing Trunk Assets - Water'!T172,'General Input Sheet'!$E$38:$G$44,3,FALSE))),1) -> 1 | V172: 0 | AS172: y | BX172: 1409.454453 | CF172: 1409.454453 | CH172: =IF(BB172="","",(BB172/$CF172)*$V172) ->  | CI172: =IF(BC172="","",(BC172/$CF172)*$V172) ->  | CJ172: =IF(BD172="","",(BD172/$CF172)*$V172) ->  | CV172: =IF(BP172="","",(BP172/$CF172)*$V172) ->  | CW172: =IF(BQ172="","",(BQ172/$CF172)*$V172) ->  | CX172: =IF(BR172="","",(BR172/$CF172)*$V172) ->  | CY172: =IF(BS172="","",(BS172/$CF172)*$V172) ->  | CZ172: =IF(BT172="","",(BT172/$CF172)*$V172) ->  | DA172: =IF(BU172="","",(BU172/$CF172)*$V172) ->  | DB172: =IF(BV172="","",(BV172/$CF172)*$V172) ->  | DC172: =IF(BW172="","",(BW172/$CF172)*$V172) ->  | DD172: =IF(BX172="","",(BX172/$CF172)*$V172) -> 0 | DE172: =IF(BY172="","",(BY172/$CF172)*$V172) ->  | DF172: =IF(BZ172="","",(BZ172/$CF172)*$V172) ->  | DG172: =IF(CA172="","",(CA172/$CF172)*$V172) ->  | DH172: =IF(CB172="","",(CB172/$CF172)*$V172) ->  | DI172: =IF(CC172="","",(CC172/$CF172)*$V172) ->  | DJ172: =IF(CD172="","",(CD172/$CF172)*$V172) ->  | DK172: =IF(CE172="","",(CE172/$CF172)*$V172) ->  | DN172: 0
B173: The Caves | D173: Passive | E173: TM MD | F173: CAVW 600 TMD Ramsay Cr to Glenlee localbdy | G173: Terminal Value | H173: mPVC (to 450mm) and DICL Trunk Watermains | I173: -4000 | J173: 600 | M173: nominal | N173: =IF(M173="",1,VLOOKUP(M173,'Unit Rates - Water'!$H$12:$I$23,2,FALSE)) -> 1 | P173: Crown Land | R173: =IF(P173="",'Unit Rates - Land'!landcst,IF($E$8="Landuse",VLOOKUP(P173,LAndcost3,2,FALSE),IF($E$8="Location",VLOOKUP(P173,Landcost2,2,FALSE),"Error"))) -> 0 | S173: 0 | T173: 2011 | U173: =IFERROR(('General Input Sheet'!$G$38/(VLOOKUP('Existing Trunk Assets - Water'!T173,'General Input Sheet'!$E$38:$G$44,3,FALSE))),1) -> 1 | V173: 0 | AS173: y | BX173: 1409.454453 | CF173: 1409.454453 | DD173: 0 | DN173: 0
B174: The Caves | D174: Active | E174: TRES MD | F174: CAVW MD Mt Charlton | G174: Terminal Value | H174: Res, BPS and WTP | I174: -0.8 | J174: 9ML Reservoir | K174: 1360000 | L174: -1088000 | M174: nominal | N174: =IF(M174="",1,VLOOKUP(M174,'Unit Rates - Water'!$H$12:$I$23,2,FALSE)) -> 1 | O174: -1088000 | P174: Water Reservoir 50 x 50 ea | Q174: 2 | R174: =IF(P174="",'Unit Rates - Land'!landcst,IF($E$8="Landuse",VLOOKUP(P174,LAndcost3,2,FALSE),IF($E$8="Location",VLOOKUP(P174,Landcost2,2,FALSE),"Error"))) -> 5 | S174: 100000 | T174: 2011 | U174: =IFERROR(('General Input Sheet'!$G$38/(VLOOKUP('Existing Trunk Assets - Water'!T174,'General Input Sheet'!$E$38:$G$44,3,FALSE))),1) -> 1 | V174: -988000 | AS174: y | BX174: 1409.454453 | CF174: 1409.454453 | DD174: -988000 | DN174: -988000
K175: 0 | L175: 0 | N175: =IF(M175="",1,VLOOKUP(M175,'Unit Rates - Water'!$H$12:$I$23,2,FALSE)) -> 1 | O175: 0 | R175: =IF(P175="",'Unit Rates - Land'!landcst,IF($E$8="Landuse",VLOOKUP(P175,LAndcost3,2,FALSE),IF($E$8="Location",VLOOKUP(P175,Landcost2,2,FALSE),"Error"))) -> 2 | S175: 0 | U175: =IFERROR(('General Input Sheet'!$G$38/(VLOOKUP('Existing Trunk Assets - Water'!T175,'General Input Sheet'!$E$38:$G$44,3,FALSE))),1) -> 1 | V175: 0 | CF175: 0 | CH175: =IF(BB175="","",(BB175/$CF175)*$V175) ->  | CP175: =IF(BJ175="","",(BJ175/$CF175)*$V175) ->  | DF175: =IF(BZ175="","",(BZ175/$CF175)*$V175) -> 
K176: 0 | L176: 0 | N176: =IF(M176="",1,VLOOKUP(M176,'Unit Rates - Water'!$H$12:$I$23,2,FALSE)) -> 1 | O176: 0 | R176: =IF(P176="",'Unit Rates - Land'!landcst,IF($E$8="Landuse",VLOOKUP(P176,LAndcost3,2,FALSE),IF($E$8="Location",VLOOKUP(P176,Landcost2,2,FALSE),"Error"))) -> 2 | S176: 0 | U176: =IFERROR(('General Input Sheet'!$G$38/(VLOOKUP('Existing Trunk Assets - Water'!T176,'General Input Sheet'!$E$38:$G$44,3,FALSE))),1) -> 1 | V176: 0 | CF176: 0
K177: 0 | L177: 0 | N177: =IF(M177="",1,VLOOKUP(M177,'Unit Rates - Water'!$H$12:$I$23,2,FALSE)) -> 1 | O177: 0 | R177: =IF(P177="",'Unit Rates - Land'!landcst,IF($E$8="Landuse",VLOOKUP(P177,LAndcost3,2,FALSE),IF($E$8="Location",VLOOKUP(P177,Landcost2,2,FALSE),"Error"))) -> 2 | S177: 0 | U177: =IFERROR(('General Input Sheet'!$G$38/(VLOOKUP('Existing Trunk Assets - Water'!T177,'General Input Sheet'!$E$38:$G$44,3,FALSE))),1) -> 1 | V177: 0 | CF177: 0
K178: 0 | L178: 0 | N178: =IF(M178="",1,VLOOKUP(M178,'Unit Rates - Water'!$H$12:$I$23,2,FALSE)) -> 1 | O178: 0 | R178: =IF(P178="",'Unit Rates - Land'!landcst,IF($E$8="Landuse",VLOOKUP(P178,LAndcost3,2,FALSE),IF($E$8="Location",VLOOKUP(P178,Landcost2,2,FALSE),"Error"))) -> 2 | S178: 0 | U178: =IFERROR(('General Input Sheet'!$G$38/(VLOOKUP('Existing Trunk Assets - Water'!T178,'General Input Sheet'!$E$38:$G$44,3,FALSE))),1) -> 1 | V178: 0 | CF178: 0
K179: 0 | L179: 0 | N179: =IF(M179="",1,VLOOKUP(M179,'Unit Rates - Water'!$H$12:$I$23,2,FALSE)) -> 1 | O179: 0 | R179: =IF(P179="",'Unit Rates - Land'!landcst,IF($E$8="Landuse",VLOOKUP(P179,LAndcost3,2,FALSE),IF($E$8="Location",VLOOKUP(P179,Landcost2,2,FALSE),"Error"))) -> 2 | S179: 0 | U179: =IFERROR(('General Input Sheet'!$G$38/(VLOOKUP('Existing Trunk Assets - Water'!T179,'General Input Sheet'!$E$38:$G$44,3,FALSE))),1) -> 1 | V179: 0 | CF179: 0
K180: 0 | L180: 0 | N180: =IF(M180="",1,VLOOKUP(M180,'Unit Rates - Water'!$H$12:$I$23,2,FALSE)) -> 1 | O180: 0 | R180: =IF(P180="",'Unit Rates - Land'!landcst,IF($E$8="Landuse",VLOOKUP(P180,LAndcost3,2,FALSE),IF($E$8="Location",VLOOKUP(P180,Landcost2,2,FALSE),"Error"))) -> 2 | S180: 0 | U180: =IFERROR(('General Input Sheet'!$G$38/(VLOOKUP('Existing Trunk Assets - Water'!T180,'General Input Sheet'!$E$38:$G$44,3,FALSE))),1) -> 1 | V180: 0 | CF180: 0
K181: 0 | L181: 0 | N181: =IF(M181="",1,VLOOKUP(M181,'Unit Rates - Water'!$H$12:$I$23,2,FALSE)) -> 1 | O181: 0 | R181: =IF(P181="",'Unit Rates - Land'!landcst,IF($E$8="Landuse",VLOOKUP(P181,LAndcost3,2,FALSE),IF($E$8="Location",VLOOKUP(P181,Landcost2,2,FALSE),"Error"))) -> 2 | S181: 0 | U181: =IFERROR(('General Input Sheet'!$G$38/(VLOOKUP('Existing Trunk Assets - Water'!T181,'General Input Sheet'!$E$38:$G$44,3,FALSE))),1) -> 1 | V181: 0 | CF181: 0
K182: 0 | L182: 0 | N182: =IF(M182="",1,VLOOKUP(M182,'Unit Rates - Water'!$H$12:$I$23,2,FALSE)) -> 1 | O182: 0 | R182: =IF(P182="",'Unit Rates - Land'!landcst,IF($E$8="Landuse",VLOOKUP(P182,LAndcost3,2,FALSE),IF($E$8="Location",VLOOKUP(P182,Landcost2,2,FALSE),"Error"))) -> 2 | S182: 0 | U182: =IFERROR(('General Input Sheet'!$G$38/(VLOOKUP('Existing Trunk Assets - Water'!T182,'General Input Sheet'!$E$38:$G$44,3,FALSE))),1) -> 1 | V182: 0 | CF182: 0
K183: 0 | L183: 0 | N183: =IF(M183="",1,VLOOKUP(M183,'Unit Rates - Water'!$H$12:$I$23,2,FALSE)) -> 1 | O183: 0 | R183: =IF(P183="",'Unit Rates - Land'!landcst,IF($E$8="Landuse",VLOOKUP(P183,LAndcost3,2,FALSE),IF($E$8="Location",VLOOKUP(P183,Landcost2,2,FALSE),"Error"))) -> 2 | S183: 0 | U183: =IFERROR(('General Input Sheet'!$G$38/(VLOOKUP('Existing Trunk Assets - Water'!T183,'General Input Sheet'!$E$38:$G$44,3,FALSE))),1) -> 1 | V183: 0 | CF183: 0
K184: 0 | L184: 0 | N184: =IF(M184="",1,VLOOKUP(M184,'Unit Rates - Water'!$H$12:$I$23,2,FALSE)) -> 1 | O184: 0 | R184: =IF(P184="",'Unit Rates - Land'!landcst,IF($E$8="Landuse",VLOOKUP(P184,LAndcost3,2,FALSE),IF($E$8="Location",VLOOKUP(P184,Landcost2,2,FALSE),"Error"))) -> 2 | S184: 0 | U184: =IFERROR(('General Input Sheet'!$G$38/(VLOOKUP('Existing Trunk Assets - Water'!T184,'General Input Sheet'!$E$38:$G$44,3,FALSE))),1) -> 1 | V184: 0 | CF184: 0
K185: 0 | L185: 0 | N185: =IF(M185="",1,VLOOKUP(M185,'Unit Rates - Water'!$H$12:$I$23,2,FALSE)) -> 1 | O185: 0 | R185: =IF(P185="",'Unit Rates - Land'!landcst,IF($E$8="Landuse",VLOOKUP(P185,LAndcost3,2,FALSE),IF($E$8="Location",VLOOKUP(P185,Landcost2,2,FALSE),"Error"))) -> 2 | S185: 0 | U185: =IFERROR(('General Input Sheet'!$G$38/(VLOOKUP('Existing Trunk Assets - Water'!T185,'General Input Sheet'!$E$38:$G$44,3,FALSE))),1) -> 1 | V185: 0 | CF185: 0
K186: 0 | L186: 0 | N186: =IF(M186="",1,VLOOKUP(M186,'Unit Rates - Water'!$H$12:$I$23,2,FALSE)) -> 1 | O186: 0 | R186: =IF(P186="",'Unit Rates - Land'!landcst,IF($E$8="Landuse",VLOOKUP(P186,LAndcost3,2,FALSE),IF($E$8="Location",VLOOKUP(P186,Landcost2,2,FALSE),"Error"))) -> 2 | S186: 0 | U186: =IFERROR(('General Input Sheet'!$G$38/(VLOOKUP('Existing Trunk Assets - Water'!T186,'General Input Sheet'!$E$38:$G$44,3,FALSE))),1) -> 1 | V186: 0 | CF186: 0
K187: 0 | L187: 0 | N187: =IF(M187="",1,VLOOKUP(M187,'Unit Rates - Water'!$H$12:$I$23,2,FALSE)) -> 1 | O187: 0 | R187: =IF(P187="",'Unit Rates - Land'!landcst,IF($E$8="Landuse",VLOOKUP(P187,LAndcost3,2,FALSE),IF($E$8="Location",VLOOKUP(P187,Landcost2,2,FALSE),"Error"))) -> 2 | S187: 0 | U187: =IFERROR(('General Input Sheet'!$G$38/(VLOOKUP('Existing Trunk Assets - Water'!T187,'General Input Sheet'!$E$38:$G$44,3,FALSE))),1) -> 1 | V187: 0 | CF187: 0
K188: 0 | L188: 0 | N188: =IF(M188="",1,VLOOKUP(M188,'Unit Rates - Water'!$H$12:$I$23,2,FALSE)) -> 1 | O188: 0 | R188: =IF(P188="",'Unit Rates - Land'!landcst,IF($E$8="Landuse",VLOOKUP(P188,LAndcost3,2,FALSE),IF($E$8="Location",VLOOKUP(P188,Landcost2,2,FALSE),"Error"))) -> 2 | S188: 0 | U188: =IFERROR(('General Input Sheet'!$G$38/(VLOOKUP('Existing Trunk Assets - Water'!T188,'General Input Sheet'!$E$38:$G$44,3,FALSE))),1) -> 1 | V188: 0 | CF188: 0
K189: 0 | L189: 0 | N189: =IF(M189="",1,VLOOKUP(M189,'Unit Rates - Water'!$H$12:$I$23,2,FALSE)) -> 1 | O189: 0 | R189: =IF(P189="",'Unit Rates - Land'!landcst,IF($E$8="Landuse",VLOOKUP(P189,LAndcost3,2,FALSE),IF($E$8="Location",VLOOKUP(P189,Landcost2,2,FALSE),"Error"))) -> 2 | S189: 0 | U189: =IFERROR(('General Input Sheet'!$G$38/(VLOOKUP('Existing Trunk Assets - Water'!T189,'General Input Sheet'!$E$38:$G$44,3,FALSE))),1) -> 1 | V189: 0 | CF189: 0
K190: 0 | L190: 0 | N190: =IF(M190="",1,VLOOKUP(M190,'Unit Rates - Water'!$H$12:$I$23,2,FALSE)) -> 1 | O190: 0 | R190: =IF(P190="",'Unit Rates - Land'!landcst,IF($E$8="Landuse",VLOOKUP(P190,LAndcost3,2,FALSE),IF($E$8="Location",VLOOKUP(P190,Landcost2,2,FALSE),"Error"))) -> 2 | S190: 0 | U190: =IFERROR(('General Input Sheet'!$G$38/(VLOOKUP('Existing Trunk Assets - Water'!T190,'General Input Sheet'!$E$38:$G$44,3,FALSE))),1) -> 1 | V190: 0 | CF190: 0
K191: 0 | L191: 0 | N191: =IF(M191="",1,VLOOKUP(M191,'Unit Rates - Water'!$H$12:$I$23,2,FALSE)) -> 1 | O191: 0 | R191: =IF(P191="",'Unit Rates - Land'!landcst,IF($E$8="Landuse",VLOOKUP(P191,LAndcost3,2,FALSE),IF($E$8="Location",VLOOKUP(P191,Landcost2,2,FALSE),"Error"))) -> 2 | S191: 0 | U191: =IFERROR(('General Input Sheet'!$G$38/(VLOOKUP('Existing Trunk Assets - Water'!T191,'General Input Sheet'!$E$38:$G$44,3,FALSE))),1) -> 1 | V191: 0 | CF191: 0 | CR191: =IF(BL191="","",(BL191/$CF191)*$V191) -> 
K192: 0 | L192: 0 | N192: =IF(M192="",1,VLOOKUP(M192,'Unit Rates - Water'!$H$12:$I$23,2,FALSE)) -> 1 | O192: 0 | R192: =IF(P192="",'Unit Rates - Land'!landcst,IF($E$8="Landuse",VLOOKUP(P192,LAndcost3,2,FALSE),IF($E$8="Location",VLOOKUP(P192,Landcost2,2,FALSE),"Error"))) -> 2 | S192: 0 | U192: =IFERROR(('General Input Sheet'!$G$38/(VLOOKUP('Existing Trunk Assets - Water'!T192,'General Input Sheet'!$E$38:$G$44,3,FALSE))),1) -> 1 | V192: 0 | CF192: 0
K193: 0 | L193: 0 | N193: =IF(M193="",1,VLOOKUP(M193,'Unit Rates - Water'!$H$12:$I$23,2,FALSE)) -> 1 | O193: 0 | R193: =IF(P193="",'Unit Rates - Land'!landcst,IF($E$8="Landuse",VLOOKUP(P193,LAndcost3,2,FALSE),IF($E$8="Location",VLOOKUP(P193,Landcost2,2,FALSE),"Error"))) -> 2 | S193: 0 | U193: =IFERROR(('General Input Sheet'!$G$38/(VLOOKUP('Existing Trunk Assets - Water'!T193,'General Input Sheet'!$E$38:$G$44,3,FALSE))),1) -> 1 | V193: 0 | CF193: 0
K194: 0 | L194: 0 | N194: =IF(M194="",1,VLOOKUP(M194,'Unit Rates - Water'!$H$12:$I$23,2,FALSE)) -> 1 | O194: 0 | R194: =IF(P194="",'Unit Rates - Land'!landcst,IF($E$8="Landuse",VLOOKUP(P194,LAndcost3,2,FALSE),IF($E$8="Location",VLOOKUP(P194,Landcost2,2,FALSE),"Error"))) -> 2 | S194: 0 | U194: =IFERROR(('General Input Sheet'!$G$38/(VLOOKUP('Existing Trunk Assets - Water'!T194,'General Input Sheet'!$E$38:$G$44,3,FALSE))),1) -> 1 | V194: 0 | CF194: 0
K195: 0 | L195: 0 | N195: =IF(M195="",1,VLOOKUP(M195,'Unit Rates - Water'!$H$12:$I$23,2,FALSE)) -> 1 | O195: 0 | R195: =IF(P195="",'Unit Rates - Land'!landcst,IF($E$8="Landuse",VLOOKUP(P195,LAndcost3,2,FALSE),IF($E$8="Location",VLOOKUP(P195,Landcost2,2,FALSE),"Error"))) -> 2 | S195: 0 | U195: =IFERROR(('General Input Sheet'!$G$38/(VLOOKUP('Existing Trunk Assets - Water'!T195,'General Input Sheet'!$E$38:$G$44,3,FALSE))),1) -> 1 | V195: 0 | CF195: 0
K196: 0 | L196: 0 | N196: =IF(M196="",1,VLOOKUP(M196,'Unit Rates - Water'!$H$12:$I$23,2,FALSE)) -> 1 | O196: 0 | R196: =IF(P196="",'Unit Rates - Land'!landcst,IF($E$8="Landuse",VLOOKUP(P196,LAndcost3,2,FALSE),IF($E$8="Location",VLOOKUP(P196,Landcost2,2,FALSE),"Error"))) -> 2 | S196: 0 | U196: =IFERROR(('General Input Sheet'!$G$38/(VLOOKUP('Existing Trunk Assets - Water'!T196,'General Input Sheet'!$E$38:$G$44,3,FALSE))),1) -> 1 | V196: 0 | CF196: 0
K197: 0 | L197: 0 | N197: =IF(M197="",1,VLOOKUP(M197,'Unit Rates - Water'!$H$12:$I$23,2,FALSE)) -> 1 | O197: 0 | R197: =IF(P197="",'Unit Rates - Land'!landcst,IF($E$8="Landuse",VLOOKUP(P197,LAndcost3,2,FALSE),IF($E$8="Location",VLOOKUP(P197,Landcost2,2,FALSE),"Error"))) -> 2 | S197: 0 | U197: =IFERROR(('General Input Sheet'!$G$38/(VLOOKUP('Existing Trunk Assets - Water'!T197,'General Input Sheet'!$E$38:$G$44,3,FALSE))),1) -> 1 | V197: 0 | CF197: 0
K198: 0 | L198: 0 | N198: =IF(M198="",1,VLOOKUP(M198,'Unit Rates - Water'!$H$12:$I$23,2,FALSE)) -> 1 | O198: 0 | R198: =IF(P198="",'Unit Rates - Land'!landcst,IF($E$8="Landuse",VLOOKUP(P198,LAndcost3,2,FALSE),IF($E$8="Location",VLOOKUP(P198,Landcost2,2,FALSE),"Error"))) -> 2 | S198: 0 | U198: =IFERROR(('General Input Sheet'!$G$38/(VLOOKUP('Existing Trunk Assets - Water'!T198,'General Input Sheet'!$E$38:$G$44,3,FALSE))),1) -> 1 | V198: 0 | CF198: 0
K199: 0 | L199: 0 | N199: =IF(M199="",1,VLOOKUP(M199,'Unit Rates - Water'!$H$12:$I$23,2,FALSE)) -> 1 | O199: 0 | R199: =IF(P199="",'Unit Rates - Land'!landcst,IF($E$8="Landuse",VLOOKUP(P199,LAndcost3,2,FALSE),IF($E$8="Location",VLOOKUP(P199,Landcost2,2,FALSE),"Error"))) -> 2 | S199: 0 | U199: =IFERROR(('General Input Sheet'!$G$38/(VLOOKUP('Existing Trunk Assets - Water'!T199,'General Input Sheet'!$E$38:$G$44,3,FALSE))),1) -> 1 | V199: 0 | CF199: 0 | CQ199: =IF(BK199="","",(BK199/$CF199)*$V199) -> 
K200: 0 | L200: 0 | N200: =IF(M200="",1,VLOOKUP(M200,'Unit Rates - Water'!$H$12:$I$23,2,FALSE)) -> 1 | O200: 0 | R200: =IF(P200="",'Unit Rates - Land'!landcst,IF($E$8="Landuse",VLOOKUP(P200,LAndcost3,2,FALSE),IF($E$8="Location",VLOOKUP(P200,Landcost2,2,FALSE),"Error"))) -> 2 | S200: 0 | U200: =IFERROR(('General Input Sheet'!$G$38/(VLOOKUP('Existing Trunk Assets - Water'!T200,'General Input Sheet'!$E$38:$G$44,3,FALSE))),1) -> 1 | V200: 0 | CF200: 0 | CH200: =IF(BB200="","",(BB200/$CF200)*$V200) -> 
K201: 0 | L201: 0 | N201: =IF(M201="",1,VLOOKUP(M201,'Unit Rates - Water'!$H$12:$I$23,2,FALSE)) -> 1 | O201: 0 | R201: =IF(P201="",'Unit Rates - Land'!landcst,IF($E$8="Landuse",VLOOKUP(P201,LAndcost3,2,FALSE),IF($E$8="Location",VLOOKUP(P201,Landcost2,2,FALSE),"Error"))) -> 2 | S201: 0 | U201: =IFERROR(('General Input Sheet'!$G$38/(VLOOKUP('Existing Trunk Assets - Water'!T201,'General Input Sheet'!$E$38:$G$44,3,FALSE))),1) -> 1 | V201: 0 | CF201: 0
K202: 0 | L202: 0 | N202: =IF(M202="",1,VLOOKUP(M202,'Unit Rates - Water'!$H$12:$I$23,2,FALSE)) -> 1 | O202: 0 | R202: =IF(P202="",'Unit Rates - Land'!landcst,IF($E$8="Landuse",VLOOKUP(P202,LAndcost3,2,FALSE),IF($E$8="Location",VLOOKUP(P202,Landcost2,2,FALSE),"Error"))) -> 2 | S202: 0 | U202: =IFERROR(('General Input Sheet'!$G$38/(VLOOKUP('Existing Trunk Assets - Water'!T202,'General Input Sheet'!$E$38:$G$44,3,FALSE))),1) -> 1 | V202: 0 | CF202: 0 | DH202: =IF(CB202="","",(CB202/$CF202)*$V202) -> 
K203: 0 | L203: 0 | N203: =IF(M203="",1,VLOOKUP(M203,'Unit Rates - Water'!$H$12:$I$23,2,FALSE)) -> 1 | O203: 0 | R203: =IF(P203="",'Unit Rates - Land'!landcst,IF($E$8="Landuse",VLOOKUP(P203,LAndcost3,2,FALSE),IF($E$8="Location",VLOOKUP(P203,Landcost2,2,FALSE),"Error"))) -> 2 | S203: 0 | U203: =IFERROR(('General Input Sheet'!$G$38/(VLOOKUP('Existing Trunk Assets - Water'!T203,'General Input Sheet'!$E$38:$G$44,3,FALSE))),1) -> 1 | V203: 0 | CF203: 0
... 224 more rows

Sheet Existing Trunk Assets - Sewer (hidden)
B2: ='Navigation Pane'!C2 -> Livingstone Shire Council | U2: TRM WWF | V2: Trunk Rising Main, Wet Weather Flow Design Capacity
B3: Sewerage - Closed Network | U3: TGM WWF | V3: Trunk Gravity Main, Wet Weather Flow Design Capacity
A4: Return to "Existing Trunk Assets" | U4: TSTP WWF | V4: Trunk Sewage Treatment Plant, Wet Weather Flow Design Capacity
B5: EXISTING TRUNK ASSETS - CLOSED NETWORKS | U5: TSPS WWF | V5: Trunk Sewage Pump Station, Wet Weather Flow Design Capacity
U7: TSPS PDWF | V7: Trunk Sewage Pump Station, Peak Dry Weather Flow Design Capacity
B8: Land Valuation Type | E8: Location | R8: =IF(H15=TYPE2,VLOOKUP((J15&"_"&K15),Sewerrates2,2,FALSE),"") -> 
I10: Asset Data | Y10: Catchment Asset Allocation | BR10: Asset Usage | CX10: Cost Allocation
B11: Basic Asset Data | H11: Asset Attributes | L11: Basic Asset Valuation | Q11: Land Attributes | U11: Refined Asset Value | Y11: ='Catchment Demand- Sewer'!C8 -> Yeppoon | Z11: ='Catchment Demand- Sewer'!$C9 -> Cooee Bay | AA11: ='Catchment Demand- Sewer'!$C10 -> Taranganba | AB11: ='Catchment Demand- Sewer'!$C11 -> Lammermoor | AC11: ='Catchment Demand- Sewer'!$C12 -> Rosslyn | AD11: ='Catchment Demand- Sewer'!$C13 -> Meikleville Hill | AE11: ='Catchment Demand- Sewer'!$C14 -> Barlows Hill | AF11: ='Catchment Demand- Sewer'!$C15 -> Pacific Heights | AG11: ='Catchment Demand- Sewer'!$C16 -> Mulambin | AH11: ='Catchment Demand- Sewer'!$C17 -> Causeway Lake | AI11: ='Catchment Demand- Sewer'!$C18 -> Hidden Valley | AJ11: ='Catchment Demand- Sewer'!$C19 -> Taroomball | AK11: ='Catchment Demand- Sewer'!$C20 -> Farnborough | AL11: ='Catchment Demand- Sewer'!$C21 -> Emu Park | AM11: ='Catchment Demand- Sewer'!$C22 -> Zilzie | AN11: ='Catchment Demand- Sewer'!$C23 -> Kinka Beach | AO11: ='Catchment Demand- Sewer'!$C24 -> Tanby | AP11: ='Catchment Demand- Sewer'!$C25 -> Barmaryee | AQ11: ='Catchment Demand- Sewer'!$C26 -> Inverness | AR11: ='Catchment Demand- Sewer'!$C27 -> Adelaiade Park | AS11: ='Catchment Demand- Sewer'!$C28 -> Bangalee | AT11: ='Catchment Demand- Sewer'!$C29 -> Keppel Sands | AU11: ='Catchment Demand- Sewer'!$C30 -> Glenlee-Rockyview | AV11: ='Catchment Demand- Sewer'!$C31 -> NE Shire & Shoalwater | AW11: ='Catchment Demand- Sewer'!$C32 -> Sth Shire | AX11: ='Catchment Demand- Sewer'!$C33 -> SE Shire | AY11: ='Catchment Demand- Sewer'!$C34 -> Rural Localities with water | AZ11: ='Catchment Demand- Sewer'!$C35 -> N & W Shire - Rural | BA11: ='Catchment Demand- Sewer'!$C36 -> The Keppels | BB11: ='Catchment Demand- Sewer'!$C37 -> Coral Sea | BD11: =Y11 -> Yeppoon | BE11: =Z11 -> Cooee Bay | BF11: Taranganba | BG11: Lammermoor | BH11: Rosslyn | BI11: Meikleville Hill | BJ11: Barlows Hill | BK11: Pacific Heights | BL11: Mulambin | BM11: Causeway Lake | BN11: Hidden Valley | BO11: Taroomball | BP11: Farnborough | BQ11: Emu Park | BR11: Zilzie | BS11: Kinka Beach | BT11: Tanby | BU11: Barmaryee | BV11: Inverness | BW11: Adelaiade Park | BX11: Bangalee | BY11: Keppel Sands | BZ11: Glenlee-Rockyview | CA11: NE Shire & Shoalwater | CB11: Sth Shire | CC11: SE Shire | CD11: Rural Localities with water | CE11: N & W Shire - Rural | CF11: The Keppels | CG11: Coral Sea | CH11: TOTALS | CJ11: =BD11 -> Yeppoon | CK11: =BE11 -> Cooee Bay | CL11: Taranganba | CM11: Lammermoor | CN11: Rosslyn | CO11: Meikleville Hill | CP11: Barlows Hill | CQ11: Pacific Heights | CR11: Mulambin | CS11: Causeway Lake | CT11: Hidden Valley | CU11: Taroomball | CV11: Farnborough | CW11: Emu Park | CX11: Zilzie | CY11: Kinka Beach | CZ11: Tanby | DA11: Barmaryee | DB11: Inverness | DC11: Adelaiade Park | DD11: Bangalee | DE11: Keppel Sands | DF11: Glenlee-Rockyview | DG11: NE Shire & Shoalwater | DH11: Sth Shire | DI11: SE Shire | DJ11: Rural Localities with water | DK11: N & W Shire - Rural | DL11: The Keppels | DM11: Coral Sea | DN11: Checksum 2
B12: Asset ID | C12: LGIP ID | D12: Asset Type (*) | E12: Asset Class | F12: Asset Name | G12: Description | H12: Unit Rate Type (*) | I12: Length/unit (*) | J12: Diameter (*) | K12: Depth (*) | L12: Unit Rate | M12: Baseline Valuation | N12: Site/Condition | O12: Multiplier | P12: Gross Value | Q12: Land Location/Type | R12: Size of land (ha) (*) | S12: Unit Cost | T12: Land Value | U12: Valuation Year | V12: Escalation | W12: Current Replaceement Costs | DP12: Totals
Y13: 1 | Z13: =Y13+1 -> 2 | AA13: =Z13+1 -> 3 | AB13: 4 | AC13: 5 | AD13: 6 | AE13: 7 | AF13: 8 | AG13: 9 | AH13: 10 | AI13: 11 | AJ13: 12 | AK13: 13 | AL13: 14 | AM13: 15 | AN13: 16 | AO13: 17 | AP13: 18 | AQ13: 19 | AR13: 20 | AS13: 21 | AT13: 22 | AU13: 23 | AV13: 24 | AW13: 25 | AX13: 26 | AY13: 27 | AZ13: 28 | BA13: 29 | BB13: 30
B14: Councils ID (from GIS, FAR, AMA etc.) | C14: ID from the LGIP drawings | E14: Pump Station, Gravity Main, Rising Main etc | M14: May be calculated from unit rates OR unique values can be direct entered | W14: CRC | Y14: =IFERROR(VLOOKUP(Y11,Sewcatch,6,FALSE),"") -> 5479.33063 | Z14: 928.3702909 | AA14: 1083.843286 | AB14: 956.8209732 | AC14: 575.6795871 | AD14: 365.8833822 | AE14: 462.6229889 | AF14: 947.5 | AG14: 246 | AH14: 71.80956371 | AI14: 750.6675466 | AJ14: 912.0484283 | AK14: 352.9534753 | AL14: 2899.561519 | AM14: 1566.570638 | AN14: 379.4352564 | AO14: 144 | AP14: 476.4963074 | AQ14: 96.00269134 | AR14: 134 | AS14: 104 | AT14: 270.324288 | AU14: 1409.454453 | AV14: 464.5512875 | AW14: 664.273678 | AX14: 432 | AY14: 191.1969828 | AZ14: 307.3300465 | BA14: 19 | BB14: 0 | BD14: =Y14 -> 5479.33063 | BE14: =Z14 -> 928.3702909 | BF14: 1083.843286 | BG14: 956.8209732 | BH14: 575.6795871 | BI14: 365.8833822 | BJ14: 462.6229889 | BK14: 947.5 | BL14: 246 | BM14: 71.80956371 | BN14: 750.6675466 | BO14: 912.0484283 | BP14: 352.9534753 | BQ14: 2899.561519 | BR14: 1566.570638 | BS14: 379.4352564 | BT14: 144 | BU14: 476.4963074 | BV14: 96.00269134 | BW14: 134 | BX14: 104 | BY14: 270.324288 | BZ14: 1409.454453 | CA14: 464.5512875 | CB14: 664.273678 | CC14: 432 | CD14: 191.1969828 | CE14: 307.3300465 | CF14: 19 | CG14: 0 | CJ14: =SUM(CJ15:CJ401) -> 13243555.76 | CK14: 2243873.303 | CL14: 2619651.919 | CM14: 2312638.673 | CN14: 1391418.994 | CO14: 884341.0452 | CP14: 1118160.915 | CQ14: 2290109.857 | CR14: 594582.612 | CS14: 173563.8941 | CT14: 1814365.328 | CU14: 2204423.32 | CV14: 853089.4279 | CW14: 7008247.405 | CX14: 3786405.129 | CY14: 917095.9586 | CZ14: 348048.3583 | DA14: 1151692.76 | DB14: 232038.7438 | DC14: 323878.3334 | DD14: =SUM(DD15:DD401) -> 251368.2587 | DE14: 0 | DF14: 0 | DG14: 0 | DH14: 0 | DI14: 0 | DJ14: 0 | DK14: 0 | DL14: 0 | DM14: 0 | DN14: 0
